Workbook

Sheet Blank
B2: If a box does not appear within 10 seconds, you likely have macros turned off.
B3: Please see the instruction on our website next to this excel file for help.
B4: If you have excel 2007, allow macros in the tan strip across the top of your screen.

Sheet L-Summary
A1: Office of the State Actuary
A2: =TODAY() -> 2018-02-08
A3: Alternative Measurement Method for GASB 45
B4: Inputs: | D4: 20-58 | E4: 59-61 | F4: 62-63 | G4: 64+ | I4: Sensitivities:
C5: Number Active | D5: 0 | E5: 0 | F5: 0 | G5: 0 | I5: Medical Inflation | K5: +or- 1.0%
C6: Active Age | D6: 0 | E6: 0 | F6: 0 | G6: 0 | I6: Amortization Period | K6: 10 Years
C7: Percent Male | D7: 0 | E7: 0 | F7: 0 | G7: 0
C8: Active Service | D8: 0 | E8: 0 | F8: 0 | G8: 0
D9: 20-64 | E9: 65-68 | F9: 69-74 | G9: 75+ | I9: Employer:
C10: Number Inactive | D10: 0 | E10: 0 | F10: 0 | G10: 0 | I10: Annual budget | K10: 1000000
C11: Inactive Age | D11: 0 | E11: 0 | F11: 0 | G11: 0 | I11: Annual Budget Growth | K11: 0.05
C12: Percent Male | D12: 0 | E12: 0 | F12: 0 | G12: 0 | I12: BOY NOO | K12: 0
I13: Actual Contributions | K13: 0
A14: Excise Tax Inflation Trend: | D14: ON
A18: Key Results: | G18: This version of the OPEB Tool is NOT intended for GASB 74/75.
B20: Actuarial Accrued Liability (AAL) | E20: =SUM('L-Working Tab'!F8:G8,'L-Working Tab'!H15:I15) -> 0
B21: Annual Required Contribution (ARC) | E21: =IF(SUM(D5:G5,D10:G10)<100,D84,"") -> 0
B22: Annual OPEB Cost | E22: =IF(SUM(D5:G5,D10:G10)<100,D90,"") -> 0
B23: Net OPEB Obligation (NOO)* | E23: =IF(SUM(D5:G5,D10:G10)<100,D96,"") -> 0
B24: =IF(K15=0,"*Estimated","*Actual") -> *Estimated
A27: Disclosures: (You must include wording such as this in your financial statements, see GASB 45 paragraph 34)
B28: We used the alternative measurement method permitted under GASB Statement No. 45. A single retirement age of 55.3 was assumed for all active members for the purpose of determining the AAL and normal cost. Retirement, disablement, termination, and mortality rates were assumed to follow the LEOFF 1 rates used in the June 30, 2014, actuarial valuation report issued by the Office of the State Actuary (OSA). Healthcare costs and trends were determined by Milliman and used by OSA in the state-wide LEOFF 1 medical study performed in 2013. The results were based on grouped data with four active groupings and four inactive groupings. The actuarial cost method used to determine the AAL was the Projected Unit Credit. The AAL and NOO are amortized on an open basis as a level dollar over 15 years. These assumptions are individually and collectively reasonable for the purposes of this valuation.
A69: Further Breakdown of Key Results
D70: PVFB | E70: AAL
B71: Active:
C72: Medical Expenses | D72: =IF(SUM(D5:G5,D10:G10)<100,SUM('L-Working Tab'!B8),"") -> 0 | E72: =IF(SUM(D5:G5,D10:G10)<100,SUM('L-Working Tab'!F8),"") -> 0
C73: Long-Term Care | D73: =IF(SUM(D5:G5,D10:G10)<100,SUM('L-Working Tab'!C8),"") -> 0 | E73: =IF(SUM(D5:G5,D10:G10)<100,SUM('L-Working Tab'!G8),"") -> 0
C74: Total Active | D74: =SUM(D72:D73) -> 0 | E74: =SUM(E72:E73) -> 0
B75: Inactive:
C76: Medical Expenses | D76: =IF(SUM(D5:G5,D10:G10)<100,SUM('L-Working Tab'!D15),"") -> 0 | E76: =IF(SUM(D5:G5,D10:G10)<100,SUM('L-Working Tab'!H15),"") -> 0
C77: Long-Term Care | D77: =IF(SUM(D5:G5,D10:G10)<100,SUM('L-Working Tab'!E15),"") -> 0 | E77: =IF(SUM(D5:G5,D10:G10)<100,SUM('L-Working Tab'!I15),"") -> 0
C78: Total Inactive | D78: =SUM(D76:D77) -> 0 | E78: =SUM(E76:E77) -> 0
B79: Total | D79: =SUM(D74,D78) -> 0 | E79: =SUM(E74,E78) -> 0
D80: =D72+D76 -> 0 | E80: =E72+E76 -> 0
B81: ARC | D81: =D73+D77 -> 0 | E81: =E73+E77 -> 0
C82: Normal Cost | D82: =IF(SUM(D5:G5,D10:G10)<100,SUM('L-Working Tab'!J8),"") -> 0
C83: UAAL Amortization | D83: =IF(SUM(D5:G5,D10:G10)<100,SUM('L-Working Tab'!K8),"") -> 0
B84: ARC | D84: =SUM(D82:D83) -> 0
B86: Annual OPEB Cost
C87: ARC | D87: =D84 -> 0
C88: NOO Interest | D88: =IF(SUM(D5:G5,D10:G10)<100,SUM('L-Working Tab'!G48),"") -> 0
C89: NOO Amortization | D89: =IF(SUM(D5:G5,D10:G10)<100,-SUM('L-Working Tab'!H48),"") -> 0
B90: Annual OPEB Cost | D90: =SUM(D87:D89) -> 0
B92: NOO
C93: Starting NOO | D93: =IF(SUM(D5:G5,D10:G10)<100,SUM('L-Working Tab'!I48),"") -> 0
C94: Annual OPEB Cost | D94: =D90 -> 0
C95: Contributions* | D95: =IF(SUM(D5:G5,D10:G10)<100,IF(K13=0,SUM('L-Working Tab'!O8),'L-Working Tab'!J48),"") -> 0
B96: NOO* | D96: =D93+D94-D95 -> 0
B97: =IF(K15=0,"*Estimated (Please see comment in Key Results, above.)","*Actual (Please see comment in Key Results, above.C100)") -> *Estimated (Please see comment in Key Results, above.)
B137: Closed Group Contribution Projections:
B139: The graph below shows what the contributions (year by year subsidy amounts) are projected to look like over the remaining lifetimes of your current members. The graph is slightly bumpy because of the grouping of members; however, the amounts should still be very reasonable. Please press the "Chart Medical Inflation" button to see how these contributions compare to those with different projected medical inflation.
B174: The graph below shows what the contributions (year by year subsidy amounts) are projected to look like over the remaining lifetimes of your current members relative to your annual budget.

Sheet L-Active (hidden)
A1: Actives | B1: 0 | D1: Medical | J1: Medical | K1: Medical | L1: Explicit | O1: Implicit | P1: UMP | Q1: Explicit | U1: Medical | Y1: UMP | AB1: Average | AF1: 0 | BH1: Retires at age XX | BS1: 0.01 | BT1: Retire | BU1: Retire | BW1: Retire | BY1: Ret Age | BZ1: MS @ | CA1: Medical | CB1: Normal | CC1: Medical | CD1: Total
A2: Year | D2: Gross | E2: Prem | G2: Gross | H2: Prem | J2: Trend | K2: Rel Trend | L2: Trend | M2: Rel Trend | O2: Trend | P2: Rel Trend | Q2: Trend | R2: Rel Trend | T2: Gross | U2: Prem | V2: Net | X2: Gross | Y2: Prem | Z2: Net | AB2: Net | AD2: Retire - M | AE2: Retire - F | AF2: Retire | AG2: Term - M | AH2: Term - F | AI2: Term | AJ2: Dis - M | AK2: Dis - F | AL2: Disab | AM2: Death - M | AN2: Death - F | AO2: Death | AP2: Decrement | AQ2: Survive | AR2: Interest | AT2: Mort - M | AU2: Mort - F | AV2: Mortality | AW2: Survive | AX2: Interest | AY2: Pay Timing | BA2: Age | BB2: Net | BC2: =BA12 -> 56 | BD2: =BC2+1 -> 57 | BE2: =BD2+1 -> 58 | BF2: =BE2+1 -> 59 | BG2: =BF2+1 -> 60 | BH2: 61 | BI2: 62 | BJ2: 63 | BK2: 64 | BL2: 65 | BM2: 66 | BN2: 67 | BO2: 68 | BP2: 69 | BQ2: 70 | BS2: MS | BT2: Prob | BU2: Age | BV2: Survive | BW2: Weighted | BY2: Prob | BZ2: Retire | CA2: NC | CB2: Cost | CC2: PUC | CD2: PUC
A3: 2013 | B3: 20 | D3: =VLOOKUP(B3,Lookups!A:P,16) -> 13245.63486 | E3: 0 | G3: 0 | H3: 0 | J3: =IF($B4<65, VLOOKUP(A4,'L-Trends'!$A$3:$D$95,IF(ExFlg=0,2,3),FALSE), VLOOKUP(A4,'L-Trends'!$A$3:$D$95,IF(ExFlg=0,2,4),FALSE))+Sens -> 1.062 | K3: 1 | L3: 1 | M3: 1 | O3: 1 | P3: 1 | Q3: 1 | R3: 1 | T3: =D3*K3 -> 13245.63486 | U3: =IF(B3<65,E3*K3,E3*M3) -> 0 | V3: =T3-U3 -> 13245.63486 | X3: =IF(B3<65,G3*P3,G3*R3) -> 0 | Y3: =IF(B3<65,H3*P3,H3*R3) -> 0 | Z3: =X3-Y3 -> 0 | AB3: =(1-PctUMP)*V3+PctUMP*Z3 -> 13245.63486 | AD3: =IF(B3<71,VLOOKUP(B3,Lookups!A:AG,32),"") -> 0 | AE3: =IF(B3<71,VLOOKUP(B3,Lookups!A:AG,33),"") -> 0 | AF3: =IF(B3<71,PCTMALE*AD3+(1-PCTMALE)*AE3,"") -> 0 | AG3: =IF(B3<70,VLOOKUP(B3,Lookups!A:AG,28),"") -> 0.107033 | AH3: =IF(B3<70,VLOOKUP(B3,Lookups!A:AG,29),"") -> 0.107033 | AI3: =IF(B3<70,PCTMALE*AG3+(1-PCTMALE)*AH3,"") -> 0.107033 | AJ3: =IF(B3<70,VLOOKUP(B3,Lookups!A:AG,30),"") -> 0.001 | AK3: =IF(B3<70,VLOOKUP(B3,Lookups!A:AG,31),"") -> 0.001 | AL3: =IF(AF3<1,IF(B3<70,PCTMALE*AJ3+(1-PCTMALE)*AK3,""),"") -> 0.001 | AM3: =IF(B3<70,VLOOKUP(B3,Lookups!A:AL,26)*(1-VLOOKUP(B3,Lookups!A:AL,37))^(A3-$A$3),"") -> 0.0003183208251 | AN3: =IF(B3<70,VLOOKUP(B3,Lookups!A:AL,27)*(1-VLOOKUP(B3,Lookups!A:AL,38))^(A3-$A$3),"") -> 0.0001846453124 | AO3: =IF(AM3<>"",PCTMALE*AM3+(1-PCTMALE)*AN3,"") -> 0.0001846453124 | AP3: =IF(B3<71,SUM(AF3,AI3,AL3,AO3),"") -> 0.1082176453 | AQ3: 1 | AR3: 1 | BT3: =PCTMALE*VLOOKUP(BU3,Lookups!A3:$AG$93,32)+(1-PCTMALE)*VLOOKUP(BU3,Lookups!A3:$AG$93,33) -> 0.12 | BU3: 50 | BV3: 1 | BW3: =BU3*BT3*BV3 -> 6 | BY3: =BV8 -> 0.5037441024 | BZ3: =MAX(BS1+BW24-B3,BS1) -> 35.27133452 | CA3: =BR79/BZ3 -> 0 | CB3: =SUM(CA3:CA3) -> 0 | CC3: =CA3*BS1 -> 0 | CD3: =CC3 -> 0
A4: =1+A3 -> 2014 | B4: =ROUNDDOWN(1+B3,0) -> 21 | D4: =VLOOKUP(B4,Lookups!A:P,16) -> 13245.63486 | E4: 0 | G4: 0 | H4: 0 | J4: =IF($B5<65, VLOOKUP(A5,'L-Trends'!$A$3:$D$95,IF(ExFlg=0,2,3),FALSE), VLOOKUP(A5,'L-Trends'!$A$3:$D$95,IF(ExFlg=0,2,4),FALSE))+Sens -> 1.058 | K4: =K3*J3 -> 1.062 | L4: =L3 -> 1 | M4: =M3*L3 -> 1 | O4: =O3 -> 1 | P4: =P3*O3 -> 1 | Q4: =Q3 -> 1 | R4: =R3*Q3 -> 1 | T4: =D4*K4 -> 14066.86422 | U4: =IF(B4<65,E4*K4,E4*M4) -> 0 | V4: =T4-U4 -> 14066.86422 | X4: 0 | Y4: 0 | Z4: =X4-Y4 -> 0 | AB4: 14066.86422 | AD4: =IF(B4<71,VLOOKUP(B4,Lookups!A:AG,32),"") -> 0 | AE4: =IF(B4<71,VLOOKUP(B4,Lookups!A:AG,33),"") -> 0 | AF4: =IF(B4<71,PCTMALE*AD4+(1-PCTMALE)*AE4,"") -> 0 | AG4: =IF(B4<70,VLOOKUP(B4,Lookups!A:AG,28),"") -> 0.048058 | AH4: =IF(B4<70,VLOOKUP(B4,Lookups!A:AG,29),"") -> 0.048058 | AI4: 0.048058 | AJ4: =IF(B4<70,VLOOKUP(B4,Lookups!A:AG,30),"") -> 0.001 | AK4: =IF(B4<70,VLOOKUP(B4,Lookups!A:AG,31),"") -> 0.001 | AL4: 0.001 | AM4: =IF(B4<70,VLOOKUP(B4,Lookups!A:AL,26)*(1-VLOOKUP(B4,Lookups!A:AL,37))^(A4-$A$3),"") -> 0.0003307891921 | AN4: =IF(B4<70,VLOOKUP(B4,Lookups!A:AL,27)*(1-VLOOKUP(B4,Lookups!A:AL,38))^(A4-$A$3),"") -> 0.000186008995 | AO4: 0.000186008995 | AP4: 0.049244009 | AQ4: 1 | AR4: 1 | BT4: =PCTMALE*VLOOKUP(BU4,Lookups!A4:$AG$93,32)+(1-PCTMALE)*VLOOKUP(BU4,Lookups!A4:$AG$93,33) -> 0.12 | BU4: =1+BU3 -> 51 | BV4: =BV3*(1-BT3) -> 0.88 | BW4: =BU4*BT4*BV4 -> 5.3856 | CB4: =CB3*INTRt -> 0 | CC4: ='L-Inactive'!AK98 -> 0 | CD4: =CC4 -> 0
A5: 2015 | B5: 22 | D5: =VLOOKUP(B5,Lookups!A:P,16) -> 13245.63486 | E5: 0 | G5: 0 | H5: 0 | J5: =IF($B6<65, VLOOKUP(A6,'L-Trends'!$A$3:$D$95,IF(ExFlg=0,2,3),FALSE), VLOOKUP(A6,'L-Trends'!$A$3:$D$95,IF(ExFlg=0,2,4),FALSE))+Sens -> 1.057 | K5: =K4*J4 -> 1.123596 | L5: =L4 -> 1 | M5: 1 | O5: =O4 -> 1 | P5: 1 | Q5: =Q4 -> 1 | R5: 1 | T5: 14882.74235 | U5: 0 | V5: 14882.74235 | X5: 0 | Y5: 0 | Z5: 0 | AB5: 14882.74235 | AD5: =IF(B5<71,VLOOKUP(B5,Lookups!A:AG,32),"") -> 0 | AE5: =IF(B5<71,VLOOKUP(B5,Lookups!A:AG,33),"") -> 0 | AF5: 0 | AG5: =IF(B5<70,VLOOKUP(B5,Lookups!A:AG,28),"") -> 0.024484 | AH5: =IF(B5<70,VLOOKUP(B5,Lookups!A:AG,29),"") -> 0.024484 | AI5: 0.024484 | AJ5: =IF(B5<70,VLOOKUP(B5,Lookups!A:AG,30),"") -> 0.001 | AK5: =IF(B5<70,VLOOKUP(B5,Lookups!A:AG,31),"") -> 0.001 | AL5: 0.001 | AM5: =IF(B5<70,VLOOKUP(B5,Lookups!A:AL,26)*(1-VLOOKUP(B5,Lookups!A:AL,37))^(A5-$A$3),"") -> 0.0003412680185 | AN5: =IF(B5<70,VLOOKUP(B5,Lookups!A:AL,27)*(1-VLOOKUP(B5,Lookups!A:AL,38))^(A5-$A$3),"") -> 0.0001883187665 | AO5: 0.0001883187665 | AP5: =IF(B5<71,SUM(AF5,AI5,AL5,AO5),"") -> 0.02567231877 | AQ5: =IF(B5<71,AQ4*(1-AP4),"") -> 0.950755991 | AR5: =IF(B5<71,AR4/(1+INTRt),"") -> 0.9615384615 | BT5: =PCTMALE*VLOOKUP(BU5,Lookups!A5:$AG$93,32)+(1-PCTMALE)*VLOOKUP(BU5,Lookups!A5:$AG$93,33) -> 0.12 | BU5: 52 | BV5: =BV4*(1-BT4) -> 0.7744 | BW5: 4.832256 | CB5: =CB3+CB4 -> 0 | CC5: =SUM(CC3:CC4) -> 0 | CD5: =CD3+CD4 -> 0
A6: 2016 | B6: 23 | D6: =VLOOKUP(B6,Lookups!A:P,16) -> 13245.63486 | E6: 0 | G6: 0 | H6: 0 | J6: =IF($B7<65, VLOOKUP(A7,'L-Trends'!$A$3:$D$95,IF(ExFlg=0,2,3),FALSE), VLOOKUP(A7,'L-Trends'!$A$3:$D$95,IF(ExFlg=0,2,4),FALSE))+Sens -> 1.247 | K6: 1.187640972 | L6: 1 | M6: 1 | O6: 1 | P6: 1 | Q6: 1 | R6: 1 | T6: 15731.05866 | U6: 0 | V6: 15731.05866 | X6: 0 | Y6: 0 | Z6: 0 | AB6: 15731.05866 | AD6: =IF(B6<71,VLOOKUP(B6,Lookups!A:AG,32),"") -> 0 | AE6: =IF(B6<71,VLOOKUP(B6,Lookups!A:AG,33),"") -> 0 | AF6: 0 | AG6: =IF(B6<70,VLOOKUP(B6,Lookups!A:AG,28),"") -> 0.01935 | AH6: =IF(B6<70,VLOOKUP(B6,Lookups!A:AG,29),"") -> 0.01935 | AI6: 0.01935 | AJ6: =IF(B6<70,VLOOKUP(B6,Lookups!A:AG,30),"") -> 0.001 | AK6: =IF(B6<70,VLOOKUP(B6,Lookups!A:AG,31),"") -> 0.001 | AL6: 0.001 | AM6: =IF(B6<70,VLOOKUP(B6,Lookups!A:AL,26)*(1-VLOOKUP(B6,Lookups!A:AL,37))^(A6-$A$3),"") -> 0.0003488217996 | AN6: =IF(B6<70,VLOOKUP(B6,Lookups!A:AL,27)*(1-VLOOKUP(B6,Lookups!A:AL,38))^(A6-$A$3),"") -> 0.0001915660703 | AO6: =IF(AM6<>"",PCTMALE*AM6+(1-PCTMALE)*AN6,"") -> 0.0001915660703 | AP6: =IF(B6<71,SUM(AF6,AI6,AL6,AO6),"") -> 0.02054156607 | AQ6: =IF(B6<71,AQ5*(1-AP5),"") -> 0.9263478801 | AR6: 0.924556213 | BT6: =PCTMALE*VLOOKUP(BU6,Lookups!A6:$AG$93,32)+(1-PCTMALE)*VLOOKUP(BU6,Lookups!A6:$AG$93,33) -> 0.12 | BU6: 53 | BV6: 0.681472 | BW6: 4.33416192
A7: 2017 | B7: 24 | D7: =VLOOKUP(B7,Lookups!A:P,16) -> 13245.63486 | E7: 0 | G7: 0 | H7: 0 | J7: =IF($B8<65, VLOOKUP(A8,'L-Trends'!$A$3:$D$95,IF(ExFlg=0,2,3),FALSE), VLOOKUP(A8,'L-Trends'!$A$3:$D$95,IF(ExFlg=0,2,4),FALSE))+Sens -> 1.062 | K7: 1.480988292 | L7: 1 | M7: 1 | O7: 1 | P7: 1 | Q7: 1 | R7: 1 | T7: 19616.63015 | U7: 0 | V7: 19616.63015 | X7: 0 | Y7: 0 | Z7: 0 | AB7: 19616.63015 | AD7: =IF(B7<71,VLOOKUP(B7,Lookups!A:AG,32),"") -> 0 | AE7: =IF(B7<71,VLOOKUP(B7,Lookups!A:AG,33),"") -> 0 | AF7: 0 | AG7: =IF(B7<70,VLOOKUP(B7,Lookups!A:AG,28),"") -> 0.0187 | AH7: =IF(B7<70,VLOOKUP(B7,Lookups!A:AG,29),"") -> 0.0187 | AI7: 0.0187 | AJ7: =IF(B7<70,VLOOKUP(B7,Lookups!A:AG,30),"") -> 0.001 | AK7: =IF(B7<70,VLOOKUP(B7,Lookups!A:AG,31),"") -> 0.001 | AL7: 0.001 | AM7: =IF(B7<70,VLOOKUP(B7,Lookups!A:AL,26)*(1-VLOOKUP(B7,Lookups!A:AL,37))^(A7-$A$3),"") -> 0.0003544267751 | AN7: =IF(B7<70,VLOOKUP(B7,Lookups!A:AL,27)*(1-VLOOKUP(B7,Lookups!A:AL,38))^(A7-$A$3),"") -> 0.0001966926071 | AO7: 0.0001966926071 | AP7: =IF(B7<71,SUM(AF7,AI7,AL7,AO7),"") -> 0.01989669261 | AQ7: =IF(B7<71,AQ6*(1-AP6),"") -> 0.907319244 | AR7: 0.8889963587 | BT7: =PCTMALE*VLOOKUP(BU7,Lookups!A7:$AG$93,32)+(1-PCTMALE)*VLOOKUP(BU7,Lookups!A7:$AG$93,33) -> 0.16 | BU7: 54 | BV7: 0.59969536 | BW7: 5.18136791
A8: 2018 | B8: 25 | D8: =VLOOKUP(B8,Lookups!A:P,16) -> 13245.63486 | E8: 0 | G8: 0 | H8: 0 | J8: =IF($B9<65, VLOOKUP(A9,'L-Trends'!$A$3:$D$95,IF(ExFlg=0,2,3),FALSE), VLOOKUP(A9,'L-Trends'!$A$3:$D$95,IF(ExFlg=0,2,4),FALSE))+Sens -> 1.062 | K8: 1.572809566 | L8: 1 | M8: 1 | O8: 1 | P8: 1 | Q8: 1 | R8: 1 | T8: 20832.86122 | U8: 0 | V8: 20832.86122 | X8: 0 | Y8: 0 | Z8: 0 | AB8: 20832.86122 | AD8: =IF(B8<71,VLOOKUP(B8,Lookups!A:AG,32),"") -> 0 | AE8: =IF(B8<71,VLOOKUP(B8,Lookups!A:AG,33),"") -> 0 | AF8: 0 | AG8: =IF(B8<70,VLOOKUP(B8,Lookups!A:AG,28),"") -> 0.01805 | AH8: =IF(B8<70,VLOOKUP(B8,Lookups!A:AG,29),"") -> 0.01805 | AI8: 0.01805 | AJ8: =IF(B8<70,VLOOKUP(B8,Lookups!A:AG,30),"") -> 0.001 | AK8: =IF(B8<70,VLOOKUP(B8,Lookups!A:AG,31),"") -> 0.001 | AL8: 0.001 | AM8: =IF(B8<70,VLOOKUP(B8,Lookups!A:AL,26)*(1-VLOOKUP(B8,Lookups!A:AL,37))^(A8-$A$3),"") -> 0.0003562055604 | AN8: =IF(B8<70,VLOOKUP(B8,Lookups!A:AL,27)*(1-VLOOKUP(B8,Lookups!A:AL,38))^(A8-$A$3),"") -> 0.0002027340158 | AO8: 0.0002027340158 | AP8: 0.01925273402 | AQ8: 0.8892665919 | AR8: 0.854804191 | BT8: =PCTMALE*VLOOKUP(BU8,Lookups!A8:$AG$93,32)+(1-PCTMALE)*VLOOKUP(BU8,Lookups!A8:$AG$93,33) -> 0.2 | BU8: 55 | BV8: 0.5037441024 | BW8: 5.541185126
A9: 2019 | B9: 26 | D9: =VLOOKUP(B9,Lookups!A:P,16) -> 13245.63486 | E9: 0 | G9: 0 | H9: 0 | J9: =IF($B10<65, VLOOKUP(A10,'L-Trends'!$A$3:$D$95,IF(ExFlg=0,2,3),FALSE), VLOOKUP(A10,'L-Trends'!$A$3:$D$95,IF(ExFlg=0,2,4),FALSE))+Sens -> 1.062 | K9: 1.670323759 | L9: 1 | M9: 1 | O9: 1 | P9: 1 | Q9: 1 | R9: 1 | T9: 22124.49861 | U9: 0 | V9: 22124.49861 | X9: 0 | Y9: 0 | Z9: 0 | AB9: 22124.49861 | AD9: =IF(B9<71,VLOOKUP(B9,Lookups!A:AG,32),"") -> 0 | AE9: =IF(B9<71,VLOOKUP(B9,Lookups!A:AG,33),"") -> 0 | AF9: 0 | AG9: =IF(B9<70,VLOOKUP(B9,Lookups!A:AG,28),"") -> 0.0174 | AH9: =IF(B9<70,VLOOKUP(B9,Lookups!A:AG,29),"") -> 0.0174 | AI9: 0.0174 | AJ9: =IF(B9<70,VLOOKUP(B9,Lookups!A:AG,30),"") -> 0.002397 | AK9: =IF(B9<70,VLOOKUP(B9,Lookups!A:AG,31),"") -> 0.002397 | AL9: 0.002397 | AM9: =IF(B9<70,VLOOKUP(B9,Lookups!A:AL,26)*(1-VLOOKUP(B9,Lookups!A:AL,37))^(A9-$A$3),"") -> 0.0003551369437 | AN9: =IF(B9<70,VLOOKUP(B9,Lookups!A:AL,27)*(1-VLOOKUP(B9,Lookups!A:AL,38))^(A9-$A$3),"") -> 0.000210626432 | AO9: 0.000210626432 | AP9: 0.02000762643 | AQ9: 0.8721457787 | AR9: 0.8219271068 | BT9: =PCTMALE*VLOOKUP(BU9,Lookups!A9:$AG$93,32)+(1-PCTMALE)*VLOOKUP(BU9,Lookups!A9:$AG$93,33) -> 0.2 | BU9: 56 | BV9: 0.4029952819 | BW9: 4.513547158
A10: 2020 | B10: 27 | D10: =VLOOKUP(B10,Lookups!A:P,16) -> 13245.63486 | E10: 0 | G10: 0 | H10: 0 | J10: =IF($B11<65, VLOOKUP(A11,'L-Trends'!$A$3:$D$95,IF(ExFlg=0,2,3),FALSE), VLOOKUP(A11,'L-Trends'!$A$3:$D$95,IF(ExFlg=0,2,4),FALSE))+Sens -> 1.062 | K10: 1.773883832 | L10: 1 | M10: 1 | O10: 1 | P10: 1 | Q10: 1 | R10: 1 | T10: 23496.21753 | U10: 0 | V10: 23496.21753 | X10: 0 | Y10: 0 | Z10: 0 | AB10: 23496.21753 | AD10: =IF(B10<71,VLOOKUP(B10,Lookups!A:AG,32),"") -> 0 | AE10: =IF(B10<71,VLOOKUP(B10,Lookups!A:AG,33),"") -> 0 | AF10: 0 | AG10: =IF(B10<70,VLOOKUP(B10,Lookups!A:AG,28),"") -> 0.01675 | AH10: =IF(B10<70,VLOOKUP(B10,Lookups!A:AG,29),"") -> 0.01675 | AI10: 0.01675 | AJ10: =IF(B10<70,VLOOKUP(B10,Lookups!A:AG,30),"") -> 0.003793 | AK10: =IF(B10<70,VLOOKUP(B10,Lookups!A:AG,31),"") -> 0.003793 | AL10: 0.003793 | AM10: =IF(B10<70,VLOOKUP(B10,Lookups!A:AL,26)*(1-VLOOKUP(B10,Lookups!A:AL,37))^(A10-$A$3),"") -> 0.0003559548921 | AN10: =IF(B10<70,VLOOKUP(B10,Lookups!A:AL,27)*(1-VLOOKUP(B10,Lookups!A:AL,38))^(A10-$A$3),"") -> 0.000221294708 | AO10: 0.000221294708 | AP10: 0.02076429471 | AQ10: 0.8546962118 | AR10: 0.7903145257 | BT10: =PCTMALE*VLOOKUP(BU10,Lookups!A10:$AG$93,32)+(1-PCTMALE)*VLOOKUP(BU10,Lookups!A10:$AG$93,33) -> 0.2 | BU10: =1+BU9 -> 57 | BV10: 0.3223962255 | BW10: 3.675316971
A11: 2021 | B11: 28 | D11: =VLOOKUP(B11,Lookups!A:P,16) -> 13245.63486 | E11: 0 | G11: 0 | H11: 0 | J11: =IF($B12<65, VLOOKUP(A12,'L-Trends'!$A$3:$D$95,IF(ExFlg=0,2,3),FALSE), VLOOKUP(A12,'L-Trends'!$A$3:$D$95,IF(ExFlg=0,2,4),FALSE))+Sens -> 1.062 | K11: 1.88386463 | L11: 1 | M11: 1 | O11: 1 | P11: 1 | Q11: 1 | R11: 1 | T11: 24952.98301 | U11: 0 | V11: 24952.98301 | X11: 0 | Y11: 0 | Z11: 0 | AB11: 24952.98301 | AD11: =IF(B11<71,VLOOKUP(B11,Lookups!A:AG,32),"") -> 0 | AE11: =IF(B11<71,VLOOKUP(B11,Lookups!A:AG,33),"") -> 0 | AF11: 0 | AG11: =IF(B11<70,VLOOKUP(B11,Lookups!A:AG,28),"") -> 0.0161 | AH11: =IF(B11<70,VLOOKUP(B11,Lookups!A:AG,29),"") -> 0.0161 | AI11: 0.0161 | AJ11: =IF(B11<70,VLOOKUP(B11,Lookups!A:AG,30),"") -> 0.005187 | AK11: =IF(B11<70,VLOOKUP(B11,Lookups!A:AG,31),"") -> 0.005187 | AL11: 0.005187 | AM11: =IF(B11<70,VLOOKUP(B11,Lookups!A:AL,26)*(1-VLOOKUP(B11,Lookups!A:AL,37))^(A11-$A$3),"") -> 0.0003586424457 | AN11: =IF(B11<70,VLOOKUP(B11,Lookups!A:AL,27)*(1-VLOOKUP(B11,Lookups!A:AL,38))^(A11-$A$3),"") -> 0.0002328359333 | AO11: 0.0002328359333 | AP11: 0.02151983593 | AQ11: 0.8369490477 | AR11: 0.7599178132 | BT11: =PCTMALE*VLOOKUP(BU11,Lookups!A11:$AG$93,32)+(1-PCTMALE)*VLOOKUP(BU11,Lookups!A11:$AG$93,33) -> 0.2 | BU11: 58 | BV11: 0.2579169804 | BW11: 2.991836973
A12: 2022 | B12: 29 | D12: =VLOOKUP(B12,Lookups!A:P,16) -> 13245.63486 | E12: 0 | G12: 0 | H12: 0 | J12: =IF($B13<65, VLOOKUP(A13,'L-Trends'!$A$3:$D$95,IF(ExFlg=0,2,3),FALSE), VLOOKUP(A13,'L-Trends'!$A$3:$D$95,IF(ExFlg=0,2,4),FALSE))+Sens -> 1.062 | K12: 2.000664237 | L12: 1 | M12: 1 | O12: 1 | P12: 1 | Q12: 1 | R12: 1 | T12: 26500.06796 | U12: 0 | V12: 26500.06796 | X12: 0 | Y12: 0 | Z12: 0 | AB12: 26500.06796 | AD12: =IF(B12<71,VLOOKUP(B12,Lookups!A:AG,32),"") -> 0 | AE12: =IF(B12<71,VLOOKUP(B12,Lookups!A:AG,33),"") -> 0 | AF12: 0 | AG12: =IF(B12<70,VLOOKUP(B12,Lookups!A:AG,28),"") -> 0.01545 | AH12: =IF(B12<70,VLOOKUP(B12,Lookups!A:AG,29),"") -> 0.01545 | AI12: 0.01545 | AJ12: =IF(B12<70,VLOOKUP(B12,Lookups!A:AG,30),"") -> 0.006578 | AK12: =IF(B12<70,VLOOKUP(B12,Lookups!A:AG,31),"") -> 0.006578 | AL12: 0.006578 | AM12: =IF(B12<70,VLOOKUP(B12,Lookups!A:AL,26)*(1-VLOOKUP(B12,Lookups!A:AL,37))^(A12-$A$3),"") -> 0.0003678629364 | AN12: =IF(B12<70,VLOOKUP(B12,Lookups!A:AL,27)*(1-VLOOKUP(B12,Lookups!A:AL,38))^(A12-$A$3),"") -> 0.0002471140336 | AO12: 0.0002471140336 | AP12: 0.02227511403 | AQ12: 0.8189380415 | AR12: 0.730690205 | AT12: =IF(BA12>=$B$3,VLOOKUP(BA12,Lookups!A:AL,26)*(1-VLOOKUP(BA12,Lookups!A:AL,37))^(BA12-$B$3),"") -> 0.003127886216 | AU12: =IF(BA12>=$B$3,VLOOKUP(BA12,Lookups!A:AL,27)*(1-VLOOKUP(BA12,Lookups!A:AL,38))^(BA12-$B$3),"") -> 0.00258977726 | AV12: =IF(BA12>=$B$3, PCTMALE*AT12+(1-PCTMALE)*AU12, "") -> 0.00258977726 | AW12: =IF(AV11="",1,"") -> 1 | AX12: =IF(AV11="",1,AX11/(1+INTRt)) -> 1 | AY12: =IF(AV12="",1,ROUND((13/24)+(11/24)*(1/(1+INTRt))*(1-AV12),6)) -> 0.98123 | BA12: 56 | BB12: =IF(BA12>=$B$3,VLOOKUP(BA12,$B$3:$AB$93,27),"") -> 141634.9996 | BC12: =IF(BB12<>"",BB12*AY12*AX12*AW12*0.5,"") -> 69488.25534 | BT12: =PCTMALE*VLOOKUP(BU12,Lookups!A12:$AG$93,32)+(1-PCTMALE)*VLOOKUP(BU12,Lookups!A12:$AG$93,33) -> 0.2 | BU12: 59 | BV12: 0.2063335843 | BW12: 2.434736295
A13: 2023 | B13: 30 | D13: =VLOOKUP(B13,Lookups!A:P,16) -> 13245.63486 | E13: 0 | G13: 0 | H13: 0 | J13: =IF($B14<65, VLOOKUP(A14,'L-Trends'!$A$3:$D$95,IF(ExFlg=0,2,3),FALSE), VLOOKUP(A14,'L-Trends'!$A$3:$D$95,IF(ExFlg=0,2,4),FALSE))+Sens -> 1.062 | K13: 2.12470542 | L13: 1 | M13: 1 | O13: 1 | P13: 1 | Q13: 1 | R13: 1 | T13: 28143.07217 | U13: 0 | V13: 28143.07217 | X13: 0 | Y13: 0 | Z13: 0 | AB13: 28143.07217 | AD13: =IF(B13<71,VLOOKUP(B13,Lookups!A:AG,32),"") -> 0 | AE13: =IF(B13<71,VLOOKUP(B13,Lookups!A:AG,33),"") -> 0 | AF13: 0 | AG13: =IF(B13<70,VLOOKUP(B13,Lookups!A:AG,28),"") -> 0.0148 | AH13: =IF(B13<70,VLOOKUP(B13,Lookups!A:AG,29),"") -> 0.0148 | AI13: 0.0148 | AJ13: =IF(B13<70,VLOOKUP(B13,Lookups!A:AG,30),"") -> 0.007968 | AK13: =IF(B13<70,VLOOKUP(B13,Lookups!A:AG,31),"") -> 0.007968 | AL13: 0.007968 | AM13: =IF(B13<70,VLOOKUP(B13,Lookups!A:AL,26)*(1-VLOOKUP(B13,Lookups!A:AL,37))^(A13-$A$3),"") -> 0.0003844907156 | AN13: =IF(B13<70,VLOOKUP(B13,Lookups!A:AL,27)*(1-VLOOKUP(B13,Lookups!A:AL,38))^(A13-$A$3),"") -> 0.0002865015769 | AO13: 0.0002865015769 | AP13: 0.02305450158 | AQ13: 0.8006961033 | AR13: 0.7025867356 | AT13: =IF(BA13>=$B$3,VLOOKUP(BA13,Lookups!A:AL,26)*(1-VLOOKUP(BA13,Lookups!A:AL,37))^(BA13-$B$3),"") -> 0.003437290293 | AU13: =IF(BA13>=$B$3,VLOOKUP(BA13,Lookups!A:AL,27)*(1-VLOOKUP(BA13,Lookups!A:AL,38))^(BA13-$B$3),"") -> 0.00276109108 | AV13: 0.00276109108 | AW13: =IF(AV12="",1,AW12*(1-AV12)) -> 0.9974102227 | AX13: 0.9615384615 | AY13: 0.981155 | BA13: =1+BA12 -> 57 | BB13: 158435.7783 | BC13: =IF($BB$12<>"",BB13*AY13*AX13*AW13,"") -> 149084.1107 | BD13: =IF(BB13<>"",BB13*AW13/$AW$13*AY13*AX13/$AX$13*0.5,"") -> 77725.02805 | BT13: =PCTMALE*VLOOKUP(BU13,Lookups!A13:$AG$93,32)+(1-PCTMALE)*VLOOKUP(BU13,Lookups!A13:$AG$93,33) -> 0.25 | BU13: 60 | BV13: 0.1650668675 | BW13: 2.476003012
A14: 2024 | B14: 31 | D14: =VLOOKUP(B14,Lookups!A:P,16) -> 13245.63486 | E14: 0 | G14: 0 | H14: 0 | J14: =IF($B15<65, VLOOKUP(A15,'L-Trends'!$A$3:$D$95,IF(ExFlg=0,2,3),FALSE), VLOOKUP(A15,'L-Trends'!$A$3:$D$95,IF(ExFlg=0,2,4),FALSE))+Sens -> 1.062 | K14: 2.256437156 | L14: 1 | M14: 1 | O14: 1 | P14: 1 | Q14: 1 | R14: 1 | T14: 29887.94265 | U14: 0 | V14: 29887.94265 | X14: 0 | Y14: 0 | Z14: 0 | AB14: 29887.94265 | AD14: =IF(B14<71,VLOOKUP(B14,Lookups!A:AG,32),"") -> 0 | AE14: =IF(B14<71,VLOOKUP(B14,Lookups!A:AG,33),"") -> 0 | AF14: 0 | AG14: =IF(B14<70,VLOOKUP(B14,Lookups!A:AG,28),"") -> 0.01415 | AH14: =IF(B14<70,VLOOKUP(B14,Lookups!A:AG,29),"") -> 0.01415 | AI14: 0.01415 | AJ14: =IF(B14<70,VLOOKUP(B14,Lookups!A:AG,30),"") -> 0.009356 | AK14: =IF(B14<70,VLOOKUP(B14,Lookups!A:AG,31),"") -> 0.009356 | AL14: 0.009356 | AM14: =IF(B14<70,VLOOKUP(B14,Lookups!A:AL,26)*(1-VLOOKUP(B14,Lookups!A:AL,37))^(A14-$A$3),"") -> 0.0004131110099 | AN14: =IF(B14<70,VLOOKUP(B14,Lookups!A:AL,27)*(1-VLOOKUP(B14,Lookups!A:AL,38))^(A14-$A$3),"") -> 0.0003256505709 | AO14: 0.0003256505709 | AP14: 0.02383165057 | AQ14: 0.7822364537 | AR14: 0.6755641688 | AT14: =IF(BA14>=$B$3,VLOOKUP(BA14,Lookups!A:AL,26)*(1-VLOOKUP(BA14,Lookups!A:AL,37))^(BA14-$B$3),"") -> 0.003634357726 | AU14: =IF(BA14>=$B$3,VLOOKUP(BA14,Lookups!A:AL,27)*(1-VLOOKUP(BA14,Lookups!A:AL,38))^(BA14-$B$3),"") -> 0.002948329739 | AV14: 0.002948329739 | AW14: =IF(AV13="",1,AW13*(1-AV13)) -> 0.9946562823 | AX14: 0.924556213 | AY14: 0.981072 | BA14: 58 | BB14: 176876.5523 | BC14: =IF($BB$12<>"",BB14*AY14*AX14*AW14,"") -> 159579.6458 | BD14: =IF($BB$13<>"",BB14*AW14/$AW$13*AY14*AX14/$AX$13,"") -> 166393.7544 | BE14: =IF($BB$14<>"",BB14*AW14/$AW$14*AY14*AX14/$AX$14*0.5,"") -> 86764.31648 | BT14: =PCTMALE*VLOOKUP(BU14,Lookups!A14:$AG$93,32)+(1-PCTMALE)*VLOOKUP(BU14,Lookups!A14:$AG$93,33) -> 0.25 | BU14: 61 | BV14: 0.1238001506 | BW14: 1.887952297
A15: 2025 | B15: 32 | D15: =VLOOKUP(B15,Lookups!A:P,16) -> 13245.63486 | E15: 0 | G15: 0 | H15: 0 | J15: =IF($B16<65, VLOOKUP(A16,'L-Trends'!$A$3:$D$95,IF(ExFlg=0,2,3),FALSE), VLOOKUP(A16,'L-Trends'!$A$3:$D$95,IF(ExFlg=0,2,4),FALSE))+Sens -> 1.062 | K15: 2.396336259 | L15: 1 | M15: 1 | O15: 1 | P15: 1 | Q15: 1 | R15: 1 | T15: 31740.99509 | U15: 0 | V15: 31740.99509 | X15: 0 | Y15: 0 | Z15: 0 | AB15: 31740.99509 | AD15: =IF(B15<71,VLOOKUP(B15,Lookups!A:AG,32),"") -> 0 | AE15: =IF(B15<71,VLOOKUP(B15,Lookups!A:AG,33),"") -> 0 | AF15: 0 | AG15: =IF(B15<70,VLOOKUP(B15,Lookups!A:AG,28),"") -> 0.0135 | AH15: =IF(B15<70,VLOOKUP(B15,Lookups!A:AG,29),"") -> 0.0135 | AI15: 0.0135 | AJ15: =IF(B15<70,VLOOKUP(B15,Lookups!A:AG,30),"") -> 0.010742 | AK15: =IF(B15<70,VLOOKUP(B15,Lookups!A:AG,31),"") -> 0.010742 | AL15: 0.010742 | AM15: =IF(B15<70,VLOOKUP(B15,Lookups!A:AL,26)*(1-VLOOKUP(B15,Lookups!A:AL,37))^(A15-$A$3),"") -> 0.000462891817 | AN15: =IF(B15<70,VLOOKUP(B15,Lookups!A:AL,27)*(1-VLOOKUP(B15,Lookups!A:AL,38))^(A15-$A$3),"") -> 0.0003654897313 | AO15: 0.0003654897313 | AP15: 0.02460748973 | AQ15: 0.7635944679 | AR15: 0.6495809316 | AT15: =IF(BA15>=$B$3,VLOOKUP(BA15,Lookups!A:AL,26)*(1-VLOOKUP(BA15,Lookups!A:AL,37))^(BA15-$B$3),"") -> 0.003856113071 | AU15: =IF(BA15>=$B$3,VLOOKUP(BA15,Lookups!A:AL,27)*(1-VLOOKUP(BA15,Lookups!A:AL,38))^(BA15-$B$3),"") -> 0.0031590114 | AV15: 0.0031590114 | AW15: 0.9917237076 | AX15: 0.8889963587 | AY15: 0.98098 | BA15: 59 | BB15: 197464.8939 | BC15: 170781.4619 | BD15: =IF($BB$13<>"",BB15*AW15/$AW$13*AY15*AX15/$AX$13,"") -> 178073.8921 | BE15: =IF($BB$14<>"",BB15*AW15/$AW$14*AY15*AX15/$AX$14,"") -> 185709.6089 | BF15: =IF($BB$15<>"",BB15*AW15/$AW$15*AY15*AX15/$AX$15*0.5,"") -> 96854.55581 | BT15: =PCTMALE*VLOOKUP(BU15,Lookups!A15:$AG$93,32)+(1-PCTMALE)*VLOOKUP(BU15,Lookups!A15:$AG$93,33) -> 0.25 | BU15: 62 | BV15: 0.09285011295 | BW15: 1.439176751
A16: 2026 | B16: 33 | D16: =VLOOKUP(B16,Lookups!A:P,16) -> 13245.63486 | E16: 0 | G16: 0 | H16: 0 | J16: =IF($B17<65, VLOOKUP(A17,'L-Trends'!$A$3:$D$95,IF(ExFlg=0,2,3),FALSE), VLOOKUP(A17,'L-Trends'!$A$3:$D$95,IF(ExFlg=0,2,4),FALSE))+Sens -> 1.062 | K16: 2.544909108 | L16: 1 | M16: 1 | O16: 1 | P16: 1 | Q16: 1 | R16: 1 | T16: 33708.93679 | U16: 0 | V16: 33708.93679 | X16: 0 | Y16: 0 | Z16: 0 | AB16: 33708.93679 | AD16: =IF(B16<71,VLOOKUP(B16,Lookups!A:AG,32),"") -> 0 | AE16: =IF(B16<71,VLOOKUP(B16,Lookups!A:AG,33),"") -> 0 | AF16: 0 | AG16: =IF(B16<70,VLOOKUP(B16,Lookups!A:AG,28),"") -> 0.01285 | AH16: =IF(B16<70,VLOOKUP(B16,Lookups!A:AG,29),"") -> 0.01285 | AI16: 0.01285 | AJ16: =IF(B16<70,VLOOKUP(B16,Lookups!A:AG,30),"") -> 0.012126 | AK16: =IF(B16<70,VLOOKUP(B16,Lookups!A:AG,31),"") -> 0.012126 | AL16: 0.012126 | AM16: =IF(B16<70,VLOOKUP(B16,Lookups!A:AL,26)*(1-VLOOKUP(B16,Lookups!A:AL,37))^(A16-$A$3),"") -> 0.0005197690693 | AN16: =IF(B16<70,VLOOKUP(B16,Lookups!A:AL,27)*(1-VLOOKUP(B16,Lookups!A:AL,38))^(A16-$A$3),"") -> 0.0004023123579 | AO16: 0.0004023123579 | AP16: 0.02537831236 | AQ16: 0.7448043248 | AR16: 0.6245970496 | AT16: =IF(BA16>=$B$3,VLOOKUP(BA16,Lookups!A:AL,26)*(1-VLOOKUP(BA16,Lookups!A:AL,37))^(BA16-$B$3),"") -> 0.004096962881 | AU16: =IF(BA16>=$B$3,VLOOKUP(BA16,Lookups!A:AL,27)*(1-VLOOKUP(BA16,Lookups!A:AL,38))^(BA16-$B$3),"") -> 0.00341303185 | AV16: 0.00341303185 | AW16: 0.9885908411 | AX16: 0.854804191 | AY16: 0.980868 | BA16: 60 | BB16: 220450.305 | BC16: 182727.7454 | BD16: 190530.2862 | BE16: =IF($BB$14<>"",BB16*AW16/$AW$14*AY16*AX16/$AX$14,"") -> 198700.1268 | BF16: =IF($BB$15<>"",BB16*AW16/$AW$15*AY16*AX16/$AX$15,"") -> 207259.2004 | BG16: =IF($BB$16<>"",BB16*AW16/$AW$16*AY16*AX16/$AX$16*0.5,"") -> 108116.3249 | BT16: =PCTMALE*VLOOKUP(BU16,Lookups!A16:$AG$93,32)+(1-PCTMALE)*VLOOKUP(BU16,Lookups!A16:$AG$93,33) -> 0.25 | BU16: 63 | BV16: 0.06963758472 | BW16: 1.096791959
A17: 2027 | B17: 34 | D17: =VLOOKUP(B17,Lookups!A:P,16) -> 13245.63486 | E17: 0 | G17: 0 | H17: 0 | J17: =IF($B18<65, VLOOKUP(A18,'L-Trends'!$A$3:$D$95,IF(ExFlg=0,2,3),FALSE), VLOOKUP(A18,'L-Trends'!$A$3:$D$95,IF(ExFlg=0,2,4),FALSE))+Sens -> 1.062 | K17: 2.702693472 | L17: 1 | M17: 1 | O17: 1 | P17: 1 | Q17: 1 | R17: 1 | T17: 35798.89087 | U17: 0 | V17: 35798.89087 | X17: 0 | Y17: 0 | Z17: 0 | AB17: 35798.89087 | AD17: =IF(B17<71,VLOOKUP(B17,Lookups!A:AG,32),"") -> 0 | AE17: =IF(B17<71,VLOOKUP(B17,Lookups!A:AG,33),"") -> 0 | AF17: 0 | AG17: =IF(B17<70,VLOOKUP(B17,Lookups!A:AG,28),"") -> 0.0122 | AH17: =IF(B17<70,VLOOKUP(B17,Lookups!A:AG,29),"") -> 0.0122 | AI17: 0.0122 | AJ17: =IF(B17<70,VLOOKUP(B17,Lookups!A:AG,30),"") -> 0.013508 | AK17: =IF(B17<70,VLOOKUP(B17,Lookups!A:AG,31),"") -> 0.013508 | AL17: 0.013508 | AM17: =IF(B17<70,VLOOKUP(B17,Lookups!A:AL,26)*(1-VLOOKUP(B17,Lookups!A:AL,37))^(A17-$A$3),"") -> 0.0005818333805 | AN17: =IF(B17<70,VLOOKUP(B17,Lookups!A:AL,27)*(1-VLOOKUP(B17,Lookups!A:AL,38))^(A17-$A$3),"") -> 0.0004379886779 | AO17: 0.0004379886779 | AP17: 0.02614598868 | AQ17: 0.725902448 | AR17: 0.6005740861 | AT17: =IF(BA17>=$B$3,VLOOKUP(BA17,Lookups!A:AL,26)*(1-VLOOKUP(BA17,Lookups!A:AL,37))^(BA17-$B$3),"") -> 0.004372612646 | AU17: =IF(BA17>=$B$3,VLOOKUP(BA17,Lookups!A:AL,27)*(1-VLOOKUP(BA17,Lookups!A:AL,38))^(BA17-$B$3),"") -> 0.003663349069 | AV17: 0.003663349069 | AW17: 0.985216749 | AX17: 0.8219271068 | AY17: 0.980757 | BA17: 61 | BB17: 246109.8714 | BC17: 195458.9403 | BD17: 203805.1077 | BE17: 212544.1659 | BF17: =IF($BB$15<>"",BB17*AW17/$AW$15*AY17*AX17/$AX$15,"") -> 221699.5759 | BG17: =IF($BB$16<>"",BB17*AW17/$AW$16*AY17*AX17/$AX$16,"") -> 231298.2327 | BH17: =IF($BB$17<>"",BB17*AW17/$AW$17*AY17*AX17/$AX$17*0.5,"") -> 120686.9896 | BT17: =PCTMALE*VLOOKUP(BU17,Lookups!A17:$AG$93,32)+(1-PCTMALE)*VLOOKUP(BU17,Lookups!A17:$AG$93,33) -> 0.25 | BU17: 64 | BV17: 0.05222818854 | BW17: 0.8356510166
A18: 2028 | B18: 35 | D18: =VLOOKUP(B18,Lookups!A:P,16) -> 13245.63486 | E18: 0 | G18: 0 | H18: 0 | J18: =IF($B19<65, VLOOKUP(A19,'L-Trends'!$A$3:$D$95,IF(ExFlg=0,2,3),FALSE), VLOOKUP(A19,'L-Trends'!$A$3:$D$95,IF(ExFlg=0,2,4),FALSE))+Sens -> 1.062 | K18: 2.870260467 | L18: 1 | M18: 1 | O18: 1 | P18: 1 | Q18: 1 | R18: 1 | T18: 38018.4221 | U18: 0 | V18: 38018.4221 | X18: 0 | Y18: 0 | Z18: 0 | AB18: 38018.4221 | AD18: =IF(B18<71,VLOOKUP(B18,Lookups!A:AG,32),"") -> 0 | AE18: =IF(B18<71,VLOOKUP(B18,Lookups!A:AG,33),"") -> 0 | AF18: 0 | AG18: =IF(B18<70,VLOOKUP(B18,Lookups!A:AG,28),"") -> 0.01155 | AH18: =IF(B18<70,VLOOKUP(B18,Lookups!A:AG,29),"") -> 0.01155 | AI18: 0.01155 | AJ18: =IF(B18<70,VLOOKUP(B18,Lookups!A:AG,30),"") -> 0.014888 | AK18: =IF(B18<70,VLOOKUP(B18,Lookups!A:AG,31),"") -> 0.014888 | AL18: 0.014888 | AM18: =IF(B18<70,VLOOKUP(B18,Lookups!A:AL,26)*(1-VLOOKUP(B18,Lookups!A:AL,37))^(A18-$A$3),"") -> 0.0006453592584 | AN18: =IF(B18<70,VLOOKUP(B18,Lookups!A:AL,27)*(1-VLOOKUP(B18,Lookups!A:AL,38))^(A18-$A$3),"") -> 0.000472528004 | AO18: 0.000472528004 | AP18: 0.026910528 | AQ18: 0.7069230109 | AR18: 0.5774750828 | AT18: =IF(BA18>=$B$3,VLOOKUP(BA18,Lookups!A:AL,26)*(1-VLOOKUP(BA18,Lookups!A:AL,37))^(BA18-$B$3),"") -> 0.004668592443 | AU18: =IF(BA18>=$B$3,VLOOKUP(BA18,Lookups!A:AL,27)*(1-VLOOKUP(BA18,Lookups!A:AL,38))^(BA18-$B$3),"") -> 0.003937130694 | AV18: 0.003937130694 | AW18: 0.9816075562 | AX18: 0.7903145257 | AY18: 0.980637 | BA18: 62 | BB18: 274757.1543 | BC18: 209023.5128 | BD18: 217948.8924 | BE18: 227294.4287 | BF18: 237085.2112 | BG18: =IF($BB$16<>"",BB18*AW18/$AW$16*AY18*AX18/$AX$16,"") -> 247350.0012 | BH18: =IF($BB$17<>"",BB18*AW18/$AW$17*AY18*AX18/$AX$17,"") -> 258124.99 | BI18: =IF($BB$18<>"",BB18*AW18/$AW$18*AY18*AX18/$AX$18*0.5,"") -> 134718.5158 | BT18: =PCTMALE*VLOOKUP(BU18,Lookups!A18:$AG$93,32)+(1-PCTMALE)*VLOOKUP(BU18,Lookups!A18:$AG$93,33) -> 0.25 | BU18: 65 | BV18: 0.0391711414 | BW18: 0.6365310478
A19: 2029 | B19: 36 | D19: =VLOOKUP(B19,Lookups!A:P,16) -> 13245.63486 | E19: 0 | G19: 0 | H19: 0 | J19: =IF($B20<65, VLOOKUP(A20,'L-Trends'!$A$3:$D$95,IF(ExFlg=0,2,3),FALSE), VLOOKUP(A20,'L-Trends'!$A$3:$D$95,IF(ExFlg=0,2,4),FALSE))+Sens -> 1.062 | K19: 3.048216616 | L19: 1 | M19: 1 | O19: 1 | P19: 1 | Q19: 1 | R19: 1 | T19: 40375.56428 | U19: 0 | V19: 40375.56428 | X19: 0 | Y19: 0 | Z19: 0 | AB19: 40375.56428 | AD19: =IF(B19<71,VLOOKUP(B19,Lookups!A:AG,32),"") -> 0 | AE19: =IF(B19<71,VLOOKUP(B19,Lookups!A:AG,33),"") -> 0 | AF19: 0 | AG19: =IF(B19<70,VLOOKUP(B19,Lookups!A:AG,28),"") -> 0.0109 | AH19: =IF(B19<70,VLOOKUP(B19,Lookups!A:AG,29),"") -> 0.0109 | AI19: 0.0109 | AJ19: =IF(B19<70,VLOOKUP(B19,Lookups!A:AG,30),"") -> 0.016267 | AK19: =IF(B19<70,VLOOKUP(B19,Lookups!A:AG,31),"") -> 0.016267 | AL19: 0.016267 | AM19: =IF(B19<70,VLOOKUP(B19,Lookups!A:AL,26)*(1-VLOOKUP(B19,Lookups!A:AL,37))^(A19-$A$3),"") -> 0.0007084987444 | AN19: =IF(B19<70,VLOOKUP(B19,Lookups!A:AL,27)*(1-VLOOKUP(B19,Lookups!A:AL,38))^(A19-$A$3),"") -> 0.0005077727095 | AO19: 0.0005077727095 | AP19: 0.02767477271 | AQ19: 0.6878993394 | AR19: 0.5552645027 | AT19: =IF(BA19>=$B$3,VLOOKUP(BA19,Lookups!A:AL,26)*(1-VLOOKUP(BA19,Lookups!A:AL,37))^(BA19-$B$3),"") -> 0.00498799773 | AU19: =IF(BA19>=$B$3,VLOOKUP(BA19,Lookups!A:AL,27)*(1-VLOOKUP(BA19,Lookups!A:AL,38))^(BA19-$B$3),"") -> 0.004383749987 | AV19: 0.004383749987 | AW19: 0.9777428389 | AX19: 0.7599178132 | AY19: 0.98044 | BA19: =1+BA18 -> 63 | BB19: 310558.03 | BC19: 226232.5304 | BD19: 235892.7413 | BE19: 246007.7006 | BF19: 256604.5635 | BG19: 267714.4591 | BH19: =IF($BB$17<>"",BB19*AW19/$AW$17*AY19*AX19/$AX$17,"") -> 279376.5585 | BI19: =IF($BB$18<>"",BB19*AW19/$AW$18*AY19*AX19/$AX$18,"") -> 291619.9265 | BJ19: =IF($BB$19<>"",BB19*AW19/$AW$19*AY19*AX19/$AX$19*0.5,"") -> 152241.7575 | BT19: =PCTMALE*VLOOKUP(BU19,Lookups!A19:$AG$93,32)+(1-PCTMALE)*VLOOKUP(BU19,Lookups!A19:$AG$93,33) -> 0.25 | BU19: 66 | BV19: 0.02937835605 | BW19: 0.4847428749
A20: =1+A19 -> 2030 | B20: 37 | D20: =VLOOKUP(B20,Lookups!A:P,16) -> 13245.63486 | E20: 0 | G20: 0 | H20: 0 | J20: =IF($B21<65, VLOOKUP(A21,'L-Trends'!$A$3:$D$95,IF(ExFlg=0,2,3),FALSE), VLOOKUP(A21,'L-Trends'!$A$3:$D$95,IF(ExFlg=0,2,4),FALSE))+Sens -> 1.062 | K20: 3.237206047 | L20: 1 | M20: 1 | O20: 1 | P20: 1 | Q20: 1 | R20: 1 | T20: 42878.84926 | U20: 0 | V20: 42878.84926 | X20: 0 | Y20: 0 | Z20: 0 | AB20: 42878.84926 | AD20: =IF(B20<71,VLOOKUP(B20,Lookups!A:AG,32),"") -> 0 | AE20: =IF(B20<71,VLOOKUP(B20,Lookups!A:AG,33),"") -> 0 | AF20: 0 | AG20: =IF(B20<70,VLOOKUP(B20,Lookups!A:AG,28),"") -> 0.01025 | AH20: =IF(B20<70,VLOOKUP(B20,Lookups!A:AG,29),"") -> 0.01025 | AI20: 0.01025 | AJ20: =IF(B20<70,VLOOKUP(B20,Lookups!A:AG,30),"") -> 0.019033 | AK20: =IF(B20<70,VLOOKUP(B20,Lookups!A:AG,31),"") -> 0.019033 | AL20: 0.019033 | AM20: =IF(B20<70,VLOOKUP(B20,Lookups!A:AL,26)*(1-VLOOKUP(B20,Lookups!A:AL,37))^(A20-$A$3),"") -> 0.0007685121627 | AN20: =IF(B20<70,VLOOKUP(B20,Lookups!A:AL,27)*(1-VLOOKUP(B20,Lookups!A:AL,38))^(A20-$A$3),"") -> 0.0005464569242 | AO20: 0.0005464569242 | AP20: 0.02982945692 | AQ20: 0.6688618815 | AR20: 0.5339081757 | AT20: =IF(BA20>=$B$3,VLOOKUP(BA20,Lookups!A:AL,26)*(1-VLOOKUP(BA20,Lookups!A:AL,37))^(BA20-$B$3),"") -> 0.005329782199 | AU20: =IF(BA20>=$B$3,VLOOKUP(BA20,Lookups!A:AL,27)*(1-VLOOKUP(BA20,Lookups!A:AL,38))^(BA20-$B$3),"") -> 0.004877374782 | AV20: 0.004877374782 | AW20: 0.9734566588 | AX20: 0.730690205 | AY20: 0.980222 | BA20: 64 | BB20: 351023.0628 | BC20: 244742.8441 | BD20: 255193.4521 | BE20: 266136.016 | BF20: 277599.9127 | BG20: 289618.8184 | BH20: 302235.1091 | BI20: =IF($BB$18<>"",BB20*AW20/$AW$18*AY20*AX20/$AX$18,"") -> 315480.2277 | BJ20: =IF($BB$19<>"",BB20*AW20/$AW$19*AY20*AX20/$AX$19,"") -> 329396.3131 | BK20: =IF($BB$20<>"",BB20*AW20/$AW$20*AY20*AX20/$AX$20*0.5,"") -> 172040.2643 | BT20: =PCTMALE*VLOOKUP(BU20,Lookups!A20:$AG$93,32)+(1-PCTMALE)*VLOOKUP(BU20,Lookups!A20:$AG$93,33) -> 0.25 | BU20: 67 | BV20: 0.02203376704 | BW20: 0.3690655979
A21: 2031 | B21: 38 | D21: =VLOOKUP(B21,Lookups!A:P,16) -> 13245.63486 | E21: 0 | G21: 0 | H21: 0 | J21: =IF($B22<65, VLOOKUP(A22,'L-Trends'!$A$3:$D$95,IF(ExFlg=0,2,3),FALSE), VLOOKUP(A22,'L-Trends'!$A$3:$D$95,IF(ExFlg=0,2,4),FALSE))+Sens -> 1.062 | K21: 3.437912822 | L21: 1 | M21: 1 | O21: 1 | P21: 1 | Q21: 1 | R21: 1 | T21: 45537.33791 | U21: 0 | V21: 45537.33791 | X21: 0 | Y21: 0 | Z21: 0 | AB21: 45537.33791 | AD21: =IF(B21<71,VLOOKUP(B21,Lookups!A:AG,32),"") -> 0 | AE21: =IF(B21<71,VLOOKUP(B21,Lookups!A:AG,33),"") -> 0 | AF21: 0 | AG21: =IF(B21<70,VLOOKUP(B21,Lookups!A:AG,28),"") -> 0.0096 | AH21: =IF(B21<70,VLOOKUP(B21,Lookups!A:AG,29),"") -> 0.0096 | AI21: 0.0096 | AJ21: =IF(B21<70,VLOOKUP(B21,Lookups!A:AG,30),"") -> 0.020514 | AK21: =IF(B21<70,VLOOKUP(B21,Lookups!A:AG,31),"") -> 0.020514 | AL21: 0.020514 | AM21: =IF(B21<70,VLOOKUP(B21,Lookups!A:AL,26)*(1-VLOOKUP(B21,Lookups!A:AL,37))^(A21-$A$3),"") -> 0.0008236037932 | AN21: =IF(B21<70,VLOOKUP(B21,Lookups!A:AL,27)*(1-VLOOKUP(B21,Lookups!A:AL,38))^(A21-$A$3),"") -> 0.0005903708606 | AO21: 0.0005903708606 | AP21: 0.03070437086 | AQ21: 0.6489100948 | AR21: 0.5133732459 | AT21: =IF(BA21>=$B$3,VLOOKUP(BA21,Lookups!A:AL,26)*(1-VLOOKUP(BA21,Lookups!A:AL,37))^(BA21-$B$3),"") -> 0.005600307654 | AU21: =IF(BA21>=$B$3,VLOOKUP(BA21,Lookups!A:AL,27)*(1-VLOOKUP(BA21,Lookups!A:AL,38))^(BA21-$B$3),"") -> 0.005438454791 | AV21: 0.005438454791 | AW21: 0.9687087458 | AX21: 0.7025867356 | AY21: 0.979975 | BA21: 65 | BB21: 209085.6457 | BC21: 139454.4515 | BD21: 145409.2071 | BE21: 151644.279 | BF21: 158176.4064 | BG21: 165024.7778 | BH21: 172213.5392 | BI21: 179760.6066 | BJ21: =IF($BB$19<>"",BB21*AW21/$AW$19*AY21*AX21/$AX$19,"") -> 187689.9909 | BK21: =IF($BB$20<>"",BB21*AW21/$AW$20*AY21*AX21/$AX$20,"") -> 196057.0556 | BL21: =IF($BB$21<>"",BB21*AW21/$AW$21*AY21*AX21/$AX$21*0.5,"") -> 102449.3528 | BT21: =PCTMALE*VLOOKUP(BU21,Lookups!A21:$AG$93,32)+(1-PCTMALE)*VLOOKUP(BU21,Lookups!A21:$AG$93,33) -> 0.25 | BU21: 68 | BV21: 0.01652532528 | BW21: 0.2809305297
A22: 2032 | B22: 39 | D22: =VLOOKUP(B22,Lookups!A:P,16) -> 13245.63486 | E22: 0 | G22: 0 | H22: 0 | J22: =IF($B23<65, VLOOKUP(A23,'L-Trends'!$A$3:$D$95,IF(ExFlg=0,2,3),FALSE), VLOOKUP(A23,'L-Trends'!$A$3:$D$95,IF(ExFlg=0,2,4),FALSE))+Sens -> 1.062 | K22: 3.651063416 | L22: 1 | M22: 1 | O22: 1 | P22: 1 | Q22: 1 | R22: 1 | T22: 48360.65287 | U22: 0 | V22: 48360.65287 | X22: 0 | Y22: 0 | Z22: 0 | AB22: 48360.65287 | AD22: =IF(B22<71,VLOOKUP(B22,Lookups!A:AG,32),"") -> 0 | AE22: =IF(B22<71,VLOOKUP(B22,Lookups!A:AG,33),"") -> 0 | AF22: 0 | AG22: =IF(B22<70,VLOOKUP(B22,Lookups!A:AG,28),"") -> 0.00895 | AH22: =IF(B22<70,VLOOKUP(B22,Lookups!A:AG,29),"") -> 0.00895 | AI22: 0.00895 | AJ22: =IF(B22<70,VLOOKUP(B22,Lookups!A:AG,30),"") -> 0.021994 | AK22: =IF(B22<70,VLOOKUP(B22,Lookups!A:AG,31),"") -> 0.021994 | AL22: 0.021994 | AM22: =IF(B22<70,VLOOKUP(B22,Lookups!A:AL,26)*(1-VLOOKUP(B22,Lookups!A:AL,37))^(A22-$A$3),"") -> 0.0008756329585 | AN22: =IF(B22<70,VLOOKUP(B22,Lookups!A:AL,27)*(1-VLOOKUP(B22,Lookups!A:AL,38))^(A22-$A$3),"") -> 0.0006412830588 | AO22: 0.0006412830588 | AP22: 0.03158528306 | AQ22: 0.6289857186 | AR22: 0.493628121 | AT22: =IF(BA22>=$B$3,VLOOKUP(BA22,Lookups!A:AL,26)*(1-VLOOKUP(BA22,Lookups!A:AL,37))^(BA22-$B$3),"") -> 0.005885442978 | AU22: =IF(BA22>=$B$3,VLOOKUP(BA22,Lookups!A:AL,27)*(1-VLOOKUP(BA22,Lookups!A:AL,38))^(BA22-$B$3),"") -> 0.005966236125 | AV22: 0.005966236125 | AW22: 0.9634404671 | AX22: 0.6755641688 | AY22: 0.979742 | BA22: 66 | BB22: 224702.4122 | BC22: 143288.373 | BD22: 149406.8384 | BE22: 155813.3267 | BF22: 162525.0372 | BG22: 169561.686 | BH22: 176948.0829 | BI22: 184702.6364 | BJ22: 192850.0176 | BK22: =IF($BB$20<>"",BB22*AW22/$AW$20*AY22*AX22/$AX$20,"") -> 201447.1121 | BL22: =IF($BB$21<>"",BB22*AW22/$AW$21*AY22*AX22/$AX$21,"") -> 210531.8392 | BM22: =IF($BB$22<>"",BB22*AW22/$AW$22*AY22*AX22/$AX$22*0.5,"") -> 110075.1954 | BT22: =PCTMALE*VLOOKUP(BU22,Lookups!A22:$AG$93,32)+(1-PCTMALE)*VLOOKUP(BU22,Lookups!A22:$AG$93,33) -> 0.25 | BU22: 69 | BV22: 0.01239399396 | BW22: 0.2137963958
A23: 2033 | B23: 40 | D23: =VLOOKUP(B23,Lookups!A:P,16) -> 13245.63486 | E23: 0 | G23: 0 | H23: 0 | J23: =IF($B24<65, VLOOKUP(A24,'L-Trends'!$A$3:$D$95,IF(ExFlg=0,2,3),FALSE), VLOOKUP(A24,'L-Trends'!$A$3:$D$95,IF(ExFlg=0,2,4),FALSE))+Sens -> 1.062 | K23: 3.877429348 | L23: 1 | M23: 1 | O23: 1 | P23: 1 | Q23: 1 | R23: 1 | T23: 51359.01334 | U23: 0 | V23: 51359.01334 | X23: 0 | Y23: 0 | Z23: 0 | AB23: 51359.01334 | AD23: =IF(B23<71,VLOOKUP(B23,Lookups!A:AG,32),"") -> 0 | AE23: =IF(B23<71,VLOOKUP(B23,Lookups!A:AG,33),"") -> 0 | AF23: 0 | AG23: =IF(B23<70,VLOOKUP(B23,Lookups!A:AG,28),"") -> 0.0083 | AH23: =IF(B23<70,VLOOKUP(B23,Lookups!A:AG,29),"") -> 0.0083 | AI23: 0.0083 | AJ23: =IF(B23<70,VLOOKUP(B23,Lookups!A:AG,30),"") -> 0.023471 | AK23: =IF(B23<70,VLOOKUP(B23,Lookups!A:AG,31),"") -> 0.023471 | AL23: 0.023471 | AM23: =IF(B23<70,VLOOKUP(B23,Lookups!A:AL,26)*(1-VLOOKUP(B23,Lookups!A:AL,37))^(A23-$A$3),"") -> 0.0009246257125 | AN23: =IF(B23<70,VLOOKUP(B23,Lookups!A:AL,27)*(1-VLOOKUP(B23,Lookups!A:AL,38))^(A23-$A$3),"") -> 0.0007009405499 | AO23: 0.0007009405499 | AP23: 0.03247194055 | AQ23: 0.6091190267 | AR23: 0.474642424 | AT23: =IF(BA23>=$B$3,VLOOKUP(BA23,Lookups!A:AL,26)*(1-VLOOKUP(BA23,Lookups!A:AL,37))^(BA23-$B$3),"") -> 0.006183704642 | AU23: =IF(BA23>=$B$3,VLOOKUP(BA23,Lookups!A:AL,27)*(1-VLOOKUP(BA23,Lookups!A:AL,38))^(BA23-$B$3),"") -> 0.00651594608 | AV23: 0.00651594608 | AW23: 0.9576923538 | AX23: =IF(AV22="",1,AX22/(1+INTRt)) -> 0.6495809316 | AY23: 0.9795 | BA23: 67 | BB23: 241495.7707 | BC23: 147154.4017 | BD23: 153437.9479 | BE23: 160017.2881 | BF23: 166910.0856 | BG23: 174136.5885 | BH23: 181722.276 | BI23: 189686.0532 | BJ23: 198053.2569 | BK23: 206882.3075 | BL23: =IF($BB$21<>"",BB23*AW23/$AW$21*AY23*AX23/$AX$21,"") -> 216212.1475 | BM23: =IF($BB$22<>"",BB23*AW23/$AW$22*AY23*AX23/$AX$22,"") -> 226090.2148 | BN23: =IF($BB$23<>"",BB23*AW23/$AW$23*AY23*AX23/$AX$23*0.5,"") -> 118272.5537 | BT23: =PCTMALE*VLOOKUP(BU23,Lookups!A23:$AG$93,32)+(1-PCTMALE)*VLOOKUP(BU23,Lookups!A23:$AG$93,33) -> 1 | BU23: 70 | BV23: =BV22*(1-BT22) -> 0.00929549547 | BW23: 0.6506846829
A24: 2034 | B24: 41 | D24: =VLOOKUP(B24,Lookups!A:P,16) -> 13245.63486 | E24: 0 | G24: 0 | H24: 0 | J24: =IF($B25<65, VLOOKUP(A25,'L-Trends'!$A$3:$D$95,IF(ExFlg=0,2,3),FALSE), VLOOKUP(A25,'L-Trends'!$A$3:$D$95,IF(ExFlg=0,2,4),FALSE))+Sens -> 1.062 | K24: 4.117829968 | L24: 1 | M24: 1 | O24: 1 | P24: 1 | Q24: 1 | R24: 1 | T24: 54543.27217 | U24: 0 | V24: 54543.27217 | X24: 0 | Y24: 0 | Z24: 0 | AB24: 54543.27217 | AD24: =IF(B24<71,VLOOKUP(B24,Lookups!A:AG,32),"") -> 0 | AE24: =IF(B24<71,VLOOKUP(B24,Lookups!A:AG,33),"") -> 0 | AF24: 0 | AG24: =IF(B24<70,VLOOKUP(B24,Lookups!A:AG,28),"") -> 0.00765 | AH24: =IF(B24<70,VLOOKUP(B24,Lookups!A:AG,29),"") -> 0.00765 | AI24: 0.00765 | AJ24: =IF(B24<70,VLOOKUP(B24,Lookups!A:AG,30),"") -> 0.024946 | AK24: =IF(B24<70,VLOOKUP(B24,Lookups!A:AG,31),"") -> 0.024946 | AL24: 0.024946 | AM24: =IF(B24<70,VLOOKUP(B24,Lookups!A:AL,26)*(1-VLOOKUP(B24,Lookups!A:AL,37))^(A24-$A$3),"") -> 0.0009742195204 | AN24: =IF(B24<70,VLOOKUP(B24,Lookups!A:AL,27)*(1-VLOOKUP(B24,Lookups!A:AL,38))^(A24-$A$3),"") -> 0.0007692632358 | AO24: 0.0007692632358 | AP24: 0.03336526324 | AQ24: 0.5893397498 | AR24: 0.4563869462 | AT24: =IF(BA24>=$B$3,VLOOKUP(BA24,Lookups!A:AL,26)*(1-VLOOKUP(BA24,Lookups!A:AL,37))^(BA24-$B$3),"") -> 0.006393829366 | AU24: =IF(BA24>=$B$3,VLOOKUP(BA24,Lookups!A:AL,27)*(1-VLOOKUP(BA24,Lookups!A:AL,38))^(BA24-$B$3),"") -> 0.007115287114 | AV24: 0.007115287114 | AW24: 0.9514520821 | AX24: 0.6245970496 | AY24: 0.979236 | BA24: 68 | BB24: 259557.8997 | BC24: 151045.7367 | BD24: 157495.4443 | BE24: 164248.7679 | BF24: 171323.8378 | BG24: 178741.4375 | BH24: 186527.7201 | BI24: 194702.0906 | BJ24: 203290.5557 | BK24: 212353.0807 | BL24: 221929.638 | BM24: =IF($BB$22<>"",BB24*AW24/$AW$22*AY24*AX24/$AX$22,"") -> 232068.9198 | BN24: =IF($BB$23<>"",BB24*AW24/$AW$23*AY24*AX24/$AX$23,"") -> 242800.2804 | BO24: =IF($BB$24<>"",BB24*AW24/$AW$24*AY24*AX24/$AX$24*0.5,"") -> 127084.2197 | BW24: =SUM(BW3:BW23) -> 55.26133452
A25: 2035 | B25: 42 | D25: =VLOOKUP(B25,Lookups!A:P,16) -> 13245.63486 | E25: 0 | G25: 0 | H25: 0 | J25: =IF($B26<65, VLOOKUP(A26,'L-Trends'!$A$3:$D$95,IF(ExFlg=0,2,3),FALSE), VLOOKUP(A26,'L-Trends'!$A$3:$D$95,IF(ExFlg=0,2,4),FALSE))+Sens -> 1.062 | K25: 4.373135426 | L25: 1 | M25: 1 | O25: 1 | P25: 1 | Q25: 1 | R25: 1 | T25: 57924.95504 | U25: 0 | V25: 57924.95504 | X25: 0 | Y25: 0 | Z25: 0 | AB25: 57924.95504 | AD25: =IF(B25<71,VLOOKUP(B25,Lookups!A:AG,32),"") -> 0 | AE25: =IF(B25<71,VLOOKUP(B25,Lookups!A:AG,33),"") -> 0 | AF25: 0 | AG25: =IF(B25<70,VLOOKUP(B25,Lookups!A:AG,28),"") -> 0.007 | AH25: =IF(B25<70,VLOOKUP(B25,Lookups!A:AG,29),"") -> 0.007 | AI25: 0.007 | AJ25: =IF(B25<70,VLOOKUP(B25,Lookups!A:AG,30),"") -> 0.026419 | AK25: =IF(B25<70,VLOOKUP(B25,Lookups!A:AG,31),"") -> 0.026419 | AL25: 0.026419 | AM25: =IF(B25<70,VLOOKUP(B25,Lookups!A:AL,26)*(1-VLOOKUP(B25,Lookups!A:AL,37))^(A25-$A$3),"") -> 0.001028008356 | AN25: =IF(B25<70,VLOOKUP(B25,Lookups!A:AL,27)*(1-VLOOKUP(B25,Lookups!A:AL,38))^(A25-$A$3),"") -> 0.0008434709542 | AO25: 0.0008434709542 | AP25: 0.03426247095 | AQ25: 0.569676274 | AR25: 0.4388336021 | AT25: =IF(BA25>=$B$3,VLOOKUP(BA25,Lookups!A:AL,26)*(1-VLOOKUP(BA25,Lookups!A:AL,37))^(BA25-$B$3),"") -> 0.007001565333 | AU25: =IF(BA25>=$B$3,VLOOKUP(BA25,Lookups!A:AL,27)*(1-VLOOKUP(BA25,Lookups!A:AL,38))^(BA25-$B$3),"") -> 0.007920231979 | AV25: 0.007920231979 | AW25: 0.9446822273 | AX25: 0.6005740861 | AY25: 0.978881 | BA25: 69 | BB25: 278985.4046 | BC25: 154940.0587 | BD25: 161556.0553 | BE25: 168483.4958 | BF25: 175740.978 | BG25: 183349.8213 | BH25: 191336.8529 | BI25: 199721.9783 | BJ25: 208531.8747 | BK25: 217828.0534 | BL25: 227651.5173 | BM25: 238052.2142 | BN25: =IF($BB$23<>"",BB25*AW25/$AW$23*AY25*AX25/$AX$23,"") -> 249060.2551 | BO25: =IF($BB$24<>"",BB25*AW25/$AW$24*AY25*AX25/$AX$24,"") -> 260721.5126 | BP25: =IF($BB$25<>"",BB25*AW25/$AW$25*AY25*AX25/$AX$25*0.5,"") -> 136546.7559
A26: 2036 | B26: 43 | D26: =VLOOKUP(B26,Lookups!A:P,16) -> 13245.63486 | E26: 0 | G26: 0 | H26: 0 | J26: =IF($B27<65, VLOOKUP(A27,'L-Trends'!$A$3:$D$95,IF(ExFlg=0,2,3),FALSE), VLOOKUP(A27,'L-Trends'!$A$3:$D$95,IF(ExFlg=0,2,4),FALSE))+Sens -> 1.062 | K26: 4.644269822 | L26: 1 | M26: 1 | O26: 1 | P26: 1 | Q26: 1 | R26: 1 | T26: 61516.30226 | U26: 0 | V26: 61516.30226 | X26: 0 | Y26: 0 | Z26: 0 | AB26: 61516.30226 | AD26: =IF(B26<71,VLOOKUP(B26,Lookups!A:AG,32),"") -> 0 | AE26: =IF(B26<71,VLOOKUP(B26,Lookups!A:AG,33),"") -> 0 | AF26: 0 | AG26: =IF(B26<70,VLOOKUP(B26,Lookups!A:AG,28),"") -> 0.00635 | AH26: =IF(B26<70,VLOOKUP(B26,Lookups!A:AG,29),"") -> 0.00635 | AI26: 0.00635 | AJ26: =IF(B26<70,VLOOKUP(B26,Lookups!A:AG,30),"") -> 0.027889 | AK26: =IF(B26<70,VLOOKUP(B26,Lookups!A:AG,31),"") -> 0.027889 | AL26: 0.027889 | AM26: =IF(B26<70,VLOOKUP(B26,Lookups!A:AL,26)*(1-VLOOKUP(B26,Lookups!A:AL,37))^(A26-$A$3),"") -> 0.00109044051 | AN26: =IF(B26<70,VLOOKUP(B26,Lookups!A:AL,27)*(1-VLOOKUP(B26,Lookups!A:AL,38))^(A26-$A$3),"") -> 0.0009235088762 | AO26: 0.0009235088762 | AP26: 0.03516250888 | AQ26: 0.5501577572 | AR26: 0.4219553867 | AT26: =IF(BA26>=$B$3,VLOOKUP(BA26,Lookups!A:AL,26)*(1-VLOOKUP(BA26,Lookups!A:AL,37))^(BA26-$B$3),"") -> 0.007641728039 | AU26: =IF(BA26>=$B$3,VLOOKUP(BA26,Lookups!A:AL,27)*(1-VLOOKUP(BA26,Lookups!A:AL,38))^(BA26-$B$3),"") -> 0.008683800625 | AV26: 0.008683800625 | AW26: 0.9372001249 | AX26: 0.5774750828 | AY26: 0.978545 | BA26: 70 | BB26: 299882.2145 | BC26: 158817.0406 | BD26: 165598.5857 | BE26: 172699.3678 | BF26: 180138.45 | BG26: 187937.6853 | BH26: 196124.5722 | BI26: 204719.5141 | BJ26: 213749.8558 | BK26: 223278.6478 | BL26: 233347.9189 | BM26: 244008.8669 | BN26: 255292.356 | BO26: =IF($BB$24<>"",BB26*AW26/$AW$24*AY26*AX26/$AX$24,"") -> 267245.4069 | BP26: =IF($BB$25<>"",BB26*AW26/$AW$25*AY26*AX26/$AX$25,"") -> 279926.9841 | BQ26: =IF($BB$26<>"",BB26*AW26/$AW$26*AY26*AX26/$AX$26*0.5,"") -> 146724.1208
A27: 2037 | B27: 44 | D27: =VLOOKUP(B27,Lookups!A:P,16) -> 13245.63486 | E27: 0 | G27: 0 | H27: 0 | J27: =IF($B28<65, VLOOKUP(A28,'L-Trends'!$A$3:$D$95,IF(ExFlg=0,2,3),FALSE), VLOOKUP(A28,'L-Trends'!$A$3:$D$95,IF(ExFlg=0,2,4),FALSE))+Sens -> 1.062 | K27: 4.932214551 | L27: 1 | M27: 1 | O27: 1 | P27: 1 | Q27: 1 | R27: 1 | T27: 65330.313 | U27: 0 | V27: 65330.313 | X27: 0 | Y27: 0 | Z27: 0 | AB27: 65330.313 | AD27: =IF(B27<71,VLOOKUP(B27,Lookups!A:AG,32),"") -> 0 | AE27: =IF(B27<71,VLOOKUP(B27,Lookups!A:AG,33),"") -> 0 | AF27: 0 | AG27: =IF(B27<70,VLOOKUP(B27,Lookups!A:AG,28),"") -> 0.0057 | AH27: =IF(B27<70,VLOOKUP(B27,Lookups!A:AG,29),"") -> 0.0057 | AI27: 0.0057 | AJ27: =IF(B27<70,VLOOKUP(B27,Lookups!A:AG,30),"") -> 0.036042 | AK27: =IF(B27<70,VLOOKUP(B27,Lookups!A:AG,31),"") -> 0.036042 | AL27: 0.036042 | AM27: =IF(B27<70,VLOOKUP(B27,Lookups!A:AL,26)*(1-VLOOKUP(B27,Lookups!A:AL,37))^(A27-$A$3),"") -> 0.001162331503 | AN27: =IF(B27<70,VLOOKUP(B27,Lookups!A:AL,27)*(1-VLOOKUP(B27,Lookups!A:AL,38))^(A27-$A$3),"") -> 0.001005743348 | AO27: 0.001005743348 | AP27: 0.04274774335 | AQ27: 0.5308128301 | AR27: 0.4057263333 | AT27: =IF(BA27>=$B$3,VLOOKUP(BA27,Lookups!A:AL,26)*(1-VLOOKUP(BA27,Lookups!A:AL,37))^(BA27-$B$3),"") -> 0.008440906456 | AU27: =IF(BA27>=$B$3,VLOOKUP(BA27,Lookups!A:AL,27)*(1-VLOOKUP(BA27,Lookups!A:AL,38))^(BA27-$B$3),"") -> 0.009542888801 | AV27: 0.009542888801 | AW27: 0.9290616659 | AX27: 0.5552645027 | AY27: 0.978166 | BA27: 71 | BB27: 322360.1302 | BC27: 162666.5804 | BD27: 169612.5023 | BE27: 176885.3991 | BF27: 184504.796 | BG27: 192493.0757 | BH27: 200878.4031 | BI27: 209681.6764 | BJ27: 218930.903 | BK27: 228690.6618 | BL27: 239004.0004 | BM27: 249923.3573 | BN27: 261480.345 | BO27: 273723.1239 | BP27: =IF($BB$25<>"",BB27*AW27/$AW$25*AY27*AX27/$AX$25,"") -> 286712.0877 | BQ27: =IF($BB$26<>"",BB27*AW27/$AW$26*AY27*AX27/$AX$26,"") -> 300561.0847
A28: 2038 | B28: 45 | D28: =VLOOKUP(B28,Lookups!A:P,16) -> 13245.63486 | E28: 0 | G28: 0 | H28: 0 | J28: =IF($B29<65, VLOOKUP(A29,'L-Trends'!$A$3:$D$95,IF(ExFlg=0,2,3),FALSE), VLOOKUP(A29,'L-Trends'!$A$3:$D$95,IF(ExFlg=0,2,4),FALSE))+Sens -> 1.062 | K28: 5.238011853 | L28: 1 | M28: 1 | O28: 1 | P28: 1 | Q28: 1 | R28: 1 | T28: 69380.7924 | U28: 0 | V28: 69380.7924 | X28: 0 | Y28: 0 | Z28: 0 | AB28: 69380.7924 | AD28: =IF(B28<71,VLOOKUP(B28,Lookups!A:AG,32),"") -> 0 | AE28: =IF(B28<71,VLOOKUP(B28,Lookups!A:AG,33),"") -> 0 | AF28: 0 | AG28: =IF(B28<70,VLOOKUP(B28,Lookups!A:AG,28),"") -> 0.00505 | AH28: =IF(B28<70,VLOOKUP(B28,Lookups!A:AG,29),"") -> 0.00505 | AI28: 0.00505 | AJ28: =IF(B28<70,VLOOKUP(B28,Lookups!A:AG,30),"") -> 0.04 | AK28: =IF(B28<70,VLOOKUP(B28,Lookups!A:AG,31),"") -> 0.04 | AL28: 0.04 | AM28: =IF(B28<70,VLOOKUP(B28,Lookups!A:AL,26)*(1-VLOOKUP(B28,Lookups!A:AL,37))^(A28-$A$3),"") -> 0.001246270807 | AN28: =IF(B28<70,VLOOKUP(B28,Lookups!A:AL,27)*(1-VLOOKUP(B28,Lookups!A:AL,38))^(A28-$A$3),"") -> 0.001091044521 | AO28: 0.001091044521 | AP28: 0.04614104452 | AQ28: 0.5081217795 | AR28: 0.3901214743 | AT28: =IF(BA28>=$B$3,VLOOKUP(BA28,Lookups!A:AL,26)*(1-VLOOKUP(BA28,Lookups!A:AL,37))^(BA28-$B$3),"") -> 0.009199413471 | AU28: =IF(BA28>=$B$3,VLOOKUP(BA28,Lookups!A:AL,27)*(1-VLOOKUP(BA28,Lookups!A:AL,38))^(BA28-$B$3),"") -> 0.0104800268 | AV28: 0.0104800268 | AW28: 0.9201957337 | AX28: 0.5339081757 | AY28: 0.977753 | BA28: 72 | BB28: 346539.4117 | BC28: 166467.1628 | BD28: 173575.3708 | BE28: 181018.1934 | BF28: 188815.6118 | BG28: 196990.5316 | BH28: 205571.7759 | BI28: 214580.731 | BJ28: 224046.0589 | BK28: 234033.8471 | BL28: 244588.1491 | BM28: 255762.6285 | BN28: 267589.6366 | BO28: 280118.4589 | BP28: 293410.9 | BQ28: =IF($BB$26<>"",BB28*AW28/$AW$26*AY28*AX28/$AX$26,"") -> 307583.4684
A29: 2039 | B29: 46 | D29: =VLOOKUP(B29,Lookups!A:P,16) -> 13245.63486 | E29: 0 | G29: 0 | H29: 0 | J29: =IF($B30<65, VLOOKUP(A30,'L-Trends'!$A$3:$D$95,IF(ExFlg=0,2,3),FALSE), VLOOKUP(A30,'L-Trends'!$A$3:$D$95,IF(ExFlg=0,2,4),FALSE))+Sens -> 1.062 | K29: 5.562768588 | L29: 1 | M29: 1 | O29: 1 | P29: 1 | Q29: 1 | R29: 1 | T29: 73682.40153 | U29: 0 | V29: 73682.40153 | X29: 0 | Y29: 0 | Z29: 0 | AB29: 73682.40153 | AD29: =IF(B29<71,VLOOKUP(B29,Lookups!A:AG,32),"") -> 0 | AE29: =IF(B29<71,VLOOKUP(B29,Lookups!A:AG,33),"") -> 0 | AF29: 0 | AG29: =IF(B29<70,VLOOKUP(B29,Lookups!A:AG,28),"") -> 0.0044 | AH29: =IF(B29<70,VLOOKUP(B29,Lookups!A:AG,29),"") -> 0.0044 | AI29: 0.0044 | AJ29: =IF(B29<70,VLOOKUP(B29,Lookups!A:AG,30),"") -> 0.0468 | AK29: =IF(B29<70,VLOOKUP(B29,Lookups!A:AG,31),"") -> 0.0468 | AL29: 0.0468 | AM29: =IF(B29<70,VLOOKUP(B29,Lookups!A:AL,26)*(1-VLOOKUP(B29,Lookups!A:AL,37))^(A29-$A$3),"") -> 0.001341258588 | AN29: =IF(B29<70,VLOOKUP(B29,Lookups!A:AL,27)*(1-VLOOKUP(B29,Lookups!A:AL,38))^(A29-$A$3),"") -> 0.001179382551 | AO29: 0.001179382551 | AP29: 0.05237938255 | AQ29: 0.4846765099 | AR29: 0.3751168023 | AT29: =IF(BA29>=$B$3,VLOOKUP(BA29,Lookups!A:AL,26)*(1-VLOOKUP(BA29,Lookups!A:AL,37))^(BA29-$B$3),"") -> 0.01006123976 | AU29: =IF(BA29>=$B$3,VLOOKUP(BA29,Lookups!A:AL,27)*(1-VLOOKUP(BA29,Lookups!A:AL,38))^(BA29-$B$3),"") -> 0.01147579086 | AV29: 0.01147579086 | AW29: 0.9105520578 | AX29: 0.5133732459 | AY29: 0.977314 | BA29: 73 | BB29: 370353.2727 | BC29: 169195.3094 | BD29: 176420.0103 | BE29: 183984.8095 | BF29: 191910.0159 | BG29: 200218.9104 | BH29: 208940.7883 | BI29: 218097.3867 | BJ29: 227717.8371 | BK29: 237869.3102 | BL29: 248596.5813 | BM29: 259954.1936 | BN29: 271975.0286 | BO29: 284709.1794 | BP29: 298219.4637 | BQ29: 312624.2992
A30: 2040 | B30: 47 | D30: =VLOOKUP(B30,Lookups!A:P,16) -> 13245.63486 | E30: 0 | G30: 0 | H30: 0 | J30: =IF($B31<65, VLOOKUP(A31,'L-Trends'!$A$3:$D$95,IF(ExFlg=0,2,3),FALSE), VLOOKUP(A31,'L-Trends'!$A$3:$D$95,IF(ExFlg=0,2,4),FALSE))+Sens -> 1.062 | K30: 5.907660241 | L30: 1 | M30: 1 | O30: 1 | P30: 1 | Q30: 1 | R30: 1 | T30: 78250.71043 | U30: 0 | V30: 78250.71043 | X30: 0 | Y30: 0 | Z30: 0 | AB30: 78250.71043 | AD30: =IF(B30<71,VLOOKUP(B30,Lookups!A:AG,32),"") -> 0 | AE30: =IF(B30<71,VLOOKUP(B30,Lookups!A:AG,33),"") -> 0 | AF30: 0 | AG30: =IF(B30<70,VLOOKUP(B30,Lookups!A:AG,28),"") -> 0.00375 | AH30: =IF(B30<70,VLOOKUP(B30,Lookups!A:AG,29),"") -> 0.00375 | AI30: 0.00375 | AJ30: =IF(B30<70,VLOOKUP(B30,Lookups!A:AG,30),"") -> 0.0532 | AK30: =IF(B30<70,VLOOKUP(B30,Lookups!A:AG,31),"") -> 0.0532 | AL30: 0.0532 | AM30: =IF(B30<70,VLOOKUP(B30,Lookups!A:AL,26)*(1-VLOOKUP(B30,Lookups!A:AL,37))^(A30-$A$3),"") -> 0.001433004944 | AN30: =IF(B30<70,VLOOKUP(B30,Lookups!A:AL,27)*(1-VLOOKUP(B30,Lookups!A:AL,38))^(A30-$A$3),"") -> 0.001271614536 | AO30: 0.001271614536 | AP30: 0.05822161454 | AQ30: 0.4592894535 | AR30: 0.3606892329 | AT30: =IF(BA30>=$B$3,VLOOKUP(BA30,Lookups!A:AL,26)*(1-VLOOKUP(BA30,Lookups!A:AL,37))^(BA30-$B$3),"") -> 0.01103863235 | AU30: =IF(BA30>=$B$3,VLOOKUP(BA30,Lookups!A:AL,27)*(1-VLOOKUP(BA30,Lookups!A:AL,38))^(BA30-$B$3),"") -> 0.01251740573 | AV30: 0.01251740573 | AW30: 0.9001027528 | AX30: 0.493628121 | AY30: 0.976855 | BA30: 74 | BB30: 395812.9321 | BC30: 171795.6116 | BD30: 179131.3463 | BE30: 186812.4062 | BF30: 194859.4123 | BG30: 203296.0032 | BH30: 212151.9246 | BI30: 221449.2474 | BJ30: 231217.5511 | BK30: 241525.0385 | BL30: 252417.1732 | BM30: 263949.3366 | BN30: 276154.9155 | BO30: 289084.773 | BP30: 302802.692 | BQ30: 317428.9103
A31: 2041 | B31: 48 | D31: =VLOOKUP(B31,Lookups!A:P,16) -> 13245.63486 | E31: 0 | G31: 0 | H31: 0 | J31: =IF($B32<65, VLOOKUP(A32,'L-Trends'!$A$3:$D$95,IF(ExFlg=0,2,3),FALSE), VLOOKUP(A32,'L-Trends'!$A$3:$D$95,IF(ExFlg=0,2,4),FALSE))+Sens -> 1.062 | K31: 6.273935176 | L31: 1 | M31: 1 | O31: 1 | P31: 1 | Q31: 1 | R31: 1 | T31: 83102.25447 | U31: 0 | V31: 83102.25447 | X31: 0 | Y31: 0 | Z31: 0 | AB31: 83102.25447 | AD31: =IF(B31<71,VLOOKUP(B31,Lookups!A:AG,32),"") -> 0 | AE31: =IF(B31<71,VLOOKUP(B31,Lookups!A:AG,33),"") -> 0 | AF31: 0 | AG31: =IF(B31<70,VLOOKUP(B31,Lookups!A:AG,28),"") -> 0.0031 | AH31: =IF(B31<70,VLOOKUP(B31,Lookups!A:AG,29),"") -> 0.0031 | AI31: 0.0031 | AJ31: =IF(B31<70,VLOOKUP(B31,Lookups!A:AG,30),"") -> 0.0592 | AK31: =IF(B31<70,VLOOKUP(B31,Lookups!A:AG,31),"") -> 0.0592 | AL31: 0.0592 | AM31: =IF(B31<70,VLOOKUP(B31,Lookups!A:AL,26)*(1-VLOOKUP(B31,Lookups!A:AL,37))^(A31-$A$3),"") -> 0.001533029754 | AN31: =IF(B31<70,VLOOKUP(B31,Lookups!A:AL,27)*(1-VLOOKUP(B31,Lookups!A:AL,38))^(A31-$A$3),"") -> 0.001370355316 | AO31: 0.001370355316 | AP31: 0.06367035532 | AQ31: 0.43254888 | AR31: 0.3468165701 | AT31: =IF(BA31>=$B$3,VLOOKUP(BA31,Lookups!A:AL,26)*(1-VLOOKUP(BA31,Lookups!A:AL,37))^(BA31-$B$3),"") -> 0.01213007181 | AU31: =IF(BA31>=$B$3,VLOOKUP(BA31,Lookups!A:AL,27)*(1-VLOOKUP(BA31,Lookups!A:AL,38))^(BA31-$B$3),"") -> 0.01362565352 | AV31: 0.01362565352 | AW31: 0.8888358014 | AX31: 0.474642424 | AY31: 0.976367 | BA31: 75 | BB31: 423034.6728 | BC31: 174251.7504 | BD31: 181692.3632 | BE31: 189483.2382 | BF31: 197645.2912 | BG31: 206202.4989 | BH31: 215185.0322 | BI31: 224615.2777 | BJ31: 234523.2374 | BK31: 244978.0896 | BL31: 256025.9477 | BM31: 267722.985 | BN31: 280103.0654 | BO31: 293217.7792 | BP31: 307131.8215 | BQ31: 321967.1489
A32: 2042 | B32: 49 | D32: =VLOOKUP(B32,Lookups!A:P,16) -> 13245.63486 | E32: 0 | G32: 0 | H32: 0 | J32: =IF($B33<65, VLOOKUP(A33,'L-Trends'!$A$3:$D$95,IF(ExFlg=0,2,3),FALSE), VLOOKUP(A33,'L-Trends'!$A$3:$D$95,IF(ExFlg=0,2,4),FALSE))+Sens -> 1.062 | K32: 6.662919157 | L32: 1 | M32: 1 | O32: 1 | P32: 1 | Q32: 1 | R32: 1 | T32: 88254.59425 | U32: 0 | V32: 88254.59425 | X32: 0 | Y32: 0 | Z32: 0 | AB32: 88254.59425 | AD32: =IF(B32<71,VLOOKUP(B32,Lookups!A:AG,32),"") -> 0 | AE32: =IF(B32<71,VLOOKUP(B32,Lookups!A:AG,33),"") -> 0 | AF32: 0 | AG32: =IF(B32<70,VLOOKUP(B32,Lookups!A:AG,28),"") -> 0.00245 | AH32: =IF(B32<70,VLOOKUP(B32,Lookups!A:AG,29),"") -> 0.00245 | AI32: 0.00245 | AJ32: =IF(B32<70,VLOOKUP(B32,Lookups!A:AG,30),"") -> 0.0648 | AK32: =IF(B32<70,VLOOKUP(B32,Lookups!A:AG,31),"") -> 0.0648 | AL32: 0.0648 | AM32: =IF(B32<70,VLOOKUP(B32,Lookups!A:AL,26)*(1-VLOOKUP(B32,Lookups!A:AL,37))^(A32-$A$3),"") -> 0.0016394931 | AN32: =IF(B32<70,VLOOKUP(B32,Lookups!A:AL,27)*(1-VLOOKUP(B32,Lookups!A:AL,38))^(A32-$A$3),"") -> 0.001477306686 | AO32: 0.001477306686 | AP32: 0.06872730669 | AQ32: 0.4050083391 | AR32: 0.3334774713 | AT32: =IF(BA32>=$B$3,VLOOKUP(BA32,Lookups!A:AL,26)*(1-VLOOKUP(BA32,Lookups!A:AL,37))^(BA32-$B$3),"") -> 0.01333466667 | AU32: =IF(BA32>=$B$3,VLOOKUP(BA32,Lookups!A:AL,27)*(1-VLOOKUP(BA32,Lookups!A:AL,38))^(BA32-$B$3),"") -> 0.01482679321 | AV32: 0.01482679321 | AW32: 0.8767248328 | AX32: 0.4563869462 | AY32: 0.975838 | BA32: 76 | BB32: 452138.9252 | BC32: 176541.2289 | BD32: 184079.6032 | BE32: 191972.8419 | BF32: 200242.1354 | BG32: 208911.7755 | BH32: 218012.3295 | BI32: 227566.4782 | BJ32: 237604.6177 | BK32: 248196.8353 | BL32: 259389.8502 | BM32: 271240.5738 | BN32: 283783.315 | BO32: 297070.342 | BP32: 311167.1996 | BQ32: 326197.4471
A33: 2043 | B33: 50 | D33: =VLOOKUP(B33,Lookups!A:P,16) -> 13245.63486 | E33: 0 | G33: 0 | H33: 0 | J33: =IF($B34<65, VLOOKUP(A34,'L-Trends'!$A$3:$D$95,IF(ExFlg=0,2,3),FALSE), VLOOKUP(A34,'L-Trends'!$A$3:$D$95,IF(ExFlg=0,2,4),FALSE))+Sens -> 1.062 | K33: 7.076020144 | L33: 1 | M33: 1 | O33: 1 | P33: 1 | Q33: 1 | R33: 1 | T33: 93726.37909 | U33: 0 | V33: 93726.37909 | X33: 0 | Y33: 0 | Z33: 0 | AB33: 93726.37909 | AD33: =IF(B33<71,VLOOKUP(B33,Lookups!A:AG,32),"") -> 0.12 | AE33: =IF(B33<71,VLOOKUP(B33,Lookups!A:AG,33),"") -> 0.12 | AF33: 0.12 | AG33: =IF(B33<70,VLOOKUP(B33,Lookups!A:AG,28),"") -> 0.0018 | AH33: =IF(B33<70,VLOOKUP(B33,Lookups!A:AG,29),"") -> 0.0018 | AI33: 0.0018 | AJ33: =IF(B33<70,VLOOKUP(B33,Lookups!A:AG,30),"") -> 0.07 | AK33: =IF(B33<70,VLOOKUP(B33,Lookups!A:AG,31),"") -> 0.07 | AL33: 0.07 | AM33: =IF(B33<70,VLOOKUP(B33,Lookups!A:AL,26)*(1-VLOOKUP(B33,Lookups!A:AL,37))^(A33-$A$3),"") -> 0.001753213102 | AN33: =IF(B33<70,VLOOKUP(B33,Lookups!A:AL,27)*(1-VLOOKUP(B33,Lookups!A:AL,38))^(A33-$A$3),"") -> 0.001627544193 | AO33: 0.001627544193 | AP33: 0.1934275442 | AQ33: 0.3771732068 | AR33: 0.3206514147 | AT33: =IF(BA33>=$B$3,VLOOKUP(BA33,Lookups!A:AL,26)*(1-VLOOKUP(BA33,Lookups!A:AL,37))^(BA33-$B$3),"") -> 0.01463960763 | AU33: =IF(BA33>=$B$3,VLOOKUP(BA33,Lookups!A:AL,27)*(1-VLOOKUP(BA33,Lookups!A:AL,38))^(BA33-$B$3),"") -> 0.01614790591 | AV33: 0.01614790591 | AW33: 0.863725815 | AX33: 0.4388336021 | AY33: 0.975255 | BA33: 77 | BB33: 483263.0245 | BC33: 178639.5137 | BD33: 186267.4856 | BE33: 194254.5395 | BF33: 202622.1179 | BG33: 211394.8012 | BH33: 220603.5201 | BI33: 230271.2247 | BJ33: 240428.6728 | BK33: 251146.7845 | BL33: 262472.8342 | BM33: 274464.4099 | BN33: 287156.2281 | BO33: 300601.1783 | BP33: 314865.5845 | BQ33: 330074.4743
A34: 2044 | B34: 51 | D34: =VLOOKUP(B34,Lookups!A:P,16) -> 13245.63486 | E34: 0 | G34: 0 | H34: 0 | J34: =IF($B35<65, VLOOKUP(A35,'L-Trends'!$A$3:$D$95,IF(ExFlg=0,2,3),FALSE), VLOOKUP(A35,'L-Trends'!$A$3:$D$95,IF(ExFlg=0,2,4),FALSE))+Sens -> 1.062 | K34: 7.514733393 | L34: 1 | M34: 1 | O34: 1 | P34: 1 | Q34: 1 | R34: 1 | T34: 99537.4146 | U34: 0 | V34: 99537.4146 | X34: 0 | Y34: 0 | Z34: 0 | AB34: 99537.4146 | AD34: =IF(B34<71,VLOOKUP(B34,Lookups!A:AG,32),"") -> 0.12 | AE34: =IF(B34<71,VLOOKUP(B34,Lookups!A:AG,33),"") -> 0.12 | AF34: 0.12 | AG34: =IF(B34<70,VLOOKUP(B34,Lookups!A:AG,28),"") -> 0 | AH34: =IF(B34<70,VLOOKUP(B34,Lookups!A:AG,29),"") -> 0 | AI34: 0 | AJ34: =IF(B34<70,VLOOKUP(B34,Lookups!A:AG,30),"") -> 0.0748 | AK34: =IF(B34<70,VLOOKUP(B34,Lookups!A:AG,31),"") -> 0.0748 | AL34: 0.0748 | AM34: =IF(B34<70,VLOOKUP(B34,Lookups!A:AL,26)*(1-VLOOKUP(B34,Lookups!A:AL,37))^(A34-$A$3),"") -> 0.001873245365 | AN34: =IF(B34<70,VLOOKUP(B34,Lookups!A:AL,27)*(1-VLOOKUP(B34,Lookups!A:AL,38))^(A34-$A$3),"") -> 0.001768105307 | AO34: 0.001768105307 | AP34: 0.1965681053 | AQ34: 0.3042175197 | AR34: 0.308318668 | AT34: =IF(BA34>=$B$3,VLOOKUP(BA34,Lookups!A:AL,26)*(1-VLOOKUP(BA34,Lookups!A:AL,37))^(BA34-$B$3),"") -> 0.01603986706 | AU34: =IF(BA34>=$B$3,VLOOKUP(BA34,Lookups!A:AL,27)*(1-VLOOKUP(BA34,Lookups!A:AL,38))^(BA34-$B$3),"") -> 0.01761383596 | AV34: 0.01761383596 | AW34: 0.8497784518 | AX34: 0.4219553867 | AY34: 0.974609 | BA34: 78 | BB34: 513377.2628 | BC34: 179406.9642 | BD34: 187067.7064 | BE34: 195089.0734 | BF34: 203492.5996 | BG34: 212302.9711 | BH34: 221551.2514 | BI34: 231260.4894 | BJ34: 241461.5747 | BK34: 252225.7323 | BL34: 263600.4397 | BM34: 275643.5322 | BN34: 288389.8755 | BO34: 301892.5864 | BP34: 316218.2736 | BQ34: 331492.5021
A35: 2045 | B35: 52 | D35: =VLOOKUP(B35,Lookups!A:P,16) -> 13245.63486 | E35: 0 | G35: 0 | H35: 0 | J35: =IF($B36<65, VLOOKUP(A36,'L-Trends'!$A$3:$D$95,IF(ExFlg=0,2,3),FALSE), VLOOKUP(A36,'L-Trends'!$A$3:$D$95,IF(ExFlg=0,2,4),FALSE))+Sens -> 1.062 | K35: 7.980646864 | L35: 1 | M35: 1 | O35: 1 | P35: 1 | Q35: 1 | R35: 1 | T35: =D35*K35 -> 105708.7343 | U35: =IF(B35<65,E35*K35,E35*M35) -> 0 | V35: 105708.7343 | X35: =IF(B35<65,G35*P35,G35*R35) -> 0 | Y35: =IF(B35<65,H35*P35,H35*R35) -> 0 | Z35: 0 | AB35: =(1-PctUMP)*V35+PctUMP*Z35 -> 105708.7343 | AD35: =IF(B35<71,VLOOKUP(B35,Lookups!A:AG,32),"") -> 0.12 | AE35: =IF(B35<71,VLOOKUP(B35,Lookups!A:AG,33),"") -> 0.12 | AF35: =IF(B35<71,PCTMALE*AD35+(1-PCTMALE)*AE35,"") -> 0.12 | AG35: =IF(B35<70,VLOOKUP(B35,Lookups!A:AG,28),"") -> 0 | AH35: =IF(B35<70,VLOOKUP(B35,Lookups!A:AG,29),"") -> 0 | AI35: =IF(B35<70,PCTMALE*AG35+(1-PCTMALE)*AH35,"") -> 0 | AJ35: =IF(B35<70,VLOOKUP(B35,Lookups!A:AG,30),"") -> 0.0792 | AK35: =IF(B35<70,VLOOKUP(B35,Lookups!A:AG,31),"") -> 0.0792 | AL35: =IF(AF35<1,IF(B35<70,PCTMALE*AJ35+(1-PCTMALE)*AK35,""),"") -> 0.0792 | AM35: =IF(B35<70,VLOOKUP(B35,Lookups!A:AL,26)*(1-VLOOKUP(B35,Lookups!A:AL,37))^(A35-$A$3),"") -> 0.002139296148 | AN35: =IF(B35<70,VLOOKUP(B35,Lookups!A:AL,27)*(1-VLOOKUP(B35,Lookups!A:AL,38))^(A35-$A$3),"") -> 0.001927899795 | AO35: =IF(AM35<>"",PCTMALE*AM35+(1-PCTMALE)*AN35,"") -> 0.001927899795 | AP35: =IF(B35<71,SUM(AF35,AI35,AL35,AO35),"") -> 0.2011278998 | AQ35: 0.2444180582 | AR35: 0.2964602577 | AT35: =IF(BA35>=$B$3,VLOOKUP(BA35,Lookups!A:AL,26)*(1-VLOOKUP(BA35,Lookups!A:AL,37))^(BA35-$B$3),"") -> 0.01755650239 | AU35: =IF(BA35>=$B$3,VLOOKUP(BA35,Lookups!A:AL,27)*(1-VLOOKUP(BA35,Lookups!A:AL,38))^(BA35-$B$3),"") -> 0.01923596391 | AV35: 0.01923596391 | AW35: 0.8348105935 | AX35: 0.4057263333 | AY35: 0.973894 | BA35: 79 | BB35: 545380.1697 | BC35: 179900.4214 | BD35: 187582.2344 | BE35: 195625.6641 | BF35: 204052.3041 | BG35: 212886.9085 | BH35: 222160.6261 | BI35: 231896.5692 | BJ35: 242125.7126 | BK35: 252919.4768 | BL35: 264325.4703 | BM35: 276401.6872 | BN35: 289183.0892 | BO35: 302722.9392 | BP35: 317088.0291 | BQ35: 332404.2692
A36: 2046 | B36: 53 | D36: =VLOOKUP(B36,Lookups!A:P,16) -> 13245.63486 | E36: 0 | G36: 0 | H36: 0 | J36: =IF($B37<65, VLOOKUP(A37,'L-Trends'!$A$3:$D$95,IF(ExFlg=0,2,3),FALSE), VLOOKUP(A37,'L-Trends'!$A$3:$D$95,IF(ExFlg=0,2,4),FALSE))+Sens -> 1.062 | K36: 8.475446969 | L36: 1 | M36: =M35*L35 -> 1 | O36: 1 | P36: =P35*O35 -> 1 | Q36: 1 | R36: =R35*Q35 -> 1 | T36: 112262.6758 | U36: 0 | V36: 112262.6758 | X36: 0 | Y36: 0 | Z36: 0 | AB36: 112262.6758 | AD36: =IF(B36<71,VLOOKUP(B36,Lookups!A:AG,32),"") -> 0.12 | AE36: =IF(B36<71,VLOOKUP(B36,Lookups!A:AG,33),"") -> 0.12 | AF36: 0.12 | AG36: =IF(B36<70,VLOOKUP(B36,Lookups!A:AG,28),"") -> 0 | AH36: =IF(B36<70,VLOOKUP(B36,Lookups!A:AG,29),"") -> 0 | AI36: 0 | AJ36: =IF(B36<70,VLOOKUP(B36,Lookups!A:AG,30),"") -> 0.0832 | AK36: =IF(B36<70,VLOOKUP(B36,Lookups!A:AG,31),"") -> 0.0832 | AL36: 0.0832 | AM36: =IF(B36<70,VLOOKUP(B36,Lookups!A:AL,26)*(1-VLOOKUP(B36,Lookups!A:AL,37))^(A36-$A$3),"") -> 0.00232273839 | AN36: =IF(B36<70,VLOOKUP(B36,Lookups!A:AL,27)*(1-VLOOKUP(B36,Lookups!A:AL,38))^(A36-$A$3),"") -> 0.002111105309 | AO36: 0.002111105309 | AP36: 0.2053111053 | AQ36: =IF(B36<71,AQ35*(1-AP35),"") -> 0.1952587675 | AR36: =IF(B36<71,AR35/(1+INTRt),"") -> 0.2850579401 | AT36: =IF(BA36>=$B$3,VLOOKUP(BA36,Lookups!A:AL,26)*(1-VLOOKUP(BA36,Lookups!A:AL,37))^(BA36-$B$3),"") -> 0.01921878213 | AU36: =IF(BA36>=$B$3,VLOOKUP(BA36,Lookups!A:AL,27)*(1-VLOOKUP(BA36,Lookups!A:AL,38))^(BA36-$B$3),"") -> 0.02103534559 | AV36: 0.02103534559 | AW36: 0.8187522071 | AX36: 0.3901214743 | AY36: 0.973101 | BA36: 80 | BB36: 579374.6181 | BC36: 180081.7592 | BD36: 187771.3155 | BE36: 195822.8528 | BF36: 204257.9868 | BG36: 213101.4964 | BH36: 222384.5618 | BI36: 232130.3187 | BJ36: 242369.7729 | BK36: 253174.4171 | BL36: 264591.9077 | BM36: 276680.2973 | BN36: 289474.5829 | BO36: 303028.0809 | BP36: 317407.6507 | BQ36: 332739.3294
A37: 2047 | B37: 54 | D37: =VLOOKUP(B37,Lookups!A:P,16) -> 13245.63486 | E37: 0 | G37: 0 | H37: 0 | J37: =IF($B38<65, VLOOKUP(A38,'L-Trends'!$A$3:$D$95,IF(ExFlg=0,2,3),FALSE), VLOOKUP(A38,'L-Trends'!$A$3:$D$95,IF(ExFlg=0,2,4),FALSE))+Sens -> 1.062 | K37: 9.000924681 | L37: 1 | M37: 1 | O37: 1 | P37: 1 | Q37: 1 | R37: 1 | T37: 119222.9617 | U37: 0 | V37: 119222.9617 | X37: 0 | Y37: 0 | Z37: 0 | AB37: 119222.9617 | AD37: =IF(B37<71,VLOOKUP(B37,Lookups!A:AG,32),"") -> 0.16 | AE37: =IF(B37<71,VLOOKUP(B37,Lookups!A:AG,33),"") -> 0.16 | AF37: 0.16 | AG37: =IF(B37<70,VLOOKUP(B37,Lookups!A:AG,28),"") -> 0 | AH37: =IF(B37<70,VLOOKUP(B37,Lookups!A:AG,29),"") -> 0 | AI37: 0 | AJ37: =IF(B37<70,VLOOKUP(B37,Lookups!A:AG,30),"") -> 0.0868 | AK37: =IF(B37<70,VLOOKUP(B37,Lookups!A:AG,31),"") -> 0.0868 | AL37: 0.0868 | AM37: =IF(B37<70,VLOOKUP(B37,Lookups!A:AL,26)*(1-VLOOKUP(B37,Lookups!A:AL,37))^(A37-$A$3),"") -> 0.002531978189 | AN37: =IF(B37<70,VLOOKUP(B37,Lookups!A:AL,27)*(1-VLOOKUP(B37,Lookups!A:AL,38))^(A37-$A$3),"") -> 0.002250497549 | AO37: 0.002250497549 | AP37: 0.2490504975 | AQ37: 0.1551699741 | AR37: 0.2740941731 | AT37: =IF(BA37>=$B$3,VLOOKUP(BA37,Lookups!A:AL,26)*(1-VLOOKUP(BA37,Lookups!A:AL,37))^(BA37-$B$3),"") -> 0.0210354144 | AU37: =IF(BA37>=$B$3,VLOOKUP(BA37,Lookups!A:AL,27)*(1-VLOOKUP(BA37,Lookups!A:AL,38))^(BA37-$B$3),"") -> 0.02303965695 | AV37: 0.02303965695 | AW37: 0.8015294714 | AX37: 0.3751168023 | AY37: 0.972218 | BA37: 81 | BB37: 614915.0151 | BC37: 179748.2904 | BD37: 187423.6074 | BE37: 195460.2352 | BF37: 203879.7494 | BG37: 212706.8828 | BH37: 221972.7582 | BI37: 231700.4682 | BJ37: 241920.9614 | BK37: 252705.598 | BL37: 264101.9461 | BM37: 276167.9509 | BN37: 288938.5445 | BO37: 302466.9446 | BP37: 316819.8868 | BQ37: 332123.1749
A38: 2048 | B38: 55 | D38: =VLOOKUP(B38,Lookups!A:P,16) -> 13245.63486 | E38: 0 | G38: 0 | H38: 0 | J38: =IF($B39<65, VLOOKUP(A39,'L-Trends'!$A$3:$D$95,IF(ExFlg=0,2,3),FALSE), VLOOKUP(A39,'L-Trends'!$A$3:$D$95,IF(ExFlg=0,2,4),FALSE))+Sens -> 1.062 | K38: 9.558982012 | L38: 1 | M38: 1 | O38: 1 | P38: 1 | Q38: 1 | R38: 1 | T38: 126614.7854 | U38: 0 | V38: 126614.7854 | X38: 0 | Y38: 0 | Z38: 0 | AB38: 126614.7854 | AD38: =IF(B38<71,VLOOKUP(B38,Lookups!A:AG,32),"") -> 0.2 | AE38: =IF(B38<71,VLOOKUP(B38,Lookups!A:AG,33),"") -> 0.2 | AF38: 0.2 | AG38: =IF(B38<70,VLOOKUP(B38,Lookups!A:AG,28),"") -> 0 | AH38: =IF(B38<70,VLOOKUP(B38,Lookups!A:AG,29),"") -> 0 | AI38: 0 | AJ38: =IF(B38<70,VLOOKUP(B38,Lookups!A:AG,30),"") -> 0.09 | AK38: =IF(B38<70,VLOOKUP(B38,Lookups!A:AG,31),"") -> 0.09 | AL38: 0.09 | AM38: =IF(B38<70,VLOOKUP(B38,Lookups!A:AL,26)*(1-VLOOKUP(B38,Lookups!A:AL,37))^(A38-$A$3),"") -> 0.002766778356 | AN38: =IF(B38<70,VLOOKUP(B38,Lookups!A:AL,27)*(1-VLOOKUP(B38,Lookups!A:AL,38))^(A38-$A$3),"") -> 0.002429217243 | AO38: 0.002429217243 | AP38: 0.2924292172 | AQ38: 0.1165248149 | AR38: 0.2635520896 | AT38: =IF(BA38>=$B$3,VLOOKUP(BA38,Lookups!A:AL,26)*(1-VLOOKUP(BA38,Lookups!A:AL,37))^(BA38-$B$3),"") -> 0.0231898009 | AU38: =IF(BA38>=$B$3,VLOOKUP(BA38,Lookups!A:AL,27)*(1-VLOOKUP(BA38,Lookups!A:AL,38))^(BA38-$B$3),"") -> 0.02527508075 | AV38: 0.02527508075 | AW38: 0.7830625074 | AX38: 0.3606892329 | AY38: 0.971233 | BA38: 82 | BB38: 652020.7539 | BC38: 178860.5075 | BD38: 186497.9159 | BE38: 194494.8505 | BF38: 202872.7804 | BG38: 211656.3163 | BH38: 220876.4272 | BI38: 230556.0918 | BJ38: 240726.1056 | BK38: 251457.4765 | BL38: 262797.5377 | BM38: 274803.948 | BN38: 287511.4672 | BO38: 300973.0501 | BP38: 315255.1027 | BQ38: 330482.8073
A39: 2049 | B39: 56 | D39: =VLOOKUP(B39,Lookups!A:P,16) -> 13951.93437 | E39: 0 | G39: 0 | H39: 0 | J39: =IF($B40<65, VLOOKUP(A40,'L-Trends'!$A$3:$D$95,IF(ExFlg=0,2,3),FALSE), VLOOKUP(A40,'L-Trends'!$A$3:$D$95,IF(ExFlg=0,2,4),FALSE))+Sens -> 1.062 | K39: 10.1516389 | L39: 1 | M39: 1 | O39: 1 | P39: 1 | Q39: 1 | R39: 1 | T39: 141634.9996 | U39: 0 | V39: 141634.9996 | X39: 0 | Y39: 0 | Z39: 0 | AB39: 141634.9996 | AD39: =IF(B39<71,VLOOKUP(B39,Lookups!A:AG,32),"") -> 0.2 | AE39: =IF(B39<71,VLOOKUP(B39,Lookups!A:AG,33),"") -> 0.2 | AF39: 0.2 | AG39: =IF(B39<70,VLOOKUP(B39,Lookups!A:AG,28),"") -> 0 | AH39: =IF(B39<70,VLOOKUP(B39,Lookups!A:AG,29),"") -> 0 | AI39: 0 | AJ39: =IF(B39<70,VLOOKUP(B39,Lookups!A:AG,30),"") -> 0.0928 | AK39: =IF(B39<70,VLOOKUP(B39,Lookups!A:AG,31),"") -> 0.0928 | AL39: 0.0928 | AM39: =IF(B39<70,VLOOKUP(B39,Lookups!A:AL,26)*(1-VLOOKUP(B39,Lookups!A:AL,37))^(A39-$A$3),"") -> 0.003127886216 | AN39: =IF(B39<70,VLOOKUP(B39,Lookups!A:AL,27)*(1-VLOOKUP(B39,Lookups!A:AL,38))^(A39-$A$3),"") -> 0.00258977726 | AO39: 0.00258977726 | AP39: 0.2953897773 | AQ39: 0.08244955447 | AR39: 0.2534154707 | AT39: =IF(BA39>=$B$3,VLOOKUP(BA39,Lookups!A:AL,26)*(1-VLOOKUP(BA39,Lookups!A:AL,37))^(BA39-$B$3),"") -> 0.02551959996 | AU39: =IF(BA39>=$B$3,VLOOKUP(BA39,Lookups!A:AL,27)*(1-VLOOKUP(BA39,Lookups!A:AL,38))^(BA39-$B$3),"") -> 0.02777274525 | AV39: 0.02777274525 | AW39: 0.7632705393 | AX39: 0.3468165701 | AY39: 0.970132 | BA39: 83 | BB39: 687850.5777 | BC39: 176645.7834 | BD39: 184188.6223 | BE39: 192086.5356 | BF39: 200360.7265 | BG39: 209035.5011 | BH39: 218141.4448 | BI39: 227701.2518 | BJ39: 237745.3363 | BK39: 248343.827 | BL39: 259543.4709 | BM39: 271401.213 | BN39: 283951.3825 | BO39: 297246.2785 | BP39: 311351.4849 | BQ39: 326390.6338
A40: 2050 | B40: 57 | D40: =VLOOKUP(B40,Lookups!A:P,16) -> 14695.77804 | E40: 0 | G40: 0 | H40: 0 | J40: =IF($B41<65, VLOOKUP(A41,'L-Trends'!$A$3:$D$95,IF(ExFlg=0,2,3),FALSE), VLOOKUP(A41,'L-Trends'!$A$3:$D$95,IF(ExFlg=0,2,4),FALSE))+Sens -> 1.062 | K40: 10.78104051 | L40: 1 | M40: 1 | O40: 1 | P40: 1 | Q40: 1 | R40: 1 | T40: 158435.7783 | U40: 0 | V40: 158435.7783 | X40: 0 | Y40: 0 | Z40: 0 | AB40: 158435.7783 | AD40: =IF(B40<71,VLOOKUP(B40,Lookups!A:AG,32),"") -> 0.2 | AE40: =IF(B40<71,VLOOKUP(B40,Lookups!A:AG,33),"") -> 0.2 | AF40: 0.2 | AG40: =IF(B40<70,VLOOKUP(B40,Lookups!A:AG,28),"") -> 0 | AH40: =IF(B40<70,VLOOKUP(B40,Lookups!A:AG,29),"") -> 0 | AI40: 0 | AJ40: =IF(B40<70,VLOOKUP(B40,Lookups!A:AG,30),"") -> 0.0952 | AK40: =IF(B40<70,VLOOKUP(B40,Lookups!A:AG,31),"") -> 0.0952 | AL40: 0.0952 | AM40: =IF(B40<70,VLOOKUP(B40,Lookups!A:AL,26)*(1-VLOOKUP(B40,Lookups!A:AL,37))^(A40-$A$3),"") -> 0.003437290293 | AN40: =IF(B40<70,VLOOKUP(B40,Lookups!A:AL,27)*(1-VLOOKUP(B40,Lookups!A:AL,38))^(A40-$A$3),"") -> 0.00276109108 | AO40: 0.00276109108 | AP40: 0.2979610911 | AQ40: 0.05809479894 | AR40: 0.2436687219 | AT40: =IF(BA40>=$B$3,VLOOKUP(BA40,Lookups!A:AL,26)*(1-VLOOKUP(BA40,Lookups!A:AL,37))^(BA40-$B$3),"") -> 0.02802007749 | AU40: =IF(BA40>=$B$3,VLOOKUP(BA40,Lookups!A:AL,27)*(1-VLOOKUP(BA40,Lookups!A:AL,38))^(BA40-$B$3),"") -> 0.03056917549 | AV40: 0.03056917549 | AW40: 0.742072421 | AX40: 0.3334774713 | AY40: 0.9689 | BA40: 84 | BB40: 724960.9998 | BC40: 173822.6597 | BD40: 181244.9501 | BE40: 189016.6403 | BF40: 197158.5944 | BG40: 205694.7302 | BH40: 214655.1442 | BI40: 224062.1679 | BJ40: 233945.7296 | BK40: 244374.8369 | BL40: 255395.4899 | BM40: 267063.7235 | BN40: 279413.3183 | BO40: 292495.7375 | BP40: 306375.5168 | BQ40: 321174.3125
A41: 2051 | B41: 58 | D41: =VLOOKUP(B41,Lookups!A:P,16) -> 15448.45563 | E41: 0 | G41: 0 | H41: 0 | J41: =IF($B42<65, VLOOKUP(A42,'L-Trends'!$A$3:$D$95,IF(ExFlg=0,2,3),FALSE), VLOOKUP(A42,'L-Trends'!$A$3:$D$95,IF(ExFlg=0,2,4),FALSE))+Sens -> 1.062 | K41: 11.44946502 | L41: 1 | M41: 1 | O41: 1 | P41: 1 | Q41: 1 | R41: 1 | T41: 176876.5523 | U41: 0 | V41: 176876.5523 | X41: 0 | Y41: 0 | Z41: 0 | AB41: 176876.5523 | AD41: =IF(B41<71,VLOOKUP(B41,Lookups!A:AG,32),"") -> 0.2 | AE41: =IF(B41<71,VLOOKUP(B41,Lookups!A:AG,33),"") -> 0.2 | AF41: 0.2 | AG41: =IF(B41<70,VLOOKUP(B41,Lookups!A:AG,28),"") -> 0 | AH41: =IF(B41<70,VLOOKUP(B41,Lookups!A:AG,29),"") -> 0 | AI41: 0 | AJ41: =IF(B41<70,VLOOKUP(B41,Lookups!A:AG,30),"") -> 0.0972 | AK41: =IF(B41<70,VLOOKUP(B41,Lookups!A:AG,31),"") -> 0.0972 | AL41: 0.0972 | AM41: =IF(B41<70,VLOOKUP(B41,Lookups!A:AL,26)*(1-VLOOKUP(B41,Lookups!A:AL,37))^(A41-$A$3),"") -> 0.003634357726 | AN41: =IF(B41<70,VLOOKUP(B41,Lookups!A:AL,27)*(1-VLOOKUP(B41,Lookups!A:AL,38))^(A41-$A$3),"") -> 0.002948329739 | AO41: 0.002948329739 | AP41: 0.3001483297 | AQ41: 0.04078480926 | AR41: 0.2342968479 | AT41: =IF(BA41>=$B$3,VLOOKUP(BA41,Lookups!A:AL,26)*(1-VLOOKUP(BA41,Lookups!A:AL,37))^(BA41-$B$3),"") -> 0.03069482247 | AU41: =IF(BA41>=$B$3,VLOOKUP(BA41,Lookups!A:AL,27)*(1-VLOOKUP(BA41,Lookups!A:AL,38))^(BA41-$B$3),"") -> 0.03368486151 | AV41: 0.03368486151 | AW41: 0.719387879 | AX41: 0.3206514147 | AY41: 0.967527 | BA41: 85 | BB41: 764069.8246 | BC41: 170526.712 | BD41: 177808.2642 | BE41: 185432.5911 | BF41: 193420.1611 | BG41: 201794.4385 | BH41: 210584.9492 | BI41: 219813.6011 | BJ41: 229509.7551 | BK41: 239741.1104 | BL41: 250552.7947 | BM41: 261999.7804 | BN41: 274115.2077 | BO41: 286949.5639 | BP41: 300566.161 | BQ41: 315084.3485
A42: 2052 | B42: 59 | D42: =VLOOKUP(B42,Lookups!A:P,16) -> 16239.78162 | E42: 0 | G42: 0 | H42: 0 | J42: =IF($B43<65, VLOOKUP(A43,'L-Trends'!$A$3:$D$95,IF(ExFlg=0,2,3),FALSE), VLOOKUP(A43,'L-Trends'!$A$3:$D$95,IF(ExFlg=0,2,4),FALSE))+Sens -> 1.062 | K42: 12.15933185 | L42: 1 | M42: 1 | O42: 1 | P42: 1 | Q42: 1 | R42: 1 | T42: 197464.8939 | U42: 0 | V42: 197464.8939 | X42: 0 | Y42: 0 | Z42: 0 | AB42: 197464.8939 | AD42: =IF(B42<71,VLOOKUP(B42,Lookups!A:AG,32),"") -> 0.2 | AE42: =IF(B42<71,VLOOKUP(B42,Lookups!A:AG,33),"") -> 0.2 | AF42: 0.2 | AG42: =IF(B42<70,VLOOKUP(B42,Lookups!A:AG,28),"") -> 0 | AH42: =IF(B42<70,VLOOKUP(B42,Lookups!A:AG,29),"") -> 0 | AI42: 0 | AJ42: =IF(B42<70,VLOOKUP(B42,Lookups!A:AG,30),"") -> 0.0988 | AK42: =IF(B42<70,VLOOKUP(B42,Lookups!A:AG,31),"") -> 0.0988 | AL42: 0.0988 | AM42: =IF(B42<70,VLOOKUP(B42,Lookups!A:AL,26)*(1-VLOOKUP(B42,Lookups!A:AL,37))^(A42-$A$3),"") -> 0.003856113071 | AN42: =IF(B42<70,VLOOKUP(B42,Lookups!A:AL,27)*(1-VLOOKUP(B42,Lookups!A:AL,38))^(A42-$A$3),"") -> 0.0031590114 | AO42: 0.0031590114 | AP42: 0.3019590114 | AQ42: 0.02854331688 | AR42: 0.2252854307 | AT42: =IF(BA42>=$B$3,VLOOKUP(BA42,Lookups!A:AL,26)*(1-VLOOKUP(BA42,Lookups!A:AL,37))^(BA42-$B$3),"") -> 0.03356088411 | AU42: =IF(BA42>=$B$3,VLOOKUP(BA42,Lookups!A:AL,27)*(1-VLOOKUP(BA42,Lookups!A:AL,38))^(BA42-$B$3),"") -> 0.03711861306 | AV42: 0.03711861306 | AW42: 0.6951553979 | AX42: 0.308318668 | AY42: 0.966013 | BA42: 86 | BB42: 804530.507 | BC42: 166573.9975 | BD42: 173686.7674 | BE42: 181134.3666 | BF42: 188936.7892 | BG42: 197116.9555 | BH42: 205703.707 | BI42: 214718.4439 | BJ42: 224189.8464 | BK42: 234184.0446 | BL42: 244745.12 | BM42: 255926.771 | BN42: 267761.3694 | BO42: 280298.2323 | BP42: 293599.2043 | BQ42: 307780.8683
A43: 2053 | B43: 60 | D43: =VLOOKUP(B43,Lookups!A:P,16) -> 17071.68843 | E43: 0 | G43: 0 | H43: 0 | J43: =IF($B44<65, VLOOKUP(A44,'L-Trends'!$A$3:$D$95,IF(ExFlg=0,2,3),FALSE), VLOOKUP(A44,'L-Trends'!$A$3:$D$95,IF(ExFlg=0,2,4),FALSE))+Sens -> 1.062 | K43: 12.91321043 | L43: 1 | M43: 1 | O43: 1 | P43: 1 | Q43: 1 | R43: 1 | T43: 220450.305 | U43: 0 | V43: 220450.305 | X43: 0 | Y43: 0 | Z43: 0 | AB43: 220450.305 | AD43: =IF(B43<71,VLOOKUP(B43,Lookups!A:AG,32),"") -> 0.25 | AE43: =IF(B43<71,VLOOKUP(B43,Lookups!A:AG,33),"") -> 0.25 | AF43: 0.25 | AG43: =IF(B43<70,VLOOKUP(B43,Lookups!A:AG,28),"") -> 0 | AH43: =IF(B43<70,VLOOKUP(B43,Lookups!A:AG,29),"") -> 0 | AI43: 0 | AJ43: =IF(B43<70,VLOOKUP(B43,Lookups!A:AG,30),"") -> 0.1 | AK43: =IF(B43<70,VLOOKUP(B43,Lookups!A:AG,31),"") -> 0.1 | AL43: 0.1 | AM43: =IF(B43<70,VLOOKUP(B43,Lookups!A:AL,26)*(1-VLOOKUP(B43,Lookups!A:AL,37))^(A43-$A$3),"") -> 0.004096962881 | AN43: =IF(B43<70,VLOOKUP(B43,Lookups!A:AL,27)*(1-VLOOKUP(B43,Lookups!A:AL,38))^(A43-$A$3),"") -> 0.00341303185 | AO43: 0.00341303185 | AP43: 0.3534130319 | AQ43: 0.01992440513 | AR43: 0.2166206064 | AT43: =IF(BA43>=$B$3,VLOOKUP(BA43,Lookups!A:AL,26)*(1-VLOOKUP(BA43,Lookups!A:AL,37))^(BA43-$B$3),"") -> 0.03975034956 | AU43: =IF(BA43>=$B$3,VLOOKUP(BA43,Lookups!A:AL,27)*(1-VLOOKUP(BA43,Lookups!A:AL,38))^(BA43-$B$3),"") -> 0.04084768339 | AV43: 0.04084768339 | AW43: 0.6693521937 | AX43: 0.2964602577 | AY43: 0.96437 | BA43: 87 | BB43: 847129.3975 | BC43: 162111.7961 | BD43: 169034.0284 | BE43: 176282.1206 | BF43: 183875.5311 | BG43: 191836.5662 | BH43: 200193.295 | BI43: 208966.5442 | BJ43: 218184.2258 | BK43: 227910.6983 | BL43: 238188.8626 | BM43: 249070.9784 | BN43: 260588.5503 | BO43: 272789.5745 | BP43: 285734.2386 | BQ43: 299536.0028
A44: 2054 | B44: 61 | D44: =VLOOKUP(B44,Lookups!A:P,16) -> 17946.10848 | E44: 0 | G44: 0 | H44: 0 | J44: =IF($B45<65, VLOOKUP(A45,'L-Trends'!$A$3:$D$95,IF(ExFlg=0,2,3),FALSE), VLOOKUP(A45,'L-Trends'!$A$3:$D$95,IF(ExFlg=0,2,4),FALSE))+Sens -> 1.062 | K44: 13.71382947 | L44: 1 | M44: 1 | O44: 1 | P44: 1 | Q44: 1 | R44: 1 | T44: 246109.8714 | U44: 0 | V44: 246109.8714 | X44: 0 | Y44: 0 | Z44: 0 | AB44: 246109.8714 | AD44: =IF(B44<71,VLOOKUP(B44,Lookups!A:AG,32),"") -> 0.25 | AE44: =IF(B44<71,VLOOKUP(B44,Lookups!A:AG,33),"") -> 0.25 | AF44: 0.25 | AG44: =IF(B44<70,VLOOKUP(B44,Lookups!A:AG,28),"") -> 0 | AH44: =IF(B44<70,VLOOKUP(B44,Lookups!A:AG,29),"") -> 0 | AI44: 0 | AJ44: =IF(B44<70,VLOOKUP(B44,Lookups!A:AG,30),"") -> 0.1008 | AK44: =IF(B44<70,VLOOKUP(B44,Lookups!A:AG,31),"") -> 0.1008 | AL44: 0.1008 | AM44: =IF(B44<70,VLOOKUP(B44,Lookups!A:AL,26)*(1-VLOOKUP(B44,Lookups!A:AL,37))^(A44-$A$3),"") -> 0.004372612646 | AN44: =IF(B44<70,VLOOKUP(B44,Lookups!A:AL,27)*(1-VLOOKUP(B44,Lookups!A:AL,38))^(A44-$A$3),"") -> 0.003663349069 | AO44: 0.003663349069 | AP44: 0.3544633491 | AQ44: 0.01288286071 | AR44: 0.2082890447 | AT44: =IF(BA44>=$B$3,VLOOKUP(BA44,Lookups!A:AL,26)*(1-VLOOKUP(BA44,Lookups!A:AL,37))^(BA44-$B$3),"") -> 0.04713739376 | AU44: =IF(BA44>=$B$3,VLOOKUP(BA44,Lookups!A:AL,27)*(1-VLOOKUP(BA44,Lookups!A:AL,38))^(BA44-$B$3),"") -> 0.04481476648 | AV44: =IF(BA44>=$B$3, PCTMALE*AT44+(1-PCTMALE)*AU44, "") -> 0.04481476648 | AW44: 0.6420107072 | AX44: =IF(AV43="",1,AX43/(1+INTRt)) -> 0.2850579401 | AY44: =IF(AV44="",1,ROUND((13/24)+(11/24)*(1/(1+INTRt))*(1-AV44),6)) -> 0.962622 | BA44: 88 | BB44: =IF(BA44>=$B$3,VLOOKUP(BA44,$B$3:$AB$93,27),"") -> 891135.6465 | BC44: 156991.0929 | BD44: 163694.6693 | BE44: 170713.8125 | BF44: 178067.3663 | BG44: 185776.9324 | BH44: 193869.6931 | BI44: 202365.8175 | BJ44: 211292.3357 | BK44: 220711.5735 | BL44: 230665.0765 | BM44: 241203.4536 | BN44: 252357.2145 | BO44: 264172.8391 | BP44: 276708.6139 | BQ44: 290074.4151
A45: 2055 | B45: 62 | D45: =VLOOKUP(B45,Lookups!A:P,16) -> 18865.38828 | E45: 0 | G45: 0 | H45: 0 | J45: =IF($B46<65, VLOOKUP(A46,'L-Trends'!$A$3:$D$95,IF(ExFlg=0,2,3),FALSE), VLOOKUP(A46,'L-Trends'!$A$3:$D$95,IF(ExFlg=0,2,4),FALSE))+Sens -> 1.062 | K45: 14.5640869 | L45: 1 | M45: 1 | O45: 1 | P45: 1 | Q45: 1 | R45: 1 | T45: 274757.1543 | U45: 0 | V45: 274757.1543 | X45: 0 | Y45: 0 | Z45: 0 | AB45: 274757.1543 | AD45: =IF(B45<71,VLOOKUP(B45,Lookups!A:AG,32),"") -> 0.25 | AE45: =IF(B45<71,VLOOKUP(B45,Lookups!A:AG,33),"") -> 0.25 | AF45: 0.25 | AG45: =IF(B45<70,VLOOKUP(B45,Lookups!A:AG,28),"") -> 0 | AH45: =IF(B45<70,VLOOKUP(B45,Lookups!A:AG,29),"") -> 0 | AI45: 0 | AJ45: =IF(B45<70,VLOOKUP(B45,Lookups!A:AG,30),"") -> 0.1012 | AK45: =IF(B45<70,VLOOKUP(B45,Lookups!A:AG,31),"") -> 0.1012 | AL45: 0.1012 | AM45: =IF(B45<70,VLOOKUP(B45,Lookups!A:AL,26)*(1-VLOOKUP(B45,Lookups!A:AL,37))^(A45-$A$3),"") -> 0.004668592443 | AN45: =IF(B45<70,VLOOKUP(B45,Lookups!A:AL,27)*(1-VLOOKUP(B45,Lookups!A:AL,38))^(A45-$A$3),"") -> 0.003937130694 | AO45: 0.003937130694 | AP45: 0.3551371307 | AQ45: 0.008316358756 | AR45: 0.2002779276 | AT45: =IF(BA45>=$B$3,VLOOKUP(BA45,Lookups!A:AL,26)*(1-VLOOKUP(BA45,Lookups!A:AL,37))^(BA45-$B$3),"") -> 0.0559584388 | AU45: =IF(BA45>=$B$3,VLOOKUP(BA45,Lookups!A:AL,27)*(1-VLOOKUP(BA45,Lookups!A:AL,38))^(BA45-$B$3),"") -> 0.0489323271 | AV45: 0.0489323271 | AW45: 0.6132391473 | AX45: 0.2740941731 | AY45: 0.960807 | BA45: 89 | BB45: 937430.8512 | BC45: 151392.749 | BD45: 157857.2741 | BE45: 164626.1127 | BF45: 171717.4369 | BG45: 179152.0778 | BH45: 186956.2486 | BI45: 195149.3989 | BJ45: 203757.5951 | BK45: 212840.9404 | BL45: 222439.4988 | BM45: 232602.0746 | BN45: 243358.0894 | BO45: 254752.3657 | BP45: 266841.1114 | BQ45: 279730.2846
A46: 2056 | B46: 63 | D46: =VLOOKUP(B46,Lookups!A:P,16) -> 20078.67198 | E46: 0 | G46: 0 | H46: 0 | J46: =IF($B47<65, VLOOKUP(A47,'L-Trends'!$A$3:$D$95,IF(ExFlg=0,2,3),FALSE), VLOOKUP(A47,'L-Trends'!$A$3:$D$95,IF(ExFlg=0,2,4),FALSE))+Sens -> 1.062 | K46: 15.46706029 | L46: 1 | M46: 1 | O46: 1 | P46: 1 | Q46: 1 | R46: 1 | T46: 310558.03 | U46: 0 | V46: 310558.03 | X46: 0 | Y46: 0 | Z46: 0 | AB46: 310558.03 | AD46: =IF(B46<71,VLOOKUP(B46,Lookups!A:AG,32),"") -> 0.25 | AE46: =IF(B46<71,VLOOKUP(B46,Lookups!A:AG,33),"") -> 0.25 | AF46: 0.25 | AG46: =IF(B46<70,VLOOKUP(B46,Lookups!A:AG,28),"") -> 0 | AH46: =IF(B46<70,VLOOKUP(B46,Lookups!A:AG,29),"") -> 0 | AI46: 0 | AJ46: =IF(B46<70,VLOOKUP(B46,Lookups!A:AG,30),"") -> 0.1012 | AK46: =IF(B46<70,VLOOKUP(B46,Lookups!A:AG,31),"") -> 0.1012 | AL46: 0.1012 | AM46: =IF(B46<70,VLOOKUP(B46,Lookups!A:AL,26)*(1-VLOOKUP(B46,Lookups!A:AL,37))^(A46-$A$3),"") -> 0.00498799773 | AN46: =IF(B46<70,VLOOKUP(B46,Lookups!A:AL,27)*(1-VLOOKUP(B46,Lookups!A:AL,38))^(A46-$A$3),"") -> 0.004383749987 | AO46: 0.004383749987 | AP46: 0.35558375 | AQ46: 0.005362910969 | AR46: 0.1925749303 | AT46: =IF(BA46>=$B$3,VLOOKUP(BA46,Lookups!A:AL,26)*(1-VLOOKUP(BA46,Lookups!A:AL,37))^(BA46-$B$3),"") -> 0.06645041847 | AU46: =IF(BA46>=$B$3,VLOOKUP(BA46,Lookups!A:AL,27)*(1-VLOOKUP(BA46,Lookups!A:AL,38))^(BA46-$B$3),"") -> 0.05773943223 | AV46: 0.05773943223 | AW46: 0.5832319287 | AX46: 0.2635520896 | AY46: 0.956926 | BA46: 90 | BB46: 981490.1012 | BC46: 144368.3635 | BD46: 150532.9449 | BE46: 156987.72 | BF46: 163750.0179 | BG46: 170839.7032 | BH46: 178281.7727 | BI46: 186094.7737 | BJ46: 194303.5632 | BK46: 202965.4555 | BL46: 212118.6559 | BM46: 221809.7042 | BN46: 232066.6568 | BO46: 242932.2566 | BP46: 254460.1035 | BQ46: 266751.2394
A47: 2057 | B47: =1+B46 -> 64 | D47: =VLOOKUP(B47,Lookups!A:P,16) -> 21369.94263 | E47: 0 | G47: 0 | H47: 0 | J47: =IF($B48<65, VLOOKUP(A48,'L-Trends'!$A$3:$D$95,IF(ExFlg=0,2,3),FALSE), VLOOKUP(A48,'L-Trends'!$A$3:$D$95,IF(ExFlg=0,2,4),FALSE))+Sens -> 1.053 | K47: 16.42601802 | L47: 1 | M47: 1 | O47: 1 | P47: 1 | Q47: 1 | R47: 1 | T47: 351023.0628 | U47: 0 | V47: 351023.0628 | X47: 0 | Y47: 0 | Z47: 0 | AB47: 351023.0628 | AD47: =IF(B47<71,VLOOKUP(B47,Lookups!A:AG,32),"") -> 0.25 | AE47: =IF(B47<71,VLOOKUP(B47,Lookups!A:AG,33),"") -> 0.25 | AF47: 0.25 | AG47: =IF(B47<70,VLOOKUP(B47,Lookups!A:AG,28),"") -> 0 | AH47: =IF(B47<70,VLOOKUP(B47,Lookups!A:AG,29),"") -> 0 | AI47: 0 | AJ47: =IF(B47<70,VLOOKUP(B47,Lookups!A:AG,30),"") -> 0.1008 | AK47: =IF(B47<70,VLOOKUP(B47,Lookups!A:AG,31),"") -> 0.1008 | AL47: 0.1008 | AM47: =IF(B47<70,VLOOKUP(B47,Lookups!A:AL,26)*(1-VLOOKUP(B47,Lookups!A:AL,37))^(A47-$A$3),"") -> 0.005329782199 | AN47: =IF(B47<70,VLOOKUP(B47,Lookups!A:AL,27)*(1-VLOOKUP(B47,Lookups!A:AL,38))^(A47-$A$3),"") -> 0.004877374782 | AO47: 0.004877374782 | AP47: 0.3556773748 | AQ47: 0.003455946976 | AR47: 0.1851682023 | AT47: =IF(BA47>=$B$3,VLOOKUP(BA47,Lookups!A:AL,26)*(1-VLOOKUP(BA47,Lookups!A:AL,37))^(BA47-$B$3),"") -> 0.07884508419 | AU47: =IF(BA47>=$B$3,VLOOKUP(BA47,Lookups!A:AL,27)*(1-VLOOKUP(BA47,Lookups!A:AL,38))^(BA47-$B$3),"") -> 0.06775824653 | AV47: 0.06775824653 | AW47: 0.5495564483 | AX47: 0.2534154707 | AY47: 0.95251 | BA47: 91 | BB47: 1027620.136 | BC47: 136316.2348 | BD47: 142136.9874 | BE47: 148231.7482 | BF47: 154616.8797 | BG47: 161311.1386 | BH47: 168338.1275 | BI47: 175715.3593 | BJ47: 183466.3045 | BK47: 191645.0808 | BL47: 200287.7626 | BM47: 209438.2937 | BN47: 219123.166 | BO47: 229382.7382 | BP47: 240267.6209 | BQ47: 251873.22
A48: 2058 | B48: 65 | D48: =VLOOKUP(B48,Lookups!A:P,16) -> 12088.25331 | E48: 0 | G48: 0 | H48: 0 | J48: =IF($B49<65, VLOOKUP(A49,'L-Trends'!$A$3:$D$95,IF(ExFlg=0,2,3),FALSE), VLOOKUP(A49,'L-Trends'!$A$3:$D$95,IF(ExFlg=0,2,4),FALSE))+Sens -> 1.053 | K48: 17.29659698 | L48: 1 | M48: 1 | O48: 1 | P48: 1 | Q48: 1 | R48: 1 | T48: 209085.6457 | U48: 0 | V48: 209085.6457 | X48: 0 | Y48: 0 | Z48: 0 | AB48: 209085.6457 | AD48: =IF(B48<71,VLOOKUP(B48,Lookups!A:AG,32),"") -> 0.25 | AE48: =IF(B48<71,VLOOKUP(B48,Lookups!A:AG,33),"") -> 0.25 | AF48: 0.25 | AG48: =IF(B48<70,VLOOKUP(B48,Lookups!A:AG,28),"") -> 0 | AH48: =IF(B48<70,VLOOKUP(B48,Lookups!A:AG,29),"") -> 0 | AI48: 0 | AJ48: =IF(B48<70,VLOOKUP(B48,Lookups!A:AG,30),"") -> 0.1 | AK48: =IF(B48<70,VLOOKUP(B48,Lookups!A:AG,31),"") -> 0.1 | AL48: 0.1 | AM48: =IF(B48<70,VLOOKUP(B48,Lookups!A:AL,26)*(1-VLOOKUP(B48,Lookups!A:AL,37))^(A48-$A$3),"") -> 0.005600307654 | AN48: =IF(B48<70,VLOOKUP(B48,Lookups!A:AL,27)*(1-VLOOKUP(B48,Lookups!A:AL,38))^(A48-$A$3),"") -> 0.005438454791 | AO48: 0.005438454791 | AP48: 0.3554384548 | AQ48: 0.002226744828 | AR48: 0.1780463483 | AT48: =IF(BA48>=$B$3,VLOOKUP(BA48,Lookups!A:AL,26)*(1-VLOOKUP(BA48,Lookups!A:AL,37))^(BA48-$B$3),"") -> 0.09263790541 | AU48: =IF(BA48>=$B$3,VLOOKUP(BA48,Lookups!A:AL,27)*(1-VLOOKUP(BA48,Lookups!A:AL,38))^(BA48-$B$3),"") -> 0.07903406501 | AV48: 0.07903406501 | AW48: 0.512319467 | AX48: 0.2436687219 | AY48: 0.947541 | BA48: 92 | BB48: 1075918.282 | BC48: 127267.6256 | BD48: 132701.9993 | BE48: 138392.1927 | BF48: 144353.4821 | BG48: 150603.3792 | BH48: 157163.9198 | BI48: 164051.4543 | BJ48: 171287.8953 | BK48: 178923.7682 | BL48: 186992.7527 | BM48: 195535.8758 | BN48: 204577.8707 | BO48: 214156.4172 | BP48: 224318.7663 | BQ48: 235153.9911
A49: 2059 | B49: 66 | D49: =VLOOKUP(B49,Lookups!A:P,16) -> 12337.25943 | E49: 0 | G49: 0 | H49: 0 | J49: =IF($B50<65, VLOOKUP(A50,'L-Trends'!$A$3:$D$95,IF(ExFlg=0,2,3),FALSE), VLOOKUP(A50,'L-Trends'!$A$3:$D$95,IF(ExFlg=0,2,4),FALSE))+Sens -> 1.053 | K49: 18.21331662 | L49: 1 | M49: 1 | O49: 1 | P49: 1 | Q49: 1 | R49: 1 | T49: 224702.4122 | U49: 0 | V49: 224702.4122 | X49: 0 | Y49: 0 | Z49: 0 | AB49: 224702.4122 | AD49: =IF(B49<71,VLOOKUP(B49,Lookups!A:AG,32),"") -> 0.25 | AE49: =IF(B49<71,VLOOKUP(B49,Lookups!A:AG,33),"") -> 0.25 | AF49: 0.25 | AG49: =IF(B49<70,VLOOKUP(B49,Lookups!A:AG,28),"") -> 0 | AH49: =IF(B49<70,VLOOKUP(B49,Lookups!A:AG,29),"") -> 0 | AI49: 0 | AJ49: =IF(B49<70,VLOOKUP(B49,Lookups!A:AG,30),"") -> 0.0756 | AK49: =IF(B49<70,VLOOKUP(B49,Lookups!A:AG,31),"") -> 0.0756 | AL49: 0.0756 | AM49: =IF(B49<70,VLOOKUP(B49,Lookups!A:AL,26)*(1-VLOOKUP(B49,Lookups!A:AL,37))^(A49-$A$3),"") -> 0.005885442978 | AN49: =IF(B49<70,VLOOKUP(B49,Lookups!A:AL,27)*(1-VLOOKUP(B49,Lookups!A:AL,38))^(A49-$A$3),"") -> 0.005966236125 | AO49: 0.005966236125 | AP49: 0.3315662361 | AQ49: 0.001435274087 | AR49: 0.1711984118 | AT49: =IF(BA49>=$B$3,VLOOKUP(BA49,Lookups!A:AL,26)*(1-VLOOKUP(BA49,Lookups!A:AL,37))^(BA49-$B$3),"") -> 0.1085606119 | AU49: =IF(BA49>=$B$3,VLOOKUP(BA49,Lookups!A:AL,27)*(1-VLOOKUP(BA49,Lookups!A:AL,38))^(BA49-$B$3),"") -> 0.09161732786 | AV49: 0.09161732786 | AW49: 0.4718287769 | AX49: 0.2342968479 | AY49: 0.941996 | BA49: 93 | BB49: 1126486.442 | BC49: 117307.5322 | BD49: 122316.6062 | BE49: 127561.4793 | BF49: 133056.2322 | BG49: 138817.006 | BH49: 144864.112 | BI49: 151212.6211 | BJ49: 157882.7309 | BK49: 164921.0126 | BL49: 172358.5102 | BM49: 180233.0398 | BN49: 188567.3991 | BO49: 197396.3188 | BP49: 206763.3522 | BQ49: 216750.6013
A50: 2060 | B50: 67 | D50: =VLOOKUP(B50,Lookups!A:P,16) -> 12591.92478 | E50: 0 | G50: 0 | H50: 0 | J50: =IF($B51<65, VLOOKUP(A51,'L-Trends'!$A$3:$D$95,IF(ExFlg=0,2,3),FALSE), VLOOKUP(A51,'L-Trends'!$A$3:$D$95,IF(ExFlg=0,2,4),FALSE))+Sens -> 1.053 | K50: 19.1786224 | L50: 1 | M50: 1 | O50: 1 | P50: 1 | Q50: 1 | R50: 1 | T50: 241495.7707 | U50: 0 | V50: 241495.7707 | X50: 0 | Y50: 0 | Z50: 0 | AB50: 241495.7707 | AD50: =IF(B50<71,VLOOKUP(B50,Lookups!A:AG,32),"") -> 0.25 | AE50: =IF(B50<71,VLOOKUP(B50,Lookups!A:AG,33),"") -> 0.25 | AF50: 0.25 | AG50: =IF(B50<70,VLOOKUP(B50,Lookups!A:AG,28),"") -> 0 | AH50: =IF(B50<70,VLOOKUP(B50,Lookups!A:AG,29),"") -> 0 | AI50: 0 | AJ50: =IF(B50<70,VLOOKUP(B50,Lookups!A:AG,30),"") -> 0.0544 | AK50: =IF(B50<70,VLOOKUP(B50,Lookups!A:AG,31),"") -> 0.0544 | AL50: 0.0544 | AM50: =IF(B50<70,VLOOKUP(B50,Lookups!A:AL,26)*(1-VLOOKUP(B50,Lookups!A:AL,37))^(A50-$A$3),"") -> 0.006183704642 | AN50: =IF(B50<70,VLOOKUP(B50,Lookups!A:AL,27)*(1-VLOOKUP(B50,Lookups!A:AL,38))^(A50-$A$3),"") -> 0.00651594608 | AO50: 0.00651594608 | AP50: 0.3109159461 | AQ50: 0.0009593856603 | AR50: 0.1646138575 | AT50: =IF(BA50>=$B$3,VLOOKUP(BA50,Lookups!A:AL,26)*(1-VLOOKUP(BA50,Lookups!A:AL,37))^(BA50-$B$3),"") -> 0.1268156082 | AU50: =IF(BA50>=$B$3,VLOOKUP(BA50,Lookups!A:AL,27)*(1-VLOOKUP(BA50,Lookups!A:AL,38))^(BA50-$B$3),"") -> 0.1055660618 | AV50: 0.1055660618 | AW50: 0.4286010852 | AX50: 0.2252854307 | AY50: 0.935848 | BA50: 94 | BB50: 1179431.304 | BC50: 106577.2083 | BD50: 111128.0936 | BE50: 115893.2091 | BF50: 120885.3473 | BG50: 126119.1731 | BH50: 131613.1399 | BI50: 137380.9398 | BJ50: 143440.9231 | BK50: 149835.4009 | BL50: 156592.5777 | BM50: 163746.8104 | BN50: 171318.8113 | BO50: 179340.1344 | BP50: 187850.3489 | BQ50: 196924.047
A51: 2061 | B51: 68 | D51: =VLOOKUP(B51,Lookups!A:P,16) -> 12852.52542 | E51: 0 | G51: 0 | H51: 0 | J51: =IF($B52<65, VLOOKUP(A52,'L-Trends'!$A$3:$D$95,IF(ExFlg=0,2,3),FALSE), VLOOKUP(A52,'L-Trends'!$A$3:$D$95,IF(ExFlg=0,2,4),FALSE))+Sens -> 1.053 | K51: 20.19508939 | L51: 1 | M51: 1 | O51: 1 | P51: 1 | Q51: 1 | R51: 1 | T51: 259557.8997 | U51: 0 | V51: 259557.8997 | X51: 0 | Y51: 0 | Z51: 0 | AB51: 259557.8997 | AD51: =IF(B51<71,VLOOKUP(B51,Lookups!A:AG,32),"") -> 0.25 | AE51: =IF(B51<71,VLOOKUP(B51,Lookups!A:AG,33),"") -> 0.25 | AF51: 0.25 | AG51: =IF(B51<70,VLOOKUP(B51,Lookups!A:AG,28),"") -> 0 | AH51: =IF(B51<70,VLOOKUP(B51,Lookups!A:AG,29),"") -> 0 | AI51: 0 | AJ51: =IF(B51<70,VLOOKUP(B51,Lookups!A:AG,30),"") -> 0.0364 | AK51: =IF(B51<70,VLOOKUP(B51,Lookups!A:AG,31),"") -> 0.0364 | AL51: 0.0364 | AM51: =IF(B51<70,VLOOKUP(B51,Lookups!A:AL,26)*(1-VLOOKUP(B51,Lookups!A:AL,37))^(A51-$A$3),"") -> 0.006393829366 | AN51: =IF(B51<70,VLOOKUP(B51,Lookups!A:AL,27)*(1-VLOOKUP(B51,Lookups!A:AL,38))^(A51-$A$3),"") -> 0.007115287114 | AO51: 0.007115287114 | AP51: 0.2935152871 | AQ51: 0.0006610973601 | AR51: 0.1582825553 | AT51: =IF(BA51>=$B$3,VLOOKUP(BA51,Lookups!A:AL,26)*(1-VLOOKUP(BA51,Lookups!A:AL,37))^(BA51-$B$3),"") -> 0.1476196035 | AU51: =IF(BA51>=$B$3,VLOOKUP(BA51,Lookups!A:AL,27)*(1-VLOOKUP(BA51,Lookups!A:AL,38))^(BA51-$B$3),"") -> 0.1209366298 | AV51: 0.1209366298 | AW51: 0.3833553565 | AX51: 0.2166206064 | AY51: 0.929074 | BA51: 95 | BB51: 1234864.576 | BC51: 95273.24163 | BD51: 99341.4435 | BE51: 103601.1535 | BF51: 108063.8073 | BG51: 112742.5145 | BH51: 117653.7712 | BI51: 122809.8172 | BJ51: 128227.0566 | BK51: 133943.3129 | BL51: 139983.7988 | BM51: 146379.2276 | BN51: 153148.1145 | BO51: 160318.6669 | BP51: 167926.2571 | BQ51: 176037.5657
A52: 2062 | B52: 69 | D52: =VLOOKUP(B52,Lookups!A:P,16) -> 13119.19938 | E52: 0 | G52: 0 | H52: 0 | J52: =IF($B53<65, VLOOKUP(A53,'L-Trends'!$A$3:$D$95,IF(ExFlg=0,2,3),FALSE), VLOOKUP(A53,'L-Trends'!$A$3:$D$95,IF(ExFlg=0,2,4),FALSE))+Sens -> 1.053 | K52: 21.26542913 | L52: 1 | M52: 1 | O52: 1 | P52: 1 | Q52: 1 | R52: 1 | T52: 278985.4046 | U52: 0 | V52: 278985.4046 | X52: 0 | Y52: 0 | Z52: 0 | AB52: 278985.4046 | AD52: =IF(B52<71,VLOOKUP(B52,Lookups!A:AG,32),"") -> 0.25 | AE52: =IF(B52<71,VLOOKUP(B52,Lookups!A:AG,33),"") -> 0.25 | AF52: 0.25 | AG52: =IF(B52<70,VLOOKUP(B52,Lookups!A:AG,28),"") -> 0 | AH52: =IF(B52<70,VLOOKUP(B52,Lookups!A:AG,29),"") -> 0 | AI52: 0 | AJ52: =IF(B52<70,VLOOKUP(B52,Lookups!A:AG,30),"") -> 0.0216 | AK52: =IF(B52<70,VLOOKUP(B52,Lookups!A:AG,31),"") -> 0.0216 | AL52: 0.0216 | AM52: =IF(B52<70,VLOOKUP(B52,Lookups!A:AL,26)*(1-VLOOKUP(B52,Lookups!A:AL,37))^(A52-$A$3),"") -> 0.007001565333 | AN52: =IF(B52<70,VLOOKUP(B52,Lookups!A:AL,27)*(1-VLOOKUP(B52,Lookups!A:AL,38))^(A52-$A$3),"") -> 0.007920231979 | AO52: 0.007920231979 | AP52: 0.279520232 | AQ52: 0.0004670551786 | AR52: 0.1521947647 | AT52: =IF(BA52>=$B$3,VLOOKUP(BA52,Lookups!A:AL,26)*(1-VLOOKUP(BA52,Lookups!A:AL,37))^(BA52-$B$3),"") -> 0.1712234962 | AU52: =IF(BA52>=$B$3,VLOOKUP(BA52,Lookups!A:AL,27)*(1-VLOOKUP(BA52,Lookups!A:AL,38))^(BA52-$B$3),"") -> 0.1377771414 | AV52: 0.1377771414 | AW52: 0.3369936517 | AX52: 0.2082890447 | AY52: 0.921653 | BA52: 96 | BB52: 1291668.346 | BC52: 83561.57278 | BD52: 87129.68216 | BE52: 90865.75808 | BF52: 94779.8306 | BG52: 98883.3976 | BH52: 103190.9274 | BI52: 107713.1554 | BJ52: 112464.4689 | BK52: 117478.0421 | BL52: 122775.9883 | BM52: 128385.2451 | BN52: 134322.052 | BO52: 140611.1488 | BP52: 147283.5595 | BQ52: 154397.7681
A53: 2063 | B53: 70 | D53: =VLOOKUP(B53,Lookups!A:P,16) -> 13392.08469 | E53: 0 | G53: 0 | H53: 0 | J53: =IF($B54<65, VLOOKUP(A54,'L-Trends'!$A$3:$D$95,IF(ExFlg=0,2,3),FALSE), VLOOKUP(A54,'L-Trends'!$A$3:$D$95,IF(ExFlg=0,2,4),FALSE))+Sens -> 1.053 | K53: 22.39249687 | L53: 1 | M53: 1 | O53: 1 | P53: 1 | Q53: 1 | R53: 1 | T53: 299882.2145 | U53: 0 | V53: 299882.2145 | X53: 0 | Y53: 0 | Z53: 0 | AB53: 299882.2145 | AD53: =IF(B53<71,VLOOKUP(B53,Lookups!A:AG,32),"") -> 1 | AE53: =IF(B53<71,VLOOKUP(B53,Lookups!A:AG,33),"") -> 1 | AF53: 1 | AG53: =IF(B53<70,VLOOKUP(B53,Lookups!A:AG,28),"") ->  | AH53: =IF(B53<70,VLOOKUP(B53,Lookups!A:AG,29),"") ->  | AJ53: =IF(B53<70,VLOOKUP(B53,Lookups!A:AG,30),"") ->  | AK53: =IF(B53<70,VLOOKUP(B53,Lookups!A:AG,31),"") ->  | AM53: =IF(B53<70,VLOOKUP(B53,Lookups!A:AL,26)*(1-VLOOKUP(B53,Lookups!A:AL,37))^(A53-$A$3),"") ->  | AN53: =IF(B53<70,VLOOKUP(B53,Lookups!A:AL,27)*(1-VLOOKUP(B53,Lookups!A:AL,38))^(A53-$A$3),"") ->  | AP53: 1 | AQ53: 0.0003365038068 | AR53: 0.1463411199 | AT53: =IF(BA53>=$B$3,VLOOKUP(BA53,Lookups!A:AL,26)*(1-VLOOKUP(BA53,Lookups!A:AL,37))^(BA53-$B$3),"") -> 0.1979308544 | AU53: =IF(BA53>=$B$3,VLOOKUP(BA53,Lookups!A:AL,27)*(1-VLOOKUP(BA53,Lookups!A:AL,38))^(BA53-$B$3),"") -> 0.1561297654 | AV53: 0.1561297654 | AW53: 0.2905636297 | AX53: 0.2002779276 | AY53: 0.913565 | BA53: 97 | BB53: 1351085.09 | BC53: 71828.45001 | BD53: 74895.55081 | BE53: 78107.03347 | BF53: 81471.51972 | BG53: 84998.89298 | BH53: 88701.59005 | BI53: 92588.83889 | BJ53: 96673.0067 | BK53: 100982.6095 | BL53: 105536.6557 | BM53: 110358.3005 | BN53: 115461.5032 | BO53: 120867.5296 | BP53: 126603.0478 | BQ53: 132718.3297
A54: 2064 | B54: 71 | D54: =VLOOKUP(B54,Lookups!A:P,16) -> 13671.31938 | E54: 0 | G54: 0 | H54: 0 | J54: =IF($B55<65, VLOOKUP(A55,'L-Trends'!$A$3:$D$95,IF(ExFlg=0,2,3),FALSE), VLOOKUP(A55,'L-Trends'!$A$3:$D$95,IF(ExFlg=0,2,4),FALSE))+Sens -> 1.053 | K54: 23.5792992 | L54: 1 | M54: 1 | O54: 1 | P54: 1 | Q54: 1 | R54: 1 | T54: 322360.1302 | U54: 0 | V54: 322360.1302 | X54: 0 | Y54: 0 | Z54: 0 | AB54: 322360.1302 | AD54: =IF(B54<71,VLOOKUP(B54,Lookups!A:AG,32),"") ->  | AE54: =IF(B54<71,VLOOKUP(B54,Lookups!A:AG,33),"") ->  | AG54: =IF(B54<70,VLOOKUP(B54,Lookups!A:AG,28),"") ->  | AH54: =IF(B54<70,VLOOKUP(B54,Lookups!A:AG,29),"") ->  | AJ54: =IF(B54<70,VLOOKUP(B54,Lookups!A:AG,30),"") ->  | AK54: =IF(B54<70,VLOOKUP(B54,Lookups!A:AG,31),"") ->  | AM54: =IF(B54<70,VLOOKUP(B54,Lookups!A:AL,26)*(1-VLOOKUP(B54,Lookups!A:AL,37))^(A54-$A$3),"") ->  | AN54: =IF(B54<70,VLOOKUP(B54,Lookups!A:AL,27)*(1-VLOOKUP(B54,Lookups!A:AL,38))^(A54-$A$3),"") ->  | AT54: =IF(BA54>=$B$3,VLOOKUP(BA54,Lookups!A:AL,26)*(1-VLOOKUP(BA54,Lookups!A:AL,37))^(BA54-$B$3),"") -> 0.2082124749 | AU54: =IF(BA54>=$B$3,VLOOKUP(BA54,Lookups!A:AL,27)*(1-VLOOKUP(BA54,Lookups!A:AL,38))^(BA54-$B$3),"") -> 0.1606714644 | AV54: 0.1606714644 | AW54: 0.2451979984 | AX54: 0.1925749303 | AY54: 0.911563 | BA54: 98 | BB54: 1413235.004 | BC54: 60829.98997 | BD54: 63427.45255 | BE54: 66147.18906 | BF54: 68996.50106 | BG54: 71983.75862 | BH54: 75119.49419 | BI54: 78411.52273 | BJ54: 81870.31778 | BK54: 85520.02892 | BL54: 89376.754 | BM54: 93460.10271 | BN54: 97781.8967 | BO54: 102360.1458 | BP54: 107217.4344 | BQ54: 112396.3369
A55: 2065 | B55: 72 | D55: =VLOOKUP(B55,Lookups!A:P,16) -> 13957.04148 | E55: 0 | G55: 0 | H55: 0 | J55: =IF($B56<65, VLOOKUP(A56,'L-Trends'!$A$3:$D$95,IF(ExFlg=0,2,3),FALSE), VLOOKUP(A56,'L-Trends'!$A$3:$D$95,IF(ExFlg=0,2,4),FALSE))+Sens -> 1.052 | K55: 24.82900206 | L55: 1 | M55: 1 | O55: 1 | P55: 1 | Q55: 1 | R55: 1 | T55: 346539.4117 | U55: 0 | V55: 346539.4117 | X55: 0 | Y55: 0 | Z55: 0 | AB55: 346539.4117 | AD55: =IF(B55<71,VLOOKUP(B55,Lookups!A:AG,32),"") ->  | AE55: =IF(B55<71,VLOOKUP(B55,Lookups!A:AG,33),"") ->  | AG55: =IF(B55<70,VLOOKUP(B55,Lookups!A:AG,28),"") ->  | AH55: =IF(B55<70,VLOOKUP(B55,Lookups!A:AG,29),"") ->  | AJ55: =IF(B55<70,VLOOKUP(B55,Lookups!A:AG,30),"") ->  | AK55: =IF(B55<70,VLOOKUP(B55,Lookups!A:AG,31),"") ->  | AM55: =IF(B55<70,VLOOKUP(B55,Lookups!A:AL,26)*(1-VLOOKUP(B55,Lookups!A:AL,37))^(A55-$A$3),"") ->  | AN55: =IF(B55<70,VLOOKUP(B55,Lookups!A:AL,27)*(1-VLOOKUP(B55,Lookups!A:AL,38))^(A55-$A$3),"") ->  | AT55: =IF(BA55>=$B$3,VLOOKUP(BA55,Lookups!A:AL,26)*(1-VLOOKUP(BA55,Lookups!A:AL,37))^(BA55-$B$3),"") -> 0.2391514541 | AU55: =IF(BA55>=$B$3,VLOOKUP(BA55,Lookups!A:AL,27)*(1-VLOOKUP(BA55,Lookups!A:AL,38))^(BA55-$B$3),"") -> 0.1801182963 | AV55: 0.1801182963 | AW55: 0.2058016769 | AX55: 0.1851682023 | AY55: 0.902993 | BA55: 99 | BB55: 1478243.814 | BC55: 50868.1301 | BD55: 53040.21765 | BE55: 55314.55488 | BF55: 57697.24759 | BG55: 60195.29511 | BH55: 62817.50506 | BI55: 65570.41258 | BJ55: 68462.77598 | BK55: 71514.78998 | BL55: 74739.91616 | BM55: 78154.5528 | BN55: 81768.58561 | BO55: 85597.07496 | BP55: 89658.90682 | BQ55: 93989.68319
A56: 2066 | B56: 73 | D56: =VLOOKUP(B56,Lookups!A:P,16) -> 14178.85569 | E56: 0 | G56: 0 | H56: 0 | J56: =IF($B57<65, VLOOKUP(A57,'L-Trends'!$A$3:$D$95,IF(ExFlg=0,2,3),FALSE), VLOOKUP(A57,'L-Trends'!$A$3:$D$95,IF(ExFlg=0,2,4),FALSE))+Sens -> 1.052 | K56: 26.12011017 | L56: 1 | M56: 1 | O56: 1 | P56: 1 | Q56: 1 | R56: 1 | T56: 370353.2727 | U56: 0 | V56: 370353.2727 | X56: 0 | Y56: 0 | Z56: 0 | AB56: 370353.2727 | AD56: =IF(B56<71,VLOOKUP(B56,Lookups!A:AG,32),"") ->  | AE56: =IF(B56<71,VLOOKUP(B56,Lookups!A:AG,33),"") ->  | AG56: =IF(B56<70,VLOOKUP(B56,Lookups!A:AG,28),"") ->  | AH56: =IF(B56<70,VLOOKUP(B56,Lookups!A:AG,29),"") ->  | AJ56: =IF(B56<70,VLOOKUP(B56,Lookups!A:AG,30),"") ->  | AK56: =IF(B56<70,VLOOKUP(B56,Lookups!A:AG,31),"") ->  | AM56: =IF(B56<70,VLOOKUP(B56,Lookups!A:AL,26)*(1-VLOOKUP(B56,Lookups!A:AL,37))^(A56-$A$3),"") ->  | AN56: =IF(B56<70,VLOOKUP(B56,Lookups!A:AL,27)*(1-VLOOKUP(B56,Lookups!A:AL,38))^(A56-$A$3),"") ->  | AT56: =IF(BA56>=$B$3,VLOOKUP(BA56,Lookups!A:AL,26)*(1-VLOOKUP(BA56,Lookups!A:AL,37))^(BA56-$B$3),"") -> 0.2497100367 | AU56: =IF(BA56>=$B$3,VLOOKUP(BA56,Lookups!A:AL,27)*(1-VLOOKUP(BA56,Lookups!A:AL,38))^(BA56-$B$3),"") -> 0.1851490342 | AV56: 0.1851490342 | AW56: 0.1687330295 | AX56: 0.1780463483 | AY56: 0.900776 | BA56: 100 | BB56: 1546243.03 | BC56: 41843.47421 | BD56: 43630.20569 | BE56: 45501.04645 | BF56: 47461.01905 | BG56: 49515.88104 | BH56: 51672.87746 | BI56: 53937.38402 | BJ56: 56316.60522 | BK56: 58827.15296 | BL56: 61480.10057 | BM56: 64288.93707 | BN56: 67261.7943 | BO56: 70411.06075 | BP56: 73752.27176 | BQ56: 77314.7131
A57: =1+A56 -> 2067 | B57: 74 | D57: =VLOOKUP(B57,Lookups!A:P,16) -> 14404.53474 | E57: 0 | G57: 0 | H57: 0 | J57: =IF($B58<65, VLOOKUP(A58,'L-Trends'!$A$3:$D$95,IF(ExFlg=0,2,3),FALSE), VLOOKUP(A58,'L-Trends'!$A$3:$D$95,IF(ExFlg=0,2,4),FALSE))+Sens -> 1.052 | K57: 27.4783559 | L57: 1 | M57: 1 | O57: 1 | P57: 1 | Q57: 1 | R57: 1 | T57: 395812.9321 | U57: 0 | V57: 395812.9321 | X57: 0 | Y57: 0 | Z57: 0 | AB57: 395812.9321 | AD57: =IF(B57<71,VLOOKUP(B57,Lookups!A:AG,32),"") ->  | AE57: =IF(B57<71,VLOOKUP(B57,Lookups!A:AG,33),"") ->  | AG57: =IF(B57<70,VLOOKUP(B57,Lookups!A:AG,28),"") ->  | AH57: =IF(B57<70,VLOOKUP(B57,Lookups!A:AG,29),"") ->  | AJ57: =IF(B57<70,VLOOKUP(B57,Lookups!A:AG,30),"") ->  | AK57: =IF(B57<70,VLOOKUP(B57,Lookups!A:AG,31),"") ->  | AM57: =IF(B57<70,VLOOKUP(B57,Lookups!A:AL,26)*(1-VLOOKUP(B57,Lookups!A:AL,37))^(A57-$A$3),"") ->  | AN57: =IF(B57<70,VLOOKUP(B57,Lookups!A:AL,27)*(1-VLOOKUP(B57,Lookups!A:AL,38))^(A57-$A$3),"") ->  | AT57: =IF(BA57>=$B$3,VLOOKUP(BA57,Lookups!A:AL,26)*(1-VLOOKUP(BA57,Lookups!A:AL,37))^(BA57-$B$3),"") -> 0.2854504277 | AU57: =IF(BA57>=$B$3,VLOOKUP(BA57,Lookups!A:AL,27)*(1-VLOOKUP(BA57,Lookups!A:AL,38))^(BA57-$B$3),"") -> 0.210841091 | AV57: 0.210841091 | AW57: 0.137492272 | AX57: 0.1711984118 | AY57: 0.889453 | BA57: 101 | BB57: 1617370.209 | BC57: 33861.83303 | BD57: 35307.74555 | BE57: 36821.7235 | BF57: 38407.8314 | BG57: 40070.72854 | BH57: 41816.27797 | BI57: 43648.82999 | BJ57: 45574.21483 | BK57: 47605.87568 | BL57: 49752.77363 | BM57: 52025.82467 | BN57: 54431.60949 | BO57: 56980.15348 | BP57: 59684.02862 | BQ57: 62566.9344
A58: 2068 | B58: 75 | D58: =VLOOKUP(B58,Lookups!A:P,16) -> 14634.21666 | E58: 0 | G58: 0 | H58: 0 | J58: =IF($B59<65, VLOOKUP(A59,'L-Trends'!$A$3:$D$95,IF(ExFlg=0,2,3),FALSE), VLOOKUP(A59,'L-Trends'!$A$3:$D$95,IF(ExFlg=0,2,4),FALSE))+Sens -> 1.052 | K58: 28.9072304 | L58: 1 | M58: 1 | O58: 1 | P58: 1 | Q58: 1 | R58: 1 | T58: 423034.6728 | U58: 0 | V58: 423034.6728 | X58: 0 | Y58: 0 | Z58: 0 | AB58: 423034.6728 | AD58: =IF(B58<71,VLOOKUP(B58,Lookups!A:AG,32),"") ->  | AE58: =IF(B58<71,VLOOKUP(B58,Lookups!A:AG,33),"") ->  | AG58: =IF(B58<70,VLOOKUP(B58,Lookups!A:AG,28),"") ->  | AH58: =IF(B58<70,VLOOKUP(B58,Lookups!A:AG,29),"") ->  | AJ58: =IF(B58<70,VLOOKUP(B58,Lookups!A:AG,30),"") ->  | AK58: =IF(B58<70,VLOOKUP(B58,Lookups!A:AG,31),"") ->  | AM58: =IF(B58<70,VLOOKUP(B58,Lookups!A:AL,26)*(1-VLOOKUP(B58,Lookups!A:AL,37))^(A58-$A$3),"") ->  | AN58: =IF(B58<70,VLOOKUP(B58,Lookups!A:AL,27)*(1-VLOOKUP(B58,Lookups!A:AL,38))^(A58-$A$3),"") ->  | AT58: =IF(BA58>=$B$3,VLOOKUP(BA58,Lookups!A:AL,26)*(1-VLOOKUP(BA58,Lookups!A:AL,37))^(BA58-$B$3),"") -> 0.296514282 | AU58: =IF(BA58>=$B$3,VLOOKUP(BA58,Lookups!A:AL,27)*(1-VLOOKUP(BA58,Lookups!A:AL,38))^(BA58-$B$3),"") -> 0.2199656626 | AV58: 0.2199656626 | AW58: 0.1085032514 | AX58: 0.1646138575 | AY58: 0.885432 | BA58: 102 | BB58: 1691769.239 | BC58: 26755.03246 | BD58: 27897.48202 | BE58: 29093.71169 | BF58: 30346.93293 | BG58: 31660.82716 | BH58: 33040.02691 | BI58: 34487.96945 | BJ58: 36009.2614 | BK58: 37614.52453 | BL58: 39310.8392 | BM58: 41106.83041 | BN58: 43007.69771 | BO58: 45021.36239 | BP58: 47157.75787 | BQ58: 49435.60968
A59: 2069 | B59: 76 | D59: =VLOOKUP(B59,Lookups!A:P,16) -> 14867.90145 | E59: 0 | G59: 0 | H59: 0 | J59: =IF($B60<65, VLOOKUP(A60,'L-Trends'!$A$3:$D$95,IF(ExFlg=0,2,3),FALSE), VLOOKUP(A60,'L-Trends'!$A$3:$D$95,IF(ExFlg=0,2,4),FALSE))+Sens -> 1.052 | K59: 30.41040638 | L59: 1 | M59: 1 | O59: 1 | P59: 1 | Q59: 1 | R59: 1 | T59: 452138.9252 | U59: 0 | V59: 452138.9252 | X59: 0 | Y59: 0 | Z59: 0 | AB59: 452138.9252 | AD59: =IF(B59<71,VLOOKUP(B59,Lookups!A:AG,32),"") ->  | AE59: =IF(B59<71,VLOOKUP(B59,Lookups!A:AG,33),"") ->  | AG59: =IF(B59<70,VLOOKUP(B59,Lookups!A:AG,28),"") ->  | AH59: =IF(B59<70,VLOOKUP(B59,Lookups!A:AG,29),"") ->  | AJ59: =IF(B59<70,VLOOKUP(B59,Lookups!A:AG,30),"") ->  | AK59: =IF(B59<70,VLOOKUP(B59,Lookups!A:AG,31),"") ->  | AM59: =IF(B59<70,VLOOKUP(B59,Lookups!A:AL,26)*(1-VLOOKUP(B59,Lookups!A:AL,37))^(A59-$A$3),"") ->  | AN59: =IF(B59<70,VLOOKUP(B59,Lookups!A:AL,27)*(1-VLOOKUP(B59,Lookups!A:AL,38))^(A59-$A$3),"") ->  | AT59: =IF(BA59>=$B$3,VLOOKUP(BA59,Lookups!A:AL,26)*(1-VLOOKUP(BA59,Lookups!A:AL,37))^(BA59-$B$3),"") -> 0.3376462296 | AU59: =IF(BA59>=$B$3,VLOOKUP(BA59,Lookups!A:AL,27)*(1-VLOOKUP(BA59,Lookups!A:AL,38))^(BA59-$B$3),"") -> 0.2534992496 | AV59: 0.2534992496 | AW59: 0.08463626182 | AX59: 0.1582825553 | AY59: 0.870653 | BA59: 103 | BB59: 1769590.624 | BC59: 20639.89272 | BD59: 21521.2236 | BE59: 22444.04259 | BF59: 23410.82714 | BG59: 24424.41723 | BH59: 25488.3866 | BI59: 26605.38688 | BJ59: 27778.9718 | BK59: 29017.33542 | BL59: 30325.93981 | BM59: 31711.43862 | BN59: 33177.84301 | BO59: 34731.26378 | BP59: 36379.36395 | BQ59: 38136.58914
A60: 2070 | B60: 77 | D60: =VLOOKUP(B60,Lookups!A:P,16) -> 15105.86517 | E60: 0 | G60: 0 | H60: 0 | J60: =IF($B61<65, VLOOKUP(A61,'L-Trends'!$A$3:$D$95,IF(ExFlg=0,2,3),FALSE), VLOOKUP(A61,'L-Trends'!$A$3:$D$95,IF(ExFlg=0,2,4),FALSE))+Sens -> 1.052 | K60: 31.99174752 | L60: 1 | M60: 1 | O60: 1 | P60: 1 | Q60: 1 | R60: 1 | T60: 483263.0245 | U60: 0 | V60: 483263.0245 | X60: 0 | Y60: 0 | Z60: 0 | AB60: 483263.0245 | AD60: =IF(B60<71,VLOOKUP(B60,Lookups!A:AG,32),"") ->  | AE60: =IF(B60<71,VLOOKUP(B60,Lookups!A:AG,33),"") ->  | AG60: =IF(B60<70,VLOOKUP(B60,Lookups!A:AG,28),"") ->  | AH60: =IF(B60<70,VLOOKUP(B60,Lookups!A:AG,29),"") ->  | AJ60: =IF(B60<70,VLOOKUP(B60,Lookups!A:AG,30),"") ->  | AK60: =IF(B60<70,VLOOKUP(B60,Lookups!A:AG,31),"") ->  | AM60: =IF(B60<70,VLOOKUP(B60,Lookups!A:AL,26)*(1-VLOOKUP(B60,Lookups!A:AL,37))^(A60-$A$3),"") ->  | AN60: =IF(B60<70,VLOOKUP(B60,Lookups!A:AL,27)*(1-VLOOKUP(B60,Lookups!A:AL,38))^(A60-$A$3),"") ->  | AT60: =IF(BA60>=$B$3,VLOOKUP(BA60,Lookups!A:AL,26)*(1-VLOOKUP(BA60,Lookups!A:AL,37))^(BA60-$B$3),"") -> 0.3476133817 | AU60: =IF(BA60>=$B$3,VLOOKUP(BA60,Lookups!A:AL,27)*(1-VLOOKUP(BA60,Lookups!A:AL,38))^(BA60-$B$3),"") -> 0.2660062761 | AV60: 0.2660062761 | AW60: 0.06318103295 | AX60: 0.1521947647 | AY60: 0.865141 | BA60: 104 | BB60: 1850991.792 | BC60: 15398.47892 | BD60: 16055.99954 | BE60: 16744.47254 | BF60: 17465.74622 | BG60: 18221.93938 | BH60: 19015.71821 | BI60: 19849.06097 | BJ60: 20724.61895 | BK60: 21648.50534 | BL60: 22624.79516 | BM60: 23658.45239 | BN60: 24752.46956 | BO60: 25911.40567 | BP60: 27140.97774 | BQ60: 28451.963
A61: 2071 | B61: 78 | D61: =VLOOKUP(B61,Lookups!A:P,16) -> 15253.97136 | E61: 0 | G61: 0 | H61: 0 | J61: =IF($B62<65, VLOOKUP(A62,'L-Trends'!$A$3:$D$95,IF(ExFlg=0,2,3),FALSE), VLOOKUP(A62,'L-Trends'!$A$3:$D$95,IF(ExFlg=0,2,4),FALSE))+Sens -> 1.052 | K61: 33.65531839 | L61: 1 | M61: 1 | O61: 1 | P61: 1 | Q61: 1 | R61: 1 | T61: 513377.2628 | U61: 0 | V61: 513377.2628 | X61: 0 | Y61: 0 | Z61: 0 | AB61: 513377.2628 | AD61: =IF(B61<71,VLOOKUP(B61,Lookups!A:AG,32),"") ->  | AE61: =IF(B61<71,VLOOKUP(B61,Lookups!A:AG,33),"") ->  | AG61: =IF(B61<70,VLOOKUP(B61,Lookups!A:AG,28),"") ->  | AH61: =IF(B61<70,VLOOKUP(B61,Lookups!A:AG,29),"") ->  | AJ61: =IF(B61<70,VLOOKUP(B61,Lookups!A:AG,30),"") ->  | AK61: =IF(B61<70,VLOOKUP(B61,Lookups!A:AG,31),"") ->  | AM61: =IF(B61<70,VLOOKUP(B61,Lookups!A:AL,26)*(1-VLOOKUP(B61,Lookups!A:AL,37))^(A61-$A$3),"") ->  | AN61: =IF(B61<70,VLOOKUP(B61,Lookups!A:AL,27)*(1-VLOOKUP(B61,Lookups!A:AL,38))^(A61-$A$3),"") ->  | AT61: =IF(BA61>=$B$3,VLOOKUP(BA61,Lookups!A:AL,26)*(1-VLOOKUP(BA61,Lookups!A:AL,37))^(BA61-$B$3),"") -> 0.392003 | AU61: =IF(BA61>=$B$3,VLOOKUP(BA61,Lookups!A:AL,27)*(1-VLOOKUP(BA61,Lookups!A:AL,38))^(BA61-$B$3),"") -> 0.307811 | AV61: 0.307811 | AW61: 0.04637448166 | AX61: 0.1463411199 | AY61: 0.846718 | BA61: 105 | BB61: 1936137.415 | BC61: 11125.52241 | BD61: 11600.58624 | BE61: 12098.0134 | BF61: 12619.13932 | BG61: 13165.49484 | BH61: 13739.0063 | BI61: 14341.10302 | BJ61: 14973.70056 | BK61: 15641.21576 | BL61: 16346.59285 | BM61: 17093.41835 | BN61: 17883.85438 | BO61: 18721.19485 | BP61: 19609.57037 | BQ61: 20556.76755
A62: 2072 | B62: 79 | D62: =VLOOKUP(B62,Lookups!A:P,16) -> 15403.87194 | E62: 0 | G62: 0 | H62: 0 | J62: =IF($B63<65, VLOOKUP(A63,'L-Trends'!$A$3:$D$95,IF(ExFlg=0,2,3),FALSE), VLOOKUP(A63,'L-Trends'!$A$3:$D$95,IF(ExFlg=0,2,4),FALSE))+Sens -> 1.052 | K62: 35.40539494 | L62: 1 | M62: 1 | O62: 1 | P62: 1 | Q62: 1 | R62: 1 | T62: 545380.1697 | U62: 0 | V62: 545380.1697 | X62: 0 | Y62: 0 | Z62: 0 | AB62: 545380.1697 | AD62: =IF(B62<71,VLOOKUP(B62,Lookups!A:AG,32),"") ->  | AE62: =IF(B62<71,VLOOKUP(B62,Lookups!A:AG,33),"") ->  | AG62: =IF(B62<70,VLOOKUP(B62,Lookups!A:AG,28),"") ->  | AH62: =IF(B62<70,VLOOKUP(B62,Lookups!A:AG,29),"") ->  | AJ62: =IF(B62<70,VLOOKUP(B62,Lookups!A:AG,30),"") ->  | AK62: =IF(B62<70,VLOOKUP(B62,Lookups!A:AG,31),"") ->  | AM62: =IF(B62<70,VLOOKUP(B62,Lookups!A:AL,26)*(1-VLOOKUP(B62,Lookups!A:AL,37))^(A62-$A$3),"") ->  | AN62: =IF(B62<70,VLOOKUP(B62,Lookups!A:AL,27)*(1-VLOOKUP(B62,Lookups!A:AL,38))^(A62-$A$3),"") ->  | AT62: =IF(BA62>=$B$3,VLOOKUP(BA62,Lookups!A:AL,26)*(1-VLOOKUP(BA62,Lookups!A:AL,37))^(BA62-$B$3),"") -> 0.397886 | AU62: =IF(BA62>=$B$3,VLOOKUP(BA62,Lookups!A:AL,27)*(1-VLOOKUP(BA62,Lookups!A:AL,38))^(BA62-$B$3),"") -> 0.322725 | AV62: 0.322725 | AW62: 0.03209990609 | AX62: 0.1407126153 | AY62: 0.840145 | BA62: 106 | BB62: 2025199.736 | BC62: 7685.266041 | BD62: 8013.42968 | BE62: 8357.04142 | BF62: 8717.023737 | BG62: 9094.434108 | BH62: 9490.603203 | BI62: 9906.518366 | BJ62: 10343.50282 | BK62: 10804.60763 | BL62: 11291.86661 | BM62: 11807.75722 | BN62: 12353.77304 | BO62: 12932.18941 | BP62: 13545.85967 | BQ62: 14200.16264
A63: 2073 | B63: 80 | D63: =VLOOKUP(B63,Lookups!A:P,16) -> 15555.15282 | E63: 0 | G63: 0 | H63: 0 | J63: =IF($B64<65, VLOOKUP(A64,'L-Trends'!$A$3:$D$95,IF(ExFlg=0,2,3),FALSE), VLOOKUP(A64,'L-Trends'!$A$3:$D$95,IF(ExFlg=0,2,4),FALSE))+Sens -> 1.051 | K63: 37.24647548 | L63: 1 | M63: 1 | O63: 1 | P63: 1 | Q63: 1 | R63: 1 | T63: 579374.6181 | U63: 0 | V63: 579374.6181 | X63: 0 | Y63: 0 | Z63: 0 | AB63: 579374.6181 | AD63: =IF(B63<71,VLOOKUP(B63,Lookups!A:AG,32),"") ->  | AE63: =IF(B63<71,VLOOKUP(B63,Lookups!A:AG,33),"") ->  | AG63: =IF(B63<70,VLOOKUP(B63,Lookups!A:AG,28),"") ->  | AH63: =IF(B63<70,VLOOKUP(B63,Lookups!A:AG,29),"") ->  | AJ63: =IF(B63<70,VLOOKUP(B63,Lookups!A:AG,30),"") ->  | AK63: =IF(B63<70,VLOOKUP(B63,Lookups!A:AG,31),"") ->  | AM63: =IF(B63<70,VLOOKUP(B63,Lookups!A:AL,26)*(1-VLOOKUP(B63,Lookups!A:AL,37))^(A63-$A$3),"") ->  | AN63: =IF(B63<70,VLOOKUP(B63,Lookups!A:AL,27)*(1-VLOOKUP(B63,Lookups!A:AL,38))^(A63-$A$3),"") ->  | AT63: =IF(BA63>=$B$3,VLOOKUP(BA63,Lookups!A:AL,26)*(1-VLOOKUP(BA63,Lookups!A:AL,37))^(BA63-$B$3),"") -> 0.4 | AU63: =IF(BA63>=$B$3,VLOOKUP(BA63,Lookups!A:AL,27)*(1-VLOOKUP(BA63,Lookups!A:AL,38))^(BA63-$B$3),"") -> 0.337441 | AV63: 0.337441 | AW63: 0.02174046389 | AX63: 0.1353005917 | AY63: 0.83366 | BA63: 107 | BB63: 2118358.924 | BC63: 5194.658633 | BD63: 5416.472436 | BE63: 5648.727986 | BF63: 5892.048808 | BG63: 6147.149676 | BH63: 6414.930023 | BI63: 6696.057219 | BJ63: 6991.425665 | BK63: 7303.097645 | BL63: 7632.44786 | BM63: 7981.150903 | BN63: 8350.216301 | BO63: 8741.182024 | BP63: 9155.976708 | BQ63: 9598.236032
A64: 2074 | B64: 81 | D64: =VLOOKUP(B64,Lookups!A:P,16) -> 15708.22809 | E64: 0 | G64: 0 | H64: 0 | J64: =IF($B65<65, VLOOKUP(A65,'L-Trends'!$A$3:$D$95,IF(ExFlg=0,2,3),FALSE), VLOOKUP(A65,'L-Trends'!$A$3:$D$95,IF(ExFlg=0,2,4),FALSE))+Sens -> 1.05 | K64: 39.14604573 | L64: 1 | M64: 1 | O64: 1 | P64: 1 | Q64: 1 | R64: 1 | T64: 614915.0151 | U64: 0 | V64: 614915.0151 | X64: 0 | Y64: 0 | Z64: 0 | AB64: 614915.0151 | AD64: =IF(B64<71,VLOOKUP(B64,Lookups!A:AG,32),"") ->  | AE64: =IF(B64<71,VLOOKUP(B64,Lookups!A:AG,33),"") ->  | AG64: =IF(B64<70,VLOOKUP(B64,Lookups!A:AG,28),"") ->  | AH64: =IF(B64<70,VLOOKUP(B64,Lookups!A:AG,29),"") ->  | AJ64: =IF(B64<70,VLOOKUP(B64,Lookups!A:AG,30),"") ->  | AK64: =IF(B64<70,VLOOKUP(B64,Lookups!A:AG,31),"") ->  | AM64: =IF(B64<70,VLOOKUP(B64,Lookups!A:AL,26)*(1-VLOOKUP(B64,Lookups!A:AL,37))^(A64-$A$3),"") ->  | AN64: =IF(B64<70,VLOOKUP(B64,Lookups!A:AL,27)*(1-VLOOKUP(B64,Lookups!A:AL,38))^(A64-$A$3),"") ->  | AT64: =IF(BA64>=$B$3,VLOOKUP(BA64,Lookups!A:AL,26)*(1-VLOOKUP(BA64,Lookups!A:AL,37))^(BA64-$B$3),"") -> 0.4 | AU64: =IF(BA64>=$B$3,VLOOKUP(BA64,Lookups!A:AL,27)*(1-VLOOKUP(BA64,Lookups!A:AL,38))^(BA64-$B$3),"") -> 0.351544 | AV64: 0.351544 | AW64: 0.01440434002 | AX64: 0.1300967228 | AY64: 0.827445 | BA64: 108 | BB64: 2215803.434 | BC64: 3435.817505 | BD64: 3582.528155 | BE64: 3736.145119 | BF64: 3897.080803 | BG64: 4065.807968 | BH64: 4242.921513 | BI64: 4428.862844 | BJ64: 4624.223531 | BK64: 4830.367596 | BL64: 5048.204284 | BM64: 5278.841194 | BN64: 5522.946042 | BO64: 5781.536061 | BP64: 6055.886878 | BQ64: 6348.403179
A65: 2075 | B65: 82 | D65: =VLOOKUP(B65,Lookups!A:P,16) -> 15862.95972 | E65: 0 | G65: 0 | H65: 0 | J65: =IF($B66<65, VLOOKUP(A66,'L-Trends'!$A$3:$D$95,IF(ExFlg=0,2,3),FALSE), VLOOKUP(A66,'L-Trends'!$A$3:$D$95,IF(ExFlg=0,2,4),FALSE))+Sens -> 1.05 | K65: 41.10334802 | L65: 1 | M65: 1 | O65: 1 | P65: 1 | Q65: 1 | R65: 1 | T65: 652020.7539 | U65: 0 | V65: 652020.7539 | X65: 0 | Y65: 0 | Z65: 0 | AB65: 652020.7539 | AD65: =IF(B65<71,VLOOKUP(B65,Lookups!A:AG,32),"") ->  | AE65: =IF(B65<71,VLOOKUP(B65,Lookups!A:AG,33),"") ->  | AG65: =IF(B65<70,VLOOKUP(B65,Lookups!A:AG,28),"") ->  | AH65: =IF(B65<70,VLOOKUP(B65,Lookups!A:AG,29),"") ->  | AJ65: =IF(B65<70,VLOOKUP(B65,Lookups!A:AG,30),"") ->  | AK65: =IF(B65<70,VLOOKUP(B65,Lookups!A:AG,31),"") ->  | AM65: =IF(B65<70,VLOOKUP(B65,Lookups!A:AL,26)*(1-VLOOKUP(B65,Lookups!A:AL,37))^(A65-$A$3),"") ->  | AN65: =IF(B65<70,VLOOKUP(B65,Lookups!A:AL,27)*(1-VLOOKUP(B65,Lookups!A:AL,38))^(A65-$A$3),"") ->  | AT65: =IF(BA65>=$B$3,VLOOKUP(BA65,Lookups!A:AL,26)*(1-VLOOKUP(BA65,Lookups!A:AL,37))^(BA65-$B$3),"") -> 0.4 | AU65: =IF(BA65>=$B$3,VLOOKUP(BA65,Lookups!A:AL,27)*(1-VLOOKUP(BA65,Lookups!A:AL,38))^(BA65-$B$3),"") -> 0.364617 | AV65: 0.364617 | AW65: 0.00934058071 | AX65: 0.1250930027 | AY65: 0.821683 | BA65: 109 | BB65: 2317730.392 | BC65: 2225.225931 | BD65: 2320.243883 | BE65: 2419.734746 | BF65: 2523.965619 | BG65: 2633.242687 | BH65: 2747.95124 | BI65: 2868.377156 | BJ65: 2994.903569 | BK65: 3128.413896 | BL65: 3269.497015 | BM65: 3418.870267 | BN65: 3576.966102 | BO65: 3744.443337 | BP65: 3922.128138 | BQ65: 4111.577914
A66: 2076 | B66: 83 | D66: =VLOOKUP(B66,Lookups!A:P,16) -> 15937.77198 | E66: 0 | G66: 0 | H66: 0 | J66: =IF($B67<65, VLOOKUP(A67,'L-Trends'!$A$3:$D$95,IF(ExFlg=0,2,3),FALSE), VLOOKUP(A67,'L-Trends'!$A$3:$D$95,IF(ExFlg=0,2,4),FALSE))+Sens -> 1.049 | K66: 43.15851542 | L66: 1 | M66: 1 | O66: 1 | P66: 1 | Q66: 1 | R66: 1 | T66: 687850.5777 | U66: 0 | V66: 687850.5777 | X66: 0 | Y66: 0 | Z66: 0 | AB66: 687850.5777 | AD66: =IF(B66<71,VLOOKUP(B66,Lookups!A:AG,32),"") ->  | AE66: =IF(B66<71,VLOOKUP(B66,Lookups!A:AG,33),"") ->  | AG66: =IF(B66<70,VLOOKUP(B66,Lookups!A:AG,28),"") ->  | AH66: =IF(B66<70,VLOOKUP(B66,Lookups!A:AG,29),"") ->  | AJ66: =IF(B66<70,VLOOKUP(B66,Lookups!A:AG,30),"") ->  | AK66: =IF(B66<70,VLOOKUP(B66,Lookups!A:AG,31),"") ->  | AM66: =IF(B66<70,VLOOKUP(B66,Lookups!A:AL,26)*(1-VLOOKUP(B66,Lookups!A:AL,37))^(A66-$A$3),"") ->  | AN66: =IF(B66<70,VLOOKUP(B66,Lookups!A:AL,27)*(1-VLOOKUP(B66,Lookups!A:AL,38))^(A66-$A$3),"") ->  | AT66: =IF(BA66>=$B$3,VLOOKUP(BA66,Lookups!A:AL,26)*(1-VLOOKUP(BA66,Lookups!A:AL,37))^(BA66-$B$3),"") -> 0.4 | AU66: =IF(BA66>=$B$3,VLOOKUP(BA66,Lookups!A:AL,27)*(1-VLOOKUP(BA66,Lookups!A:AL,38))^(BA66-$B$3),"") -> 0.376246 | AV66: 0.376246 | AW66: 0.005934846193 | AX66: 0.1202817333 | AY66: 0.816558 | BA66: 110 | BB66: 2424345.99 | BC66: 1413.158205 | BD66: 1473.500572 | BE66: 1536.683518 | BF66: 1602.876667 | BG66: 1672.274468 | BH66: 1745.121602 | BI66: 1821.599622 | BJ66: 1901.95184 | BK66: 1986.739281 | BL66: 2076.335921 | BM66: 2171.197317 | BN66: 2271.5981 | BO66: 2377.956661 | BP66: 2490.797668 | BQ66: 2611.110173
A67: 2077 | B67: 84 | D67: =VLOOKUP(B67,Lookups!A:P,16) -> 16012.99833 | E67: 0 | G67: 0 | H67: 0 | J67: =IF($B68<65, VLOOKUP(A68,'L-Trends'!$A$3:$D$95,IF(ExFlg=0,2,3),FALSE), VLOOKUP(A68,'L-Trends'!$A$3:$D$95,IF(ExFlg=0,2,4),FALSE))+Sens -> 1.049 | K67: 45.27328267 | L67: 1 | M67: 1 | O67: 1 | P67: 1 | Q67: 1 | R67: 1 | T67: =D67*K67 -> 724960.9998 | U67: =IF(B67<65,E67*K67,E67*M67) -> 0 | V67: =T67-U67 -> 724960.9998 | X67: =IF(B67<65,G67*P67,G67*R67) -> 0 | Y67: =IF(B67<65,H67*P67,H67*R67) -> 0 | Z67: 0 | AB67: =(1-PctUMP)*V67+PctUMP*Z67 -> 724960.9998 | AD67: =IF(B67<71,VLOOKUP(B67,Lookups!A:AG,32),"") ->  | AE67: =IF(B67<71,VLOOKUP(B67,Lookups!A:AG,33),"") ->  | AF67: =IF(B67<71,PCTMALE*AD67+(1-PCTMALE)*AE67,"") ->  | AG67: =IF(B67<70,VLOOKUP(B67,Lookups!A:AG,28),"") ->  | AH67: =IF(B67<70,VLOOKUP(B67,Lookups!A:AG,29),"") ->  | AI67: =IF(B67<70,PCTMALE*AG67+(1-PCTMALE)*AH67,"") ->  | AJ67: =IF(B67<70,VLOOKUP(B67,Lookups!A:AG,30),"") ->  | AK67: =IF(B67<70,VLOOKUP(B67,Lookups!A:AG,31),"") ->  | AL67: =IF(AF67<1,IF(B67<70,PCTMALE*AJ67+(1-PCTMALE)*AK67,""),"") ->  | AM67: =IF(B67<70,VLOOKUP(B67,Lookups!A:AL,26)*(1-VLOOKUP(B67,Lookups!A:AL,37))^(A67-$A$3),"") ->  | AN67: =IF(B67<70,VLOOKUP(B67,Lookups!A:AL,27)*(1-VLOOKUP(B67,Lookups!A:AL,38))^(A67-$A$3),"") ->  | AO67: =IF(AM67<>"",PCTMALE*AM67+(1-PCTMALE)*AN67,"") ->  | AP67: =IF(B67<71,SUM(AF67,AI67,AL67,AO67),"") ->  | AT67: =IF(BA67>=$B$3,VLOOKUP(BA67,Lookups!A:AL,26)*(1-VLOOKUP(BA67,Lookups!A:AL,37))^(BA67-$B$3),"") -> 0.4 | AU67: =IF(BA67>=$B$3,VLOOKUP(BA67,Lookups!A:AL,27)*(1-VLOOKUP(BA67,Lookups!A:AL,38))^(BA67-$B$3),"") -> 0.386015 | AV67: 0.386015 | AW67: 0.003701884053 | AX67: 0.1156555128 | AY67: 0.812253 | BA67: 111 | BB67: 2424345.99 | BC67: 843.0922068 | BD67: 879.0925489 | BE67: 916.7875849 | BF67: 956.2785127 | BG67: 997.6813399 | BH67: 1041.142044 | BI67: 1086.76894 | BJ67: 1134.707188 | BK67: 1185.291497 | BL67: 1238.744981 | BM67: 1295.339425 | BN67: 1355.238676 | BO67: 1418.692346 | BP67: 1486.013452 | BQ67: 1557.792065
A68: 2078 | B68: 85 | D68: =VLOOKUP(B68,Lookups!A:P,16) -> 16088.50074 | E68: 0 | G68: 0 | H68: 0 | J68: =IF($B69<65, VLOOKUP(A69,'L-Trends'!$A$3:$D$95,IF(ExFlg=0,2,3),FALSE), VLOOKUP(A69,'L-Trends'!$A$3:$D$95,IF(ExFlg=0,2,4),FALSE))+Sens -> 1.048 | K68: 47.49167352 | L68: 1 | M68: =M67*L67 -> 1 | O68: 1 | P68: =P67*O67 -> 1 | Q68: 1 | R68: =R67*Q67 -> 1 | T68: 764069.8246 | U68: 0 | V68: =T68-U68 -> 764069.8246 | X68: 0 | Y68: 0 | Z68: =X68-Y68 -> 0 | AB68: 764069.8246 | AD68: =IF(B68<71,VLOOKUP(B68,Lookups!A:AG,32),"") ->  | AE68: =IF(B68<71,VLOOKUP(B68,Lookups!A:AG,33),"") ->  | AG68: =IF(B68<70,VLOOKUP(B68,Lookups!A:AG,28),"") ->  | AH68: =IF(B68<70,VLOOKUP(B68,Lookups!A:AG,29),"") ->  | AJ68: =IF(B68<70,VLOOKUP(B68,Lookups!A:AG,30),"") ->  | AK68: =IF(B68<70,VLOOKUP(B68,Lookups!A:AG,31),"") ->  | AM68: =IF(B68<70,VLOOKUP(B68,Lookups!A:AL,26)*(1-VLOOKUP(B68,Lookups!A:AL,37))^(A68-$A$3),"") ->  | AN68: =IF(B68<70,VLOOKUP(B68,Lookups!A:AL,27)*(1-VLOOKUP(B68,Lookups!A:AL,38))^(A68-$A$3),"") ->  | AQ68: =IF(B68<71,AQ67*(1-AP67),"") ->  | AR68: =IF(B68<71,AR67/(1+INTRt),"") ->  | AT68: =IF(BA68>=$B$3,VLOOKUP(BA68,Lookups!A:AL,26)*(1-VLOOKUP(BA68,Lookups!A:AL,37))^(BA68-$B$3),"") -> 0.4 | AU68: =IF(BA68>=$B$3,VLOOKUP(BA68,Lookups!A:AL,27)*(1-VLOOKUP(BA68,Lookups!A:AL,38))^(BA68-$B$3),"") -> 0.393507 | AV68: 0.393507 | AW68: 0.00227290128 | AX68: 0.1112072239 | AY68: 0.808951 | BA68: 112 | BB68: 2424345.99 | BC68: 495.713092 | BD68: 516.8802203 | BE68: 539.043778 | BF68: 562.2632667 | BG68: 586.6068952 | BH68: 612.1604943 | BI68: 638.9877492 | BJ68: 667.1740105 | BK68: 696.9160767 | BL68: 728.345132 | BM68: 761.6209785 | BN68: 796.839953 | BO68: 834.1488198 | BP68: 873.731624 | BQ68: 915.9353091
A69: 2079 | B69: 86 | D69: =VLOOKUP(B69,Lookups!A:P,16) -> 16164.55527 | E69: 0 | G69: 0 | H69: 0 | J69: =IF($B70<65, VLOOKUP(A70,'L-Trends'!$A$3:$D$95,IF(ExFlg=0,2,3),FALSE), VLOOKUP(A70,'L-Trends'!$A$3:$D$95,IF(ExFlg=0,2,4),FALSE))+Sens -> 1.048 | K69: =K68*J68 -> 49.77127385 | L69: =L68 -> 1 | M69: 1 | O69: =O68 -> 1 | P69: 1 | Q69: =Q68 -> 1 | R69: 1 | T69: 804530.507 | U69: 0 | V69: 804530.507 | X69: 0 | Y69: 0 | Z69: =X69-Y69 -> 0 | AB69: 804530.507 | AD69: =IF(B69<71,VLOOKUP(B69,Lookups!A:AG,32),"") ->  | AE69: =IF(B69<71,VLOOKUP(B69,Lookups!A:AG,33),"") ->  | AG69: =IF(B69<70,VLOOKUP(B69,Lookups!A:AG,28),"") ->  | AH69: =IF(B69<70,VLOOKUP(B69,Lookups!A:AG,29),"") ->  | AJ69: =IF(B69<70,VLOOKUP(B69,Lookups!A:AG,30),"") ->  | AK69: =IF(B69<70,VLOOKUP(B69,Lookups!A:AG,31),"") ->  | AM69: =IF(B69<70,VLOOKUP(B69,Lookups!A:AL,26)*(1-VLOOKUP(B69,Lookups!A:AL,37))^(A69-$A$3),"") ->  | AN69: =IF(B69<70,VLOOKUP(B69,Lookups!A:AL,27)*(1-VLOOKUP(B69,Lookups!A:AL,38))^(A69-$A$3),"") ->  | AT69: =IF(BA69>=$B$3,VLOOKUP(BA69,Lookups!A:AL,26)*(1-VLOOKUP(BA69,Lookups!A:AL,37))^(BA69-$B$3),"") -> 0.4 | AU69: =IF(BA69>=$B$3,VLOOKUP(BA69,Lookups!A:AL,27)*(1-VLOOKUP(BA69,Lookups!A:AL,38))^(BA69-$B$3),"") -> 0.398308 | AV69: 0.398308 | AW69: 0.001378498716 | AX69: 0.1069300229 | AY69: 0.806835 | BA69: 113 | BB69: 2424345.99 | BC69: 288.3270281 | BD69: 300.6386964 | BE69: 313.529929 | BF69: 327.0353342 | BG69: 341.1945851 | BH69: 356.0576045 | BI69: 371.6614342 | BJ69: 388.0557176 | BK69: 405.354921 | BL69: 423.6353462 | BM69: 442.9899408 | BN69: 463.4747381 | BO69: 485.1751025 | BP69: 508.1980818 | BQ69: 532.7454728
A70: 2080 | B70: 87 | D70: =VLOOKUP(B70,Lookups!A:P,16) -> 16240.88586 | E70: 0 | G70: 0 | H70: 0 | J70: =IF($B71<65, VLOOKUP(A71,'L-Trends'!$A$3:$D$95,IF(ExFlg=0,2,3),FALSE), VLOOKUP(A71,'L-Trends'!$A$3:$D$95,IF(ExFlg=0,2,4),FALSE))+Sens -> 1.047 | K70: 52.160295 | L70: 1 | M70: 1 | O70: 1 | P70: 1 | Q70: 1 | R70: 1 | T70: 847129.3975 | U70: 0 | V70: 847129.3975 | X70: 0 | Y70: 0 | Z70: 0 | AB70: 847129.3975 | AD70: =IF(B70<71,VLOOKUP(B70,Lookups!A:AG,32),"") ->  | AE70: =IF(B70<71,VLOOKUP(B70,Lookups!A:AG,33),"") ->  | AG70: =IF(B70<70,VLOOKUP(B70,Lookups!A:AG,28),"") ->  | AH70: =IF(B70<70,VLOOKUP(B70,Lookups!A:AG,29),"") ->  | AJ70: =IF(B70<70,VLOOKUP(B70,Lookups!A:AG,30),"") ->  | AK70: =IF(B70<70,VLOOKUP(B70,Lookups!A:AG,31),"") ->  | AM70: =IF(B70<70,VLOOKUP(B70,Lookups!A:AL,26)*(1-VLOOKUP(B70,Lookups!A:AL,37))^(A70-$A$3),"") ->  | AN70: =IF(B70<70,VLOOKUP(B70,Lookups!A:AL,27)*(1-VLOOKUP(B70,Lookups!A:AL,38))^(A70-$A$3),"") ->  | AT70: =IF(BA70>=$B$3,VLOOKUP(BA70,Lookups!A:AL,26)*(1-VLOOKUP(BA70,Lookups!A:AL,37))^(BA70-$B$3),"") -> 0.4 | AU70: =IF(BA70>=$B$3,VLOOKUP(BA70,Lookups!A:AL,27)*(1-VLOOKUP(BA70,Lookups!A:AL,38))^(BA70-$B$3),"") -> 0.4 | AV70: 0.4 | AW70: 0.0008294316494 | AX70: 0.1028173297 | AY70: 0.80609 | BA70: 114 | BB70: 2424345.99 | BC70: 166.6575748 | BD70: 173.7739135 | BE70: 181.2252494 | BF70: 189.0315869 | BG70: 197.2158575 | BH70: 205.8069173 | BI70: 214.8261773 | BJ70: 224.302332 | BK70: 234.3015447 | BL70: 244.8679191 | BM70: 256.0551804 | BN70: 267.8957167 | BO70: 280.4388699 | BP70: 293.7465155 | BQ70: 307.9352951
A71: 2081 | B71: 88 | D71: =VLOOKUP(B71,Lookups!A:P,16) -> 16317.63054 | E71: 0 | G71: 0 | H71: 0 | J71: =IF($B72<65, VLOOKUP(A72,'L-Trends'!$A$3:$D$95,IF(ExFlg=0,2,3),FALSE), VLOOKUP(A72,'L-Trends'!$A$3:$D$95,IF(ExFlg=0,2,4),FALSE))+Sens -> 1.047 | K71: 54.61182886 | L71: 1 | M71: 1 | O71: 1 | P71: 1 | Q71: 1 | R71: 1 | T71: 891135.6465 | U71: 0 | V71: 891135.6465 | X71: 0 | Y71: 0 | Z71: 0 | AB71: 891135.6465 | AD71: =IF(B71<71,VLOOKUP(B71,Lookups!A:AG,32),"") ->  | AE71: =IF(B71<71,VLOOKUP(B71,Lookups!A:AG,33),"") ->  | AG71: =IF(B71<70,VLOOKUP(B71,Lookups!A:AG,28),"") ->  | AH71: =IF(B71<70,VLOOKUP(B71,Lookups!A:AG,29),"") ->  | AJ71: =IF(B71<70,VLOOKUP(B71,Lookups!A:AG,30),"") ->  | AK71: =IF(B71<70,VLOOKUP(B71,Lookups!A:AG,31),"") ->  | AM71: =IF(B71<70,VLOOKUP(B71,Lookups!A:AL,26)*(1-VLOOKUP(B71,Lookups!A:AL,37))^(A71-$A$3),"") ->  | AN71: =IF(B71<70,VLOOKUP(B71,Lookups!A:AL,27)*(1-VLOOKUP(B71,Lookups!A:AL,38))^(A71-$A$3),"") ->  | AT71: =IF(BA71>=$B$3,VLOOKUP(BA71,Lookups!A:AL,26)*(1-VLOOKUP(BA71,Lookups!A:AL,37))^(BA71-$B$3),"") -> 0.4 | AU71: =IF(BA71>=$B$3,VLOOKUP(BA71,Lookups!A:AL,27)*(1-VLOOKUP(BA71,Lookups!A:AL,38))^(BA71-$B$3),"") -> 0.4 | AV71: 0.4 | AW71: 0.0004976589897 | AX71: 0.09886281706 | AY71: 0.80609 | BA71: 115 | BB71: 2424345.99 | BC71: 96.14860082 | BD71: 100.2541809 | BE71: 104.5530285 | BF71: 109.0566847 | BG71: 113.7783793 | BH71: 118.73476 | BI71: 123.9381792 | BJ71: 129.4051915 | BK71: 135.1739681 | BL71: 141.2699533 | BM71: 147.7241425 | BN71: 154.5552212 | BO71: 161.7916557 | BP71: 169.4691435 | BQ71: 177.6549779
A72: 2082 | B72: 89 | D72: =VLOOKUP(B72,Lookups!A:P,16) -> 16394.78931 | E72: 0 | G72: 0 | H72: 0 | J72: =IF($B73<65, VLOOKUP(A73,'L-Trends'!$A$3:$D$95,IF(ExFlg=0,2,3),FALSE), VLOOKUP(A73,'L-Trends'!$A$3:$D$95,IF(ExFlg=0,2,4),FALSE))+Sens -> 1.047 | K72: 57.17858482 | L72: 1 | M72: 1 | O72: 1 | P72: 1 | Q72: 1 | R72: 1 | T72: 937430.8512 | U72: 0 | V72: 937430.8512 | X72: 0 | Y72: 0 | Z72: 0 | AB72: 937430.8512 | AD72: =IF(B72<71,VLOOKUP(B72,Lookups!A:AG,32),"") ->  | AE72: =IF(B72<71,VLOOKUP(B72,Lookups!A:AG,33),"") ->  | AG72: =IF(B72<70,VLOOKUP(B72,Lookups!A:AG,28),"") ->  | AH72: =IF(B72<70,VLOOKUP(B72,Lookups!A:AG,29),"") ->  | AJ72: =IF(B72<70,VLOOKUP(B72,Lookups!A:AG,30),"") ->  | AK72: =IF(B72<70,VLOOKUP(B72,Lookups!A:AG,31),"") ->  | AM72: =IF(B72<70,VLOOKUP(B72,Lookups!A:AL,26)*(1-VLOOKUP(B72,Lookups!A:AL,37))^(A72-$A$3),"") ->  | AN72: =IF(B72<70,VLOOKUP(B72,Lookups!A:AL,27)*(1-VLOOKUP(B72,Lookups!A:AL,38))^(A72-$A$3),"") ->  | AT72: =IF(BA72>=$B$3,VLOOKUP(BA72,Lookups!A:AL,26)*(1-VLOOKUP(BA72,Lookups!A:AL,37))^(BA72-$B$3),"") -> 0.4 | AU72: =IF(BA72>=$B$3,VLOOKUP(BA72,Lookups!A:AL,27)*(1-VLOOKUP(BA72,Lookups!A:AL,38))^(BA72-$B$3),"") -> 0.4 | AV72: 0.4 | AW72: 0.0002985953938 | AX72: 0.09506040102 | AY72: 0.80609 | BA72: 116 | BB72: 2424345.99 | BC72: 55.47034663 | BD72: 57.83895049 | BE72: 60.31905491 | BF72: 62.91731811 | BG72: 65.64137268 | BH72: 68.50082308 | BI72: 71.5027957 | BJ72: 74.65684127 | BK72: 77.98498158 | BL72: 81.50189614 | BM72: 85.22546683 | BN72: 89.16647374 | BO72: 93.34133983 | BP72: 97.77065974 | BQ72: 102.4932565 | BR72: Totals Per Person
A73: =1+A72 -> 2083 | B73: 90 | D73: =VLOOKUP(B73,Lookups!A:P,16) -> 16394.78931 | E73: 0 | G73: 0 | H73: 0 | J73: =IF($B74<65, VLOOKUP(A74,'L-Trends'!$A$3:$D$95,IF(ExFlg=0,2,3),FALSE), VLOOKUP(A74,'L-Trends'!$A$3:$D$95,IF(ExFlg=0,2,4),FALSE))+Sens -> 1.047 | K73: 59.86597831 | L73: 1 | M73: 1 | O73: 1 | P73: 1 | Q73: 1 | R73: 1 | T73: 981490.1012 | U73: 0 | V73: 981490.1012 | X73: 0 | Y73: 0 | Z73: 0 | AB73: 981490.1012 | AD73: =IF(B73<71,VLOOKUP(B73,Lookups!A:AG,32),"") ->  | AE73: =IF(B73<71,VLOOKUP(B73,Lookups!A:AG,33),"") ->  | AG73: =IF(B73<70,VLOOKUP(B73,Lookups!A:AG,28),"") ->  | AH73: =IF(B73<70,VLOOKUP(B73,Lookups!A:AG,29),"") ->  | AJ73: =IF(B73<70,VLOOKUP(B73,Lookups!A:AG,30),"") ->  | AK73: =IF(B73<70,VLOOKUP(B73,Lookups!A:AG,31),"") ->  | AM73: =IF(B73<70,VLOOKUP(B73,Lookups!A:AL,26)*(1-VLOOKUP(B73,Lookups!A:AL,37))^(A73-$A$3),"") ->  | AN73: =IF(B73<70,VLOOKUP(B73,Lookups!A:AL,27)*(1-VLOOKUP(B73,Lookups!A:AL,38))^(A73-$A$3),"") ->  | AT73: =IF(BA73>=$B$3,VLOOKUP(BA73,Lookups!A:AL,26)*(1-VLOOKUP(BA73,Lookups!A:AL,37))^(BA73-$B$3),"") -> 0.4 | AU73: =IF(BA73>=$B$3,VLOOKUP(BA73,Lookups!A:AL,27)*(1-VLOOKUP(BA73,Lookups!A:AL,38))^(BA73-$B$3),"") -> 0.4 | AV73: 0.4 | AW73: 0.0001791572363 | AX73: 0.09140423175 | AY73: 0.80609 | BA73: 117 | BB73: 2424345.99 | BC73: =IF($BB$12<>"",BB73*AY73*AX73*AW73,"") -> 32.00212305 | BD73: =IF($BB$13<>"",BB73*AW73/$AW$13*AY73*AX73/$AX$13,"") -> 33.36862528 | BE73: =IF($BB$14<>"",BB73*AW73/$AW$14*AY73*AX73/$AX$14,"") -> 34.79945476 | BF73: =IF($BB$15<>"",BB73*AW73/$AW$15*AY73*AX73/$AX$15,"") -> 36.29845276 | BG73: =IF($BB$16<>"",BB73*AW73/$AW$16*AY73*AX73/$AX$16,"") -> 37.8700227 | BH73: =IF($BB$17<>"",BB73*AW73/$AW$17*AY73*AX73/$AX$17,"") -> 39.51970562 | BI73: =IF($BB$18<>"",BB73*AW73/$AW$18*AY73*AX73/$AX$18,"") -> 41.2516129 | BJ73: =IF($BB$19<>"",BB73*AW73/$AW$19*AY73*AX73/$AX$19,"") -> 43.07125458 | BK73: =IF($BB$20<>"",BB73*AW73/$AW$20*AY73*AX73/$AX$20,"") -> 44.99133553 | BL73: =IF($BB$21<>"",BB73*AW73/$AW$21*AY73*AX73/$AX$21,"") -> 47.0203247 | BM73: =IF($BB$22<>"",BB73*AW73/$AW$22*AY73*AX73/$AX$22,"") -> 49.16853856 | BN73: =IF($BB$23<>"",BB73*AW73/$AW$23*AY73*AX73/$AX$23,"") -> 51.44219639 | BO73: =IF($BB$24<>"",BB73*AW73/$AW$24*AY73*AX73/$AX$24,"") -> 53.85077298 | BP73: =IF($BB$25<>"",BB73*AW73/$AW$25*AY73*AX73/$AX$25,"") -> 56.40614985 | BQ73: =IF($BB$26<>"",BB73*AW73/$AW$26*AY73*AX73/$AX$26,"") -> 59.1307249 | BR73: =SUM(BC83:BQ83) -> 136564.8589
A74: 2084 | B74: 91 | D74: =VLOOKUP(B74,Lookups!A:P,16) -> 16394.78931 | E74: 0 | G74: 0 | H74: 0 | J74: =IF($B75<65, VLOOKUP(A75,'L-Trends'!$A$3:$D$95,IF(ExFlg=0,2,3),FALSE), VLOOKUP(A75,'L-Trends'!$A$3:$D$95,IF(ExFlg=0,2,4),FALSE))+Sens -> 1.047 | K74: 62.67967929 | L74: 1 | M74: 1 | O74: 1 | P74: 1 | Q74: 1 | R74: 1 | T74: 1027620.136 | U74: 0 | V74: 1027620.136 | X74: 0 | Y74: 0 | Z74: 0 | AB74: 1027620.136 | AD74: =IF(B74<71,VLOOKUP(B74,Lookups!A:AG,32),"") ->  | AE74: =IF(B74<71,VLOOKUP(B74,Lookups!A:AG,33),"") ->  | AG74: =IF(B74<70,VLOOKUP(B74,Lookups!A:AG,28),"") ->  | AH74: =IF(B74<70,VLOOKUP(B74,Lookups!A:AG,29),"") ->  | AJ74: =IF(B74<70,VLOOKUP(B74,Lookups!A:AG,30),"") ->  | AK74: =IF(B74<70,VLOOKUP(B74,Lookups!A:AG,31),"") ->  | AM74: =IF(B74<70,VLOOKUP(B74,Lookups!A:AL,26)*(1-VLOOKUP(B74,Lookups!A:AL,37))^(A74-$A$3),"") ->  | AN74: =IF(B74<70,VLOOKUP(B74,Lookups!A:AL,27)*(1-VLOOKUP(B74,Lookups!A:AL,38))^(A74-$A$3),"") ->  | AT74: =IF(BA74>=$B$3,VLOOKUP(BA74,Lookups!A:AL,26)*(1-VLOOKUP(BA74,Lookups!A:AL,37))^(BA74-$B$3),"") -> 0.4 | AU74: =IF(BA74>=$B$3,VLOOKUP(BA74,Lookups!A:AL,27)*(1-VLOOKUP(BA74,Lookups!A:AL,38))^(BA74-$B$3),"") -> 0.4 | AV74: 0.4 | AW74: 0.0001074943418 | AX74: 0.08788868438 | AY74: 0.80609 | BA74: 118 | BB74: 2424345.99 | BC74: 18.4627633 | BD74: 19.25112997 | BE74: 20.07660851 | BF74: 20.94141505 | BG74: 21.84809002 | BH74: 22.79983017 | BI74: 23.79900745 | BJ74: 24.84880072 | BK74: 25.95653973 | BL74: 27.1271104 | BM74: 28.36646455 | BN74: 29.67819023 | BO74: 31.06775364 | BP74: 32.54200953 | BQ74: 34.11387975 | BR74: =B1 -> 0
A75: 2085 | B75: 92 | D75: =VLOOKUP(B75,Lookups!A:P,16) -> 16394.78931 | E75: 0 | G75: 0 | H75: 0 | J75: =IF($B76<65, VLOOKUP(A76,'L-Trends'!$A$3:$D$95,IF(ExFlg=0,2,3),FALSE), VLOOKUP(A76,'L-Trends'!$A$3:$D$95,IF(ExFlg=0,2,4),FALSE))+Sens -> 1.047 | K75: 65.62562421 | L75: 1 | M75: 1 | O75: 1 | P75: 1 | Q75: 1 | R75: 1 | T75: 1075918.282 | U75: 0 | V75: 1075918.282 | X75: 0 | Y75: 0 | Z75: 0 | AB75: 1075918.282 | AD75: =IF(B75<71,VLOOKUP(B75,Lookups!A:AG,32),"") ->  | AE75: =IF(B75<71,VLOOKUP(B75,Lookups!A:AG,33),"") ->  | AG75: =IF(B75<70,VLOOKUP(B75,Lookups!A:AG,28),"") ->  | AH75: =IF(B75<70,VLOOKUP(B75,Lookups!A:AG,29),"") ->  | AJ75: =IF(B75<70,VLOOKUP(B75,Lookups!A:AG,30),"") ->  | AK75: =IF(B75<70,VLOOKUP(B75,Lookups!A:AG,31),"") ->  | AM75: =IF(B75<70,VLOOKUP(B75,Lookups!A:AL,26)*(1-VLOOKUP(B75,Lookups!A:AL,37))^(A75-$A$3),"") ->  | AN75: =IF(B75<70,VLOOKUP(B75,Lookups!A:AL,27)*(1-VLOOKUP(B75,Lookups!A:AL,38))^(A75-$A$3),"") ->  | AT75: =IF(BA75>=$B$3,VLOOKUP(BA75,Lookups!A:AL,26)*(1-VLOOKUP(BA75,Lookups!A:AL,37))^(BA75-$B$3),"") -> 0.4 | AU75: =IF(BA75>=$B$3,VLOOKUP(BA75,Lookups!A:AL,27)*(1-VLOOKUP(BA75,Lookups!A:AL,38))^(BA75-$B$3),"") -> 1 | AV75: 1 | AW75: 6.449660506e-05 | AX75: 0.08450835036 | AY75: 0.541667 | BA75: 119 | BB75: 2424345.99 | BC75: 7.15753462 | BD75: 7.463163937 | BE75: 7.783180565 | BF75: 8.118443636 | BG75: 8.469938013 | BH75: 8.838902991 | BI75: 9.226258114 | BJ75: 9.633235747 | BK75: 10.06267744 | BL75: 10.51647734 | BM75: 10.99694281 | BN75: 11.50546484 | BO75: 12.04416255 | BP75: 12.61569333 | BQ75: 13.22506666
A76: 2086 | B76: 93 | D76: =VLOOKUP(B76,Lookups!A:P,16) -> 16394.78931 | E76: 0 | G76: 0 | H76: 0 | J76: =IF($B77<65, VLOOKUP(A77,'L-Trends'!$A$3:$D$95,IF(ExFlg=0,2,3),FALSE), VLOOKUP(A77,'L-Trends'!$A$3:$D$95,IF(ExFlg=0,2,4),FALSE))+Sens -> 1.047 | K76: 68.71002855 | L76: 1 | M76: 1 | O76: 1 | P76: 1 | Q76: 1 | R76: 1 | T76: 1126486.442 | U76: 0 | V76: 1126486.442 | X76: 0 | Y76: 0 | Z76: 0 | AB76: 1126486.442 | AD76: =IF(B76<71,VLOOKUP(B76,Lookups!A:AG,32),"") ->  | AE76: =IF(B76<71,VLOOKUP(B76,Lookups!A:AG,33),"") ->  | AG76: =IF(B76<70,VLOOKUP(B76,Lookups!A:AG,28),"") ->  | AH76: =IF(B76<70,VLOOKUP(B76,Lookups!A:AG,29),"") ->  | AJ76: =IF(B76<70,VLOOKUP(B76,Lookups!A:AG,30),"") ->  | AK76: =IF(B76<70,VLOOKUP(B76,Lookups!A:AG,31),"") ->  | AM76: =IF(B76<70,VLOOKUP(B76,Lookups!A:AL,26)*(1-VLOOKUP(B76,Lookups!A:AL,37))^(A76-$A$3),"") ->  | AN76: =IF(B76<70,VLOOKUP(B76,Lookups!A:AL,27)*(1-VLOOKUP(B76,Lookups!A:AL,38))^(A76-$A$3),"") ->  | AT76: =IF(BA76>=$B$3,VLOOKUP(BA76,Lookups!A:AL,26)*(1-VLOOKUP(BA76,Lookups!A:AL,37))^(BA76-$B$3),"") -> 1 | AU76: =IF(BA76>=$B$3,VLOOKUP(BA76,Lookups!A:AL,27)*(1-VLOOKUP(BA76,Lookups!A:AL,38))^(BA76-$B$3),"") -> 1 | AV76: =IF(BA76>=$B$3, PCTMALE*AT76+(1-PCTMALE)*AU76, "") -> 1 | AW76: 0 | AX76: =IF(AV75="",1,AX75/(1+INTRt)) -> 0.08125802919 | AY76: =IF(AV76="",1,ROUND((13/24)+(11/24)*(1/(1+INTRt))*(1-AV76),6)) -> 0.541667 | BA76: 120 | BB76: 2424345.99 | BC76: 0 | BD76: 0 | BE76: 0 | BF76: 0 | BG76: 0 | BH76: 0 | BI76: 0 | BJ76: 0 | BK76: 0 | BL76: 0 | BM76: 0 | BN76: 0 | BO76: 0 | BP76: 0 | BQ76: 0
A77: 2087 | B77: 94 | D77: =VLOOKUP(B77,Lookups!A:P,16) -> 16394.78931 | E77: 0 | G77: 0 | H77: 0 | J77: =IF($B78<65, VLOOKUP(A78,'L-Trends'!$A$3:$D$95,IF(ExFlg=0,2,3),FALSE), VLOOKUP(A78,'L-Trends'!$A$3:$D$95,IF(ExFlg=0,2,4),FALSE))+Sens -> 1.047 | K77: 71.93939989 | L77: 1 | M77: 1 | O77: 1 | P77: 1 | Q77: 1 | R77: 1 | T77: 1179431.304 | U77: 0 | V77: 1179431.304 | X77: 0 | Y77: 0 | Z77: 0 | AB77: 1179431.304 | AD77: =IF(B77<71,VLOOKUP(B77,Lookups!A:AG,32),"") ->  | AE77: =IF(B77<71,VLOOKUP(B77,Lookups!A:AG,33),"") ->  | AG77: =IF(B77<70,VLOOKUP(B77,Lookups!A:AG,28),"") ->  | AH77: =IF(B77<70,VLOOKUP(B77,Lookups!A:AG,29),"") ->  | AJ77: =IF(B77<70,VLOOKUP(B77,Lookups!A:AG,30),"") ->  | AK77: =IF(B77<70,VLOOKUP(B77,Lookups!A:AG,31),"") ->  | AM77: =IF(B77<70,VLOOKUP(B77,Lookups!A:AL,26)*(1-VLOOKUP(B77,Lookups!A:AL,37))^(A77-$A$3),"") ->  | AN77: =IF(B77<70,VLOOKUP(B77,Lookups!A:AL,27)*(1-VLOOKUP(B77,Lookups!A:AL,38))^(A77-$A$3),"") ->  | AT77: =IF(BA77>=$B$3,VLOOKUP(BA77,Lookups!A:AL,26)*(1-VLOOKUP(BA77,Lookups!A:AL,37))^(BA77-$B$3),"") -> 1 | AU77: =IF(BA77>=$B$3,VLOOKUP(BA77,Lookups!A:AL,27)*(1-VLOOKUP(BA77,Lookups!A:AL,38))^(BA77-$B$3),"") -> 1 | AV77: 1 | AW77: 0 | AX77: 0.07813272038 | AY77: 0.541667 | BA77: 121 | BB77: 2424345.99 | BC77: 0 | BD77: 0 | BE77: 0 | BF77: 0 | BG77: 0 | BH77: 0 | BI77: 0 | BJ77: 0 | BK77: 0 | BL77: 0 | BM77: 0 | BN77: 0 | BO77: 0 | BP77: 0 | BQ77: 0 | BR77: Aggregate Totals
A78: 2088 | B78: 95 | D78: =VLOOKUP(B78,Lookups!A:P,16) -> 16394.78931 | E78: 0 | G78: 0 | H78: 0 | J78: =IF($B79<65, VLOOKUP(A79,'L-Trends'!$A$3:$D$95,IF(ExFlg=0,2,3),FALSE), VLOOKUP(A79,'L-Trends'!$A$3:$D$95,IF(ExFlg=0,2,4),FALSE))+Sens -> 1.046 | K78: 75.32055169 | L78: 1 | M78: 1 | O78: 1 | P78: 1 | Q78: 1 | R78: 1 | T78: 1234864.576 | U78: 0 | V78: 1234864.576 | X78: 0 | Y78: 0 | Z78: 0 | AB78: 1234864.576 | AD78: =IF(B78<71,VLOOKUP(B78,Lookups!A:AG,32),"") ->  | AE78: =IF(B78<71,VLOOKUP(B78,Lookups!A:AG,33),"") ->  | AG78: =IF(B78<70,VLOOKUP(B78,Lookups!A:AG,28),"") ->  | AH78: =IF(B78<70,VLOOKUP(B78,Lookups!A:AG,29),"") ->  | AJ78: =IF(B78<70,VLOOKUP(B78,Lookups!A:AG,30),"") ->  | AK78: =IF(B78<70,VLOOKUP(B78,Lookups!A:AG,31),"") ->  | AM78: =IF(B78<70,VLOOKUP(B78,Lookups!A:AL,26)*(1-VLOOKUP(B78,Lookups!A:AL,37))^(A78-$A$3),"") ->  | AN78: =IF(B78<70,VLOOKUP(B78,Lookups!A:AL,27)*(1-VLOOKUP(B78,Lookups!A:AL,38))^(A78-$A$3),"") ->  | AT78: =IF(BA78>=$B$3,VLOOKUP(BA78,Lookups!A:AL,26)*(1-VLOOKUP(BA78,Lookups!A:AL,37))^(BA78-$B$3),"") -> 1 | AU78: =IF(BA78>=$B$3,VLOOKUP(BA78,Lookups!A:AL,27)*(1-VLOOKUP(BA78,Lookups!A:AL,38))^(BA78-$B$3),"") -> 1 | AV78: 1 | AW78: =IF(AV77="",1,AW77*(1-AV77)) -> 0 | AX78: 0.07512761575 | AY78: 0.541667 | BA78: 122 | BB78: 2424345.99 | BC78: 0 | BD78: 0 | BE78: 0 | BF78: 0 | BG78: 0 | BH78: 0 | BI78: 0 | BJ78: 0 | BK78: 0 | BL78: 0 | BM78: 0 | BN78: 0 | BO78: 0 | BP78: 0 | BQ78: 0 | BR78: =BR73*BR74 -> 0
A79: 2089 | B79: 96 | D79: =VLOOKUP(B79,Lookups!A:P,16) -> 16394.78931 | E79: 0 | G79: 0 | H79: 0 | J79: =IF($B80<65, VLOOKUP(A80,'L-Trends'!$A$3:$D$95,IF(ExFlg=0,2,3),FALSE), VLOOKUP(A80,'L-Trends'!$A$3:$D$95,IF(ExFlg=0,2,4),FALSE))+Sens -> 1.046 | K79: 78.78529706 | L79: 1 | M79: 1 | O79: 1 | P79: 1 | Q79: 1 | R79: 1 | T79: 1291668.346 | U79: 0 | V79: 1291668.346 | X79: 0 | Y79: 0 | Z79: 0 | AB79: 1291668.346 | AD79: =IF(B79<71,VLOOKUP(B79,Lookups!A:AG,32),"") ->  | AE79: =IF(B79<71,VLOOKUP(B79,Lookups!A:AG,33),"") ->  | AG79: =IF(B79<70,VLOOKUP(B79,Lookups!A:AG,28),"") ->  | AH79: =IF(B79<70,VLOOKUP(B79,Lookups!A:AG,29),"") ->  | AJ79: =IF(B79<70,VLOOKUP(B79,Lookups!A:AG,30),"") ->  | AK79: =IF(B79<70,VLOOKUP(B79,Lookups!A:AG,31),"") ->  | AM79: =IF(B79<70,VLOOKUP(B79,Lookups!A:AL,26)*(1-VLOOKUP(B79,Lookups!A:AL,37))^(A79-$A$3),"") ->  | AN79: =IF(B79<70,VLOOKUP(B79,Lookups!A:AL,27)*(1-VLOOKUP(B79,Lookups!A:AL,38))^(A79-$A$3),"") ->  | AT79: =IF(BA79>=$B$3,VLOOKUP(BA79,Lookups!A:AL,26)*(1-VLOOKUP(BA79,Lookups!A:AL,37))^(BA79-$B$3),"") -> 1 | AU79: =IF(BA79>=$B$3,VLOOKUP(BA79,Lookups!A:AL,27)*(1-VLOOKUP(BA79,Lookups!A:AL,38))^(BA79-$B$3),"") -> 1 | AV79: 1 | AW79: 0 | AX79: 0.07223809207 | AY79: 0.541667 | BA79: 123 | BB79: 2424345.99 | BC79: 0 | BD79: 0 | BE79: 0 | BF79: 0 | BG79: 0 | BH79: 0 | BI79: 0 | BJ79: 0 | BK79: 0 | BL79: 0 | BM79: 0 | BN79: 0 | BO79: 0 | BP79: 0 | BQ79: 0 | BR79: =BR78*1 -> 0
A80: 2090 | B80: 97 | D80: =VLOOKUP(B80,Lookups!A:P,16) -> 16394.78931 | E80: 0 | G80: 0 | H80: 0 | J80: =IF($B81<65, VLOOKUP(A81,'L-Trends'!$A$3:$D$95,IF(ExFlg=0,2,3),FALSE), VLOOKUP(A81,'L-Trends'!$A$3:$D$95,IF(ExFlg=0,2,4),FALSE))+Sens -> 1.046 | K80: 82.40942073 | L80: 1 | M80: 1 | O80: 1 | P80: 1 | Q80: 1 | R80: 1 | T80: 1351085.09 | U80: 0 | V80: 1351085.09 | X80: 0 | Y80: 0 | Z80: 0 | AB80: 1351085.09 | AD80: =IF(B80<71,VLOOKUP(B80,Lookups!A:AG,32),"") ->  | AE80: =IF(B80<71,VLOOKUP(B80,Lookups!A:AG,33),"") ->  | AG80: =IF(B80<70,VLOOKUP(B80,Lookups!A:AG,28),"") ->  | AH80: =IF(B80<70,VLOOKUP(B80,Lookups!A:AG,29),"") ->  | AJ80: =IF(B80<70,VLOOKUP(B80,Lookups!A:AG,30),"") ->  | AK80: =IF(B80<70,VLOOKUP(B80,Lookups!A:AG,31),"") ->  | AM80: =IF(B80<70,VLOOKUP(B80,Lookups!A:AL,26)*(1-VLOOKUP(B80,Lookups!A:AL,37))^(A80-$A$3),"") ->  | AN80: =IF(B80<70,VLOOKUP(B80,Lookups!A:AL,27)*(1-VLOOKUP(B80,Lookups!A:AL,38))^(A80-$A$3),"") ->  | AT80: =IF(BA80>=$B$3,VLOOKUP(BA80,Lookups!A:AL,26)*(1-VLOOKUP(BA80,Lookups!A:AL,37))^(BA80-$B$3),"") -> 1 | AU80: =IF(BA80>=$B$3,VLOOKUP(BA80,Lookups!A:AL,27)*(1-VLOOKUP(BA80,Lookups!A:AL,38))^(BA80-$B$3),"") -> 1 | AV80: 1 | AW80: 0 | AX80: 0.06945970391 | AY80: 0.541667 | BA80: 124 | BB80: 2424345.99 | BC80: 0 | BD80: 0 | BE80: 0 | BF80: 0 | BG80: 0 | BH80: 0 | BI80: 0 | BJ80: 0 | BK80: 0 | BL80: 0 | BM80: 0 | BN80: 0 | BO80: 0 | BP80: 0 | BQ80: 0
A81: 2091 | B81: 98 | D81: =VLOOKUP(B81,Lookups!A:P,16) -> 16394.78931 | E81: 0 | G81: 0 | H81: 0 | J81: =IF($B82<65, VLOOKUP(A82,'L-Trends'!$A$3:$D$95,IF(ExFlg=0,2,3),FALSE), VLOOKUP(A82,'L-Trends'!$A$3:$D$95,IF(ExFlg=0,2,4),FALSE))+Sens -> 1.046 | K81: 86.20025408 | L81: 1 | M81: 1 | O81: 1 | P81: 1 | Q81: 1 | R81: 1 | T81: 1413235.004 | U81: 0 | V81: 1413235.004 | X81: 0 | Y81: 0 | Z81: 0 | AB81: 1413235.004 | AD81: =IF(B81<71,VLOOKUP(B81,Lookups!A:AG,32),"") ->  | AE81: =IF(B81<71,VLOOKUP(B81,Lookups!A:AG,33),"") ->  | AG81: =IF(B81<70,VLOOKUP(B81,Lookups!A:AG,28),"") ->  | AH81: =IF(B81<70,VLOOKUP(B81,Lookups!A:AG,29),"") ->  | AJ81: =IF(B81<70,VLOOKUP(B81,Lookups!A:AG,30),"") ->  | AK81: =IF(B81<70,VLOOKUP(B81,Lookups!A:AG,31),"") ->  | AM81: =IF(B81<70,VLOOKUP(B81,Lookups!A:AL,26)*(1-VLOOKUP(B81,Lookups!A:AL,37))^(A81-$A$3),"") ->  | AN81: =IF(B81<70,VLOOKUP(B81,Lookups!A:AL,27)*(1-VLOOKUP(B81,Lookups!A:AL,38))^(A81-$A$3),"") ->  | AT81: =IF(BA81>=$B$3,VLOOKUP(BA81,Lookups!A:AL,26)*(1-VLOOKUP(BA81,Lookups!A:AL,37))^(BA81-$B$3),"") -> 1 | AU81: =IF(BA81>=$B$3,VLOOKUP(BA81,Lookups!A:AL,27)*(1-VLOOKUP(BA81,Lookups!A:AL,38))^(BA81-$B$3),"") -> 1 | AV81: 1 | AW81: 0 | AX81: 0.06678817684 | AY81: 0.541667 | BA81: 125 | BB81: 2424345.99 | BC81: 0 | BD81: 0 | BE81: 0 | BF81: 0 | BG81: 0 | BH81: 0 | BI81: 0 | BJ81: 0 | BK81: 0 | BL81: 0 | BM81: 0 | BN81: 0 | BO81: 0 | BP81: 0 | BQ81: 0
A82: 2092 | B82: 99 | D82: =VLOOKUP(B82,Lookups!A:P,16) -> 16394.78931 | E82: 0 | G82: 0 | H82: 0 | J82: =IF($B83<65, VLOOKUP(A83,'L-Trends'!$A$3:$D$95,IF(ExFlg=0,2,3),FALSE), VLOOKUP(A83,'L-Trends'!$A$3:$D$95,IF(ExFlg=0,2,4),FALSE))+Sens -> 1.046 | K82: 90.16546577 | L82: 1 | M82: 1 | O82: 1 | P82: 1 | Q82: 1 | R82: 1 | T82: 1478243.814 | U82: 0 | V82: 1478243.814 | X82: 0 | Y82: 0 | Z82: 0 | AB82: 1478243.814 | AD82: =IF(B82<71,VLOOKUP(B82,Lookups!A:AG,32),"") ->  | AE82: =IF(B82<71,VLOOKUP(B82,Lookups!A:AG,33),"") ->  | AG82: =IF(B82<70,VLOOKUP(B82,Lookups!A:AG,28),"") ->  | AH82: =IF(B82<70,VLOOKUP(B82,Lookups!A:AG,29),"") ->  | AJ82: =IF(B82<70,VLOOKUP(B82,Lookups!A:AG,30),"") ->  | AK82: =IF(B82<70,VLOOKUP(B82,Lookups!A:AG,31),"") ->  | AM82: =IF(B82<70,VLOOKUP(B82,Lookups!A:AL,26)*(1-VLOOKUP(B82,Lookups!A:AL,37))^(A82-$A$3),"") ->  | AN82: =IF(B82<70,VLOOKUP(B82,Lookups!A:AL,27)*(1-VLOOKUP(B82,Lookups!A:AL,38))^(A82-$A$3),"") ->  | AT82: =IF(BA82>=$B$3,VLOOKUP(BA82,Lookups!A:AL,26)*(1-VLOOKUP(BA82,Lookups!A:AL,37))^(BA82-$B$3),"") -> 1 | AU82: =IF(BA82>=$B$3,VLOOKUP(BA82,Lookups!A:AL,27)*(1-VLOOKUP(BA82,Lookups!A:AL,38))^(BA82-$B$3),"") -> 1 | AV82: 1 | AW82: 0 | AX82: 0.0642194008 | AY82: 0.541667 | BA82: 126 | BB82: 2424345.99 | BC82: 0 | BD82: 0 | BE82: 0 | BF82: 0 | BG82: 0 | BH82: 0 | BI82: 0 | BJ82: 0 | BK82: 0 | BL82: 0 | BM82: 0 | BN82: 0 | BO82: 0 | BP82: 0 | BQ82: 0
A83: 2093 | B83: 100 | D83: =VLOOKUP(B83,Lookups!A:P,16) -> 16394.78931 | E83: 0 | G83: 0 | H83: 0 | J83: =IF($B84<65, VLOOKUP(A84,'L-Trends'!$A$3:$D$95,IF(ExFlg=0,2,3),FALSE), VLOOKUP(A84,'L-Trends'!$A$3:$D$95,IF(ExFlg=0,2,4),FALSE))+Sens -> 1.046 | K83: 94.3130772 | L83: 1 | M83: 1 | O83: 1 | P83: 1 | Q83: 1 | R83: 1 | T83: 1546243.03 | U83: 0 | V83: 1546243.03 | X83: 0 | Y83: 0 | Z83: 0 | AB83: 1546243.03 | AD83: =IF(B83<71,VLOOKUP(B83,Lookups!A:AG,32),"") ->  | AE83: =IF(B83<71,VLOOKUP(B83,Lookups!A:AG,33),"") ->  | AG83: =IF(B83<70,VLOOKUP(B83,Lookups!A:AG,28),"") ->  | AH83: =IF(B83<70,VLOOKUP(B83,Lookups!A:AG,29),"") ->  | AJ83: =IF(B83<70,VLOOKUP(B83,Lookups!A:AG,30),"") ->  | AK83: =IF(B83<70,VLOOKUP(B83,Lookups!A:AG,31),"") ->  | AM83: =IF(B83<70,VLOOKUP(B83,Lookups!A:AL,26)*(1-VLOOKUP(B83,Lookups!A:AL,37))^(A83-$A$3),"") ->  | AN83: =IF(B83<70,VLOOKUP(B83,Lookups!A:AL,27)*(1-VLOOKUP(B83,Lookups!A:AL,38))^(A83-$A$3),"") ->  | BC83: =IF(BB12<>"",SUM(BC12:BC82)*BC84*BC85*BC86*PART,"") -> 42354.59795 | BD83: =IF(BB13<>"",SUM(BD12:BD82)*BD84*BD85*BD86*PART,"") -> 29538.6485 | BE83: =IF(BB14<>"",SUM(BE12:BE82)*BE84*BE85*BE86*PART,"") -> 20458.97229 | BF83: =IF(BB15<>"",SUM(BF12:BF82)*BF84*BF85*BF86*PART,"") -> 14077.9104 | BG83: =IF(BB16<>"",SUM(BG12:BG82)*BG84*BG85*BG86*PART,"") -> 11231.34005 | BH83: =IF(BB17<>"",SUM(BH12:BH82)*BH84*BH85*BH86*PART,"") -> 7083.753326 | BI83: =IF(BB18<>"",SUM(BI12:BI82)*BI84*BI85*BI86*PART,"") -> 4442.375211 | BJ83: =IF(BB19<>"",SUM(BJ12:BJ82)*BJ84*BJ85*BJ86*PART,"") -> 2769.808561 | BK83: =IF(BB20<>"",SUM(BK12:BK82)*BK84*BK85*BK86*PART,"") -> 1716.405849 | BL83: =IF(BB21<>"",SUM(BL12:BL82)*BL84*BL85*BL86*PART,"") -> 1069.639718 | BM83: =IF(BB22<>"",SUM(BM12:BM82)*BM84*BM85*BM86*PART,"") -> 627.5138521 | BN83: =IF(BB23<>"",SUM(BN12:BN82)*BN84*BN85*BN86*PART,"") -> 383.2722351 | BO83: =IF(BB24<>"",SUM(BO12:BO82)*BO84*BO85*BO86*PART,"") -> 242.6001546 | BP83: =IF(BB25<>"",SUM(BP12:BP82)*BP84*BP85*BP86*PART,"") -> 158.4950158 | BQ83: =IF(BB26<>"",SUM(BQ12:BQ82)*BQ84*BQ85*BQ86*PART,"") -> 409.5258022
A84: 2094 | B84: 101 | D84: =VLOOKUP(B84,Lookups!A:P,16) -> 16394.78931 | E84: 0 | G84: 0 | H84: 0 | J84: =IF($B85<65, VLOOKUP(A85,'L-Trends'!$A$3:$D$95,IF(ExFlg=0,2,3),FALSE), VLOOKUP(A85,'L-Trends'!$A$3:$D$95,IF(ExFlg=0,2,4),FALSE))+Sens -> 1.046 | K84: 98.65147875 | L84: 1 | M84: 1 | O84: 1 | P84: 1 | Q84: 1 | R84: 1 | T84: 1617370.209 | U84: 0 | V84: 1617370.209 | X84: 0 | Y84: 0 | Z84: 0 | AB84: 1617370.209 | AD84: =IF(B84<71,VLOOKUP(B84,Lookups!A:AG,32),"") ->  | AE84: =IF(B84<71,VLOOKUP(B84,Lookups!A:AG,33),"") ->  | AG84: =IF(B84<70,VLOOKUP(B84,Lookups!A:AG,28),"") ->  | AH84: =IF(B84<70,VLOOKUP(B84,Lookups!A:AG,29),"") ->  | AJ84: =IF(B84<70,VLOOKUP(B84,Lookups!A:AG,30),"") ->  | AK84: =IF(B84<70,VLOOKUP(B84,Lookups!A:AG,31),"") ->  | AM84: =IF(B84<70,VLOOKUP(B84,Lookups!A:AL,26)*(1-VLOOKUP(B84,Lookups!A:AL,37))^(A84-$A$3),"") ->  | AN84: =IF(B84<70,VLOOKUP(B84,Lookups!A:AL,27)*(1-VLOOKUP(B84,Lookups!A:AL,38))^(A84-$A$3),"") ->  | BB84: Survive | BC84: =VLOOKUP(BC2,$B$3:$AR$93,42) -> 0.08244955447 | BD84: =VLOOKUP(BD2,$B$3:$AR$93,42) -> 0.05809479894 | BE84: =VLOOKUP(BE2,$B$3:$AR$93,42) -> 0.04078480926 | BF84: 0.02854331688 | BG84: 0.01992440513 | BH84: 0.01288286071 | BI84: 0.008316358756 | BJ84: 0.005362910969 | BK84: 0.003455946976 | BL84: 0.002226744828 | BM84: 0.001435274087 | BN84: 0.0009593856603 | BO84: 0.0006610973601 | BP84: 0.0004670551786 | BQ84: 0.0003365038068
A85: 2095 | B85: 102 | D85: =VLOOKUP(B85,Lookups!A:P,16) -> 16394.78931 | E85: 0 | G85: 0 | H85: 0 | J85: =IF($B86<65, VLOOKUP(A86,'L-Trends'!$A$3:$D$95,IF(ExFlg=0,2,3),FALSE), VLOOKUP(A86,'L-Trends'!$A$3:$D$95,IF(ExFlg=0,2,4),FALSE))+Sens -> 1.046 | K85: 103.1894468 | L85: 1 | M85: 1 | O85: 1 | P85: 1 | Q85: 1 | R85: 1 | T85: 1691769.239 | U85: 0 | V85: 1691769.239 | X85: 0 | Y85: 0 | Z85: 0 | AB85: 1691769.239 | AD85: =IF(B85<71,VLOOKUP(B85,Lookups!A:AG,32),"") ->  | AE85: =IF(B85<71,VLOOKUP(B85,Lookups!A:AG,33),"") ->  | AG85: =IF(B85<70,VLOOKUP(B85,Lookups!A:AG,28),"") ->  | AH85: =IF(B85<70,VLOOKUP(B85,Lookups!A:AG,29),"") ->  | AJ85: =IF(B85<70,VLOOKUP(B85,Lookups!A:AG,30),"") ->  | AK85: =IF(B85<70,VLOOKUP(B85,Lookups!A:AG,31),"") ->  | AM85: =IF(B85<70,VLOOKUP(B85,Lookups!A:AL,26)*(1-VLOOKUP(B85,Lookups!A:AL,37))^(A85-$A$3),"") ->  | AN85: =IF(B85<70,VLOOKUP(B85,Lookups!A:AL,27)*(1-VLOOKUP(B85,Lookups!A:AL,38))^(A85-$A$3),"") ->  | BB85: Interest | BC85: =VLOOKUP(BC2,$B$3:$AR$93,43) -> 0.2534154707 | BD85: =VLOOKUP(BD2,$B$3:$AR$93,43) -> 0.2436687219 | BE85: 0.2342968479 | BF85: 0.2252854307 | BG85: 0.2166206064 | BH85: 0.2082890447 | BI85: 0.2002779276 | BJ85: 0.1925749303 | BK85: 0.1851682023 | BL85: 0.1780463483 | BM85: 0.1711984118 | BN85: =VLOOKUP(BN2,$B$3:$AR$93,43) -> 0.1646138575 | BO85: 0.1582825553 | BP85: 0.1521947647 | BQ85: 0.1463411199
A86: 2096 | B86: 103 | D86: =VLOOKUP(B86,Lookups!A:P,16) -> 16394.78931 | E86: 0 | G86: 0 | H86: 0 | J86: =IF($B87<65, VLOOKUP(A87,'L-Trends'!$A$3:$D$95,IF(ExFlg=0,2,3),FALSE), VLOOKUP(A87,'L-Trends'!$A$3:$D$95,IF(ExFlg=0,2,4),FALSE))+Sens -> 1.046 | K86: 107.9361613 | L86: 1 | M86: 1 | O86: 1 | P86: 1 | Q86: 1 | R86: 1 | T86: 1769590.624 | U86: 0 | V86: 1769590.624 | X86: 0 | Y86: 0 | Z86: 0 | AB86: 1769590.624 | AD86: =IF(B86<71,VLOOKUP(B86,Lookups!A:AG,32),"") ->  | AE86: =IF(B86<71,VLOOKUP(B86,Lookups!A:AG,33),"") ->  | AG86: =IF(B86<70,VLOOKUP(B86,Lookups!A:AG,28),"") ->  | AH86: =IF(B86<70,VLOOKUP(B86,Lookups!A:AG,29),"") ->  | AJ86: =IF(B86<70,VLOOKUP(B86,Lookups!A:AG,30),"") ->  | AK86: =IF(B86<70,VLOOKUP(B86,Lookups!A:AG,31),"") ->  | AM86: =IF(B86<70,VLOOKUP(B86,Lookups!A:AL,26)*(1-VLOOKUP(B86,Lookups!A:AL,37))^(A86-$A$3),"") ->  | AN86: =IF(B86<70,VLOOKUP(B86,Lookups!A:AL,27)*(1-VLOOKUP(B86,Lookups!A:AL,38))^(A86-$A$3),"") ->  | BB86: Retire | BC86: =VLOOKUP(BC2,$B$3:$AR$93,31) + VLOOKUP(BC2,$B$3:$AR$93,37) -> 0.2928 | BD86: =VLOOKUP(BD2,$B$3:$AR$93,31) + VLOOKUP(BD2,$B$3:$AR$93,37) -> 0.2952 | BE86: 0.2972 | BF86: 0.2988 | BG86: 0.35 | BH86: 0.3508 | BI86: 0.3512 | BJ86: 0.3512 | BK86: 0.3508 | BL86: 0.35 | BM86: 0.3256 | BN86: 0.3044 | BO86: 0.2864 | BP86: 0.2716 | BQ86: =VLOOKUP(BQ2,$B$3:$AR$93,31) -> 1
A87: 2097 | B87: 104 | D87: =VLOOKUP(B87,Lookups!A:P,16) -> 16394.78931 | E87: 0 | G87: 0 | H87: 0 | J87: =IF($B88<65, VLOOKUP(A88,'L-Trends'!$A$3:$D$95,IF(ExFlg=0,2,3),FALSE), VLOOKUP(A88,'L-Trends'!$A$3:$D$95,IF(ExFlg=0,2,4),FALSE))+Sens -> 1.046 | K87: 112.9012247 | L87: 1 | M87: 1 | O87: 1 | P87: 1 | Q87: 1 | R87: 1 | T87: 1850991.792 | U87: 0 | V87: 1850991.792 | X87: 0 | Y87: 0 | Z87: 0 | AB87: 1850991.792 | AD87: =IF(B87<71,VLOOKUP(B87,Lookups!A:AG,32),"") ->  | AE87: =IF(B87<71,VLOOKUP(B87,Lookups!A:AG,33),"") ->  | AG87: =IF(B87<70,VLOOKUP(B87,Lookups!A:AG,28),"") ->  | AH87: =IF(B87<70,VLOOKUP(B87,Lookups!A:AG,29),"") ->  | AJ87: =IF(B87<70,VLOOKUP(B87,Lookups!A:AG,30),"") ->  | AK87: =IF(B87<70,VLOOKUP(B87,Lookups!A:AG,31),"") ->  | AM87: =IF(B87<70,VLOOKUP(B87,Lookups!A:AL,26)*(1-VLOOKUP(B87,Lookups!A:AL,37))^(A87-$A$3),"") ->  | AN87: =IF(B87<70,VLOOKUP(B87,Lookups!A:AL,27)*(1-VLOOKUP(B87,Lookups!A:AL,38))^(A87-$A$3),"") -> 
A88: 2098 | B88: 105 | D88: =VLOOKUP(B88,Lookups!A:P,16) -> 16394.78931 | E88: 0 | G88: 0 | H88: 0 | J88: =IF($B89<65, VLOOKUP(A89,'L-Trends'!$A$3:$D$95,IF(ExFlg=0,2,3),FALSE), VLOOKUP(A89,'L-Trends'!$A$3:$D$95,IF(ExFlg=0,2,4),FALSE))+Sens -> 1.046 | K88: 118.0946811 | L88: 1 | M88: 1 | O88: 1 | P88: 1 | Q88: 1 | R88: 1 | T88: 1936137.415 | U88: 0 | V88: 1936137.415 | X88: 0 | Y88: 0 | Z88: 0 | AB88: 1936137.415 | AD88: =IF(B88<71,VLOOKUP(B88,Lookups!A:AG,32),"") ->  | AE88: =IF(B88<71,VLOOKUP(B88,Lookups!A:AG,33),"") ->  | AG88: =IF(B88<70,VLOOKUP(B88,Lookups!A:AG,28),"") ->  | AH88: =IF(B88<70,VLOOKUP(B88,Lookups!A:AG,29),"") ->  | AJ88: =IF(B88<70,VLOOKUP(B88,Lookups!A:AG,30),"") ->  | AK88: =IF(B88<70,VLOOKUP(B88,Lookups!A:AG,31),"") ->  | AM88: =IF(B88<70,VLOOKUP(B88,Lookups!A:AL,26)*(1-VLOOKUP(B88,Lookups!A:AL,37))^(A88-$A$3),"") ->  | AN88: =IF(B88<70,VLOOKUP(B88,Lookups!A:AL,27)*(1-VLOOKUP(B88,Lookups!A:AL,38))^(A88-$A$3),"") -> 
A89: 2099 | B89: 106 | D89: =VLOOKUP(B89,Lookups!A:P,16) -> 16394.78931 | E89: 0 | G89: 0 | H89: 0 | J89: =IF($B90<65, VLOOKUP(A90,'L-Trends'!$A$3:$D$95,IF(ExFlg=0,2,3),FALSE), VLOOKUP(A90,'L-Trends'!$A$3:$D$95,IF(ExFlg=0,2,4),FALSE))+Sens -> 1.046 | K89: 123.5270364 | L89: 1 | M89: 1 | O89: 1 | P89: 1 | Q89: 1 | R89: 1 | T89: 2025199.736 | U89: 0 | V89: 2025199.736 | X89: 0 | Y89: 0 | Z89: 0 | AB89: 2025199.736 | AD89: =IF(B89<71,VLOOKUP(B89,Lookups!A:AG,32),"") ->  | AE89: =IF(B89<71,VLOOKUP(B89,Lookups!A:AG,33),"") ->  | AG89: =IF(B89<70,VLOOKUP(B89,Lookups!A:AG,28),"") ->  | AH89: =IF(B89<70,VLOOKUP(B89,Lookups!A:AG,29),"") ->  | AJ89: =IF(B89<70,VLOOKUP(B89,Lookups!A:AG,30),"") ->  | AK89: =IF(B89<70,VLOOKUP(B89,Lookups!A:AG,31),"") ->  | AM89: =IF(B89<70,VLOOKUP(B89,Lookups!A:AL,26)*(1-VLOOKUP(B89,Lookups!A:AL,37))^(A89-$A$3),"") ->  | AN89: =IF(B89<70,VLOOKUP(B89,Lookups!A:AL,27)*(1-VLOOKUP(B89,Lookups!A:AL,38))^(A89-$A$3),"") -> 
A90: 2100 | B90: 107 | D90: =VLOOKUP(B90,Lookups!A:P,16) -> 16394.78931 | E90: 0 | G90: 0 | H90: 0 | J90: =IF($B91<65, VLOOKUP(A91,'L-Trends'!$A$3:$D$95,IF(ExFlg=0,2,3),FALSE), VLOOKUP(A91,'L-Trends'!$A$3:$D$95,IF(ExFlg=0,2,4),FALSE))+Sens -> 1.046 | K90: 129.2092801 | L90: 1 | M90: 1 | O90: 1 | P90: 1 | Q90: 1 | R90: 1 | T90: 2118358.924 | U90: 0 | V90: 2118358.924 | X90: 0 | Y90: 0 | Z90: 0 | AB90: 2118358.924 | AD90: =IF(B90<71,VLOOKUP(B90,Lookups!A:AG,32),"") ->  | AE90: =IF(B90<71,VLOOKUP(B90,Lookups!A:AG,33),"") ->  | AG90: =IF(B90<70,VLOOKUP(B90,Lookups!A:AG,28),"") ->  | AH90: =IF(B90<70,VLOOKUP(B90,Lookups!A:AG,29),"") ->  | AJ90: =IF(B90<70,VLOOKUP(B90,Lookups!A:AG,30),"") ->  | AK90: =IF(B90<70,VLOOKUP(B90,Lookups!A:AG,31),"") ->  | AM90: =IF(B90<70,VLOOKUP(B90,Lookups!A:AL,26)*(1-VLOOKUP(B90,Lookups!A:AL,37))^(A90-$A$3),"") ->  | AN90: =IF(B90<70,VLOOKUP(B90,Lookups!A:AL,27)*(1-VLOOKUP(B90,Lookups!A:AL,38))^(A90-$A$3),"") -> 
A91: 2101 | B91: 108 | D91: =VLOOKUP(B91,Lookups!A:P,16) -> 16394.78931 | E91: 0 | G91: 0 | H91: 0 | J91: =IF($B92<65, VLOOKUP(A92,'L-Trends'!$A$3:$D$95,IF(ExFlg=0,2,3),FALSE), VLOOKUP(A92,'L-Trends'!$A$3:$D$95,IF(ExFlg=0,2,4),FALSE))+Sens -> 1.046 | K91: 135.152907 | L91: 1 | M91: 1 | O91: 1 | P91: 1 | Q91: 1 | R91: 1 | T91: 2215803.434 | U91: 0 | V91: 2215803.434 | X91: 0 | Y91: 0 | Z91: 0 | AB91: 2215803.434 | AD91: =IF(B91<71,VLOOKUP(B91,Lookups!A:AG,32),"") ->  | AE91: =IF(B91<71,VLOOKUP(B91,Lookups!A:AG,33),"") ->  | AG91: =IF(B91<70,VLOOKUP(B91,Lookups!A:AG,28),"") ->  | AH91: =IF(B91<70,VLOOKUP(B91,Lookups!A:AG,29),"") ->  | AJ91: =IF(B91<70,VLOOKUP(B91,Lookups!A:AG,30),"") ->  | AK91: =IF(B91<70,VLOOKUP(B91,Lookups!A:AG,31),"") ->  | AM91: =IF(B91<70,VLOOKUP(B91,Lookups!A:AL,26)*(1-VLOOKUP(B91,Lookups!A:AL,37))^(A91-$A$3),"") ->  | AN91: =IF(B91<70,VLOOKUP(B91,Lookups!A:AL,27)*(1-VLOOKUP(B91,Lookups!A:AL,38))^(A91-$A$3),"") -> 
A92: 2102 | B92: 109 | D92: =VLOOKUP(B92,Lookups!A:P,16) -> 16394.78931 | E92: 0 | G92: 0 | H92: 0 | J92: =IF($B93<65, VLOOKUP(A93,'L-Trends'!$A$3:$D$95,IF(ExFlg=0,2,3),FALSE), VLOOKUP(A93,'L-Trends'!$A$3:$D$95,IF(ExFlg=0,2,4),FALSE))+Sens -> 1.046 | K92: 141.3699407 | L92: 1 | M92: 1 | O92: 1 | P92: 1 | Q92: 1 | R92: 1 | T92: 2317730.392 | U92: 0 | V92: 2317730.392 | X92: 0 | Y92: 0 | Z92: 0 | AB92: 2317730.392 | AD92: =IF(B92<71,VLOOKUP(B92,Lookups!A:AG,32),"") ->  | AE92: =IF(B92<71,VLOOKUP(B92,Lookups!A:AG,33),"") ->  | AG92: =IF(B92<70,VLOOKUP(B92,Lookups!A:AG,28),"") ->  | AH92: =IF(B92<70,VLOOKUP(B92,Lookups!A:AG,29),"") ->  | AJ92: =IF(B92<70,VLOOKUP(B92,Lookups!A:AG,30),"") ->  | AK92: =IF(B92<70,VLOOKUP(B92,Lookups!A:AG,31),"") ->  | AM92: =IF(B92<70,VLOOKUP(B92,Lookups!A:AL,26)*(1-VLOOKUP(B92,Lookups!A:AL,37))^(A92-$A$3),"") ->  | AN92: =IF(B92<70,VLOOKUP(B92,Lookups!A:AL,27)*(1-VLOOKUP(B92,Lookups!A:AL,38))^(A92-$A$3),"") -> 
A93: 2103 | B93: 110 | D93: =VLOOKUP(B93,Lookups!A:P,16) -> 16394.78931 | E93: 0 | G93: 0 | H93: 0 | K93: 147.872958 | M93: 1 | P93: 1 | R93: 1 | T93: 2424345.99 | U93: 0 | V93: 2424345.99 | X93: 0 | Y93: 0 | Z93: 0 | AB93: 2424345.99 | AD93: =IF(B93<71,VLOOKUP(B93,Lookups!A:AG,32),"") ->  | AE93: =IF(B93<71,VLOOKUP(B93,Lookups!A:AG,33),"") ->  | AG93: =IF(B93<70,VLOOKUP(B93,Lookups!A:AG,28),"") ->  | AH93: =IF(B93<70,VLOOKUP(B93,Lookups!A:AG,29),"") ->  | AJ93: =IF(B93<70,VLOOKUP(B93,Lookups!A:AG,30),"") ->  | AK93: =IF(B93<70,VLOOKUP(B93,Lookups!A:AG,31),"") ->  | AM93: =IF(B93<70,VLOOKUP(B93,Lookups!A:AL,26)*(1-VLOOKUP(B93,Lookups!A:AL,37))^(A93-$A$3),"") ->  | AN93: =IF(B93<70,VLOOKUP(B93,Lookups!A:AL,27)*(1-VLOOKUP(B93,Lookups!A:AL,38))^(A93-$A$3),"") -> 

Sheet L-Active LTC (hidden)
A1: Actives | B1: ='L-Active'!B1 -> 0 | D1: Inst. LTC | G1: Non Inst. LTC | J1: Medical | K1: LTC | T1: Institutional LTC | Y1: Non Institutional LTC | AD1: Average | BJ1: Retires at age XX | BU1: ='L-Active'!BS1 -> 0.01 | BV1: Retire | BW1: Retire | BY1: Retire | CA1: Ret Age | CB1: MS @ | CC1: LTC | CD1: Normal | CE1: LTC | CF1: Total
A2: Year | D2: Gross | G2: Gross | J2: Trend | K2: Rel Trend | T2: Gross | U2: Prem | V2: Net | W2: Rate | Y2: Gross | Z2: Prem | AA2: Net | AB2: Rate | AD2: Net | AF2: Retire - M | AG2: Retire - F | AH2: Retire | AI2: Term - M | AJ2: Term - F | AK2: Term | AL2: Dis - M | AM2: Dis - F | AN2: Disab | AO2: Death - M | AP2: Death - F | AQ2: Death | AR2: Decrement | AS2: Survive | AT2: Interest | AV2: Mort - M | AW2: Mort - F | AX2: Mortality | AY2: Survive | AZ2: Interest | BA2: Pay Timing | BC2: Age | BD2: Net | BE2: =BC12 -> 56 | BF2: =BE2+1 -> 57 | BG2: =BF2+1 -> 58 | BH2: =BG2+1 -> 59 | BI2: =BH2+1 -> 60 | BJ2: 61 | BK2: 62 | BL2: 63 | BM2: 64 | BN2: 65 | BO2: 66 | BP2: 67 | BQ2: 68 | BR2: 69 | BS2: 70 | BU2: MS | BV2: Prob | BW2: Age | BX2: Survive | BY2: Weighted | CA2: Prob | CB2: Retire | CC2: NC | CD2: Cost | CE2: PUC | CF2: PUC
A3: ='L-Active'!A3 -> 2013 | B3: ='L-Active'!B3 -> 20 | D3: =VLOOKUP(B3,Lookups!A:R,17) -> 178802.295 | E3: 0 | G3: =VLOOKUP(B3,Lookups!A:R,18) -> 99652.81263 | H3: 0 | J3: 1.0475 | K3: 1 | T3: =D3*K3 -> 178802.295 | U3: 0 | V3: =T3-U3 -> 178802.295 | W3: =VLOOKUP(B3,Lookups!A:T,19) -> 0 | Y3: =G3*K3 -> 99652.81263 | Z3: 0 | AA3: =Y3-Z3 -> 99652.81263 | AB3: =VLOOKUP(B3,Lookups!A:T,20) -> 0 | AD3: =V3*W3+AA3*AB3 -> 0 | AF3: =IF(B3<71,VLOOKUP(B3,Lookups!A:AG,32),"") -> 0 | AG3: =IF(B3<71,VLOOKUP(B3,Lookups!A:AG,33),"") -> 0 | AH3: =IF(B3<71,PCTMALE*AF3+(1-PCTMALE)*AG3,"") -> 0 | AI3: =IF(B3<70,VLOOKUP(B3,Lookups!A:AG,28),"") -> 0.107033 | AJ3: =IF(B3<70,VLOOKUP(B3,Lookups!A:AG,29),"") -> 0.107033 | AK3: =IF(B3<70,PCTMALE*AI3+(1-PCTMALE)*AJ3,"") -> 0.107033 | AL3: =IF(B3<70,VLOOKUP(B3,Lookups!A:AG,30),"") -> 0.001 | AM3: =IF(B3<70,VLOOKUP(B3,Lookups!A:AG,31),"") -> 0.001 | AN3: =IF(AH3<1,IF(B3<70,PCTMALE*AL3+(1-PCTMALE)*AM3,""),"") -> 0.001 | AO3: =IF(B3<70,VLOOKUP(B3,Lookups!A:AL,26)*(1-VLOOKUP(B3,Lookups!A:AL,37))^(A3-$A$3),"") -> 0.0003183208251 | AP3: =IF(B3<70,VLOOKUP(B3,Lookups!A:AL,27)*(1-VLOOKUP(B3,Lookups!A:AL,38))^(A3-$A$3),"") -> 0.0001846453124 | AQ3: =IF(AO3<>"",PCTMALE*AO3+(1-PCTMALE)*AP3,"") -> 0.0001846453124 | AR3: =IF(B3<71,SUM(AH3,AK3,AN3,AQ3),"") -> 0.1082176453 | AS3: 1 | AT3: 1 | BV3: =PCTMALE*VLOOKUP(BW3,Lookups!A3:$AG$93,32)+(1-PCTMALE)*VLOOKUP(BW3,Lookups!A3:$AG$93,33) -> 0.12 | BW3: 50 | BX3: 1 | BY3: =BW3*BV3*BX3 -> 6 | CA3: =BX9 -> 0.4029952819 | CB3: =MAX(BU1+BY24-B3,BU1) -> 35.27133452 | CC3: =BT79/CB3 -> 0 | CD3: =SUM(CC3:CC3) -> 0 | CE3: =CC3*BU1 -> 0 | CF3: =CE3 -> 0
A4: =1+A3 -> 2014 | B4: =ROUNDDOWN(1+B3,0) -> 21 | D4: =VLOOKUP(B4,Lookups!A:R,17) -> 178802.295 | E4: 0 | G4: =VLOOKUP(B4,Lookups!A:R,18) -> 99652.81263 | H4: 0 | J4: =J3 -> 1.0475 | K4: =K3*J4 -> 1.0475 | T4: =D4*K4 -> 187295.404 | U4: 0 | V4: 187295.404 | W4: =VLOOKUP(B4,Lookups!A:T,19) -> 3.6e-05 | Y4: =G4*K4 -> 104386.3212 | Z4: 0 | AA4: =Y4-Z4 -> 104386.3212 | AB4: =VLOOKUP(B4,Lookups!A:T,20) -> 0.000116 | AD4: =V4*W4+AA4*AB4 -> 18.85144781 | AF4: =IF(B4<71,VLOOKUP(B4,Lookups!A:AG,32),"") -> 0 | AG4: =IF(B4<71,VLOOKUP(B4,Lookups!A:AG,33),"") -> 0 | AH4: 0 | AI4: =IF(B4<70,VLOOKUP(B4,Lookups!A:AG,28),"") -> 0.048058 | AJ4: =IF(B4<70,VLOOKUP(B4,Lookups!A:AG,29),"") -> 0.048058 | AK4: 0.048058 | AL4: =IF(B4<70,VLOOKUP(B4,Lookups!A:AG,30),"") -> 0.001 | AM4: =IF(B4<70,VLOOKUP(B4,Lookups!A:AG,31),"") -> 0.001 | AN4: 0.001 | AO4: =IF(B4<70,VLOOKUP(B4,Lookups!A:AL,26)*(1-VLOOKUP(B4,Lookups!A:AL,37))^(A4-$A$3),"") -> 0.0003307891921 | AP4: =IF(B4<70,VLOOKUP(B4,Lookups!A:AL,27)*(1-VLOOKUP(B4,Lookups!A:AL,38))^(A4-$A$3),"") -> 0.000186008995 | AQ4: 0.000186008995 | AR4: =IF(B4<71,SUM(AH4,AK4,AN4,AQ4),"") -> 0.049244009 | AS4: 1 | AT4: 1 | BV4: =PCTMALE*VLOOKUP(BW4,Lookups!A4:$AG$93,32)+(1-PCTMALE)*VLOOKUP(BW4,Lookups!A4:$AG$93,33) -> 0.12 | BW4: =1+BW3 -> 51 | BX4: =BX3*(1-BV3) -> 0.88 | BY4: =BW4*BV4*BX4 -> 5.3856 | CD4: =CD3*INTRt -> 0 | CE4: ='L-Inactive LTC'!AM98 -> 0 | CF4: =CE4 -> 0
A5: 2015 | B5: 22 | D5: =VLOOKUP(B5,Lookups!A:R,17) -> 178802.295 | E5: 0 | G5: =VLOOKUP(B5,Lookups!A:R,18) -> 99652.81263 | H5: 0 | J5: =J4 -> 1.0475 | K5: =K4*J5 -> 1.09725625 | T5: 196191.9357 | U5: 0 | V5: 196191.9357 | W5: =VLOOKUP(B5,Lookups!A:T,19) -> 7.2e-05 | Y5: 109344.6715 | Z5: 0 | AA5: 109344.6715 | AB5: =VLOOKUP(B5,Lookups!A:T,20) -> 0.000232 | AD5: =V5*W5+AA5*AB5 -> 39.49378315 | AF5: =IF(B5<71,VLOOKUP(B5,Lookups!A:AG,32),"") -> 0 | AG5: =IF(B5<71,VLOOKUP(B5,Lookups!A:AG,33),"") -> 0 | AH5: 0 | AI5: =IF(B5<70,VLOOKUP(B5,Lookups!A:AG,28),"") -> 0.024484 | AJ5: =IF(B5<70,VLOOKUP(B5,Lookups!A:AG,29),"") -> 0.024484 | AK5: 0.024484 | AL5: =IF(B5<70,VLOOKUP(B5,Lookups!A:AG,30),"") -> 0.001 | AM5: =IF(B5<70,VLOOKUP(B5,Lookups!A:AG,31),"") -> 0.001 | AN5: 0.001 | AO5: =IF(B5<70,VLOOKUP(B5,Lookups!A:AL,26)*(1-VLOOKUP(B5,Lookups!A:AL,37))^(A5-$A$3),"") -> 0.0003412680185 | AP5: =IF(B5<70,VLOOKUP(B5,Lookups!A:AL,27)*(1-VLOOKUP(B5,Lookups!A:AL,38))^(A5-$A$3),"") -> 0.0001883187665 | AQ5: 0.0001883187665 | AR5: 0.02567231877 | AS5: =IF(B5<71,AS4*(1-AR4),"") -> 0.950755991 | AT5: =IF(B5<71,AT4/(1+INTRt),"") -> 0.9615384615 | BV5: =PCTMALE*VLOOKUP(BW5,Lookups!A5:$AG$93,32)+(1-PCTMALE)*VLOOKUP(BW5,Lookups!A5:$AG$93,33) -> 0.12 | BW5: 52 | BX5: =BX4*(1-BV4) -> 0.7744 | BY5: 4.832256 | CD5: =CD3+CD4 -> 0 | CE5: =SUM(CE3:CE4) -> 0 | CF5: =CF3+CF4 -> 0
A6: 2016 | B6: 23 | D6: =VLOOKUP(B6,Lookups!A:R,17) -> 178802.295 | E6: 0 | G6: =VLOOKUP(B6,Lookups!A:R,18) -> 99652.81263 | H6: 0 | J6: =J5 -> 1.0475 | K6: 1.149375922 | T6: =D6*K6 -> 205511.0526 | U6: 0 | V6: 205511.0526 | W6: =VLOOKUP(B6,Lookups!A:T,19) -> 0.000108 | Y6: 114538.5434 | Z6: 0 | AA6: 114538.5434 | AB6: =VLOOKUP(B6,Lookups!A:T,20) -> 0.000348 | AD6: 62.05460678 | AF6: =IF(B6<71,VLOOKUP(B6,Lookups!A:AG,32),"") -> 0 | AG6: =IF(B6<71,VLOOKUP(B6,Lookups!A:AG,33),"") -> 0 | AH6: 0 | AI6: =IF(B6<70,VLOOKUP(B6,Lookups!A:AG,28),"") -> 0.01935 | AJ6: =IF(B6<70,VLOOKUP(B6,Lookups!A:AG,29),"") -> 0.01935 | AK6: 0.01935 | AL6: =IF(B6<70,VLOOKUP(B6,Lookups!A:AG,30),"") -> 0.001 | AM6: =IF(B6<70,VLOOKUP(B6,Lookups!A:AG,31),"") -> 0.001 | AN6: 0.001 | AO6: =IF(B6<70,VLOOKUP(B6,Lookups!A:AL,26)*(1-VLOOKUP(B6,Lookups!A:AL,37))^(A6-$A$3),"") -> 0.0003488217996 | AP6: =IF(B6<70,VLOOKUP(B6,Lookups!A:AL,27)*(1-VLOOKUP(B6,Lookups!A:AL,38))^(A6-$A$3),"") -> 0.0001915660703 | AQ6: 0.0001915660703 | AR6: 0.02054156607 | AS6: 0.9263478801 | AT6: 0.924556213 | BV6: =PCTMALE*VLOOKUP(BW6,Lookups!A6:$AG$93,32)+(1-PCTMALE)*VLOOKUP(BW6,Lookups!A6:$AG$93,33) -> 0.12 | BW6: 53 | BX6: 0.681472 | BY6: 4.33416192
A7: 2017 | B7: 24 | D7: =VLOOKUP(B7,Lookups!A:R,17) -> 178802.295 | E7: 0 | G7: =VLOOKUP(B7,Lookups!A:R,18) -> 99652.81263 | H7: 0 | J7: 1.0475 | K7: 1.203971278 | T7: 215272.8276 | U7: 0 | V7: 215272.8276 | W7: =VLOOKUP(B7,Lookups!A:T,19) -> 0.000144 | Y7: 119979.1242 | Z7: 0 | AA7: 119979.1242 | AB7: =VLOOKUP(B7,Lookups!A:T,20) -> 0.000464 | AD7: 86.6696008 | AF7: =IF(B7<71,VLOOKUP(B7,Lookups!A:AG,32),"") -> 0 | AG7: =IF(B7<71,VLOOKUP(B7,Lookups!A:AG,33),"") -> 0 | AH7: 0 | AI7: =IF(B7<70,VLOOKUP(B7,Lookups!A:AG,28),"") -> 0.0187 | AJ7: =IF(B7<70,VLOOKUP(B7,Lookups!A:AG,29),"") -> 0.0187 | AK7: 0.0187 | AL7: =IF(B7<70,VLOOKUP(B7,Lookups!A:AG,30),"") -> 0.001 | AM7: =IF(B7<70,VLOOKUP(B7,Lookups!A:AG,31),"") -> 0.001 | AN7: 0.001 | AO7: =IF(B7<70,VLOOKUP(B7,Lookups!A:AL,26)*(1-VLOOKUP(B7,Lookups!A:AL,37))^(A7-$A$3),"") -> 0.0003544267751 | AP7: =IF(B7<70,VLOOKUP(B7,Lookups!A:AL,27)*(1-VLOOKUP(B7,Lookups!A:AL,38))^(A7-$A$3),"") -> 0.0001966926071 | AQ7: 0.0001966926071 | AR7: 0.01989669261 | AS7: 0.907319244 | AT7: 0.8889963587 | BV7: =PCTMALE*VLOOKUP(BW7,Lookups!A7:$AG$93,32)+(1-PCTMALE)*VLOOKUP(BW7,Lookups!A7:$AG$93,33) -> 0.16 | BW7: 54 | BX7: 0.59969536 | BY7: 5.18136791
A8: 2018 | B8: 25 | D8: =VLOOKUP(B8,Lookups!A:R,17) -> 178802.295 | E8: 0 | G8: =VLOOKUP(B8,Lookups!A:R,18) -> 99652.81263 | H8: 0 | J8: 1.0475 | K8: 1.261159914 | T8: 225498.2869 | U8: 0 | V8: 225498.2869 | W8: =VLOOKUP(B8,Lookups!A:T,19) -> 0.00018 | Y8: 125678.1326 | Z8: 0 | AA8: 125678.1326 | AB8: =VLOOKUP(B8,Lookups!A:T,20) -> 0.00058 | AD8: 113.4830085 | AF8: =IF(B8<71,VLOOKUP(B8,Lookups!A:AG,32),"") -> 0 | AG8: =IF(B8<71,VLOOKUP(B8,Lookups!A:AG,33),"") -> 0 | AH8: 0 | AI8: =IF(B8<70,VLOOKUP(B8,Lookups!A:AG,28),"") -> 0.01805 | AJ8: =IF(B8<70,VLOOKUP(B8,Lookups!A:AG,29),"") -> 0.01805 | AK8: 0.01805 | AL8: =IF(B8<70,VLOOKUP(B8,Lookups!A:AG,30),"") -> 0.001 | AM8: =IF(B8<70,VLOOKUP(B8,Lookups!A:AG,31),"") -> 0.001 | AN8: 0.001 | AO8: =IF(B8<70,VLOOKUP(B8,Lookups!A:AL,26)*(1-VLOOKUP(B8,Lookups!A:AL,37))^(A8-$A$3),"") -> 0.0003562055604 | AP8: =IF(B8<70,VLOOKUP(B8,Lookups!A:AL,27)*(1-VLOOKUP(B8,Lookups!A:AL,38))^(A8-$A$3),"") -> 0.0002027340158 | AQ8: 0.0002027340158 | AR8: 0.01925273402 | AS8: 0.8892665919 | AT8: 0.854804191 | BV8: =PCTMALE*VLOOKUP(BW8,Lookups!A8:$AG$93,32)+(1-PCTMALE)*VLOOKUP(BW8,Lookups!A8:$AG$93,33) -> 0.2 | BW8: 55 | BX8: 0.5037441024 | BY8: 5.541185126
A9: 2019 | B9: 26 | D9: =VLOOKUP(B9,Lookups!A:R,17) -> 178802.295 | E9: 0 | G9: =VLOOKUP(B9,Lookups!A:R,18) -> 99652.81263 | H9: 0 | J9: 1.0475 | K9: 1.32106501 | T9: 236209.4555 | U9: 0 | V9: 236209.4555 | W9: =VLOOKUP(B9,Lookups!A:T,19) -> 0.000216 | Y9: 131647.8439 | Z9: 0 | AA9: 131647.8439 | AB9: =VLOOKUP(B9,Lookups!A:T,20) -> 0.000696 | AD9: 142.6481417 | AF9: =IF(B9<71,VLOOKUP(B9,Lookups!A:AG,32),"") -> 0 | AG9: =IF(B9<71,VLOOKUP(B9,Lookups!A:AG,33),"") -> 0 | AH9: 0 | AI9: =IF(B9<70,VLOOKUP(B9,Lookups!A:AG,28),"") -> 0.0174 | AJ9: =IF(B9<70,VLOOKUP(B9,Lookups!A:AG,29),"") -> 0.0174 | AK9: 0.0174 | AL9: =IF(B9<70,VLOOKUP(B9,Lookups!A:AG,30),"") -> 0.002397 | AM9: =IF(B9<70,VLOOKUP(B9,Lookups!A:AG,31),"") -> 0.002397 | AN9: 0.002397 | AO9: =IF(B9<70,VLOOKUP(B9,Lookups!A:AL,26)*(1-VLOOKUP(B9,Lookups!A:AL,37))^(A9-$A$3),"") -> 0.0003551369437 | AP9: =IF(B9<70,VLOOKUP(B9,Lookups!A:AL,27)*(1-VLOOKUP(B9,Lookups!A:AL,38))^(A9-$A$3),"") -> 0.000210626432 | AQ9: 0.000210626432 | AR9: 0.02000762643 | AS9: 0.8721457787 | AT9: 0.8219271068 | BV9: =PCTMALE*VLOOKUP(BW9,Lookups!A9:$AG$93,32)+(1-PCTMALE)*VLOOKUP(BW9,Lookups!A9:$AG$93,33) -> 0.2 | BW9: 56 | BX9: 0.4029952819 | BY9: 4.513547158
A10: 2020 | B10: 27 | D10: =VLOOKUP(B10,Lookups!A:R,17) -> 178802.295 | E10: 0 | G10: =VLOOKUP(B10,Lookups!A:R,18) -> 99652.81263 | H10: 0 | J10: 1.0475 | K10: 1.383815598 | T10: 247429.4047 | U10: 0 | V10: 247429.4047 | W10: =VLOOKUP(B10,Lookups!A:T,19) -> 0.000252 | Y10: 137901.1165 | Z10: 0 | AA10: 137901.1165 | AB10: =VLOOKUP(B10,Lookups!A:T,20) -> 0.000812 | AD10: 174.3279166 | AF10: =IF(B10<71,VLOOKUP(B10,Lookups!A:AG,32),"") -> 0 | AG10: =IF(B10<71,VLOOKUP(B10,Lookups!A:AG,33),"") -> 0 | AH10: 0 | AI10: =IF(B10<70,VLOOKUP(B10,Lookups!A:AG,28),"") -> 0.01675 | AJ10: =IF(B10<70,VLOOKUP(B10,Lookups!A:AG,29),"") -> 0.01675 | AK10: 0.01675 | AL10: =IF(B10<70,VLOOKUP(B10,Lookups!A:AG,30),"") -> 0.003793 | AM10: =IF(B10<70,VLOOKUP(B10,Lookups!A:AG,31),"") -> 0.003793 | AN10: 0.003793 | AO10: =IF(B10<70,VLOOKUP(B10,Lookups!A:AL,26)*(1-VLOOKUP(B10,Lookups!A:AL,37))^(A10-$A$3),"") -> 0.0003559548921 | AP10: =IF(B10<70,VLOOKUP(B10,Lookups!A:AL,27)*(1-VLOOKUP(B10,Lookups!A:AL,38))^(A10-$A$3),"") -> 0.000221294708 | AQ10: 0.000221294708 | AR10: 0.02076429471 | AS10: 0.8546962118 | AT10: 0.7903145257 | BV10: =PCTMALE*VLOOKUP(BW10,Lookups!A10:$AG$93,32)+(1-PCTMALE)*VLOOKUP(BW10,Lookups!A10:$AG$93,33) -> 0.2 | BW10: 57 | BX10: 0.3223962255 | BY10: 3.675316971
A11: 2021 | B11: 28 | D11: =VLOOKUP(B11,Lookups!A:R,17) -> 178802.295 | E11: 0 | G11: =VLOOKUP(B11,Lookups!A:R,18) -> 99652.81263 | H11: 0 | J11: 1.0475 | K11: 1.449546839 | T11: 259182.3014 | U11: 0 | V11: 259182.3014 | W11: =VLOOKUP(B11,Lookups!A:T,19) -> 0.000288 | Y11: 144451.4195 | Z11: 0 | AA11: 144451.4195 | AB11: =VLOOKUP(B11,Lookups!A:T,20) -> 0.000928 | AD11: 208.6954201 | AF11: =IF(B11<71,VLOOKUP(B11,Lookups!A:AG,32),"") -> 0 | AG11: =IF(B11<71,VLOOKUP(B11,Lookups!A:AG,33),"") -> 0 | AH11: 0 | AI11: =IF(B11<70,VLOOKUP(B11,Lookups!A:AG,28),"") -> 0.0161 | AJ11: =IF(B11<70,VLOOKUP(B11,Lookups!A:AG,29),"") -> 0.0161 | AK11: 0.0161 | AL11: =IF(B11<70,VLOOKUP(B11,Lookups!A:AG,30),"") -> 0.005187 | AM11: =IF(B11<70,VLOOKUP(B11,Lookups!A:AG,31),"") -> 0.005187 | AN11: 0.005187 | AO11: =IF(B11<70,VLOOKUP(B11,Lookups!A:AL,26)*(1-VLOOKUP(B11,Lookups!A:AL,37))^(A11-$A$3),"") -> 0.0003586424457 | AP11: =IF(B11<70,VLOOKUP(B11,Lookups!A:AL,27)*(1-VLOOKUP(B11,Lookups!A:AL,38))^(A11-$A$3),"") -> 0.0002328359333 | AQ11: 0.0002328359333 | AR11: 0.02151983593 | AS11: 0.8369490477 | AT11: 0.7599178132 | BV11: =PCTMALE*VLOOKUP(BW11,Lookups!A11:$AG$93,32)+(1-PCTMALE)*VLOOKUP(BW11,Lookups!A11:$AG$93,33) -> 0.2 | BW11: 58 | BX11: 0.2579169804 | BY11: 2.991836973
A12: 2022 | B12: 29 | D12: =VLOOKUP(B12,Lookups!A:R,17) -> 178802.295 | E12: 0 | G12: =VLOOKUP(B12,Lookups!A:R,18) -> 99652.81263 | H12: 0 | J12: 1.0475 | K12: 1.518400313 | T12: 271493.4607 | U12: 0 | V12: 271493.4607 | W12: =VLOOKUP(B12,Lookups!A:T,19) -> 0.000324 | Y12: 151312.8619 | Z12: 0 | AA12: 151312.8619 | AB12: =VLOOKUP(B12,Lookups!A:T,20) -> 0.001044 | AD12: 245.9345091 | AF12: =IF(B12<71,VLOOKUP(B12,Lookups!A:AG,32),"") -> 0 | AG12: =IF(B12<71,VLOOKUP(B12,Lookups!A:AG,33),"") -> 0 | AH12: 0 | AI12: =IF(B12<70,VLOOKUP(B12,Lookups!A:AG,28),"") -> 0.01545 | AJ12: =IF(B12<70,VLOOKUP(B12,Lookups!A:AG,29),"") -> 0.01545 | AK12: 0.01545 | AL12: =IF(B12<70,VLOOKUP(B12,Lookups!A:AG,30),"") -> 0.006578 | AM12: =IF(B12<70,VLOOKUP(B12,Lookups!A:AG,31),"") -> 0.006578 | AN12: 0.006578 | AO12: =IF(B12<70,VLOOKUP(B12,Lookups!A:AL,26)*(1-VLOOKUP(B12,Lookups!A:AL,37))^(A12-$A$3),"") -> 0.0003678629364 | AP12: =IF(B12<70,VLOOKUP(B12,Lookups!A:AL,27)*(1-VLOOKUP(B12,Lookups!A:AL,38))^(A12-$A$3),"") -> 0.0002471140336 | AQ12: 0.0002471140336 | AR12: 0.02227511403 | AS12: 0.8189380415 | AT12: 0.730690205 | AV12: =IF(BC12>=$B$3,VLOOKUP(BC12,Lookups!A:AL,26)*(1-VLOOKUP(BC12,Lookups!A:AL,37))^(BC12-$B$3),"") -> 0.003127886216 | AW12: =IF(BC12>=$B$3,VLOOKUP(BC12,Lookups!A:AL,27)*(1-VLOOKUP(BC12,Lookups!A:AL,38))^(BC12-$B$3),"") -> 0.00258977726 | AX12: =IF(BC12>=$B$3, PCTMALE*AV12+(1-PCTMALE)*AW12, "") -> 0.00258977726 | AY12: =IF(AX11="",1,"") -> 1 | AZ12: =IF(AX11="",1,AZ11/(1+INTRt)) -> 1 | BA12: =IF(AX12="",1,ROUND((13/24)+(11/24)*(1/(1+INTRt))*(1-AX12),6)) -> 0.98123 | BC12: 56 | BD12: =IF(BC12>=$B$3,VLOOKUP(BC12,$B$3:$AD$93,29),"") -> 4363.567231 | BE12: =IF(BD12<>"",BD12*BA12*AZ12*AY12*0.5,"") -> 2140.831537 | BV12: =PCTMALE*VLOOKUP(BW12,Lookups!A12:$AG$93,32)+(1-PCTMALE)*VLOOKUP(BW12,Lookups!A12:$AG$93,33) -> 0.2 | BW12: 59 | BX12: 0.2063335843 | BY12: 2.434736295
A13: 2023 | B13: 30 | D13: =VLOOKUP(B13,Lookups!A:R,17) -> 178802.295 | E13: 0 | G13: =VLOOKUP(B13,Lookups!A:R,18) -> 99652.81263 | H13: 0 | J13: 1.0475 | K13: 1.590524328 | T13: 284389.4001 | U13: 0 | V13: 284389.4001 | W13: =VLOOKUP(B13,Lookups!A:T,19) -> 0.00036 | Y13: 158500.2229 | Z13: 0 | AA13: 158500.2229 | AB13: =VLOOKUP(B13,Lookups!A:T,20) -> 0.00116 | AD13: 286.2404426 | AF13: =IF(B13<71,VLOOKUP(B13,Lookups!A:AG,32),"") -> 0 | AG13: =IF(B13<71,VLOOKUP(B13,Lookups!A:AG,33),"") -> 0 | AH13: 0 | AI13: =IF(B13<70,VLOOKUP(B13,Lookups!A:AG,28),"") -> 0.0148 | AJ13: =IF(B13<70,VLOOKUP(B13,Lookups!A:AG,29),"") -> 0.0148 | AK13: 0.0148 | AL13: =IF(B13<70,VLOOKUP(B13,Lookups!A:AG,30),"") -> 0.007968 | AM13: =IF(B13<70,VLOOKUP(B13,Lookups!A:AG,31),"") -> 0.007968 | AN13: 0.007968 | AO13: =IF(B13<70,VLOOKUP(B13,Lookups!A:AL,26)*(1-VLOOKUP(B13,Lookups!A:AL,37))^(A13-$A$3),"") -> 0.0003844907156 | AP13: =IF(B13<70,VLOOKUP(B13,Lookups!A:AL,27)*(1-VLOOKUP(B13,Lookups!A:AL,38))^(A13-$A$3),"") -> 0.0002865015769 | AQ13: 0.0002865015769 | AR13: 0.02305450158 | AS13: 0.8006961033 | AT13: 0.7025867356 | AV13: =IF(BC13>=$B$3,VLOOKUP(BC13,Lookups!A:AL,26)*(1-VLOOKUP(BC13,Lookups!A:AL,37))^(BC13-$B$3),"") -> 0.003437290293 | AW13: =IF(BC13>=$B$3,VLOOKUP(BC13,Lookups!A:AL,27)*(1-VLOOKUP(BC13,Lookups!A:AL,38))^(BC13-$B$3),"") -> 0.00276109108 | AX13: 0.00276109108 | AY13: =IF(AX12="",1,AY12*(1-AX12)) -> 0.9974102227 | AZ13: 0.9615384615 | BA13: 0.981155 | BC13: =1+BC12 -> 57 | BD13: =IF(BC13>=$B$3,VLOOKUP(BC13,$B$3:$AD$93,29),"") -> 4839.939361 | BE13: =IF($BD$12<>"",BD13*BA13*AZ13*AY13,"") -> 4554.262067 | BF13: =IF(BD13<>"",BD13*AY13/$AY$13*BA13*AZ13/$AZ$13*0.5,"") -> 2374.365352 | BV13: =PCTMALE*VLOOKUP(BW13,Lookups!A13:$AG$93,32)+(1-PCTMALE)*VLOOKUP(BW13,Lookups!A13:$AG$93,33) -> 0.25 | BW13: 60 | BX13: 0.1650668675 | BY13: 2.476003012
A14: 2024 | B14: 31 | D14: =VLOOKUP(B14,Lookups!A:R,17) -> 178802.295 | E14: 0 | G14: =VLOOKUP(B14,Lookups!A:R,18) -> 99652.81263 | H14: 0 | J14: 1.0475 | K14: 1.666074234 | T14: 297897.8966 | U14: 0 | V14: 297897.8966 | W14: =VLOOKUP(B14,Lookups!A:T,19) -> 0.000396 | Y14: 166028.9835 | Z14: 0 | AA14: 166028.9835 | AB14: =VLOOKUP(B14,Lookups!A:T,20) -> 0.001276 | AD14: 329.8205499 | AF14: =IF(B14<71,VLOOKUP(B14,Lookups!A:AG,32),"") -> 0 | AG14: =IF(B14<71,VLOOKUP(B14,Lookups!A:AG,33),"") -> 0 | AH14: 0 | AI14: =IF(B14<70,VLOOKUP(B14,Lookups!A:AG,28),"") -> 0.01415 | AJ14: =IF(B14<70,VLOOKUP(B14,Lookups!A:AG,29),"") -> 0.01415 | AK14: 0.01415 | AL14: =IF(B14<70,VLOOKUP(B14,Lookups!A:AG,30),"") -> 0.009356 | AM14: =IF(B14<70,VLOOKUP(B14,Lookups!A:AG,31),"") -> 0.009356 | AN14: 0.009356 | AO14: =IF(B14<70,VLOOKUP(B14,Lookups!A:AL,26)*(1-VLOOKUP(B14,Lookups!A:AL,37))^(A14-$A$3),"") -> 0.0004131110099 | AP14: =IF(B14<70,VLOOKUP(B14,Lookups!A:AL,27)*(1-VLOOKUP(B14,Lookups!A:AL,38))^(A14-$A$3),"") -> 0.0003256505709 | AQ14: 0.0003256505709 | AR14: 0.02383165057 | AS14: 0.7822364537 | AT14: 0.6755641688 | AV14: =IF(BC14>=$B$3,VLOOKUP(BC14,Lookups!A:AL,26)*(1-VLOOKUP(BC14,Lookups!A:AL,37))^(BC14-$B$3),"") -> 0.003634357726 | AW14: =IF(BC14>=$B$3,VLOOKUP(BC14,Lookups!A:AL,27)*(1-VLOOKUP(BC14,Lookups!A:AL,38))^(BC14-$B$3),"") -> 0.002948329739 | AX14: 0.002948329739 | AY14: =IF(AX13="",1,AY13*(1-AX13)) -> 0.9946562823 | AZ14: 0.924556213 | BA14: 0.981072 | BC14: 58 | BD14: =IF(BC14>=$B$3,VLOOKUP(BC14,$B$3:$AD$93,29),"") -> 5340.904105 | BE14: =IF($BD$12<>"",BD14*BA14*AZ14*AY14,"") -> 4818.61261 | BF14: =IF($BD$13<>"",BD14*AY14/$AY$13*BA14*AZ14/$AZ$13,"") -> 5024.369111 | BG14: =IF($BD$14<>"",BD14*AY14/$AY$14*BA14*AZ14/$AZ$14*0.5,"") -> 2619.905736 | BV14: =PCTMALE*VLOOKUP(BW14,Lookups!A14:$AG$93,32)+(1-PCTMALE)*VLOOKUP(BW14,Lookups!A14:$AG$93,33) -> 0.25 | BW14: 61 | BX14: 0.1238001506 | BY14: 1.887952297
A15: 2025 | B15: 32 | D15: =VLOOKUP(B15,Lookups!A:R,17) -> 178802.295 | E15: 0 | G15: =VLOOKUP(B15,Lookups!A:R,18) -> 99652.81263 | H15: 0 | J15: 1.0475 | K15: 1.74521276 | T15: 312048.0467 | U15: 0 | V15: 312048.0467 | W15: =VLOOKUP(B15,Lookups!A:T,19) -> 0.000432 | Y15: 173915.3602 | Z15: 0 | AA15: 173915.3602 | AB15: =VLOOKUP(B15,Lookups!A:T,20) -> 0.001392 | AD15: 376.8949375 | AF15: =IF(B15<71,VLOOKUP(B15,Lookups!A:AG,32),"") -> 0 | AG15: =IF(B15<71,VLOOKUP(B15,Lookups!A:AG,33),"") -> 0 | AH15: 0 | AI15: =IF(B15<70,VLOOKUP(B15,Lookups!A:AG,28),"") -> 0.0135 | AJ15: =IF(B15<70,VLOOKUP(B15,Lookups!A:AG,29),"") -> 0.0135 | AK15: 0.0135 | AL15: =IF(B15<70,VLOOKUP(B15,Lookups!A:AG,30),"") -> 0.010742 | AM15: =IF(B15<70,VLOOKUP(B15,Lookups!A:AG,31),"") -> 0.010742 | AN15: 0.010742 | AO15: =IF(B15<70,VLOOKUP(B15,Lookups!A:AL,26)*(1-VLOOKUP(B15,Lookups!A:AL,37))^(A15-$A$3),"") -> 0.000462891817 | AP15: =IF(B15<70,VLOOKUP(B15,Lookups!A:AL,27)*(1-VLOOKUP(B15,Lookups!A:AL,38))^(A15-$A$3),"") -> 0.0003654897313 | AQ15: 0.0003654897313 | AR15: 0.02460748973 | AS15: 0.7635944679 | AT15: 0.6495809316 | AV15: =IF(BC15>=$B$3,VLOOKUP(BC15,Lookups!A:AL,26)*(1-VLOOKUP(BC15,Lookups!A:AL,37))^(BC15-$B$3),"") -> 0.003856113071 | AW15: =IF(BC15>=$B$3,VLOOKUP(BC15,Lookups!A:AL,27)*(1-VLOOKUP(BC15,Lookups!A:AL,38))^(BC15-$B$3),"") -> 0.0031590114 | AX15: 0.0031590114 | AY15: 0.9917237076 | AZ15: 0.8889963587 | BA15: 0.98098 | BC15: 59 | BD15: =IF(BC15>=$B$3,VLOOKUP(BC15,$B$3:$AD$93,29),"") -> 5867.209117 | BE15: 5074.373123 | BF15: =IF($BD$13<>"",BD15*AY15/$AY$13*BA15*AZ15/$AZ$13,"") -> 5291.05069 | BG15: =IF($BD$14<>"",BD15*AY15/$AY$14*BA15*AZ15/$AZ$14,"") -> 5517.92822 | BH15: =IF($BD$15<>"",BD15*AY15/$AY$15*BA15*AZ15/$AZ$15*0.5,"") -> 2877.8074 | BV15: =PCTMALE*VLOOKUP(BW15,Lookups!A15:$AG$93,32)+(1-PCTMALE)*VLOOKUP(BW15,Lookups!A15:$AG$93,33) -> 0.25 | BW15: 62 | BX15: 0.09285011295 | BY15: 1.439176751
A16: 2026 | B16: 33 | D16: =VLOOKUP(B16,Lookups!A:R,17) -> 178802.295 | E16: 0 | G16: =VLOOKUP(B16,Lookups!A:R,18) -> 99652.81263 | H16: 0 | J16: 1.0475 | K16: 1.828110366 | T16: 326870.3289 | U16: 0 | V16: 326870.3289 | W16: =VLOOKUP(B16,Lookups!A:T,19) -> 0.000468 | Y16: 182176.3398 | Z16: 0 | AA16: 182176.3398 | AB16: =VLOOKUP(B16,Lookups!A:T,20) -> 0.001508 | AD16: 427.6972343 | AF16: =IF(B16<71,VLOOKUP(B16,Lookups!A:AG,32),"") -> 0 | AG16: =IF(B16<71,VLOOKUP(B16,Lookups!A:AG,33),"") -> 0 | AH16: 0 | AI16: =IF(B16<70,VLOOKUP(B16,Lookups!A:AG,28),"") -> 0.01285 | AJ16: =IF(B16<70,VLOOKUP(B16,Lookups!A:AG,29),"") -> 0.01285 | AK16: 0.01285 | AL16: =IF(B16<70,VLOOKUP(B16,Lookups!A:AG,30),"") -> 0.012126 | AM16: =IF(B16<70,VLOOKUP(B16,Lookups!A:AG,31),"") -> 0.012126 | AN16: 0.012126 | AO16: =IF(B16<70,VLOOKUP(B16,Lookups!A:AL,26)*(1-VLOOKUP(B16,Lookups!A:AL,37))^(A16-$A$3),"") -> 0.0005197690693 | AP16: =IF(B16<70,VLOOKUP(B16,Lookups!A:AL,27)*(1-VLOOKUP(B16,Lookups!A:AL,38))^(A16-$A$3),"") -> 0.0004023123579 | AQ16: 0.0004023123579 | AR16: 0.02537831236 | AS16: 0.7448043248 | AT16: 0.6245970496 | AV16: =IF(BC16>=$B$3,VLOOKUP(BC16,Lookups!A:AL,26)*(1-VLOOKUP(BC16,Lookups!A:AL,37))^(BC16-$B$3),"") -> 0.004096962881 | AW16: =IF(BC16>=$B$3,VLOOKUP(BC16,Lookups!A:AL,27)*(1-VLOOKUP(BC16,Lookups!A:AL,38))^(BC16-$B$3),"") -> 0.00341303185 | AX16: 0.00341303185 | AY16: 0.9885908411 | AZ16: 0.854804191 | BA16: 0.980868 | BC16: 60 | BD16: =IF(BC16>=$B$3,VLOOKUP(BC16,$B$3:$AD$93,29),"") -> 6419.593185 | BE16: 5321.098508 | BF16: 5548.311339 | BG16: =IF($BD$14<>"",BD16*AY16/$AY$14*BA16*AZ16/$AZ$14,"") -> 5786.220073 | BH16: =IF($BD$15<>"",BD16*AY16/$AY$15*BA16*AZ16/$AZ$15,"") -> 6035.463412 | BI16: =IF($BD$16<>"",BD16*AY16/$AY$16*BA16*AZ16/$AZ$16*0.5,"") -> 3148.386764 | BV16: =PCTMALE*VLOOKUP(BW16,Lookups!A16:$AG$93,32)+(1-PCTMALE)*VLOOKUP(BW16,Lookups!A16:$AG$93,33) -> 0.25 | BW16: 63 | BX16: 0.06963758472 | BY16: 1.096791959
A17: 2027 | B17: 34 | D17: =VLOOKUP(B17,Lookups!A:R,17) -> 178802.295 | E17: 0 | G17: =VLOOKUP(B17,Lookups!A:R,18) -> 99652.81263 | H17: 0 | J17: 1.0475 | K17: 1.914945609 | T17: 342396.6695 | U17: 0 | V17: 342396.6695 | W17: =VLOOKUP(B17,Lookups!A:T,19) -> 0.000504 | Y17: 190829.7159 | Z17: 0 | AA17: 190829.7159 | AB17: =VLOOKUP(B17,Lookups!A:T,20) -> 0.001624 | AD17: 482.4753801 | AF17: =IF(B17<71,VLOOKUP(B17,Lookups!A:AG,32),"") -> 0 | AG17: =IF(B17<71,VLOOKUP(B17,Lookups!A:AG,33),"") -> 0 | AH17: 0 | AI17: =IF(B17<70,VLOOKUP(B17,Lookups!A:AG,28),"") -> 0.0122 | AJ17: =IF(B17<70,VLOOKUP(B17,Lookups!A:AG,29),"") -> 0.0122 | AK17: 0.0122 | AL17: =IF(B17<70,VLOOKUP(B17,Lookups!A:AG,30),"") -> 0.013508 | AM17: =IF(B17<70,VLOOKUP(B17,Lookups!A:AG,31),"") -> 0.013508 | AN17: 0.013508 | AO17: =IF(B17<70,VLOOKUP(B17,Lookups!A:AL,26)*(1-VLOOKUP(B17,Lookups!A:AL,37))^(A17-$A$3),"") -> 0.0005818333805 | AP17: =IF(B17<70,VLOOKUP(B17,Lookups!A:AL,27)*(1-VLOOKUP(B17,Lookups!A:AL,38))^(A17-$A$3),"") -> 0.0004379886779 | AQ17: 0.0004379886779 | AR17: 0.02614598868 | AS17: 0.725902448 | AT17: 0.6005740861 | AV17: =IF(BC17>=$B$3,VLOOKUP(BC17,Lookups!A:AL,26)*(1-VLOOKUP(BC17,Lookups!A:AL,37))^(BC17-$B$3),"") -> 0.004372612646 | AW17: =IF(BC17>=$B$3,VLOOKUP(BC17,Lookups!A:AL,27)*(1-VLOOKUP(BC17,Lookups!A:AL,38))^(BC17-$B$3),"") -> 0.003663349069 | AX17: 0.003663349069 | AY17: 0.985216749 | AZ17: 0.8219271068 | BA17: 0.980757 | BC17: 61 | BD17: =IF(BC17>=$B$3,VLOOKUP(BC17,$B$3:$AD$93,29),"") -> 6998.782543 | BE17: 5558.389883 | BF17: 5795.735142 | BG17: 6044.253281 | BH17: =IF($BD$15<>"",BD17*AY17/$AY$15*BA17*AZ17/$AZ$15,"") -> 6304.611486 | BI17: =IF($BD$16<>"",BD17*AY17/$AY$16*BA17*AZ17/$AZ$16,"") -> 6577.574579 | BJ17: =IF($BD$17<>"",BD17*AY17/$AY$17*BA17*AZ17/$AZ$17*0.5,"") -> 3432.052485 | BV17: =PCTMALE*VLOOKUP(BW17,Lookups!A17:$AG$93,32)+(1-PCTMALE)*VLOOKUP(BW17,Lookups!A17:$AG$93,33) -> 0.25 | BW17: 64 | BX17: 0.05222818854 | BY17: 0.8356510166
A18: 2028 | B18: 35 | D18: =VLOOKUP(B18,Lookups!A:R,17) -> 178802.295 | E18: 0 | G18: =VLOOKUP(B18,Lookups!A:R,18) -> 99652.81263 | H18: 0 | J18: 1.0475 | K18: 2.005905525 | T18: 358660.5113 | U18: 0 | V18: 358660.5113 | W18: =VLOOKUP(B18,Lookups!A:T,19) -> 0.00054 | Y18: 199894.1274 | Z18: 0 | AA18: 199894.1274 | AB18: =VLOOKUP(B18,Lookups!A:T,20) -> 0.00174 | AD18: 541.4924578 | AF18: =IF(B18<71,VLOOKUP(B18,Lookups!A:AG,32),"") -> 0 | AG18: =IF(B18<71,VLOOKUP(B18,Lookups!A:AG,33),"") -> 0 | AH18: 0 | AI18: =IF(B18<70,VLOOKUP(B18,Lookups!A:AG,28),"") -> 0.01155 | AJ18: =IF(B18<70,VLOOKUP(B18,Lookups!A:AG,29),"") -> 0.01155 | AK18: 0.01155 | AL18: =IF(B18<70,VLOOKUP(B18,Lookups!A:AG,30),"") -> 0.014888 | AM18: =IF(B18<70,VLOOKUP(B18,Lookups!A:AG,31),"") -> 0.014888 | AN18: 0.014888 | AO18: =IF(B18<70,VLOOKUP(B18,Lookups!A:AL,26)*(1-VLOOKUP(B18,Lookups!A:AL,37))^(A18-$A$3),"") -> 0.0006453592584 | AP18: =IF(B18<70,VLOOKUP(B18,Lookups!A:AL,27)*(1-VLOOKUP(B18,Lookups!A:AL,38))^(A18-$A$3),"") -> 0.000472528004 | AQ18: 0.000472528004 | AR18: 0.026910528 | AS18: 0.7069230109 | AT18: 0.5774750828 | AV18: =IF(BC18>=$B$3,VLOOKUP(BC18,Lookups!A:AL,26)*(1-VLOOKUP(BC18,Lookups!A:AL,37))^(BC18-$B$3),"") -> 0.004668592443 | AW18: =IF(BC18>=$B$3,VLOOKUP(BC18,Lookups!A:AL,27)*(1-VLOOKUP(BC18,Lookups!A:AL,38))^(BC18-$B$3),"") -> 0.003937130694 | AX18: 0.003937130694 | AY18: 0.9816075562 | AZ18: 0.7903145257 | BA18: 0.980637 | BC18: 62 | BD18: 7605.486795 | BE18: 5785.929653 | BF18: 6032.990942 | BG18: 6291.682488 | BH18: 6562.698787 | BI18: =IF($BD$16<>"",BD18*AY18/$AY$16*BA18*AZ18/$AZ$16,"") -> 6846.835972 | BJ18: =IF($BD$17<>"",BD18*AY18/$AY$17*BA18*AZ18/$AZ$17,"") -> 7145.09585 | BK18: =IF($BD$18<>"",BD18*AY18/$AY$18*BA18*AZ18/$AZ$18*0.5,"") -> 3729.110877 | BV18: =PCTMALE*VLOOKUP(BW18,Lookups!A18:$AG$93,32)+(1-PCTMALE)*VLOOKUP(BW18,Lookups!A18:$AG$93,33) -> 0.25 | BW18: 65 | BX18: 0.0391711414 | BY18: 0.6365310478
A19: 2029 | B19: 36 | D19: =VLOOKUP(B19,Lookups!A:R,17) -> 178802.295 | E19: 0 | G19: =VLOOKUP(B19,Lookups!A:R,18) -> 99652.81263 | H19: 0 | J19: 1.0475 | K19: 2.101186037 | T19: 375696.8856 | U19: 0 | V19: 375696.8856 | W19: =VLOOKUP(B19,Lookups!A:T,19) -> 0.000576 | Y19: 209389.0985 | Z19: 0 | AA19: 209389.0985 | AB19: =VLOOKUP(B19,Lookups!A:T,20) -> 0.001856 | AD19: 605.0275729 | AF19: =IF(B19<71,VLOOKUP(B19,Lookups!A:AG,32),"") -> 0 | AG19: =IF(B19<71,VLOOKUP(B19,Lookups!A:AG,33),"") -> 0 | AH19: 0 | AI19: =IF(B19<70,VLOOKUP(B19,Lookups!A:AG,28),"") -> 0.0109 | AJ19: =IF(B19<70,VLOOKUP(B19,Lookups!A:AG,29),"") -> 0.0109 | AK19: 0.0109 | AL19: =IF(B19<70,VLOOKUP(B19,Lookups!A:AG,30),"") -> 0.016267 | AM19: =IF(B19<70,VLOOKUP(B19,Lookups!A:AG,31),"") -> 0.016267 | AN19: 0.016267 | AO19: =IF(B19<70,VLOOKUP(B19,Lookups!A:AL,26)*(1-VLOOKUP(B19,Lookups!A:AL,37))^(A19-$A$3),"") -> 0.0007084987444 | AP19: =IF(B19<70,VLOOKUP(B19,Lookups!A:AL,27)*(1-VLOOKUP(B19,Lookups!A:AL,38))^(A19-$A$3),"") -> 0.0005077727095 | AQ19: 0.0005077727095 | AR19: 0.02767477271 | AS19: 0.6878993394 | AT19: 0.5552645027 | AV19: =IF(BC19>=$B$3,VLOOKUP(BC19,Lookups!A:AL,26)*(1-VLOOKUP(BC19,Lookups!A:AL,37))^(BC19-$B$3),"") -> 0.00498799773 | AW19: =IF(BC19>=$B$3,VLOOKUP(BC19,Lookups!A:AL,27)*(1-VLOOKUP(BC19,Lookups!A:AL,38))^(BC19-$B$3),"") -> 0.004383749987 | AX19: 0.004383749987 | AY19: 0.9777428389 | AZ19: 0.7599178132 | BA19: 0.98044 | BC19: 63 | BD19: 8664.770982 | BE19: 6312.034711 | BF19: 6581.560876 | BG19: 6863.774818 | BH19: 7159.434184 | BI19: 7469.407494 | BJ19: =IF($BD$17<>"",BD19*AY19/$AY$17*BA19*AZ19/$AZ$17,"") -> 7794.787653 | BK19: =IF($BD$18<>"",BD19*AY19/$AY$18*BA19*AZ19/$AZ$18,"") -> 8136.385579 | BL19: =IF($BD$19<>"",BD19*AY19/$AY$19*BA19*AZ19/$AZ$19*0.5,"") -> 4247.644031 | BV19: =PCTMALE*VLOOKUP(BW19,Lookups!A19:$AG$93,32)+(1-PCTMALE)*VLOOKUP(BW19,Lookups!A19:$AG$93,33) -> 0.25 | BW19: 66 | BX19: 0.02937835605 | BY19: 0.4847428749
A20: =1+A19 -> 2030 | B20: 37 | D20: =VLOOKUP(B20,Lookups!A:R,17) -> 178802.295 | E20: 0 | G20: =VLOOKUP(B20,Lookups!A:R,18) -> 99652.81263 | H20: 0 | J20: 1.0475 | K20: 2.200992374 | T20: 393542.4877 | U20: 0 | V20: 393542.4877 | W20: =VLOOKUP(B20,Lookups!A:T,19) -> 0.000612 | Y20: 219335.0807 | Z20: 0 | AA20: 219335.0807 | AB20: =VLOOKUP(B20,Lookups!A:T,20) -> 0.001972 | AD20: 673.3767815 | AF20: =IF(B20<71,VLOOKUP(B20,Lookups!A:AG,32),"") -> 0 | AG20: =IF(B20<71,VLOOKUP(B20,Lookups!A:AG,33),"") -> 0 | AH20: 0 | AI20: =IF(B20<70,VLOOKUP(B20,Lookups!A:AG,28),"") -> 0.01025 | AJ20: =IF(B20<70,VLOOKUP(B20,Lookups!A:AG,29),"") -> 0.01025 | AK20: 0.01025 | AL20: =IF(B20<70,VLOOKUP(B20,Lookups!A:AG,30),"") -> 0.019033 | AM20: =IF(B20<70,VLOOKUP(B20,Lookups!A:AG,31),"") -> 0.019033 | AN20: 0.019033 | AO20: =IF(B20<70,VLOOKUP(B20,Lookups!A:AL,26)*(1-VLOOKUP(B20,Lookups!A:AL,37))^(A20-$A$3),"") -> 0.0007685121627 | AP20: =IF(B20<70,VLOOKUP(B20,Lookups!A:AL,27)*(1-VLOOKUP(B20,Lookups!A:AL,38))^(A20-$A$3),"") -> 0.0005464569242 | AQ20: 0.0005464569242 | AR20: 0.02982945692 | AS20: 0.6688618815 | AT20: 0.5339081757 | AV20: =IF(BC20>=$B$3,VLOOKUP(BC20,Lookups!A:AL,26)*(1-VLOOKUP(BC20,Lookups!A:AL,37))^(BC20-$B$3),"") -> 0.005329782199 | AW20: =IF(BC20>=$B$3,VLOOKUP(BC20,Lookups!A:AL,27)*(1-VLOOKUP(BC20,Lookups!A:AL,38))^(BC20-$B$3),"") -> 0.004877374782 | AX20: 0.004877374782 | AY20: 0.9734566588 | AZ20: 0.730690205 | BA20: 0.980222 | BC20: 64 | BD20: 9781.692783 | BE20: 6820.062742 | BF20: 7111.281888 | BG20: 7416.209994 | BH20: 7735.665687 | BI20: 8070.587392 | BJ20: 8422.155975 | BK20: =IF($BD$18<>"",BD20*AY20/$AY$18*BA20*AZ20/$AZ$18,"") -> 8791.247622 | BL20: =IF($BD$19<>"",BD20*AY20/$AY$19*BA20*AZ20/$AZ$19,"") -> 9179.036594 | BM20: =IF($BD$20<>"",BD20*AY20/$AY$20*BA20*AZ20/$AZ$20*0.5,"") -> 4794.115231 | BV20: =PCTMALE*VLOOKUP(BW20,Lookups!A20:$AG$93,32)+(1-PCTMALE)*VLOOKUP(BW20,Lookups!A20:$AG$93,33) -> 0.25 | BW20: 67 | BX20: 0.02203376704 | BY20: 0.3690655979
A21: 2031 | B21: 38 | D21: =VLOOKUP(B21,Lookups!A:R,17) -> 178802.295 | E21: 0 | G21: =VLOOKUP(B21,Lookups!A:R,18) -> 99652.81263 | H21: 0 | J21: 1.0475 | K21: 2.305539512 | T21: 412235.7559 | U21: 0 | V21: 412235.7559 | W21: =VLOOKUP(B21,Lookups!A:T,19) -> 0.000648 | Y21: 229753.497 | Z21: 0 | AA21: 229753.497 | AB21: =VLOOKUP(B21,Lookups!A:T,20) -> 0.002088 | AD21: 746.8540715 | AF21: =IF(B21<71,VLOOKUP(B21,Lookups!A:AG,32),"") -> 0 | AG21: =IF(B21<71,VLOOKUP(B21,Lookups!A:AG,33),"") -> 0 | AH21: 0 | AI21: =IF(B21<70,VLOOKUP(B21,Lookups!A:AG,28),"") -> 0.0096 | AJ21: =IF(B21<70,VLOOKUP(B21,Lookups!A:AG,29),"") -> 0.0096 | AK21: 0.0096 | AL21: =IF(B21<70,VLOOKUP(B21,Lookups!A:AG,30),"") -> 0.020514 | AM21: =IF(B21<70,VLOOKUP(B21,Lookups!A:AG,31),"") -> 0.020514 | AN21: 0.020514 | AO21: =IF(B21<70,VLOOKUP(B21,Lookups!A:AL,26)*(1-VLOOKUP(B21,Lookups!A:AL,37))^(A21-$A$3),"") -> 0.0008236037932 | AP21: =IF(B21<70,VLOOKUP(B21,Lookups!A:AL,27)*(1-VLOOKUP(B21,Lookups!A:AL,38))^(A21-$A$3),"") -> 0.0005903708606 | AQ21: 0.0005903708606 | AR21: 0.03070437086 | AS21: 0.6489100948 | AT21: 0.5133732459 | AV21: =IF(BC21>=$B$3,VLOOKUP(BC21,Lookups!A:AL,26)*(1-VLOOKUP(BC21,Lookups!A:AL,37))^(BC21-$B$3),"") -> 0.005600307654 | AW21: =IF(BC21>=$B$3,VLOOKUP(BC21,Lookups!A:AL,27)*(1-VLOOKUP(BC21,Lookups!A:AL,38))^(BC21-$B$3),"") -> 0.005438454791 | AX21: 0.005438454791 | AY21: 0.9687087458 | AZ21: 0.7025867356 | BA21: 0.979975 | BC21: 65 | BD21: 10958.11062 | BE21: 7308.762404 | BF21: 7620.849202 | BG21: 7947.627293 | BH21: 8289.973961 | BI21: 8648.894877 | BJ21: 9025.655522 | BK21: 9421.194869 | BL21: =IF($BD$19<>"",BD21*AY21/$AY$19*BA21*AZ21/$AZ$19,"") -> 9836.771318 | BM21: =IF($BD$20<>"",BD21*AY21/$AY$20*BA21*AZ21/$AZ$20,"") -> 10275.28646 | BN21: =IF($BD$21<>"",BD21*AY21/$AY$21*BA21*AZ21/$AZ$21*0.5,"") -> 5369.337228 | BV21: =PCTMALE*VLOOKUP(BW21,Lookups!A21:$AG$93,32)+(1-PCTMALE)*VLOOKUP(BW21,Lookups!A21:$AG$93,33) -> 0.25 | BW21: 68 | BX21: 0.01652532528 | BY21: 0.2809305297
A22: 2032 | B22: 39 | D22: =VLOOKUP(B22,Lookups!A:R,17) -> 178802.295 | E22: 0 | G22: =VLOOKUP(B22,Lookups!A:R,18) -> 99652.81263 | H22: 0 | J22: 1.0475 | K22: 2.415052639 | T22: 431816.9543 | U22: 0 | V22: 431816.9543 | W22: =VLOOKUP(B22,Lookups!A:T,19) -> 0.000684 | Y22: 240666.7881 | Z22: 0 | AA22: 240666.7881 | AB22: =VLOOKUP(B22,Lookups!A:T,20) -> 0.002204 | AD22: 825.7923977 | AF22: =IF(B22<71,VLOOKUP(B22,Lookups!A:AG,32),"") -> 0 | AG22: =IF(B22<71,VLOOKUP(B22,Lookups!A:AG,33),"") -> 0 | AH22: 0 | AI22: =IF(B22<70,VLOOKUP(B22,Lookups!A:AG,28),"") -> 0.00895 | AJ22: =IF(B22<70,VLOOKUP(B22,Lookups!A:AG,29),"") -> 0.00895 | AK22: 0.00895 | AL22: =IF(B22<70,VLOOKUP(B22,Lookups!A:AG,30),"") -> 0.021994 | AM22: =IF(B22<70,VLOOKUP(B22,Lookups!A:AG,31),"") -> 0.021994 | AN22: 0.021994 | AO22: =IF(B22<70,VLOOKUP(B22,Lookups!A:AL,26)*(1-VLOOKUP(B22,Lookups!A:AL,37))^(A22-$A$3),"") -> 0.0008756329585 | AP22: =IF(B22<70,VLOOKUP(B22,Lookups!A:AL,27)*(1-VLOOKUP(B22,Lookups!A:AL,38))^(A22-$A$3),"") -> 0.0006412830588 | AQ22: 0.0006412830588 | AR22: 0.03158528306 | AS22: 0.6289857186 | AT22: 0.493628121 | AV22: =IF(BC22>=$B$3,VLOOKUP(BC22,Lookups!A:AL,26)*(1-VLOOKUP(BC22,Lookups!A:AL,37))^(BC22-$B$3),"") -> 0.005885442978 | AW22: =IF(BC22>=$B$3,VLOOKUP(BC22,Lookups!A:AL,27)*(1-VLOOKUP(BC22,Lookups!A:AL,38))^(BC22-$B$3),"") -> 0.005966236125 | AX22: 0.005966236125 | AY22: 0.9634404671 | AZ22: 0.6755641688 | BA22: 0.979742 | BC22: 66 | BD22: 12195.87114 | BE22: 7777.070641 | BF22: 8109.15437 | BG22: 8456.870735 | BH22: 8821.153233 | BI22: 9203.071972 | BJ22: 9603.973518 | BK22: 10024.85701 | BL22: 10467.06148 | BM22: =IF($BD$20<>"",BD22*AY22/$AY$20*BA22*AZ22/$AZ$20,"") -> 10933.67443 | BN22: =IF($BD$21<>"",BD22*AY22/$AY$21*BA22*AZ22/$AZ$21,"") -> 11426.75397 | BO22: =IF($BD$22<>"",BD22*AY22/$AY$22*BA22*AZ22/$AZ$22*0.5,"") -> 5974.403589 | BV22: =PCTMALE*VLOOKUP(BW22,Lookups!A22:$AG$93,32)+(1-PCTMALE)*VLOOKUP(BW22,Lookups!A22:$AG$93,33) -> 0.25 | BW22: 69 | BX22: 0.01239399396 | BY22: 0.2137963958
A23: 2033 | B23: 40 | D23: =VLOOKUP(B23,Lookups!A:R,17) -> 178802.295 | E23: 0 | G23: =VLOOKUP(B23,Lookups!A:R,18) -> 99652.81263 | H23: 0 | J23: 1.0475 | K23: 2.529767639 | T23: 452328.2596 | U23: 0 | V23: 452328.2596 | W23: =VLOOKUP(B23,Lookups!A:T,19) -> 0.00072 | Y23: 252098.4605 | Z23: 0 | AA23: 252098.4605 | AB23: =VLOOKUP(B23,Lookups!A:T,20) -> 0.00232 | AD23: 910.5447753 | AF23: =IF(B23<71,VLOOKUP(B23,Lookups!A:AG,32),"") -> 0 | AG23: =IF(B23<71,VLOOKUP(B23,Lookups!A:AG,33),"") -> 0 | AH23: 0 | AI23: =IF(B23<70,VLOOKUP(B23,Lookups!A:AG,28),"") -> 0.0083 | AJ23: =IF(B23<70,VLOOKUP(B23,Lookups!A:AG,29),"") -> 0.0083 | AK23: 0.0083 | AL23: =IF(B23<70,VLOOKUP(B23,Lookups!A:AG,30),"") -> 0.023471 | AM23: =IF(B23<70,VLOOKUP(B23,Lookups!A:AG,31),"") -> 0.023471 | AN23: 0.023471 | AO23: =IF(B23<70,VLOOKUP(B23,Lookups!A:AL,26)*(1-VLOOKUP(B23,Lookups!A:AL,37))^(A23-$A$3),"") -> 0.0009246257125 | AP23: =IF(B23<70,VLOOKUP(B23,Lookups!A:AL,27)*(1-VLOOKUP(B23,Lookups!A:AL,38))^(A23-$A$3),"") -> 0.0007009405499 | AQ23: 0.0007009405499 | AR23: 0.03247194055 | AS23: 0.6091190267 | AT23: 0.474642424 | AV23: =IF(BC23>=$B$3,VLOOKUP(BC23,Lookups!A:AL,26)*(1-VLOOKUP(BC23,Lookups!A:AL,37))^(BC23-$B$3),"") -> 0.006183704642 | AW23: =IF(BC23>=$B$3,VLOOKUP(BC23,Lookups!A:AL,27)*(1-VLOOKUP(BC23,Lookups!A:AL,38))^(BC23-$B$3),"") -> 0.00651594608 | AX23: 0.00651594608 | AY23: 0.9576923538 | AZ23: 0.6495809316 | BA23: 0.9795 | BC23: 67 | BD23: 13496.80111 | BE23: 8224.217287 | BF23: 8575.39434 | BG23: 8943.102835 | BH23: 9328.329941 | BI23: 9732.207293 | BJ23: 10156.15888 | BK23: 10601.24128 | BL23: 11068.87052 | BM23: 11562.31163 | BN23: =IF($BD$21<>"",BD23*AY23/$AY$21*BA23*AZ23/$AZ$21,"") -> 12083.74102 | BO23: =IF($BD$22<>"",BD23*AY23/$AY$22*BA23*AZ23/$AZ$22,"") -> 12635.80995 | BP23: =IF($BD$23<>"",BD23*AY23/$AY$23*BA23*AZ23/$AZ$23*0.5,"") -> 6610.058341 | BV23: =PCTMALE*VLOOKUP(BW23,Lookups!A23:$AG$93,32)+(1-PCTMALE)*VLOOKUP(BW23,Lookups!A23:$AG$93,33) -> 1 | BW23: 70 | BX23: 0.00929549547 | BY23: 0.6506846829
A24: 2034 | B24: 41 | D24: =VLOOKUP(B24,Lookups!A:R,17) -> 178802.295 | E24: 0 | G24: =VLOOKUP(B24,Lookups!A:R,18) -> 99652.81263 | H24: 0 | J24: 1.0475 | K24: =K23*J24 -> 2.649931602 | T24: 473813.8519 | U24: 0 | V24: 473813.8519 | W24: =VLOOKUP(B24,Lookups!A:T,19) -> 0.000756 | Y24: 264073.1374 | Z24: 0 | AA24: 264073.1374 | AB24: =VLOOKUP(B24,Lookups!A:T,20) -> 0.002436 | AD24: 1001.485435 | AF24: =IF(B24<71,VLOOKUP(B24,Lookups!A:AG,32),"") -> 0 | AG24: =IF(B24<71,VLOOKUP(B24,Lookups!A:AG,33),"") -> 0 | AH24: 0 | AI24: =IF(B24<70,VLOOKUP(B24,Lookups!A:AG,28),"") -> 0.00765 | AJ24: =IF(B24<70,VLOOKUP(B24,Lookups!A:AG,29),"") -> 0.00765 | AK24: 0.00765 | AL24: =IF(B24<70,VLOOKUP(B24,Lookups!A:AG,30),"") -> 0.024946 | AM24: =IF(B24<70,VLOOKUP(B24,Lookups!A:AG,31),"") -> 0.024946 | AN24: 0.024946 | AO24: =IF(B24<70,VLOOKUP(B24,Lookups!A:AL,26)*(1-VLOOKUP(B24,Lookups!A:AL,37))^(A24-$A$3),"") -> 0.0009742195204 | AP24: =IF(B24<70,VLOOKUP(B24,Lookups!A:AL,27)*(1-VLOOKUP(B24,Lookups!A:AL,38))^(A24-$A$3),"") -> 0.0007692632358 | AQ24: 0.0007692632358 | AR24: 0.03336526324 | AS24: 0.5893397498 | AT24: 0.4563869462 | AV24: =IF(BC24>=$B$3,VLOOKUP(BC24,Lookups!A:AL,26)*(1-VLOOKUP(BC24,Lookups!A:AL,37))^(BC24-$B$3),"") -> 0.006393829366 | AW24: =IF(BC24>=$B$3,VLOOKUP(BC24,Lookups!A:AL,27)*(1-VLOOKUP(BC24,Lookups!A:AL,38))^(BC24-$B$3),"") -> 0.007115287114 | AX24: 0.007115287114 | AY24: 0.9514520821 | AZ24: 0.6245970496 | BA24: 0.979236 | BC24: 68 | BD24: 16156.9759 | BE24: 9402.30419 | BF24: 9803.785979 | BG24: 10224.16728 | BH24: 10664.57666 | BI24: 11126.30785 | BJ24: 11610.98884 | BK24: 12119.82756 | BL24: 12654.44285 | BM24: 13218.56746 | BN24: 13814.68958 | BO24: =IF($BD$22<>"",BD24*AY24/$AY$22*BA24*AZ24/$AZ$22,"") -> 14445.84021 | BP24: =IF($BD$23<>"",BD24*AY24/$AY$23*BA24*AZ24/$AZ$23,"") -> 15113.8466 | BQ24: =IF($BD$24<>"",BD24*AY24/$AY$24*BA24*AZ24/$AZ$24*0.5,"") -> 7910.746227 | BY24: =SUM(BY3:BY23) -> 55.26133452
A25: 2035 | B25: 42 | D25: =VLOOKUP(B25,Lookups!A:R,17) -> 178802.295 | E25: 0 | G25: =VLOOKUP(B25,Lookups!A:R,18) -> 99652.81263 | H25: 0 | J25: 1.0475 | K25: 2.775803353 | T25: 496320.0099 | U25: 0 | V25: 496320.0099 | W25: =VLOOKUP(B25,Lookups!A:T,19) -> 0.000792 | Y25: 276616.6114 | Z25: 0 | AA25: 276616.6114 | AB25: =VLOOKUP(B25,Lookups!A:T,20) -> 0.002552 | AD25: 1099.01104 | AF25: =IF(B25<71,VLOOKUP(B25,Lookups!A:AG,32),"") -> 0 | AG25: =IF(B25<71,VLOOKUP(B25,Lookups!A:AG,33),"") -> 0 | AH25: 0 | AI25: =IF(B25<70,VLOOKUP(B25,Lookups!A:AG,28),"") -> 0.007 | AJ25: =IF(B25<70,VLOOKUP(B25,Lookups!A:AG,29),"") -> 0.007 | AK25: 0.007 | AL25: =IF(B25<70,VLOOKUP(B25,Lookups!A:AG,30),"") -> 0.026419 | AM25: =IF(B25<70,VLOOKUP(B25,Lookups!A:AG,31),"") -> 0.026419 | AN25: 0.026419 | AO25: =IF(B25<70,VLOOKUP(B25,Lookups!A:AL,26)*(1-VLOOKUP(B25,Lookups!A:AL,37))^(A25-$A$3),"") -> 0.001028008356 | AP25: =IF(B25<70,VLOOKUP(B25,Lookups!A:AL,27)*(1-VLOOKUP(B25,Lookups!A:AL,38))^(A25-$A$3),"") -> 0.0008434709542 | AQ25: 0.0008434709542 | AR25: 0.03426247095 | AS25: 0.569676274 | AT25: 0.4388336021 | AV25: =IF(BC25>=$B$3,VLOOKUP(BC25,Lookups!A:AL,26)*(1-VLOOKUP(BC25,Lookups!A:AL,37))^(BC25-$B$3),"") -> 0.007001565333 | AW25: =IF(BC25>=$B$3,VLOOKUP(BC25,Lookups!A:AL,27)*(1-VLOOKUP(BC25,Lookups!A:AL,38))^(BC25-$B$3),"") -> 0.007920231979 | AX25: 0.007920231979 | AY25: 0.9446822273 | AZ25: 0.6005740861 | BA25: 0.978881 | BC25: 69 | BD25: 19046.32985 | BE25: 10577.75574 | BF25: 11029.42974 | BG25: 11502.36601 | BH25: 11997.83422 | BI25: 12517.28985 | BJ25: 13062.56439 | BK25: 13635.0168 | BL25: 14236.4683 | BM25: 14871.1183 | BN25: 15541.76605 | BO25: 16251.82149 | BP25: =IF($BD$23<>"",BD25*AY25/$AY$23*BA25*AZ25/$AZ$23,"") -> 17003.34029 | BQ25: =IF($BD$24<>"",BD25*AY25/$AY$24*BA25*AZ25/$AZ$24,"") -> 17799.45419 | BR25: =IF($BD$25<>"",BD25*AY25/$AY$25*BA25*AZ25/$AZ$25*0.5,"") -> 9322.045205
A26: 2036 | B26: 43 | D26: =VLOOKUP(B26,Lookups!A:R,17) -> 178802.295 | E26: 0 | G26: =VLOOKUP(B26,Lookups!A:R,18) -> 99652.81263 | H26: 0 | J26: 1.0475 | K26: 2.907654012 | T26: 519895.2104 | U26: 0 | V26: 519895.2104 | W26: =VLOOKUP(B26,Lookups!A:T,19) -> 0.000828 | Y26: 289755.9005 | Z26: 0 | AA26: 289755.9005 | AB26: =VLOOKUP(B26,Lookups!A:T,20) -> 0.002668 | AD26: 1203.541977 | AF26: =IF(B26<71,VLOOKUP(B26,Lookups!A:AG,32),"") -> 0 | AG26: =IF(B26<71,VLOOKUP(B26,Lookups!A:AG,33),"") -> 0 | AH26: 0 | AI26: =IF(B26<70,VLOOKUP(B26,Lookups!A:AG,28),"") -> 0.00635 | AJ26: =IF(B26<70,VLOOKUP(B26,Lookups!A:AG,29),"") -> 0.00635 | AK26: 0.00635 | AL26: =IF(B26<70,VLOOKUP(B26,Lookups!A:AG,30),"") -> 0.027889 | AM26: =IF(B26<70,VLOOKUP(B26,Lookups!A:AG,31),"") -> 0.027889 | AN26: 0.027889 | AO26: =IF(B26<70,VLOOKUP(B26,Lookups!A:AL,26)*(1-VLOOKUP(B26,Lookups!A:AL,37))^(A26-$A$3),"") -> 0.00109044051 | AP26: =IF(B26<70,VLOOKUP(B26,Lookups!A:AL,27)*(1-VLOOKUP(B26,Lookups!A:AL,38))^(A26-$A$3),"") -> 0.0009235088762 | AQ26: 0.0009235088762 | AR26: 0.03516250888 | AS26: 0.5501577572 | AT26: 0.4219553867 | AV26: =IF(BC26>=$B$3,VLOOKUP(BC26,Lookups!A:AL,26)*(1-VLOOKUP(BC26,Lookups!A:AL,37))^(BC26-$B$3),"") -> 0.007641728039 | AW26: =IF(BC26>=$B$3,VLOOKUP(BC26,Lookups!A:AL,27)*(1-VLOOKUP(BC26,Lookups!A:AL,38))^(BC26-$B$3),"") -> 0.008683800625 | AX26: 0.008683800625 | AY26: 0.9372001249 | AZ26: 0.5774750828 | BA26: 0.978545 | BC26: 70 | BD26: 22180.9614 | BE26: 11746.99424 | BF26: 12248.59515 | BG26: 12773.8086 | BH26: 13324.04462 | BI26: 13900.91957 | BJ26: 14506.46739 | BK26: 15142.19724 | BL26: 15810.13168 | BM26: 16514.93429 | BN26: 17259.71376 | BO26: 18048.25694 | BP26: 18882.84674 | BQ26: =IF($BD$24<>"",BD26*AY26/$AY$24*BA26*AZ26/$AZ$24,"") -> 19766.96106 | BR26: =IF($BD$25<>"",BD26*AY26/$AY$25*BA26*AZ26/$AZ$25,"") -> 20704.96124 | BS26: =IF($BD$26<>"",BD26*AY26/$AY$26*BA26*AZ26/$AZ$26*0.5,"") -> 10852.53444
A27: 2037 | B27: 44 | D27: =VLOOKUP(B27,Lookups!A:R,17) -> 178802.295 | E27: 0 | G27: =VLOOKUP(B27,Lookups!A:R,18) -> 99652.81263 | H27: 0 | J27: 1.0475 | K27: 3.045767578 | T27: 544590.2329 | U27: 0 | V27: 544590.2329 | W27: =VLOOKUP(B27,Lookups!A:T,19) -> 0.000864 | Y27: 303519.3057 | Z27: 0 | AA27: 303519.3057 | AB27: =VLOOKUP(B27,Lookups!A:T,20) -> 0.002784 | AD27: 1315.523708 | AF27: =IF(B27<71,VLOOKUP(B27,Lookups!A:AG,32),"") -> 0 | AG27: =IF(B27<71,VLOOKUP(B27,Lookups!A:AG,33),"") -> 0 | AH27: 0 | AI27: =IF(B27<70,VLOOKUP(B27,Lookups!A:AG,28),"") -> 0.0057 | AJ27: =IF(B27<70,VLOOKUP(B27,Lookups!A:AG,29),"") -> 0.0057 | AK27: 0.0057 | AL27: =IF(B27<70,VLOOKUP(B27,Lookups!A:AG,30),"") -> 0.036042 | AM27: =IF(B27<70,VLOOKUP(B27,Lookups!A:AG,31),"") -> 0.036042 | AN27: 0.036042 | AO27: =IF(B27<70,VLOOKUP(B27,Lookups!A:AL,26)*(1-VLOOKUP(B27,Lookups!A:AL,37))^(A27-$A$3),"") -> 0.001162331503 | AP27: =IF(B27<70,VLOOKUP(B27,Lookups!A:AL,27)*(1-VLOOKUP(B27,Lookups!A:AL,38))^(A27-$A$3),"") -> 0.001005743348 | AQ27: 0.001005743348 | AR27: 0.04274774335 | AS27: 0.5308128301 | AT27: 0.4057263333 | AV27: =IF(BC27>=$B$3,VLOOKUP(BC27,Lookups!A:AL,26)*(1-VLOOKUP(BC27,Lookups!A:AL,37))^(BC27-$B$3),"") -> 0.008440906456 | AW27: =IF(BC27>=$B$3,VLOOKUP(BC27,Lookups!A:AL,27)*(1-VLOOKUP(BC27,Lookups!A:AL,38))^(BC27-$B$3),"") -> 0.009542888801 | AX27: 0.009542888801 | AY27: 0.9290616659 | AZ27: 0.5552645027 | BA27: 0.978166 | BC27: 71 | BD27: 25577.99687 | BE27: 12906.94753 | BF27: 13458.07886 | BG27: 14035.15435 | BH27: 14639.72326 | BI27: 15273.56154 | BJ27: 15938.90399 | BK27: 16637.40879 | BL27: 17371.29821 | BM27: 18145.69633 | BN27: 18964.01881 | BO27: 19830.42644 | BP27: 20747.42755 | BQ27: 21718.84347 | BR27: =IF($BD$25<>"",BD27*AY27/$AY$25*BA27*AZ27/$AZ$25,"") -> 22749.46619 | BS27: =IF($BD$26<>"",BD27*AY27/$AY$26*BA27*AZ27/$AZ$26,"") -> 23848.32914
A28: 2038 | B28: 45 | D28: =VLOOKUP(B28,Lookups!A:R,17) -> 178802.295 | E28: 0 | G28: =VLOOKUP(B28,Lookups!A:R,18) -> 99652.81263 | H28: 0 | J28: 1.0475 | K28: 3.190441538 | T28: 570458.2689 | U28: 0 | V28: 570458.2689 | W28: =VLOOKUP(B28,Lookups!A:T,19) -> 0.0009 | Y28: 317936.4728 | Z28: 0 | AA28: 317936.4728 | AB28: =VLOOKUP(B28,Lookups!A:T,20) -> 0.0029 | AD28: 1435.428213 | AF28: =IF(B28<71,VLOOKUP(B28,Lookups!A:AG,32),"") -> 0 | AG28: =IF(B28<71,VLOOKUP(B28,Lookups!A:AG,33),"") -> 0 | AH28: 0 | AI28: =IF(B28<70,VLOOKUP(B28,Lookups!A:AG,28),"") -> 0.00505 | AJ28: =IF(B28<70,VLOOKUP(B28,Lookups!A:AG,29),"") -> 0.00505 | AK28: 0.00505 | AL28: =IF(B28<70,VLOOKUP(B28,Lookups!A:AG,30),"") -> 0.04 | AM28: =IF(B28<70,VLOOKUP(B28,Lookups!A:AG,31),"") -> 0.04 | AN28: 0.04 | AO28: =IF(B28<70,VLOOKUP(B28,Lookups!A:AL,26)*(1-VLOOKUP(B28,Lookups!A:AL,37))^(A28-$A$3),"") -> 0.001246270807 | AP28: =IF(B28<70,VLOOKUP(B28,Lookups!A:AL,27)*(1-VLOOKUP(B28,Lookups!A:AL,38))^(A28-$A$3),"") -> 0.001091044521 | AQ28: 0.001091044521 | AR28: 0.04614104452 | AS28: 0.5081217795 | AT28: 0.3901214743 | AV28: =IF(BC28>=$B$3,VLOOKUP(BC28,Lookups!A:AL,26)*(1-VLOOKUP(BC28,Lookups!A:AL,37))^(BC28-$B$3),"") -> 0.009199413471 | AW28: =IF(BC28>=$B$3,VLOOKUP(BC28,Lookups!A:AL,27)*(1-VLOOKUP(BC28,Lookups!A:AL,38))^(BC28-$B$3),"") -> 0.0104800268 | AX28: 0.0104800268 | AY28: 0.9201957337 | AZ28: 0.5339081757 | BA28: 0.977753 | BC28: 72 | BD28: 29255.65251 | BE28: 14053.53995 | BF28: 14653.63119 | BG28: 15281.97136 | BH28: 15940.24732 | BI28: 16630.39281 | BJ28: 17354.84115 | BK28: 18115.39782 | BL28: 18914.48252 | BM28: 19757.67453 | BN28: 20648.69292 | BO28: 21592.06813 | BP28: 22590.53129 | BQ28: 23648.24322 | BR28: 24770.42162 | BS28: =IF($BD$26<>"",BD28*AY28/$AY$26*BA28*AZ28/$AZ$26,"") -> 25966.90237
A29: 2039 | B29: 46 | D29: =VLOOKUP(B29,Lookups!A:R,17) -> 177989.5573 | E29: 0 | G29: =VLOOKUP(B29,Lookups!A:R,18) -> 97659.75637 | H29: 0 | J29: 1.0475 | K29: 3.341987511 | T29: 594838.8774 | U29: 0 | V29: 594838.8774 | W29: =VLOOKUP(B29,Lookups!A:T,19) -> 0.001 | Y29: 326377.6861 | Z29: 0 | AA29: 326377.6861 | AB29: =VLOOKUP(B29,Lookups!A:T,20) -> 0.00317 | AD29: 1629.456142 | AF29: =IF(B29<71,VLOOKUP(B29,Lookups!A:AG,32),"") -> 0 | AG29: =IF(B29<71,VLOOKUP(B29,Lookups!A:AG,33),"") -> 0 | AH29: 0 | AI29: =IF(B29<70,VLOOKUP(B29,Lookups!A:AG,28),"") -> 0.0044 | AJ29: =IF(B29<70,VLOOKUP(B29,Lookups!A:AG,29),"") -> 0.0044 | AK29: 0.0044 | AL29: =IF(B29<70,VLOOKUP(B29,Lookups!A:AG,30),"") -> 0.0468 | AM29: =IF(B29<70,VLOOKUP(B29,Lookups!A:AG,31),"") -> 0.0468 | AN29: 0.0468 | AO29: =IF(B29<70,VLOOKUP(B29,Lookups!A:AL,26)*(1-VLOOKUP(B29,Lookups!A:AL,37))^(A29-$A$3),"") -> 0.001341258588 | AP29: =IF(B29<70,VLOOKUP(B29,Lookups!A:AL,27)*(1-VLOOKUP(B29,Lookups!A:AL,38))^(A29-$A$3),"") -> 0.001179382551 | AQ29: 0.001179382551 | AR29: 0.05237938255 | AS29: 0.4846765099 | AT29: 0.3751168023 | AV29: =IF(BC29>=$B$3,VLOOKUP(BC29,Lookups!A:AL,26)*(1-VLOOKUP(BC29,Lookups!A:AL,37))^(BC29-$B$3),"") -> 0.01006123976 | AW29: =IF(BC29>=$B$3,VLOOKUP(BC29,Lookups!A:AL,27)*(1-VLOOKUP(BC29,Lookups!A:AL,38))^(BC29-$B$3),"") -> 0.01147579086 | AX29: 0.01147579086 | AY29: 0.9105520578 | AZ29: 0.5133732459 | BA29: 0.977314 | BC29: 73 | BD29: =IF(BC29>=$B$3,VLOOKUP(BC29,$B$3:$AD$93,29),"") -> 37372.1102 | BE29: 17073.38969 | BF29: 17802.42961 | BG29: 18565.78862 | BH29: 19365.51609 | BI29: 20203.96128 | BJ29: 21084.08037 | BK29: 22008.06682 | BL29: 22978.86027 | BM29: 24003.23888 | BN29: 25085.72089 | BO29: 26231.81024 | BP29: 27444.82496 | BQ29: 28729.81991 | BR29: 30093.134 | BS29: 31546.71667
A30: 2040 | B30: 47 | D30: =VLOOKUP(B30,Lookups!A:R,17) -> 177176.8196 | E30: 0 | G30: =VLOOKUP(B30,Lookups!A:R,18) -> 95666.70012 | H30: 0 | J30: 1.0475 | K30: 3.500731918 | T30: 620248.5473 | U30: 0 | V30: 620248.5473 | W30: =VLOOKUP(B30,Lookups!A:T,19) -> 0.0011 | Y30: 334903.4706 | Z30: 0 | AA30: 334903.4706 | AB30: =VLOOKUP(B30,Lookups!A:T,20) -> 0.00344 | AD30: 1834.341341 | AF30: =IF(B30<71,VLOOKUP(B30,Lookups!A:AG,32),"") -> 0 | AG30: =IF(B30<71,VLOOKUP(B30,Lookups!A:AG,33),"") -> 0 | AH30: 0 | AI30: =IF(B30<70,VLOOKUP(B30,Lookups!A:AG,28),"") -> 0.00375 | AJ30: =IF(B30<70,VLOOKUP(B30,Lookups!A:AG,29),"") -> 0.00375 | AK30: 0.00375 | AL30: =IF(B30<70,VLOOKUP(B30,Lookups!A:AG,30),"") -> 0.0532 | AM30: =IF(B30<70,VLOOKUP(B30,Lookups!A:AG,31),"") -> 0.0532 | AN30: 0.0532 | AO30: =IF(B30<70,VLOOKUP(B30,Lookups!A:AL,26)*(1-VLOOKUP(B30,Lookups!A:AL,37))^(A30-$A$3),"") -> 0.001433004944 | AP30: =IF(B30<70,VLOOKUP(B30,Lookups!A:AL,27)*(1-VLOOKUP(B30,Lookups!A:AL,38))^(A30-$A$3),"") -> 0.001271614536 | AQ30: 0.001271614536 | AR30: 0.05822161454 | AS30: 0.4592894535 | AT30: 0.3606892329 | AV30: =IF(BC30>=$B$3,VLOOKUP(BC30,Lookups!A:AL,26)*(1-VLOOKUP(BC30,Lookups!A:AL,37))^(BC30-$B$3),"") -> 0.01103863235 | AW30: =IF(BC30>=$B$3,VLOOKUP(BC30,Lookups!A:AL,27)*(1-VLOOKUP(BC30,Lookups!A:AL,38))^(BC30-$B$3),"") -> 0.01251740573 | AX30: 0.01251740573 | AY30: 0.9001027528 | AZ30: 0.493628121 | BA30: 0.976855 | BC30: 74 | BD30: 46364.93522 | BE30: 20123.88114 | BF30: 20983.17815 | BG30: 21882.92602 | BH30: 22825.54028 | BI30: 23813.78993 | BJ30: 24851.15933 | BK30: 25940.23383 | BL30: 27084.47831 | BM30: 28291.88198 | BN30: 29567.77036 | BO30: 30918.63075 | BP30: 32348.37402 | BQ30: 33862.95819 | BR30: 35469.85472 | BS30: 37183.14806
A31: 2041 | B31: 48 | D31: =VLOOKUP(B31,Lookups!A:R,17) -> 176364.0818 | E31: 0 | G31: =VLOOKUP(B31,Lookups!A:R,18) -> 93673.64387 | H31: 0 | J31: 1.0475 | K31: 3.667016684 | T31: 646730.0306 | U31: 0 | V31: 646730.0306 | W31: =VLOOKUP(B31,Lookups!A:T,19) -> 0.0012 | Y31: 343502.8149 | Z31: 0 | AA31: 343502.8149 | AB31: =VLOOKUP(B31,Lookups!A:T,20) -> 0.00371 | AD31: 2050.47148 | AF31: =IF(B31<71,VLOOKUP(B31,Lookups!A:AG,32),"") -> 0 | AG31: =IF(B31<71,VLOOKUP(B31,Lookups!A:AG,33),"") -> 0 | AH31: 0 | AI31: =IF(B31<70,VLOOKUP(B31,Lookups!A:AG,28),"") -> 0.0031 | AJ31: =IF(B31<70,VLOOKUP(B31,Lookups!A:AG,29),"") -> 0.0031 | AK31: 0.0031 | AL31: =IF(B31<70,VLOOKUP(B31,Lookups!A:AG,30),"") -> 0.0592 | AM31: =IF(B31<70,VLOOKUP(B31,Lookups!A:AG,31),"") -> 0.0592 | AN31: 0.0592 | AO31: =IF(B31<70,VLOOKUP(B31,Lookups!A:AL,26)*(1-VLOOKUP(B31,Lookups!A:AL,37))^(A31-$A$3),"") -> 0.001533029754 | AP31: =IF(B31<70,VLOOKUP(B31,Lookups!A:AL,27)*(1-VLOOKUP(B31,Lookups!A:AL,38))^(A31-$A$3),"") -> 0.001370355316 | AQ31: 0.001370355316 | AR31: 0.06367035532 | AS31: 0.43254888 | AT31: 0.3468165701 | AV31: =IF(BC31>=$B$3,VLOOKUP(BC31,Lookups!A:AL,26)*(1-VLOOKUP(BC31,Lookups!A:AL,37))^(BC31-$B$3),"") -> 0.01213007181 | AW31: =IF(BC31>=$B$3,VLOOKUP(BC31,Lookups!A:AL,27)*(1-VLOOKUP(BC31,Lookups!A:AL,38))^(BC31-$B$3),"") -> 0.01362565352 | AX31: 0.01362565352 | AY31: 0.8888358014 | AZ31: 0.474642424 | BA31: 0.976367 | BC31: 75 | BD31: 56307.20702 | BE31: 23193.4402 | BF31: 24183.80848 | BG31: 25220.79774 | BH31: 26307.19193 | BI31: 27446.18241 | BJ31: 28641.78503 | BK31: 29896.9795 | BL31: 31215.7592 | BM31: 32607.33196 | BN31: 34077.83562 | BO31: 35634.747 | BP31: 37282.57352 | BQ31: 39028.18199 | BR31: 40880.18351 | BS31: 42854.8109
A32: 2042 | B32: 49 | D32: =VLOOKUP(B32,Lookups!A:R,17) -> 175551.3441 | E32: 0 | G32: =VLOOKUP(B32,Lookups!A:R,18) -> 91680.58762 | H32: 0 | J32: 1.0475 | K32: 3.841199976 | T32: 674327.819 | U32: 0 | V32: 674327.819 | W32: =VLOOKUP(B32,Lookups!A:T,19) -> 0.0013 | Y32: 352163.471 | Z32: 0 | AA32: 352163.471 | AB32: =VLOOKUP(B32,Lookups!A:T,20) -> 0.00398 | AD32: 2278.236779 | AF32: =IF(B32<71,VLOOKUP(B32,Lookups!A:AG,32),"") -> 0 | AG32: =IF(B32<71,VLOOKUP(B32,Lookups!A:AG,33),"") -> 0 | AH32: 0 | AI32: =IF(B32<70,VLOOKUP(B32,Lookups!A:AG,28),"") -> 0.00245 | AJ32: =IF(B32<70,VLOOKUP(B32,Lookups!A:AG,29),"") -> 0.00245 | AK32: 0.00245 | AL32: =IF(B32<70,VLOOKUP(B32,Lookups!A:AG,30),"") -> 0.0648 | AM32: =IF(B32<70,VLOOKUP(B32,Lookups!A:AG,31),"") -> 0.0648 | AN32: 0.0648 | AO32: =IF(B32<70,VLOOKUP(B32,Lookups!A:AL,26)*(1-VLOOKUP(B32,Lookups!A:AL,37))^(A32-$A$3),"") -> 0.0016394931 | AP32: =IF(B32<70,VLOOKUP(B32,Lookups!A:AL,27)*(1-VLOOKUP(B32,Lookups!A:AL,38))^(A32-$A$3),"") -> 0.001477306686 | AQ32: 0.001477306686 | AR32: 0.06872730669 | AS32: 0.4050083391 | AT32: 0.3334774713 | AV32: =IF(BC32>=$B$3,VLOOKUP(BC32,Lookups!A:AL,26)*(1-VLOOKUP(BC32,Lookups!A:AL,37))^(BC32-$B$3),"") -> 0.01333466667 | AW32: =IF(BC32>=$B$3,VLOOKUP(BC32,Lookups!A:AL,27)*(1-VLOOKUP(BC32,Lookups!A:AL,38))^(BC32-$B$3),"") -> 0.01482679321 | AX32: 0.01482679321 | AY32: 0.8767248328 | AZ32: 0.4563869462 | BA32: 0.975838 | BC32: 76 | BD32: 67277.35682 | BE32: 26268.9775 | BF32: 27390.67234 | BG32: 28565.17027 | BH32: 29795.6244 | BI32: 31085.6493 | BJ32: 32439.79332 | BK32: 33861.4313 | BL32: 35355.08614 | BM32: 36931.18668 | BN32: 38596.68464 | BO32: 40360.04832 | BP32: 42226.38283 | BQ32: 44203.46554 | BR32: 46301.04942 | BS32: 48537.51981
A33: 2043 | B33: 50 | D33: =VLOOKUP(B33,Lookups!A:R,17) -> 174738.6064 | E33: 0 | G33: =VLOOKUP(B33,Lookups!A:R,18) -> 89687.53136 | H33: 0 | J33: 1.0475 | K33: 4.023656975 | T33: 703088.2126 | U33: 0 | V33: 703088.2126 | W33: =VLOOKUP(B33,Lookups!A:T,19) -> 0.0014 | Y33: 360871.8612 | Z33: 0 | AA33: 360871.8612 | AB33: =VLOOKUP(B33,Lookups!A:T,20) -> 0.00425 | AD33: 2518.028908 | AF33: =IF(B33<71,VLOOKUP(B33,Lookups!A:AG,32),"") -> 0.12 | AG33: =IF(B33<71,VLOOKUP(B33,Lookups!A:AG,33),"") -> 0.12 | AH33: 0.12 | AI33: =IF(B33<70,VLOOKUP(B33,Lookups!A:AG,28),"") -> 0.0018 | AJ33: =IF(B33<70,VLOOKUP(B33,Lookups!A:AG,29),"") -> 0.0018 | AK33: 0.0018 | AL33: =IF(B33<70,VLOOKUP(B33,Lookups!A:AG,30),"") -> 0.07 | AM33: =IF(B33<70,VLOOKUP(B33,Lookups!A:AG,31),"") -> 0.07 | AN33: 0.07 | AO33: =IF(B33<70,VLOOKUP(B33,Lookups!A:AL,26)*(1-VLOOKUP(B33,Lookups!A:AL,37))^(A33-$A$3),"") -> 0.001753213102 | AP33: =IF(B33<70,VLOOKUP(B33,Lookups!A:AL,27)*(1-VLOOKUP(B33,Lookups!A:AL,38))^(A33-$A$3),"") -> 0.001627544193 | AQ33: 0.001627544193 | AR33: 0.1934275442 | AS33: 0.3771732068 | AT33: 0.3206514147 | AV33: =IF(BC33>=$B$3,VLOOKUP(BC33,Lookups!A:AL,26)*(1-VLOOKUP(BC33,Lookups!A:AL,37))^(BC33-$B$3),"") -> 0.01463960763 | AW33: =IF(BC33>=$B$3,VLOOKUP(BC33,Lookups!A:AL,27)*(1-VLOOKUP(BC33,Lookups!A:AL,38))^(BC33-$B$3),"") -> 0.01614790591 | AX33: 0.01614790591 | AY33: 0.863725815 | AZ33: 0.4388336021 | BA33: 0.975255 | BC33: 77 | BD33: 79359.5295 | BE33: 29335.46959 | BF33: 30588.10475 | BG33: 31899.70694 | BH33: 33273.79734 | BI33: 34714.41246 | BJ33: 36226.63161 | BK33: 37814.22357 | BL33: 39482.23925 | BM33: 41242.32486 | BN33: 43102.24365 | BO33: 45071.45245 | BP33: 47155.65231 | BQ33: 49363.52849 | BR33: 51705.97247 | BS33: 54203.51579
A34: 2044 | B34: 51 | D34: =VLOOKUP(B34,Lookups!A:R,17) -> 173925.8687 | E34: 0 | G34: =VLOOKUP(B34,Lookups!A:R,18) -> 87694.47511 | H34: 0 | J34: 1.0475 | K34: 4.214780681 | T34: 733059.3916 | U34: 0 | V34: 733059.3916 | W34: =VLOOKUP(B34,Lookups!A:T,19) -> 0.0015 | Y34: 369612.9796 | Z34: 0 | AA34: 369612.9796 | AB34: =VLOOKUP(B34,Lookups!A:T,20) -> 0.00452 | AD34: 2770.239755 | AF34: =IF(B34<71,VLOOKUP(B34,Lookups!A:AG,32),"") -> 0.12 | AG34: =IF(B34<71,VLOOKUP(B34,Lookups!A:AG,33),"") -> 0.12 | AH34: 0.12 | AI34: =IF(B34<70,VLOOKUP(B34,Lookups!A:AG,28),"") -> 0 | AJ34: =IF(B34<70,VLOOKUP(B34,Lookups!A:AG,29),"") -> 0 | AK34: 0 | AL34: =IF(B34<70,VLOOKUP(B34,Lookups!A:AG,30),"") -> 0.0748 | AM34: =IF(B34<70,VLOOKUP(B34,Lookups!A:AG,31),"") -> 0.0748 | AN34: 0.0748 | AO34: =IF(B34<70,VLOOKUP(B34,Lookups!A:AL,26)*(1-VLOOKUP(B34,Lookups!A:AL,37))^(A34-$A$3),"") -> 0.001873245365 | AP34: =IF(B34<70,VLOOKUP(B34,Lookups!A:AL,27)*(1-VLOOKUP(B34,Lookups!A:AL,38))^(A34-$A$3),"") -> 0.001768105307 | AQ34: 0.001768105307 | AR34: 0.1965681053 | AS34: 0.3042175197 | AT34: 0.308318668 | AV34: =IF(BC34>=$B$3,VLOOKUP(BC34,Lookups!A:AL,26)*(1-VLOOKUP(BC34,Lookups!A:AL,37))^(BC34-$B$3),"") -> 0.01603986706 | AW34: =IF(BC34>=$B$3,VLOOKUP(BC34,Lookups!A:AL,27)*(1-VLOOKUP(BC34,Lookups!A:AL,38))^(BC34-$B$3),"") -> 0.01761383596 | AX34: 0.01761383596 | AY34: 0.8497784518 | AZ34: 0.4219553867 | BA34: 0.974609 | BC34: 78 | BD34: 95296.61606 | BE34: 33302.75379 | BF34: 34724.79342 | BG34: 36213.77469 | BH34: 37773.69498 | BI34: 39409.13669 | BJ34: 41125.86605 | BK34: 42928.16153 | BL34: 44821.75711 | BM34: 46819.87402 | BN34: 48931.32539 | BO34: 51166.84699 | BP34: 53532.91086 | BQ34: 56039.37685 | BR34: 58698.60938 | BS34: 61533.91665
A35: 2045 | B35: 52 | D35: =VLOOKUP(B35,Lookups!A:R,17) -> 173113.131 | E35: 0 | G35: =VLOOKUP(B35,Lookups!A:R,18) -> 85701.41886 | H35: 0 | J35: 1.0475 | K35: 4.414982764 | T35: 764291.4897 | U35: 0 | V35: 764291.4897 | W35: =VLOOKUP(B35,Lookups!A:T,19) -> 0.0016 | Y35: 378370.2871 | Z35: 0 | AA35: 378370.2871 | AB35: =VLOOKUP(B35,Lookups!A:T,20) -> 0.00479 | AD35: 3035.260059 | AF35: =IF(B35<71,VLOOKUP(B35,Lookups!A:AG,32),"") -> 0.12 | AG35: =IF(B35<71,VLOOKUP(B35,Lookups!A:AG,33),"") -> 0.12 | AH35: =IF(B35<71,PCTMALE*AF35+(1-PCTMALE)*AG35,"") -> 0.12 | AI35: =IF(B35<70,VLOOKUP(B35,Lookups!A:AG,28),"") -> 0 | AJ35: =IF(B35<70,VLOOKUP(B35,Lookups!A:AG,29),"") -> 0 | AK35: =IF(B35<70,PCTMALE*AI35+(1-PCTMALE)*AJ35,"") -> 0 | AL35: =IF(B35<70,VLOOKUP(B35,Lookups!A:AG,30),"") -> 0.0792 | AM35: =IF(B35<70,VLOOKUP(B35,Lookups!A:AG,31),"") -> 0.0792 | AN35: =IF(AH35<1,IF(B35<70,PCTMALE*AL35+(1-PCTMALE)*AM35,""),"") -> 0.0792 | AO35: =IF(B35<70,VLOOKUP(B35,Lookups!A:AL,26)*(1-VLOOKUP(B35,Lookups!A:AL,37))^(A35-$A$3),"") -> 0.002139296148 | AP35: =IF(B35<70,VLOOKUP(B35,Lookups!A:AL,27)*(1-VLOOKUP(B35,Lookups!A:AL,38))^(A35-$A$3),"") -> 0.001927899795 | AQ35: =IF(AO35<>"",PCTMALE*AO35+(1-PCTMALE)*AP35,"") -> 0.001927899795 | AR35: 0.2011278998 | AS35: 0.2444180582 | AT35: 0.2964602577 | AV35: =IF(BC35>=$B$3,VLOOKUP(BC35,Lookups!A:AL,26)*(1-VLOOKUP(BC35,Lookups!A:AL,37))^(BC35-$B$3),"") -> 0.01755650239 | AW35: =IF(BC35>=$B$3,VLOOKUP(BC35,Lookups!A:AL,27)*(1-VLOOKUP(BC35,Lookups!A:AL,38))^(BC35-$B$3),"") -> 0.01923596391 | AX35: 0.01923596391 | AY35: 0.8348105935 | AZ35: 0.4057263333 | BA35: 0.973894 | BC35: 79 | BD35: 112568.6709 | BE35: 37132.17395 | BF35: 38717.73121 | BG35: 40377.92759 | BH35: 42117.22015 | BI35: 43940.71818 | BJ35: 45854.85098 | BK35: 47864.38898 | BL35: 49975.7255 | BM35: 52203.60206 | BN35: 54557.8452 | BO35: 57050.42517 | BP35: 59688.55821 | BQ35: 62483.23795 | BR35: 65448.25056 | BS35: 68609.58441
A36: 2046 | B36: 53 | D36: =VLOOKUP(B36,Lookups!A:R,17) -> 172300.3933 | E36: 0 | G36: =VLOOKUP(B36,Lookups!A:R,18) -> 83708.36261 | H36: 0 | J36: 1.0475 | K36: 4.624694445 | T36: 796836.6719 | U36: 0 | V36: 796836.6719 | W36: =VLOOKUP(B36,Lookups!A:T,19) -> 0.0017 | Y36: 387125.5996 | Z36: 0 | AA36: 387125.5996 | AB36: =VLOOKUP(B36,Lookups!A:T,20) -> 0.00506 | AD36: 3313.477876 | AF36: =IF(B36<71,VLOOKUP(B36,Lookups!A:AG,32),"") -> 0.12 | AG36: =IF(B36<71,VLOOKUP(B36,Lookups!A:AG,33),"") -> 0.12 | AH36: 0.12 | AI36: =IF(B36<70,VLOOKUP(B36,Lookups!A:AG,28),"") -> 0 | AJ36: =IF(B36<70,VLOOKUP(B36,Lookups!A:AG,29),"") -> 0 | AK36: 0 | AL36: =IF(B36<70,VLOOKUP(B36,Lookups!A:AG,30),"") -> 0.0832 | AM36: =IF(B36<70,VLOOKUP(B36,Lookups!A:AG,31),"") -> 0.0832 | AN36: 0.0832 | AO36: =IF(B36<70,VLOOKUP(B36,Lookups!A:AL,26)*(1-VLOOKUP(B36,Lookups!A:AL,37))^(A36-$A$3),"") -> 0.00232273839 | AP36: =IF(B36<70,VLOOKUP(B36,Lookups!A:AL,27)*(1-VLOOKUP(B36,Lookups!A:AL,38))^(A36-$A$3),"") -> 0.002111105309 | AQ36: 0.002111105309 | AR36: 0.2053111053 | AS36: 0.1952587675 | AT36: =IF(B36<71,AT35/(1+INTRt),"") -> 0.2850579401 | AV36: =IF(BC36>=$B$3,VLOOKUP(BC36,Lookups!A:AL,26)*(1-VLOOKUP(BC36,Lookups!A:AL,37))^(BC36-$B$3),"") -> 0.01921878213 | AW36: =IF(BC36>=$B$3,VLOOKUP(BC36,Lookups!A:AL,27)*(1-VLOOKUP(BC36,Lookups!A:AL,38))^(BC36-$B$3),"") -> 0.02103534559 | AX36: 0.02103534559 | AY36: 0.8187522071 | AZ36: 0.3901214743 | BA36: 0.973101 | BC36: 80 | BD36: 131266.558 | BE36: 40800.39399 | BF36: 42542.58557 | BG36: 44366.78974 | BH36: 46277.90385 | BI36: 48281.54194 | BJ36: 50384.76844 | BK36: 52592.82505 | BL36: 54912.73668 | BM36: 57360.70112 | BN36: 59947.51566 | BO36: 62686.33308 | BP36: 65585.08249 | BQ36: 68655.84356 | BR36: 71913.76439 | BS36: 75387.40066
A37: 2047 | B37: 54 | D37: =VLOOKUP(B37,Lookups!A:R,17) -> 171487.6556 | E37: 0 | G37: =VLOOKUP(B37,Lookups!A:R,18) -> 81715.30635 | H37: 0 | J37: 1.0475 | K37: 4.844367431 | T37: 830749.2138 | U37: 0 | V37: 830749.2138 | W37: =VLOOKUP(B37,Lookups!A:T,19) -> 0.0018 | Y37: 395858.9687 | Z37: 0 | AA37: 395858.9687 | AB37: =VLOOKUP(B37,Lookups!A:T,20) -> 0.00533 | AD37: 3605.276888 | AF37: =IF(B37<71,VLOOKUP(B37,Lookups!A:AG,32),"") -> 0.16 | AG37: =IF(B37<71,VLOOKUP(B37,Lookups!A:AG,33),"") -> 0.16 | AH37: 0.16 | AI37: =IF(B37<70,VLOOKUP(B37,Lookups!A:AG,28),"") -> 0 | AJ37: =IF(B37<70,VLOOKUP(B37,Lookups!A:AG,29),"") -> 0 | AK37: 0 | AL37: =IF(B37<70,VLOOKUP(B37,Lookups!A:AG,30),"") -> 0.0868 | AM37: =IF(B37<70,VLOOKUP(B37,Lookups!A:AG,31),"") -> 0.0868 | AN37: 0.0868 | AO37: =IF(B37<70,VLOOKUP(B37,Lookups!A:AL,26)*(1-VLOOKUP(B37,Lookups!A:AL,37))^(A37-$A$3),"") -> 0.002531978189 | AP37: =IF(B37<70,VLOOKUP(B37,Lookups!A:AL,27)*(1-VLOOKUP(B37,Lookups!A:AL,38))^(A37-$A$3),"") -> 0.002250497549 | AQ37: 0.002250497549 | AR37: 0.2490504975 | AS37: 0.1551699741 | AT37: 0.2740941731 | AV37: =IF(BC37>=$B$3,VLOOKUP(BC37,Lookups!A:AL,26)*(1-VLOOKUP(BC37,Lookups!A:AL,37))^(BC37-$B$3),"") -> 0.0210354144 | AW37: =IF(BC37>=$B$3,VLOOKUP(BC37,Lookups!A:AL,27)*(1-VLOOKUP(BC37,Lookups!A:AL,38))^(BC37-$B$3),"") -> 0.02303965695 | AX37: 0.02303965695 | AY37: 0.8015294714 | AZ37: 0.3751168023 | BA37: 0.972218 | BC37: 81 | BD37: 151486.7612 | BE37: 44281.70671 | BF37: 46172.5516 | BG37: 48152.40685 | BH37: 50226.58766 | BI37: 52401.18712 | BJ37: 54683.8724 | BK37: 57080.33248 | BL37: 59598.19165 | BM37: 62255.0298 | BN37: 65062.56551 | BO37: 68035.0738 | BP37: 71181.16036 | BQ37: 74513.93556 | BR37: 78049.84001 | BS37: 81819.86593
A38: 2048 | B38: 55 | D38: =VLOOKUP(B38,Lookups!A:R,17) -> 170674.9179 | E38: 0 | G38: =VLOOKUP(B38,Lookups!A:R,18) -> 79722.2501 | H38: 0 | J38: 1.0475 | K38: 5.074474884 | T38: 866085.5844 | U38: 0 | V38: 866085.5844 | W38: =VLOOKUP(B38,Lookups!A:T,19) -> 0.0019 | Y38: 404548.5559 | Z38: 0 | AA38: 404548.5559 | AB38: =VLOOKUP(B38,Lookups!A:T,20) -> 0.0056 | AD38: 3911.034523 | AF38: =IF(B38<71,VLOOKUP(B38,Lookups!A:AG,32),"") -> 0.2 | AG38: =IF(B38<71,VLOOKUP(B38,Lookups!A:AG,33),"") -> 0.2 | AH38: 0.2 | AI38: =IF(B38<70,VLOOKUP(B38,Lookups!A:AG,28),"") -> 0 | AJ38: =IF(B38<70,VLOOKUP(B38,Lookups!A:AG,29),"") -> 0 | AK38: 0 | AL38: =IF(B38<70,VLOOKUP(B38,Lookups!A:AG,30),"") -> 0.09 | AM38: =IF(B38<70,VLOOKUP(B38,Lookups!A:AG,31),"") -> 0.09 | AN38: 0.09 | AO38: =IF(B38<70,VLOOKUP(B38,Lookups!A:AL,26)*(1-VLOOKUP(B38,Lookups!A:AL,37))^(A38-$A$3),"") -> 0.002766778356 | AP38: =IF(B38<70,VLOOKUP(B38,Lookups!A:AL,27)*(1-VLOOKUP(B38,Lookups!A:AL,38))^(A38-$A$3),"") -> 0.002429217243 | AQ38: 0.002429217243 | AR38: 0.2924292172 | AS38: 0.1165248149 | AT38: 0.2635520896 | AV38: =IF(BC38>=$B$3,VLOOKUP(BC38,Lookups!A:AL,26)*(1-VLOOKUP(BC38,Lookups!A:AL,37))^(BC38-$B$3),"") -> 0.0231898009 | AW38: =IF(BC38>=$B$3,VLOOKUP(BC38,Lookups!A:AL,27)*(1-VLOOKUP(BC38,Lookups!A:AL,38))^(BC38-$B$3),"") -> 0.02527508075 | AX38: 0.02527508075 | AY38: 0.7830625074 | AZ38: 0.3606892329 | BA38: 0.971233 | BC38: 82 | BD38: 173331.7136 | BE38: 47547.87035 | BF38: 49578.18161 | BG38: 51704.06852 | BH38: 53931.23833 | BI38: 56266.23354 | BJ38: 58717.28685 | BK38: 61290.50684 | BL38: 63994.08017 | BM38: 66846.8834 | BN38: 69861.49946 | BO38: 73053.25627 | BP38: 76431.39426 | BQ38: 80009.99082 | BR38: 83806.69918 | BS38: 87854.79752
A39: 2049 | B39: 56 | D39: =VLOOKUP(B39,Lookups!A:R,17) -> 166030.7025 | E39: 0 | G39: =VLOOKUP(B39,Lookups!A:R,18) -> 79010.4443 | H39: 0 | J39: 1.0475 | K39: 5.315512441 | T39: 882538.2646 | U39: 0 | V39: 882538.2646 | W39: =VLOOKUP(B39,Lookups!A:T,19) -> 0.002014285714 | Y39: 419980.9996 | Z39: 0 | AA39: 419980.9996 | AB39: =VLOOKUP(B39,Lookups!A:T,20) -> 0.006157142857 | AD39: 4363.567231 | AF39: =IF(B39<71,VLOOKUP(B39,Lookups!A:AG,32),"") -> 0.2 | AG39: =IF(B39<71,VLOOKUP(B39,Lookups!A:AG,33),"") -> 0.2 | AH39: 0.2 | AI39: =IF(B39<70,VLOOKUP(B39,Lookups!A:AG,28),"") -> 0 | AJ39: =IF(B39<70,VLOOKUP(B39,Lookups!A:AG,29),"") -> 0 | AK39: 0 | AL39: =IF(B39<70,VLOOKUP(B39,Lookups!A:AG,30),"") -> 0.0928 | AM39: =IF(B39<70,VLOOKUP(B39,Lookups!A:AG,31),"") -> 0.0928 | AN39: 0.0928 | AO39: =IF(B39<70,VLOOKUP(B39,Lookups!A:AL,26)*(1-VLOOKUP(B39,Lookups!A:AL,37))^(A39-$A$3),"") -> 0.003127886216 | AP39: =IF(B39<70,VLOOKUP(B39,Lookups!A:AL,27)*(1-VLOOKUP(B39,Lookups!A:AL,38))^(A39-$A$3),"") -> 0.00258977726 | AQ39: 0.00258977726 | AR39: 0.2953897773 | AS39: 0.08244955447 | AT39: 0.2534154707 | AV39: =IF(BC39>=$B$3,VLOOKUP(BC39,Lookups!A:AL,26)*(1-VLOOKUP(BC39,Lookups!A:AL,37))^(BC39-$B$3),"") -> 0.02551959996 | AW39: =IF(BC39>=$B$3,VLOOKUP(BC39,Lookups!A:AL,27)*(1-VLOOKUP(BC39,Lookups!A:AL,38))^(BC39-$B$3),"") -> 0.02777274525 | AX39: 0.02777274525 | AY39: 0.7632705393 | AZ39: 0.3468165701 | BA39: 0.970132 | BC39: 83 | BD39: 208683.5289 | BE39: 53591.67622 | BF39: 55880.06018 | BG39: 58276.16839 | BH39: 60786.43358 | BI39: 63418.22983 | BJ39: 66180.83633 | BK39: 69081.1381 | BL39: 72128.36242 | BM39: 75343.78523 | BN39: 78741.58888 | BO39: 82339.04963 | BP39: 86146.58247 | BQ39: 90180.05414 | BR39: 94459.36179 | BS39: 99022.01358
A40: 2050 | B40: 57 | D40: =VLOOKUP(B40,Lookups!A:R,17) -> 161386.487 | E40: 0 | G40: =VLOOKUP(B40,Lookups!A:R,18) -> 78298.63849 | H40: 0 | J40: 1.0475 | K40: 5.567999282 | T40: 898599.8438 | U40: 0 | V40: 898599.8438 | W40: =VLOOKUP(B40,Lookups!A:T,19) -> 0.002128571429 | Y40: 435966.7629 | Z40: 0 | AA40: 435966.7629 | AB40: =VLOOKUP(B40,Lookups!A:T,20) -> 0.006714285714 | AD40: 4839.939361 | AF40: =IF(B40<71,VLOOKUP(B40,Lookups!A:AG,32),"") -> 0.2 | AG40: =IF(B40<71,VLOOKUP(B40,Lookups!A:AG,33),"") -> 0.2 | AH40: 0.2 | AI40: =IF(B40<70,VLOOKUP(B40,Lookups!A:AG,28),"") -> 0 | AJ40: =IF(B40<70,VLOOKUP(B40,Lookups!A:AG,29),"") -> 0 | AK40: 0 | AL40: =IF(B40<70,VLOOKUP(B40,Lookups!A:AG,30),"") -> 0.0952 | AM40: =IF(B40<70,VLOOKUP(B40,Lookups!A:AG,31),"") -> 0.0952 | AN40: 0.0952 | AO40: =IF(B40<70,VLOOKUP(B40,Lookups!A:AL,26)*(1-VLOOKUP(B40,Lookups!A:AL,37))^(A40-$A$3),"") -> 0.003437290293 | AP40: =IF(B40<70,VLOOKUP(B40,Lookups!A:AL,27)*(1-VLOOKUP(B40,Lookups!A:AL,38))^(A40-$A$3),"") -> 0.00276109108 | AQ40: 0.00276109108 | AR40: 0.2979610911 | AS40: 0.05809479894 | AT40: 0.2436687219 | AV40: =IF(BC40>=$B$3,VLOOKUP(BC40,Lookups!A:AL,26)*(1-VLOOKUP(BC40,Lookups!A:AL,37))^(BC40-$B$3),"") -> 0.02802007749 | AW40: =IF(BC40>=$B$3,VLOOKUP(BC40,Lookups!A:AL,27)*(1-VLOOKUP(BC40,Lookups!A:AL,38))^(BC40-$B$3),"") -> 0.03056917549 | AX40: 0.03056917549 | AY40: 0.742072421 | AZ40: 0.3334774713 | BA40: 0.9689 | BC40: 84 | BD40: 246843.4068 | BE40: 59185.22168 | BF40: 61712.45205 | BG40: 64358.65023 | BH40: 67130.92033 | BI40: 70037.4061 | BJ40: 73088.35523 | BK40: 76291.37137 | BL40: 79656.64484 | BM40: 83207.67227 | BN40: 86960.11624 | BO40: 90933.0562 | BP40: 95137.99419 | BQ40: 99592.45301 | BR40: 104318.4065 | BS40: 109357.2778
A41: 2051 | B41: 58 | D41: =VLOOKUP(B41,Lookups!A:R,17) -> 156742.2716 | E41: 0 | G41: =VLOOKUP(B41,Lookups!A:R,18) -> 77586.83269 | H41: 0 | J41: 1.0475 | K41: 5.832479248 | T41: 914196.0462 | U41: 0 | V41: 914196.0462 | W41: =VLOOKUP(B41,Lookups!A:T,19) -> 0.002242857143 | Y41: 452523.5916 | Z41: 0 | AA41: 452523.5916 | AB41: =VLOOKUP(B41,Lookups!A:T,20) -> 0.007271428571 | AD41: 5340.904105 | AF41: =IF(B41<71,VLOOKUP(B41,Lookups!A:AG,32),"") -> 0.2 | AG41: =IF(B41<71,VLOOKUP(B41,Lookups!A:AG,33),"") -> 0.2 | AH41: 0.2 | AI41: =IF(B41<70,VLOOKUP(B41,Lookups!A:AG,28),"") -> 0 | AJ41: =IF(B41<70,VLOOKUP(B41,Lookups!A:AG,29),"") -> 0 | AK41: 0 | AL41: =IF(B41<70,VLOOKUP(B41,Lookups!A:AG,30),"") -> 0.0972 | AM41: =IF(B41<70,VLOOKUP(B41,Lookups!A:AG,31),"") -> 0.0972 | AN41: 0.0972 | AO41: =IF(B41<70,VLOOKUP(B41,Lookups!A:AL,26)*(1-VLOOKUP(B41,Lookups!A:AL,37))^(A41-$A$3),"") -> 0.003634357726 | AP41: =IF(B41<70,VLOOKUP(B41,Lookups!A:AL,27)*(1-VLOOKUP(B41,Lookups!A:AL,38))^(A41-$A$3),"") -> 0.002948329739 | AQ41: 0.002948329739 | AR41: 0.3001483297 | AS41: 0.04078480926 | AT41: 0.2342968479 | AV41: =IF(BC41>=$B$3,VLOOKUP(BC41,Lookups!A:AL,26)*(1-VLOOKUP(BC41,Lookups!A:AL,37))^(BC41-$B$3),"") -> 0.03069482247 | AW41: =IF(BC41>=$B$3,VLOOKUP(BC41,Lookups!A:AL,27)*(1-VLOOKUP(BC41,Lookups!A:AL,38))^(BC41-$B$3),"") -> 0.03368486151 | AX41: 0.03368486151 | AY41: 0.719387879 | AZ41: 0.3206514147 | BA41: 0.967527 | BC41: 85 | BD41: 287990.785 | BE41: 64274.38967 | BF41: 67018.92936 | BG41: 69892.66655 | BH41: 72903.31623 | BI41: 76059.72241 | BJ41: 79373.01393 | BK41: 82851.44826 | BL41: 86506.09198 | BM41: 90362.4621 | BN41: 94437.568 | BO41: 98752.12971 | BP41: 103318.6383 | BQ41: 108156.1233 | BR41: 113288.4481 | BS41: 118760.5975
A42: 2052 | B42: 59 | D42: =VLOOKUP(B42,Lookups!A:R,17) -> 152098.0561 | E42: 0 | G42: =VLOOKUP(B42,Lookups!A:R,18) -> 76875.02688 | H42: 0 | J42: 1.0475 | K42: 6.109522012 | T42: 929246.4218 | U42: 0 | V42: 929246.4218 | W42: =VLOOKUP(B42,Lookups!A:T,19) -> 0.002357142857 | Y42: 469669.6689 | Z42: 0 | AA42: 469669.6689 | AB42: =VLOOKUP(B42,Lookups!A:T,20) -> 0.007828571429 | AD42: 5867.209117 | AF42: =IF(B42<71,VLOOKUP(B42,Lookups!A:AG,32),"") -> 0.2 | AG42: =IF(B42<71,VLOOKUP(B42,Lookups!A:AG,33),"") -> 0.2 | AH42: 0.2 | AI42: =IF(B42<70,VLOOKUP(B42,Lookups!A:AG,28),"") -> 0 | AJ42: =IF(B42<70,VLOOKUP(B42,Lookups!A:AG,29),"") -> 0 | AK42: 0 | AL42: =IF(B42<70,VLOOKUP(B42,Lookups!A:AG,30),"") -> 0.0988 | AM42: =IF(B42<70,VLOOKUP(B42,Lookups!A:AG,31),"") -> 0.0988 | AN42: 0.0988 | AO42: =IF(B42<70,VLOOKUP(B42,Lookups!A:AL,26)*(1-VLOOKUP(B42,Lookups!A:AL,37))^(A42-$A$3),"") -> 0.003856113071 | AP42: =IF(B42<70,VLOOKUP(B42,Lookups!A:AL,27)*(1-VLOOKUP(B42,Lookups!A:AL,38))^(A42-$A$3),"") -> 0.0031590114 | AQ42: 0.0031590114 | AR42: 0.3019590114 | AS42: 0.02854331688 | AT42: 0.2252854307 | AV42: =IF(BC42>=$B$3,VLOOKUP(BC42,Lookups!A:AL,26)*(1-VLOOKUP(BC42,Lookups!A:AL,37))^(BC42-$B$3),"") -> 0.03356088411 | AW42: =IF(BC42>=$B$3,VLOOKUP(BC42,Lookups!A:AL,27)*(1-VLOOKUP(BC42,Lookups!A:AL,38))^(BC42-$B$3),"") -> 0.03711861306 | AX42: 0.03711861306 | AY42: 0.6951553979 | AZ42: 0.308318668 | BA42: 0.966013 | BC42: 86 | BD42: 332315.4527 | BE42: 68804.24408 | BF42: 71742.21019 | BG42: 74818.47923 | BH42: 78041.30992 | BI42: 81420.16956 | BJ42: 84966.97132 | BK42: 88690.55463 | BL42: 92602.76601 | BM42: 96730.92082 | BN42: 101093.2272 | BO42: 105711.8655 | BP42: 110600.2071 | BQ42: 115778.6226 | BR42: 121272.6573 | BS42: 127130.4664
A43: 2053 | B43: 60 | D43: =VLOOKUP(B43,Lookups!A:R,17) -> 147453.8407 | E43: 0 | G43: =VLOOKUP(B43,Lookups!A:R,18) -> 76163.22108 | H43: 0 | J43: 1.0475 | K43: 6.399724308 | T43: 943663.9283 | U43: 0 | V43: 943663.9283 | W43: =VLOOKUP(B43,Lookups!A:T,19) -> 0.002471428571 | Y43: 487423.6173 | Z43: 0 | AA43: 487423.6173 | AB43: =VLOOKUP(B43,Lookups!A:T,20) -> 0.008385714286 | AD43: 6419.593185 | AF43: =IF(B43<71,VLOOKUP(B43,Lookups!A:AG,32),"") -> 0.25 | AG43: =IF(B43<71,VLOOKUP(B43,Lookups!A:AG,33),"") -> 0.25 | AH43: 0.25 | AI43: =IF(B43<70,VLOOKUP(B43,Lookups!A:AG,28),"") -> 0 | AJ43: =IF(B43<70,VLOOKUP(B43,Lookups!A:AG,29),"") -> 0 | AK43: 0 | AL43: =IF(B43<70,VLOOKUP(B43,Lookups!A:AG,30),"") -> 0.1 | AM43: =IF(B43<70,VLOOKUP(B43,Lookups!A:AG,31),"") -> 0.1 | AN43: 0.1 | AO43: =IF(B43<70,VLOOKUP(B43,Lookups!A:AL,26)*(1-VLOOKUP(B43,Lookups!A:AL,37))^(A43-$A$3),"") -> 0.004096962881 | AP43: =IF(B43<70,VLOOKUP(B43,Lookups!A:AL,27)*(1-VLOOKUP(B43,Lookups!A:AL,38))^(A43-$A$3),"") -> 0.00341303185 | AQ43: 0.00341303185 | AR43: 0.3534130319 | AS43: 0.01992440513 | AT43: 0.2166206064 | AV43: =IF(BC43>=$B$3,VLOOKUP(BC43,Lookups!A:AL,26)*(1-VLOOKUP(BC43,Lookups!A:AL,37))^(BC43-$B$3),"") -> 0.03975034956 | AW43: =IF(BC43>=$B$3,VLOOKUP(BC43,Lookups!A:AL,27)*(1-VLOOKUP(BC43,Lookups!A:AL,38))^(BC43-$B$3),"") -> 0.04084768339 | AX43: 0.04084768339 | AY43: 0.6693521937 | AZ43: 0.2964602577 | BA43: 0.96437 | BC43: 87 | BD43: 380018.1119 | BE43: 72722.56028 | BF43: 75827.83991 | BG43: 79079.29865 | BH43: 82485.66554 | BI43: 86056.94704 | BJ43: 89805.73475 | BK43: 93741.37151 | BL43: 97876.37846 | BM43: 102239.6266 | BN43: 106850.3609 | BO43: 111732.0249 | BP43: 116898.7514 | BQ43: 122372.0713 | BR43: 128178.9844 | BS43: 134370.3885
A44: 2054 | B44: 61 | D44: =VLOOKUP(B44,Lookups!A:R,17) -> 142809.6252 | E44: 0 | G44: =VLOOKUP(B44,Lookups!A:R,18) -> 75451.41527 | H44: 0 | J44: 1.0475 | K44: 6.703711213 | T44: 957354.4857 | U44: 0 | V44: 957354.4857 | W44: =VLOOKUP(B44,Lookups!A:T,19) -> 0.002585714286 | Y44: 505804.4986 | Z44: 0 | AA44: 505804.4986 | AB44: =VLOOKUP(B44,Lookups!A:T,20) -> 0.008942857143 | AD44: 6998.782543 | AF44: =IF(B44<71,VLOOKUP(B44,Lookups!A:AG,32),"") -> 0.25 | AG44: =IF(B44<71,VLOOKUP(B44,Lookups!A:AG,33),"") -> 0.25 | AH44: 0.25 | AI44: =IF(B44<70,VLOOKUP(B44,Lookups!A:AG,28),"") -> 0 | AJ44: =IF(B44<70,VLOOKUP(B44,Lookups!A:AG,29),"") -> 0 | AK44: 0 | AL44: =IF(B44<70,VLOOKUP(B44,Lookups!A:AG,30),"") -> 0.1008 | AM44: =IF(B44<70,VLOOKUP(B44,Lookups!A:AG,31),"") -> 0.1008 | AN44: 0.1008 | AO44: =IF(B44<70,VLOOKUP(B44,Lookups!A:AL,26)*(1-VLOOKUP(B44,Lookups!A:AL,37))^(A44-$A$3),"") -> 0.004372612646 | AP44: =IF(B44<70,VLOOKUP(B44,Lookups!A:AL,27)*(1-VLOOKUP(B44,Lookups!A:AL,38))^(A44-$A$3),"") -> 0.003663349069 | AQ44: 0.003663349069 | AR44: 0.3544633491 | AS44: 0.01288286071 | AT44: 0.2082890447 | AV44: =IF(BC44>=$B$3,VLOOKUP(BC44,Lookups!A:AL,26)*(1-VLOOKUP(BC44,Lookups!A:AL,37))^(BC44-$B$3),"") -> 0.04713739376 | AW44: =IF(BC44>=$B$3,VLOOKUP(BC44,Lookups!A:AL,27)*(1-VLOOKUP(BC44,Lookups!A:AL,38))^(BC44-$B$3),"") -> 0.04481476648 | AX44: =IF(BC44>=$B$3, PCTMALE*AV44+(1-PCTMALE)*AW44, "") -> 0.04481476648 | AY44: 0.6420107072 | AZ44: =IF(AX43="",1,AZ43/(1+INTRt)) -> 0.2850579401 | BA44: =IF(AX44="",1,ROUND((13/24)+(11/24)*(1/(1+INTRt))*(1-AX44),6)) -> 0.962622 | BC44: 88 | BD44: 442614.3368 | BE44: 77975.23164 | BF44: 81304.80223 | BG44: 84791.1103 | BH44: 88443.51536 | BI44: 92272.74663 | BJ44: 96292.3052 | BK44: 100512.2087 | BL44: 104945.8827 | BM44: 109624.2835 | BN44: 114568.0461 | BO44: 119802.3074 | BP44: 125342.221 | BQ44: 131210.8728 | BR44: 137437.2129 | BS44: 144075.8153
A45: 2055 | B45: 62 | D45: =VLOOKUP(B45,Lookups!A:R,17) -> 138165.4097 | E45: 0 | G45: =VLOOKUP(B45,Lookups!A:R,18) -> 74739.60947 | H45: 0 | J45: 1.0475 | K45: 7.022137495 | T45: 970216.5043 | U45: 0 | V45: 970216.5043 | W45: =VLOOKUP(B45,Lookups!A:T,19) -> 0.0027 | Y45: 524831.814 | Z45: 0 | AA45: 524831.814 | AB45: =VLOOKUP(B45,Lookups!A:T,20) -> 0.0095 | AD45: 7605.486795 | AF45: =IF(B45<71,VLOOKUP(B45,Lookups!A:AG,32),"") -> 0.25 | AG45: =IF(B45<71,VLOOKUP(B45,Lookups!A:AG,33),"") -> 0.25 | AH45: 0.25 | AI45: =IF(B45<70,VLOOKUP(B45,Lookups!A:AG,28),"") -> 0 | AJ45: =IF(B45<70,VLOOKUP(B45,Lookups!A:AG,29),"") -> 0 | AK45: 0 | AL45: =IF(B45<70,VLOOKUP(B45,Lookups!A:AG,30),"") -> 0.1012 | AM45: =IF(B45<70,VLOOKUP(B45,Lookups!A:AG,31),"") -> 0.1012 | AN45: 0.1012 | AO45: =IF(B45<70,VLOOKUP(B45,Lookups!A:AL,26)*(1-VLOOKUP(B45,Lookups!A:AL,37))^(A45-$A$3),"") -> 0.004668592443 | AP45: =IF(B45<70,VLOOKUP(B45,Lookups!A:AL,27)*(1-VLOOKUP(B45,Lookups!A:AL,38))^(A45-$A$3),"") -> 0.003937130694 | AQ45: 0.003937130694 | AR45: 0.3551371307 | AS45: 0.008316358756 | AT45: 0.2002779276 | AV45: =IF(BC45>=$B$3,VLOOKUP(BC45,Lookups!A:AL,26)*(1-VLOOKUP(BC45,Lookups!A:AL,37))^(BC45-$B$3),"") -> 0.0559584388 | AW45: =IF(BC45>=$B$3,VLOOKUP(BC45,Lookups!A:AL,27)*(1-VLOOKUP(BC45,Lookups!A:AL,38))^(BC45-$B$3),"") -> 0.0489323271 | AX45: 0.0489323271 | AY45: 0.6132391473 | AZ45: 0.2740941731 | BA45: 0.960807 | BC45: 89 | BD45: 508168.6478 | BE45: 82067.97166 | BF45: 85572.30373 | BG45: 89241.60006 | BH45: 93085.71144 | BI45: 97115.93022 | BJ45: 101346.4662 | BK45: 105787.8627 | BL45: 110454.25 | BM45: 115378.2092 | BN45: 120581.4585 | BO45: 126090.4541 | BP45: 131921.145 | BQ45: 138097.8288 | BR45: 144650.9752 | BS45: 151638.0225
A46: 2056 | B46: 63 | D46: =VLOOKUP(B46,Lookups!A:R,17) -> 139790.8852 | E46: 0 | G46: =VLOOKUP(B46,Lookups!A:R,18) -> 71750.02509 | H46: 0 | J46: 1.0475 | K46: 7.355689026 | T46: 1028258.28 | U46: 0 | V46: 1028258.28 | W46: =VLOOKUP(B46,Lookups!A:T,19) -> 0.00314 | Y46: 527770.8722 | Z46: 0 | AA46: 527770.8722 | AB46: =VLOOKUP(B46,Lookups!A:T,20) -> 0.0103 | AD46: 8664.770982 | AF46: =IF(B46<71,VLOOKUP(B46,Lookups!A:AG,32),"") -> 0.25 | AG46: =IF(B46<71,VLOOKUP(B46,Lookups!A:AG,33),"") -> 0.25 | AH46: 0.25 | AI46: =IF(B46<70,VLOOKUP(B46,Lookups!A:AG,28),"") -> 0 | AJ46: =IF(B46<70,VLOOKUP(B46,Lookups!A:AG,29),"") -> 0 | AK46: 0 | AL46: =IF(B46<70,VLOOKUP(B46,Lookups!A:AG,30),"") -> 0.1012 | AM46: =IF(B46<70,VLOOKUP(B46,Lookups!A:AG,31),"") -> 0.1012 | AN46: 0.1012 | AO46: =IF(B46<70,VLOOKUP(B46,Lookups!A:AL,26)*(1-VLOOKUP(B46,Lookups!A:AL,37))^(A46-$A$3),"") -> 0.00498799773 | AP46: =IF(B46<70,VLOOKUP(B46,Lookups!A:AL,27)*(1-VLOOKUP(B46,Lookups!A:AL,38))^(A46-$A$3),"") -> 0.004383749987 | AQ46: 0.004383749987 | AR46: 0.35558375 | AS46: 0.005362910969 | AT46: 0.1925749303 | AV46: =IF(BC46>=$B$3,VLOOKUP(BC46,Lookups!A:AL,26)*(1-VLOOKUP(BC46,Lookups!A:AL,37))^(BC46-$B$3),"") -> 0.06645041847 | AW46: =IF(BC46>=$B$3,VLOOKUP(BC46,Lookups!A:AL,27)*(1-VLOOKUP(BC46,Lookups!A:AL,38))^(BC46-$B$3),"") -> 0.05773943223 | AX46: 0.05773943223 | AY46: 0.5832319287 | AZ46: 0.2635520896 | BA46: 0.956926 | BC46: 90 | BD46: 576719.6013 | BE46: 84830.26467 | BF46: 88452.54765 | BG46: 92245.34736 | BH46: 96218.84614 | BI46: 100384.7165 | BJ46: 104757.6463 | BK46: 109348.534 | BL46: 114171.9854 | BM46: 119261.6782 | BN46: 124640.0616 | BO46: 130334.4823 | BP46: 136361.426 | BQ46: 142746.0083 | BR46: 149519.7244 | BS46: 156741.946
A47: 2057 | B47: 64 | D47: =VLOOKUP(B47,Lookups!A:R,17) -> 141416.3606 | E47: 0 | G47: =VLOOKUP(B47,Lookups!A:R,18) -> 68760.44071 | H47: 0 | J47: 1.0475 | K47: 7.705084255 | T47: 1089624.973 | U47: 0 | V47: 1089624.973 | W47: =VLOOKUP(B47,Lookups!A:T,19) -> 0.00358 | Y47: 529804.9891 | Z47: 0 | AA47: 529804.9891 | AB47: =VLOOKUP(B47,Lookups!A:T,20) -> 0.0111 | AD47: 9781.692783 | AF47: =IF(B47<71,VLOOKUP(B47,Lookups!A:AG,32),"") -> 0.25 | AG47: =IF(B47<71,VLOOKUP(B47,Lookups!A:AG,33),"") -> 0.25 | AH47: 0.25 | AI47: =IF(B47<70,VLOOKUP(B47,Lookups!A:AG,28),"") -> 0 | AJ47: =IF(B47<70,VLOOKUP(B47,Lookups!A:AG,29),"") -> 0 | AK47: 0 | AL47: =IF(B47<70,VLOOKUP(B47,Lookups!A:AG,30),"") -> 0.1008 | AM47: =IF(B47<70,VLOOKUP(B47,Lookups!A:AG,31),"") -> 0.1008 | AN47: 0.1008 | AO47: =IF(B47<70,VLOOKUP(B47,Lookups!A:AL,26)*(1-VLOOKUP(B47,Lookups!A:AL,37))^(A47-$A$3),"") -> 0.005329782199 | AP47: =IF(B47<70,VLOOKUP(B47,Lookups!A:AL,27)*(1-VLOOKUP(B47,Lookups!A:AL,38))^(A47-$A$3),"") -> 0.004877374782 | AQ47: 0.004877374782 | AR47: 0.3556773748 | AS47: 0.003455946976 | AT47: 0.1851682023 | AV47: =IF(BC47>=$B$3,VLOOKUP(BC47,Lookups!A:AL,26)*(1-VLOOKUP(BC47,Lookups!A:AL,37))^(BC47-$B$3),"") -> 0.07884508419 | AW47: =IF(BC47>=$B$3,VLOOKUP(BC47,Lookups!A:AL,27)*(1-VLOOKUP(BC47,Lookups!A:AL,38))^(BC47-$B$3),"") -> 0.06775824653 | AX47: 0.06775824653 | AY47: 0.5495564483 | AZ47: 0.2534154707 | BA47: 0.95251 | BC47: 91 | BD47: 648297.934 | BE47: 85998.25006 | BF47: 89670.40644 | BG47: 93515.42731 | BH47: 97543.6352 | BI47: 101766.8633 | BJ47: 106200.0018 | BK47: 110854.0991 | BL47: 115743.9622 | BM47: 120903.7324 | BN47: 126356.1681 | BO47: 132128.9924 | BP47: 138238.9181 | BQ47: 144711.4066 | BR47: 151578.3866 | BS47: 158900.0473
A48: 2058 | B48: 65 | D48: =VLOOKUP(B48,Lookups!A:R,17) -> 143041.836 | E48: 0 | G48: =VLOOKUP(B48,Lookups!A:R,18) -> 65770.85633 | H48: 0 | J48: 1.0475 | K48: 8.071075757 | T48: 1154501.495 | U48: 0 | V48: 1154501.495 | W48: =VLOOKUP(B48,Lookups!A:T,19) -> 0.00402 | Y48: 530841.5641 | Z48: 0 | AA48: 530841.5641 | AB48: =VLOOKUP(B48,Lookups!A:T,20) -> 0.0119 | AD48: 10958.11062 | AF48: =IF(B48<71,VLOOKUP(B48,Lookups!A:AG,32),"") -> 0.25 | AG48: =IF(B48<71,VLOOKUP(B48,Lookups!A:AG,33),"") -> 0.25 | AH48: 0.25 | AI48: =IF(B48<70,VLOOKUP(B48,Lookups!A:AG,28),"") -> 0 | AJ48: =IF(B48<70,VLOOKUP(B48,Lookups!A:AG,29),"") -> 0 | AK48: 0 | AL48: =IF(B48<70,VLOOKUP(B48,Lookups!A:AG,30),"") -> 0.1 | AM48: =IF(B48<70,VLOOKUP(B48,Lookups!A:AG,31),"") -> 0.1 | AN48: 0.1 | AO48: =IF(B48<70,VLOOKUP(B48,Lookups!A:AL,26)*(1-VLOOKUP(B48,Lookups!A:AL,37))^(A48-$A$3),"") -> 0.005600307654 | AP48: =IF(B48<70,VLOOKUP(B48,Lookups!A:AL,27)*(1-VLOOKUP(B48,Lookups!A:AL,38))^(A48-$A$3),"") -> 0.005438454791 | AQ48: 0.005438454791 | AR48: 0.3554384548 | AS48: 0.002226744828 | AT48: 0.1780463483 | AV48: =IF(BC48>=$B$3,VLOOKUP(BC48,Lookups!A:AL,26)*(1-VLOOKUP(BC48,Lookups!A:AL,37))^(BC48-$B$3),"") -> 0.09263790541 | AW48: =IF(BC48>=$B$3,VLOOKUP(BC48,Lookups!A:AL,27)*(1-VLOOKUP(BC48,Lookups!A:AL,38))^(BC48-$B$3),"") -> 0.07903406501 | AX48: 0.07903406501 | AY48: 0.512319467 | AZ48: 0.2436687219 | BA48: 0.947541 | BC48: 92 | BD48: 722925.5044 | BE48: 85513.01151 | BF48: 89164.44803 | BG48: 92987.77367 | BH48: 96993.2527 | BI48: 101192.6516 | BJ48: 105600.7764 | BK48: 110228.6134 | BL48: 115090.8858 | BM48: 120221.5424 | BN48: 125643.2131 | BO48: 131383.4647 | BP48: 137458.9156 | BQ48: 143894.8835 | BR48: 150723.1171 | BS48: 158003.4659
A49: 2059 | B49: 66 | D49: =VLOOKUP(B49,Lookups!A:R,17) -> 144667.3114 | E49: 0 | G49: =VLOOKUP(B49,Lookups!A:R,18) -> 62781.27195 | H49: 0 | J49: 1.0475 | K49: 8.454451856 | T49: 1223082.819 | U49: 0 | V49: 1223082.819 | W49: =VLOOKUP(B49,Lookups!A:T,19) -> 0.00446 | Y49: 530781.2412 | Z49: 0 | AA49: 530781.2412 | AB49: =VLOOKUP(B49,Lookups!A:T,20) -> 0.0127 | AD49: 12195.87114 | AF49: =IF(B49<71,VLOOKUP(B49,Lookups!A:AG,32),"") -> 0.25 | AG49: =IF(B49<71,VLOOKUP(B49,Lookups!A:AG,33),"") -> 0.25 | AH49: 0.25 | AI49: =IF(B49<70,VLOOKUP(B49,Lookups!A:AG,28),"") -> 0 | AJ49: =IF(B49<70,VLOOKUP(B49,Lookups!A:AG,29),"") -> 0 | AK49: 0 | AL49: =IF(B49<70,VLOOKUP(B49,Lookups!A:AG,30),"") -> 0.0756 | AM49: =IF(B49<70,VLOOKUP(B49,Lookups!A:AG,31),"") -> 0.0756 | AN49: 0.0756 | AO49: =IF(B49<70,VLOOKUP(B49,Lookups!A:AL,26)*(1-VLOOKUP(B49,Lookups!A:AL,37))^(A49-$A$3),"") -> 0.005885442978 | AP49: =IF(B49<70,VLOOKUP(B49,Lookups!A:AL,27)*(1-VLOOKUP(B49,Lookups!A:AL,38))^(A49-$A$3),"") -> 0.005966236125 | AQ49: 0.005966236125 | AR49: 0.3315662361 | AS49: 0.001435274087 | AT49: 0.1711984118 | AV49: =IF(BC49>=$B$3,VLOOKUP(BC49,Lookups!A:AL,26)*(1-VLOOKUP(BC49,Lookups!A:AL,37))^(BC49-$B$3),"") -> 0.1085606119 | AW49: =IF(BC49>=$B$3,VLOOKUP(BC49,Lookups!A:AL,27)*(1-VLOOKUP(BC49,Lookups!A:AL,38))^(BC49-$B$3),"") -> 0.09161732786 | AX49: 0.09161732786 | AY49: 0.4718287769 | AZ49: 0.2342968479 | BA49: 0.941996 | BC49: 93 | BD49: 776118.4203 | BE49: 80821.68876 | BF49: 84272.8041 | BG49: 87886.37856 | BH49: 91672.11332 | BI49: 95641.12927 | BJ49: 99807.42035 | BK49: 104181.3699 | BL49: 108776.8935 | BM49: 113626.0776 | BN49: 118750.3105 | BO49: 124175.6465 | BP49: 129917.7926 | BQ49: 136000.6774 | BR49: 142454.3078 | BS49: 149335.2499
A50: 2060 | B50: 67 | D50: =VLOOKUP(B50,Lookups!A:R,17) -> 146292.7868 | E50: 0 | G50: =VLOOKUP(B50,Lookups!A:R,18) -> 59791.68758 | H50: 0 | J50: 1.0475 | K50: 8.856038319 | T50: 1295574.526 | U50: 0 | V50: 1295574.526 | W50: =VLOOKUP(B50,Lookups!A:T,19) -> 0.0049 | Y50: 529517.4763 | Z50: 0 | AA50: 529517.4763 | AB50: =VLOOKUP(B50,Lookups!A:T,20) -> 0.0135 | AD50: 13496.80111 | AF50: =IF(B50<71,VLOOKUP(B50,Lookups!A:AG,32),"") -> 0.25 | AG50: =IF(B50<71,VLOOKUP(B50,Lookups!A:AG,33),"") -> 0.25 | AH50: 0.25 | AI50: =IF(B50<70,VLOOKUP(B50,Lookups!A:AG,28),"") -> 0 | AJ50: =IF(B50<70,VLOOKUP(B50,Lookups!A:AG,29),"") -> 0 | AK50: 0 | AL50: =IF(B50<70,VLOOKUP(B50,Lookups!A:AG,30),"") -> 0.0544 | AM50: =IF(B50<70,VLOOKUP(B50,Lookups!A:AG,31),"") -> 0.0544 | AN50: 0.0544 | AO50: =IF(B50<70,VLOOKUP(B50,Lookups!A:AL,26)*(1-VLOOKUP(B50,Lookups!A:AL,37))^(A50-$A$3),"") -> 0.006183704642 | AP50: =IF(B50<70,VLOOKUP(B50,Lookups!A:AL,27)*(1-VLOOKUP(B50,Lookups!A:AL,38))^(A50-$A$3),"") -> 0.00651594608 | AQ50: 0.00651594608 | AR50: 0.3109159461 | AS50: 0.0009593856603 | AT50: 0.1646138575 | AV50: =IF(BC50>=$B$3,VLOOKUP(BC50,Lookups!A:AL,26)*(1-VLOOKUP(BC50,Lookups!A:AL,37))^(BC50-$B$3),"") -> 0.1268156082 | AW50: =IF(BC50>=$B$3,VLOOKUP(BC50,Lookups!A:AL,27)*(1-VLOOKUP(BC50,Lookups!A:AL,38))^(BC50-$B$3),"") -> 0.1055660618 | AX50: 0.1055660618 | AY50: 0.4286010852 | AZ50: 0.2252854307 | BA50: 0.935848 | BC50: 94 | BD50: 830151.3746 | BE50: 75015.1498 | BF50: 78218.32383 | BG50: 81572.28529 | BH50: 85086.0384 | BI50: 88769.90508 | BJ50: 92636.87388 | BK50: 96696.58217 | BL50: 100961.9458 | BM50: 105462.746 | BN50: 110218.8344 | BO50: 115254.3936 | BP50: 120584.0019 | BQ50: 126229.869 | BR50: 132219.846 | BS50: 138606.4349
A51: 2061 | B51: 68 | D51: =VLOOKUP(B51,Lookups!A:R,17) -> 149543.7376 | E51: 0 | G51: =VLOOKUP(B51,Lookups!A:R,18) -> 57798.63132 | H51: 0 | J51: 1.0475 | K51: 9.276700139 | T51: 1387272.411 | U51: 0 | V51: 1387272.411 | W51: =VLOOKUP(B51,Lookups!A:T,19) -> 0.00588 | Y51: 536180.5712 | Z51: 0 | AA51: 536180.5712 | AB51: =VLOOKUP(B51,Lookups!A:T,20) -> 0.01492 | AD51: 16156.9759 | AF51: =IF(B51<71,VLOOKUP(B51,Lookups!A:AG,32),"") -> 0.25 | AG51: =IF(B51<71,VLOOKUP(B51,Lookups!A:AG,33),"") -> 0.25 | AH51: 0.25 | AI51: =IF(B51<70,VLOOKUP(B51,Lookups!A:AG,28),"") -> 0 | AJ51: =IF(B51<70,VLOOKUP(B51,Lookups!A:AG,29),"") -> 0 | AK51: 0 | AL51: =IF(B51<70,VLOOKUP(B51,Lookups!A:AG,30),"") -> 0.0364 | AM51: =IF(B51<70,VLOOKUP(B51,Lookups!A:AG,31),"") -> 0.0364 | AN51: 0.0364 | AO51: =IF(B51<70,VLOOKUP(B51,Lookups!A:AL,26)*(1-VLOOKUP(B51,Lookups!A:AL,37))^(A51-$A$3),"") -> 0.006393829366 | AP51: =IF(B51<70,VLOOKUP(B51,Lookups!A:AL,27)*(1-VLOOKUP(B51,Lookups!A:AL,38))^(A51-$A$3),"") -> 0.007115287114 | AQ51: 0.007115287114 | AR51: 0.2935152871 | AS51: 0.0006610973601 | AT51: 0.1582825553 | AV51: =IF(BC51>=$B$3,VLOOKUP(BC51,Lookups!A:AL,26)*(1-VLOOKUP(BC51,Lookups!A:AL,37))^(BC51-$B$3),"") -> 0.1476196035 | AW51: =IF(BC51>=$B$3,VLOOKUP(BC51,Lookups!A:AL,27)*(1-VLOOKUP(BC51,Lookups!A:AL,38))^(BC51-$B$3),"") -> 0.1209366298 | AX51: 0.1209366298 | AY51: 0.3833553565 | AZ51: 0.2166206064 | BA51: 0.929074 | BC51: 95 | BD51: 884861.5003 | BE51: 68269.52946 | BF51: 71184.66306 | BG51: 74237.02477 | BH51: 77434.80911 | BI51: 80787.40982 | BJ51: 84306.64749 | BK51: 88001.29284 | BL51: 91883.10033 | BM51: 95979.17304 | BN51: 100307.5776 | BO51: 104890.322 | BP51: 109740.6736 | BQ51: 114878.845 | BR51: 120330.1825 | BS51: 126142.4675
A52: 2062 | B52: 69 | D52: =VLOOKUP(B52,Lookups!A:R,17) -> 152794.6884 | E52: 0 | G52: =VLOOKUP(B52,Lookups!A:R,18) -> 55805.57507 | H52: 0 | J52: 1.0475 | K52: 9.717343395 | T52: 1484758.456 | U52: 0 | V52: 1484758.456 | W52: =VLOOKUP(B52,Lookups!A:T,19) -> 0.00686 | Y52: 542281.9363 | Z52: 0 | AA52: 542281.9363 | AB52: =VLOOKUP(B52,Lookups!A:T,20) -> 0.01634 | AD52: 19046.32985 | AF52: =IF(B52<71,VLOOKUP(B52,Lookups!A:AG,32),"") -> 0.25 | AG52: =IF(B52<71,VLOOKUP(B52,Lookups!A:AG,33),"") -> 0.25 | AH52: 0.25 | AI52: =IF(B52<70,VLOOKUP(B52,Lookups!A:AG,28),"") -> 0 | AJ52: =IF(B52<70,VLOOKUP(B52,Lookups!A:AG,29),"") -> 0 | AK52: 0 | AL52: =IF(B52<70,VLOOKUP(B52,Lookups!A:AG,30),"") -> 0.0216 | AM52: =IF(B52<70,VLOOKUP(B52,Lookups!A:AG,31),"") -> 0.0216 | AN52: 0.0216 | AO52: =IF(B52<70,VLOOKUP(B52,Lookups!A:AL,26)*(1-VLOOKUP(B52,Lookups!A:AL,37))^(A52-$A$3),"") -> 0.007001565333 | AP52: =IF(B52<70,VLOOKUP(B52,Lookups!A:AL,27)*(1-VLOOKUP(B52,Lookups!A:AL,38))^(A52-$A$3),"") -> 0.007920231979 | AQ52: 0.007920231979 | AR52: 0.279520232 | AS52: 0.0004670551786 | AT52: 0.1521947647 | AV52: =IF(BC52>=$B$3,VLOOKUP(BC52,Lookups!A:AL,26)*(1-VLOOKUP(BC52,Lookups!A:AL,37))^(BC52-$B$3),"") -> 0.1712234962 | AW52: =IF(BC52>=$B$3,VLOOKUP(BC52,Lookups!A:AL,27)*(1-VLOOKUP(BC52,Lookups!A:AL,38))^(BC52-$B$3),"") -> 0.1377771414 | AX52: 0.1377771414 | AY52: 0.3369936517 | AZ52: 0.2082890447 | BA52: 0.921653 | BC52: 96 | BD52: 940062.737 | BE52: 60815.24027 | BF52: 63412.07302 | BG52: 66131.15007 | BH52: 68979.77119 | BI52: 71966.30441 | BJ52: 75101.27964 | BK52: 78392.50996 | BL52: 81850.46634 | BM52: 85499.29252 | BN52: 89355.08244 | BO52: 93437.44104 | BP52: 97758.18711 | BQ52: 102335.3261 | BR52: 107191.437 | BS52: 112369.0836
A53: 2063 | B53: 70 | D53: =VLOOKUP(B53,Lookups!A:R,17) -> 156045.6392 | E53: 0 | G53: =VLOOKUP(B53,Lookups!A:R,18) -> 53812.51882 | H53: 0 | J53: 1.0475 | K53: 10.17891721 | T53: 1588375.642 | U53: 0 | V53: 1588375.642 | W53: =VLOOKUP(B53,Lookups!A:T,19) -> 0.00784 | Y53: 547753.1737 | Z53: 0 | AA53: 547753.1737 | AB53: =VLOOKUP(B53,Lookups!A:T,20) -> 0.01776 | AD53: 22180.9614 | AF53: =IF(B53<71,VLOOKUP(B53,Lookups!A:AG,32),"") -> 1 | AG53: =IF(B53<71,VLOOKUP(B53,Lookups!A:AG,33),"") -> 1 | AH53: 1 | AI53: =IF(B53<70,VLOOKUP(B53,Lookups!A:AG,28),"") ->  | AJ53: =IF(B53<70,VLOOKUP(B53,Lookups!A:AG,29),"") ->  | AL53: =IF(B53<70,VLOOKUP(B53,Lookups!A:AG,30),"") ->  | AM53: =IF(B53<70,VLOOKUP(B53,Lookups!A:AG,31),"") ->  | AO53: =IF(B53<70,VLOOKUP(B53,Lookups!A:AL,26)*(1-VLOOKUP(B53,Lookups!A:AL,37))^(A53-$A$3),"") ->  | AP53: =IF(B53<70,VLOOKUP(B53,Lookups!A:AL,27)*(1-VLOOKUP(B53,Lookups!A:AL,38))^(A53-$A$3),"") ->  | AR53: 1 | AS53: 0.0003365038068 | AT53: 0.1463411199 | AV53: =IF(BC53>=$B$3,VLOOKUP(BC53,Lookups!A:AL,26)*(1-VLOOKUP(BC53,Lookups!A:AL,37))^(BC53-$B$3),"") -> 0.1979308544 | AW53: =IF(BC53>=$B$3,VLOOKUP(BC53,Lookups!A:AL,27)*(1-VLOOKUP(BC53,Lookups!A:AL,38))^(BC53-$B$3),"") -> 0.1561297654 | AX53: 0.1561297654 | AY53: 0.2905636297 | AZ53: 0.2002779276 | BA53: 0.913565 | BC53: 97 | BD53: 995543.7176 | BE53: 52926.61631 | BF53: 55186.60196 | BG53: 57552.97505 | BH53: 60032.08844 | BI53: 62631.22473 | BJ53: 65359.54794 | BK53: 68223.85766 | BL53: 71233.26665 | BM53: 74408.78684 | BN53: 77764.42455 | BO53: 81317.24168 | BP53: 85077.52394 | BQ53: 89060.94119 | BR53: 93287.14365 | BS53: 97793.17402
A54: 2064 | B54: 71 | D54: =VLOOKUP(B54,Lookups!A:R,17) -> 159296.5901 | E54: 0 | G54: =VLOOKUP(B54,Lookups!A:R,18) -> 51819.46257 | H54: 0 | J54: 1.0475 | K54: 10.66241577 | T54: 1698486.475 | U54: 0 | V54: 1698486.475 | W54: =VLOOKUP(B54,Lookups!A:T,19) -> 0.00882 | Y54: 552520.6551 | Z54: 0 | AA54: 552520.6551 | AB54: =VLOOKUP(B54,Lookups!A:T,20) -> 0.01918 | AD54: 25577.99687 | AF54: =IF(B54<71,VLOOKUP(B54,Lookups!A:AG,32),"") ->  | AG54: =IF(B54<71,VLOOKUP(B54,Lookups!A:AG,33),"") ->  | AI54: =IF(B54<70,VLOOKUP(B54,Lookups!A:AG,28),"") ->  | AJ54: =IF(B54<70,VLOOKUP(B54,Lookups!A:AG,29),"") ->  | AL54: =IF(B54<70,VLOOKUP(B54,Lookups!A:AG,30),"") ->  | AM54: =IF(B54<70,VLOOKUP(B54,Lookups!A:AG,31),"") ->  | AO54: =IF(B54<70,VLOOKUP(B54,Lookups!A:AL,26)*(1-VLOOKUP(B54,Lookups!A:AL,37))^(A54-$A$3),"") ->  | AP54: =IF(B54<70,VLOOKUP(B54,Lookups!A:AL,27)*(1-VLOOKUP(B54,Lookups!A:AL,38))^(A54-$A$3),"") ->  | AV54: =IF(BC54>=$B$3,VLOOKUP(BC54,Lookups!A:AL,26)*(1-VLOOKUP(BC54,Lookups!A:AL,37))^(BC54-$B$3),"") -> 0.2082124749 | AW54: =IF(BC54>=$B$3,VLOOKUP(BC54,Lookups!A:AL,27)*(1-VLOOKUP(BC54,Lookups!A:AL,38))^(BC54-$B$3),"") -> 0.1606714644 | AX54: 0.1606714644 | AY54: 0.2451979984 | AZ54: 0.1925749303 | BA54: 0.911563 | BC54: 98 | BD54: 1042832.044 | BE54: 44886.70505 | BF54: 46803.38359 | BG54: 48810.28858 | BH54: 50912.80787 | BI54: 53117.11777 | BJ54: 55430.99021 | BK54: 57860.1919 | BL54: 60412.45129 | BM54: 63105.58847 | BN54: 65951.4821 | BO54: 68964.60226 | BP54: 72153.67219 | BQ54: 75531.9814 | BR54: 79116.1951 | BS54: 82937.72896
A55: 2065 | B55: 72 | D55: =VLOOKUP(B55,Lookups!A:R,17) -> 162547.5409 | E55: 0 | G55: =VLOOKUP(B55,Lookups!A:R,18) -> 49826.40631 | H55: 0 | J55: 1.0475 | K55: 11.16888052 | T55: 1815474.063 | U55: 0 | V55: 1815474.063 | W55: =VLOOKUP(B55,Lookups!A:T,19) -> 0.0098 | Y55: 556505.179 | Z55: 0 | AA55: 556505.179 | AB55: =VLOOKUP(B55,Lookups!A:T,20) -> 0.0206 | AD55: 29255.65251 | AF55: =IF(B55<71,VLOOKUP(B55,Lookups!A:AG,32),"") ->  | AG55: =IF(B55<71,VLOOKUP(B55,Lookups!A:AG,33),"") ->  | AI55: =IF(B55<70,VLOOKUP(B55,Lookups!A:AG,28),"") ->  | AJ55: =IF(B55<70,VLOOKUP(B55,Lookups!A:AG,29),"") ->  | AL55: =IF(B55<70,VLOOKUP(B55,Lookups!A:AG,30),"") ->  | AM55: =IF(B55<70,VLOOKUP(B55,Lookups!A:AG,31),"") ->  | AO55: =IF(B55<70,VLOOKUP(B55,Lookups!A:AL,26)*(1-VLOOKUP(B55,Lookups!A:AL,37))^(A55-$A$3),"") ->  | AP55: =IF(B55<70,VLOOKUP(B55,Lookups!A:AL,27)*(1-VLOOKUP(B55,Lookups!A:AL,38))^(A55-$A$3),"") ->  | AV55: =IF(BC55>=$B$3,VLOOKUP(BC55,Lookups!A:AL,26)*(1-VLOOKUP(BC55,Lookups!A:AL,37))^(BC55-$B$3),"") -> 0.2391514541 | AW55: =IF(BC55>=$B$3,VLOOKUP(BC55,Lookups!A:AL,27)*(1-VLOOKUP(BC55,Lookups!A:AL,38))^(BC55-$B$3),"") -> 0.1801182963 | AX55: 0.1801182963 | AY55: 0.2058016769 | AZ55: 0.1851682023 | BA55: 0.902993 | BC55: 99 | BD55: 1092366.566 | BE55: 37589.63445 | BF55: 39194.72544 | BG55: 40875.37509 | BH55: 42636.09536 | BI55: 44482.0585 | BJ55: 46419.77301 | BK55: 48454.06809 | BL55: 50591.41583 | BM55: 52846.73936 | BN55: 55229.98627 | BO55: 57753.2743 | BP55: 60423.90857 | BQ55: 63253.01817 | BR55: 66254.55911 | BS55: 69454.83992
A56: 2066 | B56: 73 | D56: =VLOOKUP(B56,Lookups!A:R,17) -> 164173.0163 | E56: 0 | G56: =VLOOKUP(B56,Lookups!A:R,18) -> 50822.93444 | H56: 0 | J56: 1.0475 | K56: 11.69940235 | T56: 1920726.172 | U56: 0 | V56: 1920726.172 | W56: =VLOOKUP(B56,Lookups!A:T,19) -> 0.01204 | Y56: 594597.9585 | Z56: 0 | AA56: 594597.9585 | AB56: =VLOOKUP(B56,Lookups!A:T,20) -> 0.02396 | AD56: 37372.1102 | AF56: =IF(B56<71,VLOOKUP(B56,Lookups!A:AG,32),"") ->  | AG56: =IF(B56<71,VLOOKUP(B56,Lookups!A:AG,33),"") ->  | AI56: =IF(B56<70,VLOOKUP(B56,Lookups!A:AG,28),"") ->  | AJ56: =IF(B56<70,VLOOKUP(B56,Lookups!A:AG,29),"") ->  | AL56: =IF(B56<70,VLOOKUP(B56,Lookups!A:AG,30),"") ->  | AM56: =IF(B56<70,VLOOKUP(B56,Lookups!A:AG,31),"") ->  | AO56: =IF(B56<70,VLOOKUP(B56,Lookups!A:AL,26)*(1-VLOOKUP(B56,Lookups!A:AL,37))^(A56-$A$3),"") ->  | AP56: =IF(B56<70,VLOOKUP(B56,Lookups!A:AL,27)*(1-VLOOKUP(B56,Lookups!A:AL,38))^(A56-$A$3),"") ->  | AV56: =IF(BC56>=$B$3,VLOOKUP(BC56,Lookups!A:AL,26)*(1-VLOOKUP(BC56,Lookups!A:AL,37))^(BC56-$B$3),"") -> 0.2497100367 | AW56: =IF(BC56>=$B$3,VLOOKUP(BC56,Lookups!A:AL,27)*(1-VLOOKUP(BC56,Lookups!A:AL,38))^(BC56-$B$3),"") -> 0.1851490342 | AX56: 0.1851490342 | AY56: 0.1687330295 | AZ56: 0.1780463483 | BA56: 0.900776 | BC56: 100 | BD56: 1144253.978 | BE56: 30965.09469 | BF56: 32287.31543 | BG56: 33671.77889 | BH56: 35122.20188 | BI56: 36642.84512 | BJ56: 38239.07009 | BK56: 39914.85494 | BL56: 41675.53115 | BM56: 43533.39191 | BN56: 45496.63171 | BO56: 47575.23273 | BP56: 49775.21271 | BQ56: 52105.7394 | BR56: 54578.30932 | BS56: 57214.59456
A57: =1+A56 -> 2067 | B57: 74 | D57: =VLOOKUP(B57,Lookups!A:R,17) -> 165798.4917 | E57: 0 | G57: =VLOOKUP(B57,Lookups!A:R,18) -> 51819.46257 | H57: 0 | J57: 1.0475 | K57: 12.25512396 | T57: 2031881.068 | U57: 0 | V57: 2031881.068 | W57: =VLOOKUP(B57,Lookups!A:T,19) -> 0.01428 | Y57: 635053.9373 | Z57: 0 | AA57: 635053.9373 | AB57: =VLOOKUP(B57,Lookups!A:T,20) -> 0.02732 | AD57: 46364.93522 | AF57: =IF(B57<71,VLOOKUP(B57,Lookups!A:AG,32),"") ->  | AG57: =IF(B57<71,VLOOKUP(B57,Lookups!A:AG,33),"") ->  | AI57: =IF(B57<70,VLOOKUP(B57,Lookups!A:AG,28),"") ->  | AJ57: =IF(B57<70,VLOOKUP(B57,Lookups!A:AG,29),"") ->  | AL57: =IF(B57<70,VLOOKUP(B57,Lookups!A:AG,30),"") ->  | AM57: =IF(B57<70,VLOOKUP(B57,Lookups!A:AG,31),"") ->  | AO57: =IF(B57<70,VLOOKUP(B57,Lookups!A:AL,26)*(1-VLOOKUP(B57,Lookups!A:AL,37))^(A57-$A$3),"") ->  | AP57: =IF(B57<70,VLOOKUP(B57,Lookups!A:AL,27)*(1-VLOOKUP(B57,Lookups!A:AL,38))^(A57-$A$3),"") ->  | AV57: =IF(BC57>=$B$3,VLOOKUP(BC57,Lookups!A:AL,26)*(1-VLOOKUP(BC57,Lookups!A:AL,37))^(BC57-$B$3),"") -> 0.2854504277 | AW57: =IF(BC57>=$B$3,VLOOKUP(BC57,Lookups!A:AL,27)*(1-VLOOKUP(BC57,Lookups!A:AL,38))^(BC57-$B$3),"") -> 0.210841091 | AX57: 0.210841091 | AY57: 0.137492272 | AZ57: 0.1711984118 | BA57: 0.889453 | BC57: 101 | BD57: 1198606.042 | BE57: 25094.43876 | BF57: 26165.98037 | BG57: 27287.96414 | BH57: 28463.4022 | BI57: 29695.7475 | BJ57: 30989.34502 | BK57: 32347.41871 | BL57: 33774.28925 | BM57: 35279.91916 | BN57: 36870.94937 | BO57: 38555.46952 | BP57: 40338.35646 | BQ57: 42227.03983 | BR57: 44230.83653 | BS57: 46367.30984
A58: 2068 | B58: 75 | D58: =VLOOKUP(B58,Lookups!A:R,17) -> 167423.9671 | E58: 0 | G58: =VLOOKUP(B58,Lookups!A:R,18) -> 52815.99069 | H58: 0 | J58: 1.0475 | K58: 12.83724235 | T58: 2149262.041 | U58: 0 | V58: 2149262.041 | W58: =VLOOKUP(B58,Lookups!A:T,19) -> 0.01652 | Y58: 678011.6723 | Z58: 0 | AA58: 678011.6723 | AB58: =VLOOKUP(B58,Lookups!A:T,20) -> 0.03068 | AD58: 56307.20702 | AF58: =IF(B58<71,VLOOKUP(B58,Lookups!A:AG,32),"") ->  | AG58: =IF(B58<71,VLOOKUP(B58,Lookups!A:AG,33),"") ->  | AI58: =IF(B58<70,VLOOKUP(B58,Lookups!A:AG,28),"") ->  | AJ58: =IF(B58<70,VLOOKUP(B58,Lookups!A:AG,29),"") ->  | AL58: =IF(B58<70,VLOOKUP(B58,Lookups!A:AG,30),"") ->  | AM58: =IF(B58<70,VLOOKUP(B58,Lookups!A:AG,31),"") ->  | AO58: =IF(B58<70,VLOOKUP(B58,Lookups!A:AL,26)*(1-VLOOKUP(B58,Lookups!A:AL,37))^(A58-$A$3),"") ->  | AP58: =IF(B58<70,VLOOKUP(B58,Lookups!A:AL,27)*(1-VLOOKUP(B58,Lookups!A:AL,38))^(A58-$A$3),"") ->  | AV58: =IF(BC58>=$B$3,VLOOKUP(BC58,Lookups!A:AL,26)*(1-VLOOKUP(BC58,Lookups!A:AL,37))^(BC58-$B$3),"") -> 0.296514282 | AW58: =IF(BC58>=$B$3,VLOOKUP(BC58,Lookups!A:AL,27)*(1-VLOOKUP(BC58,Lookups!A:AL,38))^(BC58-$B$3),"") -> 0.2199656626 | AX58: 0.2199656626 | AY58: 0.1085032514 | AZ58: 0.1646138575 | BA58: 0.885432 | BC58: 102 | BD58: 1255539.829 | BE58: 19856.1412 | BF58: 20704.00561 | BG58: 21591.78272 | BH58: 22521.85588 | BI58: 23496.95727 | BJ58: 24520.5249 | BK58: 25595.10971 | BL58: 26724.1305 | BM58: 27915.47016 | BN58: 29174.38337 | BO58: 30507.27112 | BP58: 31917.99224 | BQ58: 33412.42549 | BR58: 34997.94292 | BS58: 36688.44161
A59: 2069 | B59: 76 | D59: =VLOOKUP(B59,Lookups!A:R,17) -> 169049.4425 | E59: 0 | G59: =VLOOKUP(B59,Lookups!A:R,18) -> 53812.51882 | H59: 0 | J59: 1.0475 | K59: 13.44701136 | T59: 2273209.774 | U59: 0 | V59: 2273209.774 | W59: =VLOOKUP(B59,Lookups!A:T,19) -> 0.01876 | Y59: 723617.5518 | Z59: 0 | AA59: 723617.5518 | AB59: =VLOOKUP(B59,Lookups!A:T,20) -> 0.03404 | AD59: 67277.35682 | AF59: =IF(B59<71,VLOOKUP(B59,Lookups!A:AG,32),"") ->  | AG59: =IF(B59<71,VLOOKUP(B59,Lookups!A:AG,33),"") ->  | AI59: =IF(B59<70,VLOOKUP(B59,Lookups!A:AG,28),"") ->  | AJ59: =IF(B59<70,VLOOKUP(B59,Lookups!A:AG,29),"") ->  | AL59: =IF(B59<70,VLOOKUP(B59,Lookups!A:AG,30),"") ->  | AM59: =IF(B59<70,VLOOKUP(B59,Lookups!A:AG,31),"") ->  | AO59: =IF(B59<70,VLOOKUP(B59,Lookups!A:AL,26)*(1-VLOOKUP(B59,Lookups!A:AL,37))^(A59-$A$3),"") ->  | AP59: =IF(B59<70,VLOOKUP(B59,Lookups!A:AL,27)*(1-VLOOKUP(B59,Lookups!A:AL,38))^(A59-$A$3),"") ->  | AV59: =IF(BC59>=$B$3,VLOOKUP(BC59,Lookups!A:AL,26)*(1-VLOOKUP(BC59,Lookups!A:AL,37))^(BC59-$B$3),"") -> 0.3376462296 | AW59: =IF(BC59>=$B$3,VLOOKUP(BC59,Lookups!A:AL,27)*(1-VLOOKUP(BC59,Lookups!A:AL,38))^(BC59-$B$3),"") -> 0.2534992496 | AX59: 0.2534992496 | AY59: 0.08463626182 | AZ59: 0.1582825553 | BA59: 0.870653 | BC59: 103 | BD59: 1315177.971 | BE59: 15339.78077 | BF59: 15994.79496 | BG59: 16680.64354 | BH59: 17399.16776 | BI59: 18152.47836 | BJ59: 18943.23134 | BK59: 19773.39746 | BL59: 20645.61785 | BM59: 21565.98244 | BN59: 22538.5507 | BO59: 23568.26768 | BP59: 24658.11452 | BQ59: 25812.63283 | BR59: 27037.51784 | BS59: 28343.5057
A60: 2070 | B60: 77 | D60: =VLOOKUP(B60,Lookups!A:R,17) -> 170674.9179 | E60: 0 | G60: =VLOOKUP(B60,Lookups!A:R,18) -> 54809.04694 | H60: 0 | J60: 1.0475 | K60: 14.0857444 | T60: 2404083.269 | U60: 0 | V60: 2404083.269 | W60: =VLOOKUP(B60,Lookups!A:T,19) -> 0.021 | Y60: 772026.226 | Z60: 0 | AA60: 772026.226 | AB60: =VLOOKUP(B60,Lookups!A:T,20) -> 0.0374 | AD60: 79359.5295 | AF60: =IF(B60<71,VLOOKUP(B60,Lookups!A:AG,32),"") ->  | AG60: =IF(B60<71,VLOOKUP(B60,Lookups!A:AG,33),"") ->  | AI60: =IF(B60<70,VLOOKUP(B60,Lookups!A:AG,28),"") ->  | AJ60: =IF(B60<70,VLOOKUP(B60,Lookups!A:AG,29),"") ->  | AL60: =IF(B60<70,VLOOKUP(B60,Lookups!A:AG,30),"") ->  | AM60: =IF(B60<70,VLOOKUP(B60,Lookups!A:AG,31),"") ->  | AO60: =IF(B60<70,VLOOKUP(B60,Lookups!A:AL,26)*(1-VLOOKUP(B60,Lookups!A:AL,37))^(A60-$A$3),"") ->  | AP60: =IF(B60<70,VLOOKUP(B60,Lookups!A:AL,27)*(1-VLOOKUP(B60,Lookups!A:AL,38))^(A60-$A$3),"") ->  | AV60: =IF(BC60>=$B$3,VLOOKUP(BC60,Lookups!A:AL,26)*(1-VLOOKUP(BC60,Lookups!A:AL,37))^(BC60-$B$3),"") -> 0.3476133817 | AW60: =IF(BC60>=$B$3,VLOOKUP(BC60,Lookups!A:AL,27)*(1-VLOOKUP(BC60,Lookups!A:AL,38))^(BC60-$B$3),"") -> 0.2660062761 | AX60: 0.2660062761 | AY60: 0.06318103295 | AZ60: 0.1521947647 | BA60: 0.865141 | BC60: 104 | BD60: 1377648.925 | BE60: 11460.71961 | BF60: 11950.09648 | BG60: 12462.51046 | BH60: 12999.33722 | BI60: 13562.1537 | BJ60: 14152.9443 | BK60: 14773.18139 | BL60: 15424.83825 | BM60: 16112.4648 | BN60: 16839.09396 | BO60: 17608.42032 | BP60: 18422.67114 | BQ60: 19285.23957 | BR60: 20200.38066 | BS60: 21176.11563
A61: 2071 | B61: 78 | D61: =VLOOKUP(B61,Lookups!A:R,17) -> 170674.9179 | E61: 0 | G61: =VLOOKUP(B61,Lookups!A:R,18) -> 54809.04694 | H61: 0 | J61: 1.0475 | K61: 14.75481726 | T61: 2518277.224 | U61: 0 | V61: 2518277.224 | W61: =VLOOKUP(B61,Lookups!A:T,19) -> 0.02456 | Y61: 808697.4717 | Z61: 0 | AA61: 808697.4717 | AB61: =VLOOKUP(B61,Lookups!A:T,20) -> 0.04136 | AD61: 95296.61606 | AF61: =IF(B61<71,VLOOKUP(B61,Lookups!A:AG,32),"") ->  | AG61: =IF(B61<71,VLOOKUP(B61,Lookups!A:AG,33),"") ->  | AI61: =IF(B61<70,VLOOKUP(B61,Lookups!A:AG,28),"") ->  | AJ61: =IF(B61<70,VLOOKUP(B61,Lookups!A:AG,29),"") ->  | AL61: =IF(B61<70,VLOOKUP(B61,Lookups!A:AG,30),"") ->  | AM61: =IF(B61<70,VLOOKUP(B61,Lookups!A:AG,31),"") ->  | AO61: =IF(B61<70,VLOOKUP(B61,Lookups!A:AL,26)*(1-VLOOKUP(B61,Lookups!A:AL,37))^(A61-$A$3),"") ->  | AP61: =IF(B61<70,VLOOKUP(B61,Lookups!A:AL,27)*(1-VLOOKUP(B61,Lookups!A:AL,38))^(A61-$A$3),"") ->  | AV61: =IF(BC61>=$B$3,VLOOKUP(BC61,Lookups!A:AL,26)*(1-VLOOKUP(BC61,Lookups!A:AL,37))^(BC61-$B$3),"") -> 0.392003 | AW61: =IF(BC61>=$B$3,VLOOKUP(BC61,Lookups!A:AL,27)*(1-VLOOKUP(BC61,Lookups!A:AL,38))^(BC61-$B$3),"") -> 0.307811 | AX61: 0.307811 | AY61: 0.04637448166 | AZ61: 0.1463411199 | BA61: 0.846718 | BC61: 105 | BD61: 1443087.249 | BE61: 8292.334725 | BF61: 8646.420417 | BG61: 9017.174473 | BH61: 9405.59224 | BI61: 9812.814723 | BJ61: 10240.27771 | BK61: 10689.04652 | BL61: 11160.54892 | BM61: 11658.07698 | BN61: 12183.82514 | BO61: 12740.46659 | BP61: 13329.61287 | BQ61: 13953.71907 | BR61: 14615.8639 | BS61: 15321.85107
A62: 2072 | B62: 79 | D62: =VLOOKUP(B62,Lookups!A:R,17) -> 170674.9179 | E62: 0 | G62: =VLOOKUP(B62,Lookups!A:R,18) -> 54809.04694 | H62: 0 | J62: 1.0475 | K62: 15.45567108 | T62: 2637895.393 | U62: 0 | V62: 2637895.393 | W62: =VLOOKUP(B62,Lookups!A:T,19) -> 0.02812 | Y62: 847110.6016 | Z62: 0 | AA62: 847110.6016 | AB62: =VLOOKUP(B62,Lookups!A:T,20) -> 0.04532 | AD62: 112568.6709 | AF62: =IF(B62<71,VLOOKUP(B62,Lookups!A:AG,32),"") ->  | AG62: =IF(B62<71,VLOOKUP(B62,Lookups!A:AG,33),"") ->  | AI62: =IF(B62<70,VLOOKUP(B62,Lookups!A:AG,28),"") ->  | AJ62: =IF(B62<70,VLOOKUP(B62,Lookups!A:AG,29),"") ->  | AL62: =IF(B62<70,VLOOKUP(B62,Lookups!A:AG,30),"") ->  | AM62: =IF(B62<70,VLOOKUP(B62,Lookups!A:AG,31),"") ->  | AO62: =IF(B62<70,VLOOKUP(B62,Lookups!A:AL,26)*(1-VLOOKUP(B62,Lookups!A:AL,37))^(A62-$A$3),"") ->  | AP62: =IF(B62<70,VLOOKUP(B62,Lookups!A:AL,27)*(1-VLOOKUP(B62,Lookups!A:AL,38))^(A62-$A$3),"") ->  | AV62: =IF(BC62>=$B$3,VLOOKUP(BC62,Lookups!A:AL,26)*(1-VLOOKUP(BC62,Lookups!A:AL,37))^(BC62-$B$3),"") -> 0.397886 | AW62: =IF(BC62>=$B$3,VLOOKUP(BC62,Lookups!A:AL,27)*(1-VLOOKUP(BC62,Lookups!A:AL,38))^(BC62-$B$3),"") -> 0.322725 | AX62: 0.322725 | AY62: 0.03209990609 | AZ62: 0.1407126153 | BA62: 0.840145 | BC62: 106 | BD62: 1511633.893 | BE62: 5736.376722 | BF62: 5981.322083 | BG62: 6237.798095 | BH62: 6506.493306 | BI62: 6788.19703 | BJ62: 7083.902496 | BK62: 7394.346669 | BL62: 7720.517221 | BM62: 8064.691501 | BN62: 8428.387566 | BO62: 8813.454644 | BP62: 9221.007538 | BQ62: 9652.744603 | BR62: 10110.7956 | BS62: 10599.17535
A63: 2073 | B63: 80 | D63: =VLOOKUP(B63,Lookups!A:R,17) -> 170674.9179 | E63: 0 | G63: =VLOOKUP(B63,Lookups!A:R,18) -> 54809.04694 | H63: 0 | J63: 1.0475 | K63: 16.18981545 | T63: 2763195.424 | U63: 0 | V63: 2763195.424 | W63: =VLOOKUP(B63,Lookups!A:T,19) -> 0.03168 | Y63: 887348.3552 | Z63: 0 | AA63: 887348.3552 | AB63: =VLOOKUP(B63,Lookups!A:T,20) -> 0.04928 | AD63: 131266.558 | AF63: =IF(B63<71,VLOOKUP(B63,Lookups!A:AG,32),"") ->  | AG63: =IF(B63<71,VLOOKUP(B63,Lookups!A:AG,33),"") ->  | AI63: =IF(B63<70,VLOOKUP(B63,Lookups!A:AG,28),"") ->  | AJ63: =IF(B63<70,VLOOKUP(B63,Lookups!A:AG,29),"") ->  | AL63: =IF(B63<70,VLOOKUP(B63,Lookups!A:AG,30),"") ->  | AM63: =IF(B63<70,VLOOKUP(B63,Lookups!A:AG,31),"") ->  | AO63: =IF(B63<70,VLOOKUP(B63,Lookups!A:AL,26)*(1-VLOOKUP(B63,Lookups!A:AL,37))^(A63-$A$3),"") ->  | AP63: =IF(B63<70,VLOOKUP(B63,Lookups!A:AL,27)*(1-VLOOKUP(B63,Lookups!A:AL,38))^(A63-$A$3),"") ->  | AV63: =IF(BC63>=$B$3,VLOOKUP(BC63,Lookups!A:AL,26)*(1-VLOOKUP(BC63,Lookups!A:AL,37))^(BC63-$B$3),"") -> 0.4 | AW63: =IF(BC63>=$B$3,VLOOKUP(BC63,Lookups!A:AL,27)*(1-VLOOKUP(BC63,Lookups!A:AL,38))^(BC63-$B$3),"") -> 0.337441 | AX63: 0.337441 | AY63: 0.02174046389 | AZ63: 0.1353005917 | BA63: 0.83366 | BC63: 107 | BD63: 1583436.503 | BE63: 3882.917105 | BF63: 4048.719069 | BG63: 4222.326059 | BH63: 4404.204147 | BI63: 4594.887616 | BJ63: 4795.048775 | BK63: 5005.186471 | BL63: 5225.969254 | BM63: 5458.938646 | BN63: 5705.122211 | BO63: 5965.771679 | BP63: 6241.641654 | BQ63: 6533.881741 | BR63: 6843.933563 | BS63: 7174.514727
A64: 2074 | B64: 81 | D64: =VLOOKUP(B64,Lookups!A:R,17) -> 170674.9179 | E64: 0 | G64: =VLOOKUP(B64,Lookups!A:R,18) -> 54809.04694 | H64: 0 | J64: 1.0475 | K64: 16.95883169 | T64: 2894447.206 | U64: 0 | V64: 2894447.206 | W64: =VLOOKUP(B64,Lookups!A:T,19) -> 0.03524 | Y64: 929497.4021 | Z64: 0 | AA64: 929497.4021 | AB64: =VLOOKUP(B64,Lookups!A:T,20) -> 0.05324 | AD64: 151486.7612 | AF64: =IF(B64<71,VLOOKUP(B64,Lookups!A:AG,32),"") ->  | AG64: =IF(B64<71,VLOOKUP(B64,Lookups!A:AG,33),"") ->  | AI64: =IF(B64<70,VLOOKUP(B64,Lookups!A:AG,28),"") ->  | AJ64: =IF(B64<70,VLOOKUP(B64,Lookups!A:AG,29),"") ->  | AL64: =IF(B64<70,VLOOKUP(B64,Lookups!A:AG,30),"") ->  | AM64: =IF(B64<70,VLOOKUP(B64,Lookups!A:AG,31),"") ->  | AO64: =IF(B64<70,VLOOKUP(B64,Lookups!A:AL,26)*(1-VLOOKUP(B64,Lookups!A:AL,37))^(A64-$A$3),"") ->  | AP64: =IF(B64<70,VLOOKUP(B64,Lookups!A:AL,27)*(1-VLOOKUP(B64,Lookups!A:AL,38))^(A64-$A$3),"") ->  | AV64: =IF(BC64>=$B$3,VLOOKUP(BC64,Lookups!A:AL,26)*(1-VLOOKUP(BC64,Lookups!A:AL,37))^(BC64-$B$3),"") -> 0.4 | AW64: =IF(BC64>=$B$3,VLOOKUP(BC64,Lookups!A:AL,27)*(1-VLOOKUP(BC64,Lookups!A:AL,38))^(BC64-$B$3),"") -> 0.351544 | AX64: 0.351544 | AY64: 0.01440434002 | AZ64: 0.1300967228 | BA64: 0.827445 | BC64: 108 | BD64: 1658649.737 | BE64: 2571.896817 | BF64: 2681.717742 | BG64: 2796.708418 | BH64: 2917.177556 | BI64: 3043.479043 | BJ64: 3176.058193 | BK64: 3315.245422 | BL64: 3461.483552 | BM64: 3615.793629 | BN64: 3778.856272 | BO64: 3951.50058 | BP64: 4134.226374 | BQ64: 4327.795109 | BR64: 4533.16166 | BS64: 4752.126067
A65: 2075 | B65: 82 | D65: =VLOOKUP(B65,Lookups!A:R,17) -> 170674.9179 | E65: 0 | G65: =VLOOKUP(B65,Lookups!A:R,18) -> 54809.04694 | H65: 0 | J65: 1.0475 | K65: 17.76437619 | T65: 3031933.449 | U65: 0 | V65: 3031933.449 | W65: =VLOOKUP(B65,Lookups!A:T,19) -> 0.0388 | Y65: 973648.5287 | Z65: 0 | AA65: 973648.5287 | AB65: =VLOOKUP(B65,Lookups!A:T,20) -> 0.0572 | AD65: 173331.7136 | AF65: =IF(B65<71,VLOOKUP(B65,Lookups!A:AG,32),"") ->  | AG65: =IF(B65<71,VLOOKUP(B65,Lookups!A:AG,33),"") ->  | AI65: =IF(B65<70,VLOOKUP(B65,Lookups!A:AG,28),"") ->  | AJ65: =IF(B65<70,VLOOKUP(B65,Lookups!A:AG,29),"") ->  | AL65: =IF(B65<70,VLOOKUP(B65,Lookups!A:AG,30),"") ->  | AM65: =IF(B65<70,VLOOKUP(B65,Lookups!A:AG,31),"") ->  | AO65: =IF(B65<70,VLOOKUP(B65,Lookups!A:AL,26)*(1-VLOOKUP(B65,Lookups!A:AL,37))^(A65-$A$3),"") ->  | AP65: =IF(B65<70,VLOOKUP(B65,Lookups!A:AL,27)*(1-VLOOKUP(B65,Lookups!A:AL,38))^(A65-$A$3),"") ->  | AV65: =IF(BC65>=$B$3,VLOOKUP(BC65,Lookups!A:AL,26)*(1-VLOOKUP(BC65,Lookups!A:AL,37))^(BC65-$B$3),"") -> 0.4 | AW65: =IF(BC65>=$B$3,VLOOKUP(BC65,Lookups!A:AL,27)*(1-VLOOKUP(BC65,Lookups!A:AL,38))^(BC65-$B$3),"") -> 0.364617 | AX65: 0.364617 | AY65: 0.00934058071 | AZ65: 0.1250930027 | BA65: 0.821683 | BC65: 109 | BD65: 1737435.599 | BE65: 1668.091665 | BF65: 1739.319782 | BG65: 1813.900919 | BH65: 1892.0353 | BI65: 1973.95245 | BJ65: 2059.941193 | BK65: 2150.215832 | BL65: 2245.063574 | BM65: 2345.146653 | BN65: 2450.906509 | BO65: 2562.880881 | BP65: 2681.393946 | BQ65: 2806.93957 | BR65: 2940.137073 | BS65: 3082.15393
A66: 2076 | B66: 83 | D66: =VLOOKUP(B66,Lookups!A:R,17) -> 170674.9179 | E66: 0 | G66: =VLOOKUP(B66,Lookups!A:R,18) -> 53812.51882 | H66: 0 | J66: 1.0475 | K66: 18.60818406 | T66: 3175950.287 | U66: 0 | V66: 3175950.287 | W66: =VLOOKUP(B66,Lookups!A:T,19) -> 0.04638 | Y66: 1001353.255 | Z66: 0 | AA66: 1001353.255 | AB66: =VLOOKUP(B66,Lookups!A:T,20) -> 0.0613 | AD66: 208683.5289 | AF66: =IF(B66<71,VLOOKUP(B66,Lookups!A:AG,32),"") ->  | AG66: =IF(B66<71,VLOOKUP(B66,Lookups!A:AG,33),"") ->  | AI66: =IF(B66<70,VLOOKUP(B66,Lookups!A:AG,28),"") ->  | AJ66: =IF(B66<70,VLOOKUP(B66,Lookups!A:AG,29),"") ->  | AL66: =IF(B66<70,VLOOKUP(B66,Lookups!A:AG,30),"") ->  | AM66: =IF(B66<70,VLOOKUP(B66,Lookups!A:AG,31),"") ->  | AO66: =IF(B66<70,VLOOKUP(B66,Lookups!A:AL,26)*(1-VLOOKUP(B66,Lookups!A:AL,37))^(A66-$A$3),"") ->  | AP66: =IF(B66<70,VLOOKUP(B66,Lookups!A:AL,27)*(1-VLOOKUP(B66,Lookups!A:AL,38))^(A66-$A$3),"") ->  | AV66: =IF(BC66>=$B$3,VLOOKUP(BC66,Lookups!A:AL,26)*(1-VLOOKUP(BC66,Lookups!A:AL,37))^(BC66-$B$3),"") -> 0.4 | AW66: =IF(BC66>=$B$3,VLOOKUP(BC66,Lookups!A:AL,27)*(1-VLOOKUP(BC66,Lookups!A:AL,38))^(BC66-$B$3),"") -> 0.376246 | AX66: 0.376246 | AY66: 0.005934846193 | AZ66: 0.1202817333 | BA66: 0.816558 | BC66: 110 | BD66: 1819963.79 | BE66: 1060.862094 | BF66: 1106.161289 | BG66: 1153.592915 | BH66: 1203.284311 | BI66: 1255.381448 | BJ66: 1310.068009 | BK66: 1367.480287 | BL66: 1427.800938 | BM66: 1491.451124 | BN66: 1558.71159 | BO66: 1629.924323 | BP66: 1705.295492 | BQ66: 1785.139182 | BR66: 1869.849264 | BS66: 1960.168221
A67: 2077 | B67: 84 | D67: =VLOOKUP(B67,Lookups!A:R,17) -> 170674.9179 | E67: 0 | G67: =VLOOKUP(B67,Lookups!A:R,18) -> 52815.99069 | H67: 0 | J67: 1.0475 | K67: 19.49207281 | T67: 3326807.926 | U67: 0 | V67: =T67-U67 -> 3326807.926 | W67: =VLOOKUP(B67,Lookups!A:T,19) -> 0.05396 | Y67: 1029493.136 | Z67: 0 | AA67: 1029493.136 | AB67: =VLOOKUP(B67,Lookups!A:T,20) -> 0.0654 | AD67: 246843.4068 | AF67: =IF(B67<71,VLOOKUP(B67,Lookups!A:AG,32),"") ->  | AG67: =IF(B67<71,VLOOKUP(B67,Lookups!A:AG,33),"") ->  | AH67: =IF(B67<71,PCTMALE*AF67+(1-PCTMALE)*AG67,"") ->  | AI67: =IF(B67<70,VLOOKUP(B67,Lookups!A:AG,28),"") ->  | AJ67: =IF(B67<70,VLOOKUP(B67,Lookups!A:AG,29),"") ->  | AK67: =IF(B67<70,PCTMALE*AI67+(1-PCTMALE)*AJ67,"") ->  | AL67: =IF(B67<70,VLOOKUP(B67,Lookups!A:AG,30),"") ->  | AM67: =IF(B67<70,VLOOKUP(B67,Lookups!A:AG,31),"") ->  | AN67: =IF(AH67<1,IF(B67<70,PCTMALE*AL67+(1-PCTMALE)*AM67,""),"") ->  | AO67: =IF(B67<70,VLOOKUP(B67,Lookups!A:AL,26)*(1-VLOOKUP(B67,Lookups!A:AL,37))^(A67-$A$3),"") ->  | AP67: =IF(B67<70,VLOOKUP(B67,Lookups!A:AL,27)*(1-VLOOKUP(B67,Lookups!A:AL,38))^(A67-$A$3),"") ->  | AQ67: =IF(AO67<>"",PCTMALE*AO67+(1-PCTMALE)*AP67,"") ->  | AV67: =IF(BC67>=$B$3,VLOOKUP(BC67,Lookups!A:AL,26)*(1-VLOOKUP(BC67,Lookups!A:AL,37))^(BC67-$B$3),"") -> 0.4 | AW67: =IF(BC67>=$B$3,VLOOKUP(BC67,Lookups!A:AL,27)*(1-VLOOKUP(BC67,Lookups!A:AL,38))^(BC67-$B$3),"") -> 0.386015 | AX67: 0.386015 | AY67: 0.003701884053 | AZ67: 0.1156555128 | BA67: 0.812253 | BC67: 111 | BD67: 1819963.79 | BE67: 632.9118427 | BF67: 659.9374073 | BG67: 688.2351836 | BH67: 717.8811413 | BI67: 748.9623676 | BJ67: 781.5884485 | BK67: 815.8406957 | BL67: 851.828082 | BM67: 889.8018743 | BN67: 929.9295643 | BO67: 972.4151828 | BP67: 1017.38173 | BQ67: 1065.01659 | BR67: 1115.554746 | BS67: 1169.439165
A68: 2078 | B68: 85 | D68: =VLOOKUP(B68,Lookups!A:R,17) -> 170674.9179 | E68: 0 | G68: =VLOOKUP(B68,Lookups!A:R,18) -> 51819.46257 | H68: 0 | J68: 1.0475 | K68: 20.41794626 | T68: =D68*K68 -> 3484831.303 | U68: 0 | V68: =T68-U68 -> 3484831.303 | W68: =VLOOKUP(B68,Lookups!A:T,19) -> 0.06154 | Y68: =G68*K68 -> 1058047.002 | Z68: 0 | AA68: =Y68-Z68 -> 1058047.002 | AB68: =VLOOKUP(B68,Lookups!A:T,20) -> 0.0695 | AD68: =V68*W68+AA68*AB68 -> 287990.785 | AF68: =IF(B68<71,VLOOKUP(B68,Lookups!A:AG,32),"") ->  | AG68: =IF(B68<71,VLOOKUP(B68,Lookups!A:AG,33),"") ->  | AI68: =IF(B68<70,VLOOKUP(B68,Lookups!A:AG,28),"") ->  | AJ68: =IF(B68<70,VLOOKUP(B68,Lookups!A:AG,29),"") ->  | AL68: =IF(B68<70,VLOOKUP(B68,Lookups!A:AG,30),"") ->  | AM68: =IF(B68<70,VLOOKUP(B68,Lookups!A:AG,31),"") ->  | AO68: =IF(B68<70,VLOOKUP(B68,Lookups!A:AL,26)*(1-VLOOKUP(B68,Lookups!A:AL,37))^(A68-$A$3),"") ->  | AP68: =IF(B68<70,VLOOKUP(B68,Lookups!A:AL,27)*(1-VLOOKUP(B68,Lookups!A:AL,38))^(A68-$A$3),"") ->  | AR68: =IF(B68<71,SUM(AH68,AK68,AN68,AQ68),"") ->  | AT68: =IF(B68<71,AT67/(1+INTRt),"") ->  | AV68: =IF(BC68>=$B$3,VLOOKUP(BC68,Lookups!A:AL,26)*(1-VLOOKUP(BC68,Lookups!A:AL,37))^(BC68-$B$3),"") -> 0.4 | AW68: =IF(BC68>=$B$3,VLOOKUP(BC68,Lookups!A:AL,27)*(1-VLOOKUP(BC68,Lookups!A:AL,38))^(BC68-$B$3),"") -> 0.393507 | AX68: 0.393507 | AY68: 0.00227290128 | AZ68: 0.1112072239 | BA68: 0.808951 | BC68: 112 | BD68: 1819963.79 | BE68: 372.1333016 | BF68: 388.0235282 | BG68: 404.6617773 | BH68: 422.0927169 | BI68: 440.3675517 | BJ68: 459.550715 | BK68: 479.6900156 | BL68: 500.8495263 | BM68: 523.1769844 | BN68: 546.7708703 | BO68: 571.7511478 | BP68: 598.1901374 | BQ68: 626.1980153 | BR68: 655.9129449 | BS68: 687.5953776
A69: 2079 | B69: 86 | D69: =VLOOKUP(B69,Lookups!A:R,17) -> 170674.9179 | E69: 0 | G69: =VLOOKUP(B69,Lookups!A:R,18) -> 50822.93444 | H69: 0 | J69: 1.0475 | K69: =K68*J69 -> 21.38779871 | T69: 3650360.789 | U69: 0 | V69: 3650360.789 | W69: =VLOOKUP(B69,Lookups!A:T,19) -> 0.06912 | Y69: 1086990.692 | Z69: 0 | AA69: =Y69-Z69 -> 1086990.692 | AB69: =VLOOKUP(B69,Lookups!A:T,20) -> 0.0736 | AD69: 332315.4527 | AF69: =IF(B69<71,VLOOKUP(B69,Lookups!A:AG,32),"") ->  | AG69: =IF(B69<71,VLOOKUP(B69,Lookups!A:AG,33),"") ->  | AI69: =IF(B69<70,VLOOKUP(B69,Lookups!A:AG,28),"") ->  | AJ69: =IF(B69<70,VLOOKUP(B69,Lookups!A:AG,29),"") ->  | AL69: =IF(B69<70,VLOOKUP(B69,Lookups!A:AG,30),"") ->  | AM69: =IF(B69<70,VLOOKUP(B69,Lookups!A:AG,31),"") ->  | AO69: =IF(B69<70,VLOOKUP(B69,Lookups!A:AL,26)*(1-VLOOKUP(B69,Lookups!A:AL,37))^(A69-$A$3),"") ->  | AP69: =IF(B69<70,VLOOKUP(B69,Lookups!A:AL,27)*(1-VLOOKUP(B69,Lookups!A:AL,38))^(A69-$A$3),"") ->  | AS69: =IF(B69<71,AS68*(1-AR68),"") ->  | AV69: =IF(BC69>=$B$3,VLOOKUP(BC69,Lookups!A:AL,26)*(1-VLOOKUP(BC69,Lookups!A:AL,37))^(BC69-$B$3),"") -> 0.4 | AW69: =IF(BC69>=$B$3,VLOOKUP(BC69,Lookups!A:AL,27)*(1-VLOOKUP(BC69,Lookups!A:AL,38))^(BC69-$B$3),"") -> 0.398308 | AX69: 0.398308 | AY69: 0.001378498716 | AZ69: 0.1069300229 | BA69: 0.806835 | BC69: 113 | BD69: 1819963.79 | BE69: 216.4479628 | BF69: 225.6903691 | BG69: 235.367856 | BH69: 245.506404 | BI69: 256.1357961 | BJ69: 267.2935092 | BK69: 279.0073509 | BL69: 291.3145885 | BM69: 304.3011523 | BN69: 318.0243222 | BO69: 332.5538743 | BP69: 347.9318729 | BQ69: 364.2224014 | BR69: 381.5058209 | BS69: 399.9336208
A70: 2080 | B70: 87 | D70: =VLOOKUP(B70,Lookups!A:R,17) -> 170674.9179 | E70: 0 | G70: =VLOOKUP(B70,Lookups!A:R,18) -> 49826.40631 | H70: 0 | J70: =J69 -> 1.0475 | K70: 22.40371915 | T70: 3823752.927 | U70: 0 | V70: 3823752.927 | W70: =VLOOKUP(B70,Lookups!A:T,19) -> 0.0767 | Y70: 1116296.813 | Z70: 0 | AA70: 1116296.813 | AB70: =VLOOKUP(B70,Lookups!A:T,20) -> 0.0777 | AD70: 380018.1119 | AF70: =IF(B70<71,VLOOKUP(B70,Lookups!A:AG,32),"") ->  | AG70: =IF(B70<71,VLOOKUP(B70,Lookups!A:AG,33),"") ->  | AI70: =IF(B70<70,VLOOKUP(B70,Lookups!A:AG,28),"") ->  | AJ70: =IF(B70<70,VLOOKUP(B70,Lookups!A:AG,29),"") ->  | AL70: =IF(B70<70,VLOOKUP(B70,Lookups!A:AG,30),"") ->  | AM70: =IF(B70<70,VLOOKUP(B70,Lookups!A:AG,31),"") ->  | AO70: =IF(B70<70,VLOOKUP(B70,Lookups!A:AL,26)*(1-VLOOKUP(B70,Lookups!A:AL,37))^(A70-$A$3),"") ->  | AP70: =IF(B70<70,VLOOKUP(B70,Lookups!A:AL,27)*(1-VLOOKUP(B70,Lookups!A:AL,38))^(A70-$A$3),"") ->  | AV70: =IF(BC70>=$B$3,VLOOKUP(BC70,Lookups!A:AL,26)*(1-VLOOKUP(BC70,Lookups!A:AL,37))^(BC70-$B$3),"") -> 0.4 | AW70: =IF(BC70>=$B$3,VLOOKUP(BC70,Lookups!A:AL,27)*(1-VLOOKUP(BC70,Lookups!A:AL,38))^(BC70-$B$3),"") -> 0.4 | AX70: 0.4 | AY70: 0.0008294316494 | AZ70: 0.1028173297 | BA70: 0.80609 | BC70: 114 | BD70: 1819963.79 | BE70: 125.1103401 | BF70: 130.4525969 | BG70: 136.0463371 | BH70: 141.906578 | BI70: 148.0505344 | BJ70: 154.4998687 | BK70: 161.2706542 | BL70: 168.3844319 | BM70: 175.8908708 | BN70: 183.8230796 | BO70: 192.2213902 | BP70: 201.1101162 | BQ70: 210.5262989 | BR70: 220.5163882 | BS70: 231.1679475
A71: 2081 | B71: 88 | D71: =VLOOKUP(B71,Lookups!A:R,17) -> 167423.9671 | E71: 0 | G71: =VLOOKUP(B71,Lookups!A:R,18) -> 48829.87819 | H71: 0 | J71: 1.0475 | K71: 23.46789581 | T71: 3929088.216 | U71: 0 | V71: 3929088.216 | W71: =VLOOKUP(B71,Lookups!A:T,19) -> 0.08912 | Y71: 1145934.494 | Z71: 0 | AA71: 1145934.494 | AB71: =VLOOKUP(B71,Lookups!A:T,20) -> 0.08068 | AD71: 442614.3368 | AF71: =IF(B71<71,VLOOKUP(B71,Lookups!A:AG,32),"") ->  | AG71: =IF(B71<71,VLOOKUP(B71,Lookups!A:AG,33),"") ->  | AI71: =IF(B71<70,VLOOKUP(B71,Lookups!A:AG,28),"") ->  | AJ71: =IF(B71<70,VLOOKUP(B71,Lookups!A:AG,29),"") ->  | AL71: =IF(B71<70,VLOOKUP(B71,Lookups!A:AG,30),"") ->  | AM71: =IF(B71<70,VLOOKUP(B71,Lookups!A:AG,31),"") ->  | AO71: =IF(B71<70,VLOOKUP(B71,Lookups!A:AL,26)*(1-VLOOKUP(B71,Lookups!A:AL,37))^(A71-$A$3),"") ->  | AP71: =IF(B71<70,VLOOKUP(B71,Lookups!A:AL,27)*(1-VLOOKUP(B71,Lookups!A:AL,38))^(A71-$A$3),"") ->  | AV71: =IF(BC71>=$B$3,VLOOKUP(BC71,Lookups!A:AL,26)*(1-VLOOKUP(BC71,Lookups!A:AL,37))^(BC71-$B$3),"") -> 0.4 | AW71: =IF(BC71>=$B$3,VLOOKUP(BC71,Lookups!A:AL,27)*(1-VLOOKUP(BC71,Lookups!A:AL,38))^(BC71-$B$3),"") -> 0.4 | AX71: 0.4 | AY71: 0.0004976589897 | AZ71: 0.09886281706 | BA71: 0.80609 | BC71: 115 | BD71: 1819963.79 | BE71: 72.17904237 | BF71: 75.26111359 | BG71: 78.4882714 | BH71: 81.86917959 | BI71: 85.41376985 | BJ71: 89.13453966 | BK71: 93.04076204 | BL71: 97.14486455 | BM71: 101.4755024 | BN71: 106.0517767 | BO71: 110.8969559 | BP71: 116.025067 | BQ71: 121.4574801 | BR71: 127.2209932 | BS71: 133.3661236
A72: 2082 | B72: 89 | D72: =VLOOKUP(B72,Lookups!A:R,17) -> 164173.0163 | E72: 0 | G72: =VLOOKUP(B72,Lookups!A:R,18) -> 47833.35006 | H72: 0 | J72: 1.0475 | K72: 24.58262086 | T72: 4035803.015 | U72: 0 | V72: 4035803.015 | W72: =VLOOKUP(B72,Lookups!A:T,19) -> 0.10154 | Y72: 1175869.109 | Z72: 0 | AA72: 1175869.109 | AB72: =VLOOKUP(B72,Lookups!A:T,20) -> 0.08366 | AD72: 508168.6478 | AF72: =IF(B72<71,VLOOKUP(B72,Lookups!A:AG,32),"") ->  | AG72: =IF(B72<71,VLOOKUP(B72,Lookups!A:AG,33),"") ->  | AI72: =IF(B72<70,VLOOKUP(B72,Lookups!A:AG,28),"") ->  | AJ72: =IF(B72<70,VLOOKUP(B72,Lookups!A:AG,29),"") ->  | AL72: =IF(B72<70,VLOOKUP(B72,Lookups!A:AG,30),"") ->  | AM72: =IF(B72<70,VLOOKUP(B72,Lookups!A:AG,31),"") ->  | AO72: =IF(B72<70,VLOOKUP(B72,Lookups!A:AL,26)*(1-VLOOKUP(B72,Lookups!A:AL,37))^(A72-$A$3),"") ->  | AP72: =IF(B72<70,VLOOKUP(B72,Lookups!A:AL,27)*(1-VLOOKUP(B72,Lookups!A:AL,38))^(A72-$A$3),"") ->  | AV72: =IF(BC72>=$B$3,VLOOKUP(BC72,Lookups!A:AL,26)*(1-VLOOKUP(BC72,Lookups!A:AL,37))^(BC72-$B$3),"") -> 0.4 | AW72: =IF(BC72>=$B$3,VLOOKUP(BC72,Lookups!A:AL,27)*(1-VLOOKUP(BC72,Lookups!A:AL,38))^(BC72-$B$3),"") -> 0.4 | AX72: 0.4 | AY72: 0.0002985953938 | AZ72: 0.09506040102 | BA72: 0.80609 | BC72: 116 | BD72: 1819963.79 | BE72: 41.64175521 | BF72: 43.41987322 | BG72: 45.28169504 | BH72: 47.23221899 | BI72: 49.27717491 | BJ72: 51.42377288 | BK72: 53.67736271 | BL72: 56.04511416 | BM72: 58.54355905 | BN72: 61.18371734 | BO72: 63.979013 | BP72: 66.93753868 | BQ72: 70.07162315 | BR72: 73.39672686 | BS72: 76.94199438 | BT72: Totals Per Person
A73: =1+A72 -> 2083 | B73: 90 | D73: =VLOOKUP(B73,Lookups!A:R,17) -> 160922.0655 | E73: 0 | G73: =VLOOKUP(B73,Lookups!A:R,18) -> 46836.82193 | H73: 0 | J73: 1.0475 | K73: 25.75029535 | T73: 4143790.714 | U73: 0 | V73: 4143790.714 | W73: =VLOOKUP(B73,Lookups!A:T,19) -> 0.11396 | Y73: 1206061.998 | Z73: 0 | AA73: 1206061.998 | AB73: =VLOOKUP(B73,Lookups!A:T,20) -> 0.08664 | AD73: 576719.6013 | AF73: =IF(B73<71,VLOOKUP(B73,Lookups!A:AG,32),"") ->  | AG73: =IF(B73<71,VLOOKUP(B73,Lookups!A:AG,33),"") ->  | AI73: =IF(B73<70,VLOOKUP(B73,Lookups!A:AG,28),"") ->  | AJ73: =IF(B73<70,VLOOKUP(B73,Lookups!A:AG,29),"") ->  | AL73: =IF(B73<70,VLOOKUP(B73,Lookups!A:AG,30),"") ->  | AM73: =IF(B73<70,VLOOKUP(B73,Lookups!A:AG,31),"") ->  | AO73: =IF(B73<70,VLOOKUP(B73,Lookups!A:AL,26)*(1-VLOOKUP(B73,Lookups!A:AL,37))^(A73-$A$3),"") ->  | AP73: =IF(B73<70,VLOOKUP(B73,Lookups!A:AL,27)*(1-VLOOKUP(B73,Lookups!A:AL,38))^(A73-$A$3),"") ->  | AV73: =IF(BC73>=$B$3,VLOOKUP(BC73,Lookups!A:AL,26)*(1-VLOOKUP(BC73,Lookups!A:AL,37))^(BC73-$B$3),"") -> 0.4 | AW73: =IF(BC73>=$B$3,VLOOKUP(BC73,Lookups!A:AL,27)*(1-VLOOKUP(BC73,Lookups!A:AL,38))^(BC73-$B$3),"") -> 0.4 | AX73: 0.4 | AY73: 0.0001791572363 | AZ73: 0.09140423175 | BA73: 0.80609 | BC73: 117 | BD73: 1819963.79 | BE73: =IF($BD$12<>"",BD73*BA73*AZ73*AY73,"") -> 24.02408955 | BF73: =IF($BD$13<>"",BD73*AY73/$AY$13*BA73*AZ73/$AZ$13,"") -> 25.04992686 | BG73: =IF($BD$14<>"",BD73*AY73/$AY$14*BA73*AZ73/$AZ$14,"") -> 26.12405483 | BH73: =IF($BD$15<>"",BD73*AY73/$AY$15*BA73*AZ73/$AZ$15,"") -> 27.24935711 | BI73: =IF($BD$16<>"",BD73*AY73/$AY$16*BA73*AZ73/$AZ$16,"") -> 28.42913937 | BJ73: =IF($BD$17<>"",BD73*AY73/$AY$17*BA73*AZ73/$AZ$17,"") -> 29.66756128 | BK73: =IF($BD$18<>"",BD73*AY73/$AY$18*BA73*AZ73/$AZ$18,"") -> 30.96770926 | BL73: =IF($BD$19<>"",BD73*AY73/$AY$19*BA73*AZ73/$AZ$19,"") -> 32.33371971 | BM73: =IF($BD$20<>"",BD73*AY73/$AY$20*BA73*AZ73/$AZ$20,"") -> 33.77513022 | BN73: =IF($BD$21<>"",BD73*AY73/$AY$21*BA73*AZ73/$AZ$21,"") -> 35.29829846 | BO73: =IF($BD$22<>"",BD73*AY73/$AY$22*BA73*AZ73/$AZ$22,"") -> 36.91096904 | BP73: =IF($BD$23<>"",BD73*AY73/$AY$23*BA73*AZ73/$AZ$23,"") -> 38.61781078 | BQ73: =IF($BD$24<>"",BD73*AY73/$AY$24*BA73*AZ73/$AZ$24,"") -> 40.42593643 | BR73: =IF($BD$25<>"",BD73*AY73/$AY$25*BA73*AZ73/$AZ$25,"") -> 42.34426549 | BS73: =IF($BD$26<>"",BD73*AY73/$AY$26*BA73*AZ73/$AZ$26,"") -> 44.38961214 | BT73: =SUM(BE83:BS83) -> 35806.19947
A74: 2084 | B74: 91 | D74: =VLOOKUP(B74,Lookups!A:R,17) -> 157671.1146 | E74: 0 | G74: =VLOOKUP(B74,Lookups!A:R,18) -> 45840.29381 | H74: 0 | J74: 1.0475 | K74: 26.97343438 | T74: 4252931.465 | U74: 0 | V74: 4252931.465 | W74: =VLOOKUP(B74,Lookups!A:T,19) -> 0.12638 | Y74: 1236470.157 | Z74: 0 | AA74: 1236470.157 | AB74: =VLOOKUP(B74,Lookups!A:T,20) -> 0.08962 | AD74: 648297.934 | AF74: =IF(B74<71,VLOOKUP(B74,Lookups!A:AG,32),"") ->  | AG74: =IF(B74<71,VLOOKUP(B74,Lookups!A:AG,33),"") ->  | AI74: =IF(B74<70,VLOOKUP(B74,Lookups!A:AG,28),"") ->  | AJ74: =IF(B74<70,VLOOKUP(B74,Lookups!A:AG,29),"") ->  | AL74: =IF(B74<70,VLOOKUP(B74,Lookups!A:AG,30),"") ->  | AM74: =IF(B74<70,VLOOKUP(B74,Lookups!A:AG,31),"") ->  | AO74: =IF(B74<70,VLOOKUP(B74,Lookups!A:AL,26)*(1-VLOOKUP(B74,Lookups!A:AL,37))^(A74-$A$3),"") ->  | AP74: =IF(B74<70,VLOOKUP(B74,Lookups!A:AL,27)*(1-VLOOKUP(B74,Lookups!A:AL,38))^(A74-$A$3),"") ->  | AV74: =IF(BC74>=$B$3,VLOOKUP(BC74,Lookups!A:AL,26)*(1-VLOOKUP(BC74,Lookups!A:AL,37))^(BC74-$B$3),"") -> 0.4 | AW74: =IF(BC74>=$B$3,VLOOKUP(BC74,Lookups!A:AL,27)*(1-VLOOKUP(BC74,Lookups!A:AL,38))^(BC74-$B$3),"") -> 0.4 | AX74: 0.4 | AY74: 0.0001074943418 | AZ74: 0.08788868438 | BA74: 0.80609 | BC74: 118 | BD74: 1819963.79 | BE74: 13.86005166 | BF74: 14.45188088 | BG74: 15.07157009 | BH74: 15.72078295 | BI74: 16.40142656 | BJ74: 17.11590074 | BK74: 17.86598611 | BL74: 18.65406906 | BM74: 19.48565205 | BN74: 20.36440296 | BO74: 21.29478983 | BP74: 22.27950622 | BQ74: 23.32265563 | BR74: 24.42938394 | BS74: 25.60939162 | BT74: =B1 -> 0
A75: 2085 | B75: 92 | D75: =VLOOKUP(B75,Lookups!A:R,17) -> 154420.1638 | E75: 0 | G75: =VLOOKUP(B75,Lookups!A:R,18) -> 44843.76568 | H75: 0 | J75: 1.0475 | K75: 28.25467251 | T75: 4363091.159 | U75: 0 | V75: 4363091.159 | W75: =VLOOKUP(B75,Lookups!A:T,19) -> 0.1388 | Y75: 1267045.914 | Z75: 0 | AA75: 1267045.914 | AB75: =VLOOKUP(B75,Lookups!A:T,20) -> 0.0926 | AD75: 722925.5044 | AF75: =IF(B75<71,VLOOKUP(B75,Lookups!A:AG,32),"") ->  | AG75: =IF(B75<71,VLOOKUP(B75,Lookups!A:AG,33),"") ->  | AI75: =IF(B75<70,VLOOKUP(B75,Lookups!A:AG,28),"") ->  | AJ75: =IF(B75<70,VLOOKUP(B75,Lookups!A:AG,29),"") ->  | AL75: =IF(B75<70,VLOOKUP(B75,Lookups!A:AG,30),"") ->  | AM75: =IF(B75<70,VLOOKUP(B75,Lookups!A:AG,31),"") ->  | AO75: =IF(B75<70,VLOOKUP(B75,Lookups!A:AL,26)*(1-VLOOKUP(B75,Lookups!A:AL,37))^(A75-$A$3),"") ->  | AP75: =IF(B75<70,VLOOKUP(B75,Lookups!A:AL,27)*(1-VLOOKUP(B75,Lookups!A:AL,38))^(A75-$A$3),"") ->  | AV75: =IF(BC75>=$B$3,VLOOKUP(BC75,Lookups!A:AL,26)*(1-VLOOKUP(BC75,Lookups!A:AL,37))^(BC75-$B$3),"") -> 0.4 | AW75: =IF(BC75>=$B$3,VLOOKUP(BC75,Lookups!A:AL,27)*(1-VLOOKUP(BC75,Lookups!A:AL,38))^(BC75-$B$3),"") -> 1 | AX75: 1 | AY75: 6.449660506e-05 | AZ75: 0.08450835036 | BA75: 0.541667 | BC75: 119 | BD75: 1819963.79 | BE75: 5.373182659 | BF75: 5.602619502 | BG75: 5.842856942 | BH75: 6.094539933 | BI75: 6.358407813 | BJ75: 6.635390927 | BK75: 6.926179577 | BL75: 7.231698904 | BM75: 7.554082067 | BN75: 7.894751009 | BO75: 8.255437875 | BP75: 8.637186887 | BQ75: 9.041588868 | BR75: 9.470638736 | BS75: 9.928097118
A76: 2086 | B76: 93 | D76: =VLOOKUP(B76,Lookups!A:R,17) -> 149543.7376 | E76: 0 | G76: =VLOOKUP(B76,Lookups!A:R,18) -> 44843.76568 | H76: 0 | J76: 1.0475 | K76: 29.59676946 | T76: 4426011.526 | U76: 0 | V76: 4426011.526 | W76: =VLOOKUP(B76,Lookups!A:T,19) -> 0.14734 | Y76: 1327230.594 | Z76: 0 | AA76: 1327230.594 | AB76: =VLOOKUP(B76,Lookups!A:T,20) -> 0.09342 | AD76: 776118.4203 | AF76: =IF(B76<71,VLOOKUP(B76,Lookups!A:AG,32),"") ->  | AG76: =IF(B76<71,VLOOKUP(B76,Lookups!A:AG,33),"") ->  | AI76: =IF(B76<70,VLOOKUP(B76,Lookups!A:AG,28),"") ->  | AJ76: =IF(B76<70,VLOOKUP(B76,Lookups!A:AG,29),"") ->  | AL76: =IF(B76<70,VLOOKUP(B76,Lookups!A:AG,30),"") ->  | AM76: =IF(B76<70,VLOOKUP(B76,Lookups!A:AG,31),"") ->  | AO76: =IF(B76<70,VLOOKUP(B76,Lookups!A:AL,26)*(1-VLOOKUP(B76,Lookups!A:AL,37))^(A76-$A$3),"") ->  | AP76: =IF(B76<70,VLOOKUP(B76,Lookups!A:AL,27)*(1-VLOOKUP(B76,Lookups!A:AL,38))^(A76-$A$3),"") ->  | AV76: =IF(BC76>=$B$3,VLOOKUP(BC76,Lookups!A:AL,26)*(1-VLOOKUP(BC76,Lookups!A:AL,37))^(BC76-$B$3),"") -> 1 | AW76: =IF(BC76>=$B$3,VLOOKUP(BC76,Lookups!A:AL,27)*(1-VLOOKUP(BC76,Lookups!A:AL,38))^(BC76-$B$3),"") -> 1 | AX76: =IF(BC76>=$B$3, PCTMALE*AV76+(1-PCTMALE)*AW76, "") -> 1 | AY76: 0 | AZ76: =IF(AX75="",1,AZ75/(1+INTRt)) -> 0.08125802919 | BA76: =IF(AX76="",1,ROUND((13/24)+(11/24)*(1/(1+INTRt))*(1-AX76),6)) -> 0.541667 | BC76: 120 | BD76: 1819963.79 | BE76: 0 | BF76: 0 | BG76: 0 | BH76: 0 | BI76: 0 | BJ76: 0 | BK76: 0 | BL76: 0 | BM76: 0 | BN76: 0 | BO76: 0 | BP76: 0 | BQ76: 0 | BR76: 0 | BS76: 0
A77: 2087 | B77: 94 | D77: =VLOOKUP(B77,Lookups!A:R,17) -> 144667.3114 | E77: 0 | G77: =VLOOKUP(B77,Lookups!A:R,18) -> 44843.76568 | H77: 0 | J77: 1.0475 | K77: 31.00261601 | T77: 4485065.103 | U77: 0 | V77: 4485065.103 | W77: =VLOOKUP(B77,Lookups!A:T,19) -> 0.15588 | Y77: 1390274.048 | Z77: 0 | AA77: 1390274.048 | AB77: =VLOOKUP(B77,Lookups!A:T,20) -> 0.09424 | AD77: 830151.3746 | AF77: =IF(B77<71,VLOOKUP(B77,Lookups!A:AG,32),"") ->  | AG77: =IF(B77<71,VLOOKUP(B77,Lookups!A:AG,33),"") ->  | AI77: =IF(B77<70,VLOOKUP(B77,Lookups!A:AG,28),"") ->  | AJ77: =IF(B77<70,VLOOKUP(B77,Lookups!A:AG,29),"") ->  | AL77: =IF(B77<70,VLOOKUP(B77,Lookups!A:AG,30),"") ->  | AM77: =IF(B77<70,VLOOKUP(B77,Lookups!A:AG,31),"") ->  | AO77: =IF(B77<70,VLOOKUP(B77,Lookups!A:AL,26)*(1-VLOOKUP(B77,Lookups!A:AL,37))^(A77-$A$3),"") ->  | AP77: =IF(B77<70,VLOOKUP(B77,Lookups!A:AL,27)*(1-VLOOKUP(B77,Lookups!A:AL,38))^(A77-$A$3),"") ->  | AV77: =IF(BC77>=$B$3,VLOOKUP(BC77,Lookups!A:AL,26)*(1-VLOOKUP(BC77,Lookups!A:AL,37))^(BC77-$B$3),"") -> 1 | AW77: =IF(BC77>=$B$3,VLOOKUP(BC77,Lookups!A:AL,27)*(1-VLOOKUP(BC77,Lookups!A:AL,38))^(BC77-$B$3),"") -> 1 | AX77: 1 | AY77: 0 | AZ77: 0.07813272038 | BA77: 0.541667 | BC77: =1+BC76 -> 121 | BD77: 1819963.79 | BE77: 0 | BF77: 0 | BG77: 0 | BH77: 0 | BI77: 0 | BJ77: 0 | BK77: 0 | BL77: 0 | BM77: 0 | BN77: 0 | BO77: 0 | BP77: 0 | BQ77: 0 | BR77: 0 | BS77: 0 | BT77: Aggregate Totals
A78: 2088 | B78: 95 | D78: =VLOOKUP(B78,Lookups!A:R,17) -> 139790.8852 | E78: 0 | G78: =VLOOKUP(B78,Lookups!A:R,18) -> 44843.76568 | H78: 0 | J78: 1.0475 | K78: 32.47524027 | T78: 4539742.583 | U78: 0 | V78: 4539742.583 | W78: =VLOOKUP(B78,Lookups!A:T,19) -> 0.16442 | Y78: 1456312.065 | Z78: 0 | AA78: 1456312.065 | AB78: =VLOOKUP(B78,Lookups!A:T,20) -> 0.09506 | AD78: 884861.5003 | AF78: =IF(B78<71,VLOOKUP(B78,Lookups!A:AG,32),"") ->  | AG78: =IF(B78<71,VLOOKUP(B78,Lookups!A:AG,33),"") ->  | AI78: =IF(B78<70,VLOOKUP(B78,Lookups!A:AG,28),"") ->  | AJ78: =IF(B78<70,VLOOKUP(B78,Lookups!A:AG,29),"") ->  | AL78: =IF(B78<70,VLOOKUP(B78,Lookups!A:AG,30),"") ->  | AM78: =IF(B78<70,VLOOKUP(B78,Lookups!A:AG,31),"") ->  | AO78: =IF(B78<70,VLOOKUP(B78,Lookups!A:AL,26)*(1-VLOOKUP(B78,Lookups!A:AL,37))^(A78-$A$3),"") ->  | AP78: =IF(B78<70,VLOOKUP(B78,Lookups!A:AL,27)*(1-VLOOKUP(B78,Lookups!A:AL,38))^(A78-$A$3),"") ->  | AV78: =IF(BC78>=$B$3,VLOOKUP(BC78,Lookups!A:AL,26)*(1-VLOOKUP(BC78,Lookups!A:AL,37))^(BC78-$B$3),"") -> 1 | AW78: =IF(BC78>=$B$3,VLOOKUP(BC78,Lookups!A:AL,27)*(1-VLOOKUP(BC78,Lookups!A:AL,38))^(BC78-$B$3),"") -> 1 | AX78: 1 | AY78: =IF(AX77="",1,AY77*(1-AX77)) -> 0 | AZ78: 0.07512761575 | BA78: 0.541667 | BC78: 122 | BD78: 1819963.79 | BE78: 0 | BF78: 0 | BG78: 0 | BH78: 0 | BI78: 0 | BJ78: 0 | BK78: 0 | BL78: 0 | BM78: 0 | BN78: 0 | BO78: 0 | BP78: 0 | BQ78: 0 | BR78: 0 | BS78: 0 | BT78: =BT73*BT74 -> 0
A79: 2089 | B79: 96 | D79: =VLOOKUP(B79,Lookups!A:R,17) -> 134914.4589 | E79: 0 | G79: =VLOOKUP(B79,Lookups!A:R,18) -> 44843.76568 | H79: 0 | J79: 1.0475 | K79: 34.01781418 | T79: 4589494.994 | U79: 0 | V79: 4589494.994 | W79: =VLOOKUP(B79,Lookups!A:T,19) -> 0.17296 | Y79: 1525486.888 | Z79: 0 | AA79: 1525486.888 | AB79: =VLOOKUP(B79,Lookups!A:T,20) -> 0.09588 | AD79: 940062.737 | AF79: =IF(B79<71,VLOOKUP(B79,Lookups!A:AG,32),"") ->  | AG79: =IF(B79<71,VLOOKUP(B79,Lookups!A:AG,33),"") ->  | AI79: =IF(B79<70,VLOOKUP(B79,Lookups!A:AG,28),"") ->  | AJ79: =IF(B79<70,VLOOKUP(B79,Lookups!A:AG,29),"") ->  | AL79: =IF(B79<70,VLOOKUP(B79,Lookups!A:AG,30),"") ->  | AM79: =IF(B79<70,VLOOKUP(B79,Lookups!A:AG,31),"") ->  | AO79: =IF(B79<70,VLOOKUP(B79,Lookups!A:AL,26)*(1-VLOOKUP(B79,Lookups!A:AL,37))^(A79-$A$3),"") ->  | AP79: =IF(B79<70,VLOOKUP(B79,Lookups!A:AL,27)*(1-VLOOKUP(B79,Lookups!A:AL,38))^(A79-$A$3),"") ->  | AV79: =IF(BC79>=$B$3,VLOOKUP(BC79,Lookups!A:AL,26)*(1-VLOOKUP(BC79,Lookups!A:AL,37))^(BC79-$B$3),"") -> 1 | AW79: =IF(BC79>=$B$3,VLOOKUP(BC79,Lookups!A:AL,27)*(1-VLOOKUP(BC79,Lookups!A:AL,38))^(BC79-$B$3),"") -> 1 | AX79: 1 | AY79: 0 | AZ79: 0.07223809207 | BA79: 0.541667 | BC79: 123 | BD79: 1819963.79 | BE79: 0 | BF79: 0 | BG79: 0 | BH79: 0 | BI79: 0 | BJ79: 0 | BK79: 0 | BL79: 0 | BM79: 0 | BN79: 0 | BO79: 0 | BP79: 0 | BQ79: 0 | BR79: 0 | BS79: 0 | BT79: =BT78*1 -> 0
A80: 2090 | B80: 97 | D80: =VLOOKUP(B80,Lookups!A:R,17) -> 130038.0327 | E80: 0 | G80: =VLOOKUP(B80,Lookups!A:R,18) -> 44843.76568 | H80: 0 | J80: 1.0475 | K80: 35.63366035 | T80: 4633731.09 | U80: 0 | V80: 4633731.09 | W80: =VLOOKUP(B80,Lookups!A:T,19) -> 0.1815 | Y80: 1597947.515 | Z80: 0 | AA80: 1597947.515 | AB80: =VLOOKUP(B80,Lookups!A:T,20) -> 0.0967 | AD80: 995543.7176 | AF80: =IF(B80<71,VLOOKUP(B80,Lookups!A:AG,32),"") ->  | AG80: =IF(B80<71,VLOOKUP(B80,Lookups!A:AG,33),"") ->  | AI80: =IF(B80<70,VLOOKUP(B80,Lookups!A:AG,28),"") ->  | AJ80: =IF(B80<70,VLOOKUP(B80,Lookups!A:AG,29),"") ->  | AL80: =IF(B80<70,VLOOKUP(B80,Lookups!A:AG,30),"") ->  | AM80: =IF(B80<70,VLOOKUP(B80,Lookups!A:AG,31),"") ->  | AO80: =IF(B80<70,VLOOKUP(B80,Lookups!A:AL,26)*(1-VLOOKUP(B80,Lookups!A:AL,37))^(A80-$A$3),"") ->  | AP80: =IF(B80<70,VLOOKUP(B80,Lookups!A:AL,27)*(1-VLOOKUP(B80,Lookups!A:AL,38))^(A80-$A$3),"") ->  | AV80: =IF(BC80>=$B$3,VLOOKUP(BC80,Lookups!A:AL,26)*(1-VLOOKUP(BC80,Lookups!A:AL,37))^(BC80-$B$3),"") -> 1 | AW80: =IF(BC80>=$B$3,VLOOKUP(BC80,Lookups!A:AL,27)*(1-VLOOKUP(BC80,Lookups!A:AL,38))^(BC80-$B$3),"") -> 1 | AX80: 1 | AY80: 0 | AZ80: 0.06945970391 | BA80: 0.541667 | BC80: 124 | BD80: 1819963.79 | BE80: 0 | BF80: 0 | BG80: 0 | BH80: 0 | BI80: 0 | BJ80: 0 | BK80: 0 | BL80: 0 | BM80: 0 | BN80: 0 | BO80: 0 | BP80: 0 | BQ80: 0 | BR80: 0 | BS80: 0
A81: 2091 | B81: 98 | D81: =VLOOKUP(B81,Lookups!A:R,17) -> 130038.0327 | E81: 0 | G81: =VLOOKUP(B81,Lookups!A:R,18) -> 44843.76568 | H81: 0 | J81: 1.0475 | K81: 37.32625922 | T81: 4853833.317 | U81: 0 | V81: 4853833.317 | W81: =VLOOKUP(B81,Lookups!A:T,19) -> 0.1815 | Y81: 1673850.022 | Z81: 0 | AA81: 1673850.022 | AB81: =VLOOKUP(B81,Lookups!A:T,20) -> 0.0967 | AD81: 1042832.044 | AF81: =IF(B81<71,VLOOKUP(B81,Lookups!A:AG,32),"") ->  | AG81: =IF(B81<71,VLOOKUP(B81,Lookups!A:AG,33),"") ->  | AI81: =IF(B81<70,VLOOKUP(B81,Lookups!A:AG,28),"") ->  | AJ81: =IF(B81<70,VLOOKUP(B81,Lookups!A:AG,29),"") ->  | AL81: =IF(B81<70,VLOOKUP(B81,Lookups!A:AG,30),"") ->  | AM81: =IF(B81<70,VLOOKUP(B81,Lookups!A:AG,31),"") ->  | AO81: =IF(B81<70,VLOOKUP(B81,Lookups!A:AL,26)*(1-VLOOKUP(B81,Lookups!A:AL,37))^(A81-$A$3),"") ->  | AP81: =IF(B81<70,VLOOKUP(B81,Lookups!A:AL,27)*(1-VLOOKUP(B81,Lookups!A:AL,38))^(A81-$A$3),"") ->  | AV81: =IF(BC81>=$B$3,VLOOKUP(BC81,Lookups!A:AL,26)*(1-VLOOKUP(BC81,Lookups!A:AL,37))^(BC81-$B$3),"") -> 1 | AW81: =IF(BC81>=$B$3,VLOOKUP(BC81,Lookups!A:AL,27)*(1-VLOOKUP(BC81,Lookups!A:AL,38))^(BC81-$B$3),"") -> 1 | AX81: 1 | AY81: 0 | AZ81: 0.06678817684 | BA81: 0.541667 | BC81: 125 | BD81: =IF(BC81>=$B$3,VLOOKUP(BC81,$B$3:$AD$93,29),"") -> 1819963.79 | BE81: 0 | BF81: 0 | BG81: 0 | BH81: 0 | BI81: 0 | BJ81: 0 | BK81: 0 | BL81: 0 | BM81: 0 | BN81: 0 | BO81: 0 | BP81: 0 | BQ81: 0 | BR81: 0 | BS81: 0
A82: 2092 | B82: 99 | D82: =VLOOKUP(B82,Lookups!A:R,17) -> 130038.0327 | E82: 0 | G82: =VLOOKUP(B82,Lookups!A:R,18) -> 44843.76568 | H82: 0 | J82: 1.0475 | K82: 39.09925653 | T82: 5084390.4 | U82: 0 | V82: 5084390.4 | W82: =VLOOKUP(B82,Lookups!A:T,19) -> 0.1815 | Y82: 1753357.898 | Z82: 0 | AA82: 1753357.898 | AB82: =VLOOKUP(B82,Lookups!A:T,20) -> 0.0967 | AD82: 1092366.566 | AF82: =IF(B82<71,VLOOKUP(B82,Lookups!A:AG,32),"") ->  | AG82: =IF(B82<71,VLOOKUP(B82,Lookups!A:AG,33),"") ->  | AI82: =IF(B82<70,VLOOKUP(B82,Lookups!A:AG,28),"") ->  | AJ82: =IF(B82<70,VLOOKUP(B82,Lookups!A:AG,29),"") ->  | AL82: =IF(B82<70,VLOOKUP(B82,Lookups!A:AG,30),"") ->  | AM82: =IF(B82<70,VLOOKUP(B82,Lookups!A:AG,31),"") ->  | AO82: =IF(B82<70,VLOOKUP(B82,Lookups!A:AL,26)*(1-VLOOKUP(B82,Lookups!A:AL,37))^(A82-$A$3),"") ->  | AP82: =IF(B82<70,VLOOKUP(B82,Lookups!A:AL,27)*(1-VLOOKUP(B82,Lookups!A:AL,38))^(A82-$A$3),"") ->  | AV82: =IF(BC82>=$B$3,VLOOKUP(BC82,Lookups!A:AL,26)*(1-VLOOKUP(BC82,Lookups!A:AL,37))^(BC82-$B$3),"") -> 1 | AW82: =IF(BC82>=$B$3,VLOOKUP(BC82,Lookups!A:AL,27)*(1-VLOOKUP(BC82,Lookups!A:AL,38))^(BC82-$B$3),"") -> 1 | AX82: 1 | AY82: 0 | AZ82: 0.0642194008 | BA82: 0.541667 | BC82: 126 | BD82: 1819963.79 | BE82: 0 | BF82: 0 | BG82: 0 | BH82: 0 | BI82: 0 | BJ82: 0 | BK82: 0 | BL82: 0 | BM82: 0 | BN82: 0 | BO82: 0 | BP82: 0 | BQ82: 0 | BR82: 0 | BS82: 0
A83: 2093 | B83: 100 | D83: =VLOOKUP(B83,Lookups!A:R,17) -> 130038.0327 | E83: 0 | G83: =VLOOKUP(B83,Lookups!A:R,18) -> 44843.76568 | H83: 0 | J83: 1.0475 | K83: 40.95647122 | T83: 5325898.944 | U83: 0 | V83: 5325898.944 | W83: =VLOOKUP(B83,Lookups!A:T,19) -> 0.1815 | Y83: 1836642.398 | Z83: 0 | AA83: 1836642.398 | AB83: =VLOOKUP(B83,Lookups!A:T,20) -> 0.0967 | AD83: 1144253.978 | AF83: =IF(B83<71,VLOOKUP(B83,Lookups!A:AG,32),"") ->  | AG83: =IF(B83<71,VLOOKUP(B83,Lookups!A:AG,33),"") ->  | AI83: =IF(B83<70,VLOOKUP(B83,Lookups!A:AG,28),"") ->  | AJ83: =IF(B83<70,VLOOKUP(B83,Lookups!A:AG,29),"") ->  | AL83: =IF(B83<70,VLOOKUP(B83,Lookups!A:AG,30),"") ->  | AM83: =IF(B83<70,VLOOKUP(B83,Lookups!A:AG,31),"") ->  | AO83: =IF(B83<70,VLOOKUP(B83,Lookups!A:AL,26)*(1-VLOOKUP(B83,Lookups!A:AL,37))^(A83-$A$3),"") ->  | AP83: =IF(B83<70,VLOOKUP(B83,Lookups!A:AL,27)*(1-VLOOKUP(B83,Lookups!A:AL,38))^(A83-$A$3),"") ->  | BE83: =IF(BD12<>"",SUM(BE12:BE82)*BE84*BE85*BE86*PART,"") -> 10584.7236 | BF83: =IF(BD13<>"",SUM(BF12:BF82)*BF84*BF85*BF86*PART,"") -> 7519.509978 | BG83: =IF(BD14<>"",SUM(BG12:BG82)*BG84*BG85*BG86*PART,"") -> 5314.996516 | BH83: =IF(BD15<>"",SUM(BH12:BH82)*BH84*BH85*BH86*PART,"") -> 3740.012965 | BI83: =IF(BD16<>"",SUM(BI12:BI82)*BI84*BI85*BI86*PART,"") -> 3058.427681 | BJ83: =IF(BD17<>"",SUM(BJ12:BJ82)*BJ84*BJ85*BJ86*PART,"") -> 1982.524156 | BK83: =IF(BD18<>"",SUM(BK12:BK82)*BK84*BK85*BK86*PART,"") -> 1281.685294 | BL83: =IF(BD19<>"",SUM(BL12:BL82)*BL84*BL85*BL86*PART,"") -> 826.8253208 | BM83: =IF(BD20<>"",SUM(BM12:BM82)*BM84*BM85*BM86*PART,"") -> 532.4839028 | BN83: =IF(BD21<>"",SUM(BN12:BN82)*BN84*BN85*BN86*PART,"") -> 342.5464529 | BO83: =IF(BD22<>"",SUM(BO12:BO82)*BO84*BO85*BO86*PART,"") -> 205.5958761 | BP83: =IF(BD23<>"",SUM(BP12:BP82)*BP84*BP85*BP86*PART,"") -> 128.6321411 | BQ83: =IF(BD24<>"",SUM(BQ12:BQ82)*BQ84*BQ85*BQ86*PART,"") -> 83.49945574 | BR83: =IF(BD25<>"",SUM(BR12:BR82)*BR84*BR85*BR86*PART,"") -> 56.00361976 | BS83: =IF(BD26<>"",SUM(BS12:BS82)*BS84*BS85*BS86*PART,"") -> 148.7325142
A84: 2094 | B84: 101 | D84: =VLOOKUP(B84,Lookups!A:R,17) -> 130038.0327 | E84: 0 | G84: =VLOOKUP(B84,Lookups!A:R,18) -> 44843.76568 | H84: 0 | J84: 1.0475 | K84: 42.9019036 | T84: 5578879.143 | U84: 0 | V84: 5578879.143 | W84: =VLOOKUP(B84,Lookups!A:T,19) -> 0.1815 | Y84: 1923882.912 | Z84: 0 | AA84: 1923882.912 | AB84: =VLOOKUP(B84,Lookups!A:T,20) -> 0.0967 | AD84: 1198606.042 | AF84: =IF(B84<71,VLOOKUP(B84,Lookups!A:AG,32),"") ->  | AG84: =IF(B84<71,VLOOKUP(B84,Lookups!A:AG,33),"") ->  | AI84: =IF(B84<70,VLOOKUP(B84,Lookups!A:AG,28),"") ->  | AJ84: =IF(B84<70,VLOOKUP(B84,Lookups!A:AG,29),"") ->  | AL84: =IF(B84<70,VLOOKUP(B84,Lookups!A:AG,30),"") ->  | AM84: =IF(B84<70,VLOOKUP(B84,Lookups!A:AG,31),"") ->  | AO84: =IF(B84<70,VLOOKUP(B84,Lookups!A:AL,26)*(1-VLOOKUP(B84,Lookups!A:AL,37))^(A84-$A$3),"") ->  | AP84: =IF(B84<70,VLOOKUP(B84,Lookups!A:AL,27)*(1-VLOOKUP(B84,Lookups!A:AL,38))^(A84-$A$3),"") ->  | BD84: Survive | BE84: =VLOOKUP(BE2,$B$3:$AT$93,44) -> 0.08244955447 | BF84: =VLOOKUP(BF2,$B$3:$AT$93,44) -> 0.05809479894 | BG84: 0.04078480926 | BH84: 0.02854331688 | BI84: 0.01992440513 | BJ84: 0.01288286071 | BK84: 0.008316358756 | BL84: 0.005362910969 | BM84: 0.003455946976 | BN84: 0.002226744828 | BO84: 0.001435274087 | BP84: 0.0009593856603 | BQ84: 0.0006610973601 | BR84: 0.0004670551786 | BS84: 0.0003365038068
A85: 2095 | B85: 102 | D85: =VLOOKUP(B85,Lookups!A:R,17) -> 130038.0327 | E85: 0 | G85: =VLOOKUP(B85,Lookups!A:R,18) -> 44843.76568 | H85: 0 | J85: 1.0475 | K85: 44.93974402 | T85: 5843875.903 | U85: 0 | V85: 5843875.903 | W85: =VLOOKUP(B85,Lookups!A:T,19) -> 0.1815 | Y85: 2015267.351 | Z85: 0 | AA85: 2015267.351 | AB85: =VLOOKUP(B85,Lookups!A:T,20) -> 0.0967 | AD85: 1255539.829 | AF85: =IF(B85<71,VLOOKUP(B85,Lookups!A:AG,32),"") ->  | AG85: =IF(B85<71,VLOOKUP(B85,Lookups!A:AG,33),"") ->  | AI85: =IF(B85<70,VLOOKUP(B85,Lookups!A:AG,28),"") ->  | AJ85: =IF(B85<70,VLOOKUP(B85,Lookups!A:AG,29),"") ->  | AL85: =IF(B85<70,VLOOKUP(B85,Lookups!A:AG,30),"") ->  | AM85: =IF(B85<70,VLOOKUP(B85,Lookups!A:AG,31),"") ->  | AO85: =IF(B85<70,VLOOKUP(B85,Lookups!A:AL,26)*(1-VLOOKUP(B85,Lookups!A:AL,37))^(A85-$A$3),"") ->  | AP85: =IF(B85<70,VLOOKUP(B85,Lookups!A:AL,27)*(1-VLOOKUP(B85,Lookups!A:AL,38))^(A85-$A$3),"") ->  | BD85: Interest | BE85: =VLOOKUP(BE2,$B$3:$AT$93,45) -> 0.2534154707 | BF85: =VLOOKUP(BF2,$B$3:$AT$93,45) -> 0.2436687219 | BG85: 0.2342968479 | BH85: 0.2252854307 | BI85: 0.2166206064 | BJ85: 0.2082890447 | BK85: 0.2002779276 | BL85: 0.1925749303 | BM85: 0.1851682023 | BN85: 0.1780463483 | BO85: 0.1711984118 | BP85: 0.1646138575 | BQ85: 0.1582825553 | BR85: 0.1521947647 | BS85: 0.1463411199
A86: 2096 | B86: 103 | D86: =VLOOKUP(B86,Lookups!A:R,17) -> 130038.0327 | E86: 0 | G86: =VLOOKUP(B86,Lookups!A:R,18) -> 44843.76568 | H86: 0 | J86: 1.0475 | K86: 47.07438186 | T86: 6121460.008 | U86: 0 | V86: 6121460.008 | W86: =VLOOKUP(B86,Lookups!A:T,19) -> 0.1815 | Y86: 2110992.55 | Z86: 0 | AA86: 2110992.55 | AB86: =VLOOKUP(B86,Lookups!A:T,20) -> 0.0967 | AD86: 1315177.971 | AF86: =IF(B86<71,VLOOKUP(B86,Lookups!A:AG,32),"") ->  | AG86: =IF(B86<71,VLOOKUP(B86,Lookups!A:AG,33),"") ->  | AI86: =IF(B86<70,VLOOKUP(B86,Lookups!A:AG,28),"") ->  | AJ86: =IF(B86<70,VLOOKUP(B86,Lookups!A:AG,29),"") ->  | AL86: =IF(B86<70,VLOOKUP(B86,Lookups!A:AG,30),"") ->  | AM86: =IF(B86<70,VLOOKUP(B86,Lookups!A:AG,31),"") ->  | AO86: =IF(B86<70,VLOOKUP(B86,Lookups!A:AL,26)*(1-VLOOKUP(B86,Lookups!A:AL,37))^(A86-$A$3),"") ->  | AP86: =IF(B86<70,VLOOKUP(B86,Lookups!A:AL,27)*(1-VLOOKUP(B86,Lookups!A:AL,38))^(A86-$A$3),"") ->  | BD86: Retire | BE86: =VLOOKUP(BE2,$B$3:$AT$93,33)+ VLOOKUP(BE2,$B$3:$AT$93,39) -> 0.2928 | BF86: =VLOOKUP(BF2,$B$3:$AT$93,33)+ VLOOKUP(BF2,$B$3:$AT$93,39) -> 0.2952 | BG86: 0.2972 | BH86: 0.2988 | BI86: 0.35 | BJ86: 0.3508 | BK86: 0.3512 | BL86: 0.3512 | BM86: 0.3508 | BN86: 0.35 | BO86: 0.3256 | BP86: 0.3044 | BQ86: 0.2864 | BR86: 0.2716 | BS86: =VLOOKUP(BS2,$B$3:$AT$93,33) -> 1
A87: 2097 | B87: 104 | D87: =VLOOKUP(B87,Lookups!A:R,17) -> 130038.0327 | E87: 0 | G87: =VLOOKUP(B87,Lookups!A:R,18) -> 44843.76568 | H87: 0 | J87: 1.0475 | K87: 49.310415 | T87: 6412229.359 | U87: 0 | V87: 6412229.359 | W87: =VLOOKUP(B87,Lookups!A:T,19) -> 0.1815 | Y87: 2211264.696 | Z87: 0 | AA87: 2211264.696 | AB87: =VLOOKUP(B87,Lookups!A:T,20) -> 0.0967 | AD87: 1377648.925 | AF87: =IF(B87<71,VLOOKUP(B87,Lookups!A:AG,32),"") ->  | AG87: =IF(B87<71,VLOOKUP(B87,Lookups!A:AG,33),"") ->  | AI87: =IF(B87<70,VLOOKUP(B87,Lookups!A:AG,28),"") ->  | AJ87: =IF(B87<70,VLOOKUP(B87,Lookups!A:AG,29),"") ->  | AL87: =IF(B87<70,VLOOKUP(B87,Lookups!A:AG,30),"") ->  | AM87: =IF(B87<70,VLOOKUP(B87,Lookups!A:AG,31),"") ->  | AO87: =IF(B87<70,VLOOKUP(B87,Lookups!A:AL,26)*(1-VLOOKUP(B87,Lookups!A:AL,37))^(A87-$A$3),"") ->  | AP87: =IF(B87<70,VLOOKUP(B87,Lookups!A:AL,27)*(1-VLOOKUP(B87,Lookups!A:AL,38))^(A87-$A$3),"") -> 
A88: 2098 | B88: 105 | D88: =VLOOKUP(B88,Lookups!A:R,17) -> 130038.0327 | E88: 0 | G88: =VLOOKUP(B88,Lookups!A:R,18) -> 44843.76568 | H88: 0 | J88: 1.0475 | K88: 51.65265971 | T88: 6716810.253 | U88: 0 | V88: 6716810.253 | W88: =VLOOKUP(B88,Lookups!A:T,19) -> 0.1815 | Y88: 2316299.769 | Z88: 0 | AA88: 2316299.769 | AB88: =VLOOKUP(B88,Lookups!A:T,20) -> 0.0967 | AD88: 1443087.249 | AF88: =IF(B88<71,VLOOKUP(B88,Lookups!A:AG,32),"") ->  | AG88: =IF(B88<71,VLOOKUP(B88,Lookups!A:AG,33),"") ->  | AI88: =IF(B88<70,VLOOKUP(B88,Lookups!A:AG,28),"") ->  | AJ88: =IF(B88<70,VLOOKUP(B88,Lookups!A:AG,29),"") ->  | AL88: =IF(B88<70,VLOOKUP(B88,Lookups!A:AG,30),"") ->  | AM88: =IF(B88<70,VLOOKUP(B88,Lookups!A:AG,31),"") ->  | AO88: =IF(B88<70,VLOOKUP(B88,Lookups!A:AL,26)*(1-VLOOKUP(B88,Lookups!A:AL,37))^(A88-$A$3),"") ->  | AP88: =IF(B88<70,VLOOKUP(B88,Lookups!A:AL,27)*(1-VLOOKUP(B88,Lookups!A:AL,38))^(A88-$A$3),"") -> 
